Workbook

Sheet Worksheet
F1: adjust difficulty here. Aim for a spread. | G1: Number Topics: Revision Questions | I1: Answers (by default this column will not print)
A2: Include questions on these NUMBER topics (if you only choose a limited number of topics, some questions may appear blank) | G2: No calculators: write working whenever you need to. Use another sheet if you need more space
A3: Numerals, Count, Order (revision of previous level) | B3: TRUE | C3: Fractions | D3: TRUE | F3: =IF(O3=1,"Easy",IF(O3=2,"Medium","Hard")) -> Easy | G3: 1 | H3: Write down the next two numbers in this decreasing pattern: 9.004 , 9.003 , 9.002 , 9.001 , _______________ , _______________ | I3: 8.991 , 8.981 | N3: =CONCATENATE(TRUE,F3,COUNTIF($F$3:F3,F3)) -> TRUEEasy1 | O3: 1 | P3: =VLOOKUP(N3,Questions,20,FALSE) -> Write down the next two numbers in this decreasing pattern: 9.005 , 9.004 , 9.003 , 9.002 , _______________ , _______________ | Q3: =VLOOKUP(N3,Questions,30,FALSE) -> 8.992 , 8.982
A4: Add, Subtract, Multiply, Divide (revision of previous level) | B4: TRUE | C4: Decimals and Standard Form | D4: TRUE | F4: =IF(O4=1,"Easy",IF(O4=2,"Medium","Hard")) -> Easy | G4: 2 | H4: Work out the value of: 3 × ( 7 – 9 ) | I4: -6 | N4: =CONCATENATE(TRUE,F4,COUNTIF($F$3:F4,F4)) -> TRUEEasy2 | O4: 1 | P4: Work out the value of: 6 × ( 2 – 6 ) | Q4: -24
A5: Surds and Indices | B5: TRUE | C5: Percentages | D5: TRUE | F5: Easy | G5: 3 | H5: Algebra. If x = 5 , what is the value of: 3x²? | I5: 75 | N5: =CONCATENATE(TRUE,F5,COUNTIF($F$3:F5,F5)) -> TRUEEasy3 | O5: 1 | P5: Algebra. If g = 2 , what is the value of: 6g²? | Q5: 24
A6: Negative Numbers | B6: TRUE | C6: Rounding | D6: TRUE | F6: Easy | G6: 4 | H6: Add the fractions: 1/3 + 3/4 | I6: 13/12 | N6: =CONCATENATE(TRUE,F6,COUNTIF($F$3:F6,F6)) -> TRUEEasy4 | O6: 1 | P6: Add the fractions: 1/4 + 3/5 | Q6: 17/20
A7: =IF(OR('SYSTEM FORMULAE'!A3<20,'SYSTEM FORMULAE'!U1<'SYSTEM FORMULAE'!T1,'SYSTEM FORMULAE'!U2<'SYSTEM FORMULAE'!T2,'SYSTEM FORMULAE'!U3<'SYSTEM FORMULAE'!T3),"there are not enough potential questions. Please choose more topics","") ->  | F7: Easy | G7: 5 | H7: Work out the value of: 4 ( 7 – 1 ) | I7: 24 | N7: =CONCATENATE(TRUE,F7,COUNTIF($F$3:F7,F7)) -> TRUEEasy5 | O7: 1 | P7: Work out the value of: 3 ( 8 – 7 ) | Q7: 3
A8: Optionally include additional questions on these (selected) ALGEBRA topics | F8: Medium | G8: 6 | H8: Solve the equation 6q – 3 = 135 . Show your working in full. | I8: q = 23 | N8: =CONCATENATE(TRUE,F8,COUNTIF($F$3:F8,F8)) -> TRUEMedium1 | O8: 2 | P8: Solve the equation 2q – 5 = 19 . Show your working in full. | Q8: q = 12
A9: Substitution and Using formulae | B9: TRUE | C9: Equations and Inequations | D9: TRUE | F9: Medium | G9: 7 | H9: What is 39 to the power of 0? ( 39^0 ) | I9: 1 | N9: =CONCATENATE(TRUE,F9,COUNTIF($F$3:F9,F9)) -> TRUEMedium2 | O9: 2 | P9: What is 75 to the power of 0? ( 75^0 ) | Q9: 1
F10: Medium | G10: 8 | H10: Use a written sum to divide: 3620 ÷ 9, giving your remainder as a fraction or to 2 decimal place | I10: 402.22 or 402 2/9 | N10: =CONCATENATE(TRUE,F10,COUNTIF($F$3:F10,F10)) -> TRUEMedium3 | O10: 2 | P10: Use a written sum to divide: 1145 ÷ 9, giving your remainder as a fraction or to 2 decimal place | Q10: 127.22 or 127 2/9
F11: Medium | G11: 9 | H11: Change the number 8.937 × 10^5 (10 to the power of 5) from standard form to normal form | I11: 893700 | N11: =CONCATENATE(TRUE,F11,COUNTIF($F$3:F11,F11)) -> TRUEMedium4 | O11: 2 | P11: Change the number 1.448 × 10^6 (10 to the power of 6) from standard form to normal form | Q11: 1448000
F12: Medium | G12: 10 | H12: Solve the equation ¼w = 7 | I12: w=28 | N12: =CONCATENATE(TRUE,F12,COUNTIF($F$3:F12,F12)) -> TRUEMedium5 | O12: 2 | P12: Solve the equation ¼j = 4 | Q12: j=16
F13: Medium | G13: 11 | H13: Which ONE of these numbers is a PRIME number: 12 , 41 , 60 , 81 | I13: 41 | N13: =CONCATENATE(TRUE,F13,COUNTIF($F$3:F13,F13)) -> TRUEMedium6 | O13: 2 | P13: Which ONE of these numbers is a PRIME number: 21 , 31 , 30 , 32 | Q13: 31
F14: Medium | G14: 12 | H14: Multiply: 2 2/5 × 6 | I14: 14 2/5 or 72/5 | N14: =CONCATENATE(TRUE,F14,COUNTIF($F$3:F14,F14)) -> TRUEMedium7 | O14: 2 | P14: Take away the fractions: 2/7 – 1/6 | Q14: 5/42
F15: Medium | G15: 13 | H15: Take away the fractions: 3/7 – 2/6 , giving your answer in its simplest form | I15: 2/21 | N15: =CONCATENATE(TRUE,F15,COUNTIF($F$3:F15,F15)) -> TRUEMedium8 | O15: 2 | P15: Divide: 4858 ÷ 700 | Q15: 6.94
F16: Medium | G16: 14 | H16: Divide: 4491 ÷ 90 | I16: 49.9 | N16: =CONCATENATE(TRUE,F16,COUNTIF($F$3:F16,F16)) -> TRUEMedium9 | O16: 2 | P16: Write the mixed number 11 7/14 as a topheavy fraction | Q16: 161/14
F17: Hard | G17: 15 | H17: Round the number 93.6 to one significant figure | I17: 90 | N17: =CONCATENATE(TRUE,F17,COUNTIF($F$3:F17,F17)) -> TRUEHard1 | O17: 3 | P17: Round the number 40.07 to one significant figure | Q17: 40
F18: Hard | G18: 16 | H18: Multiply out the bracket and simplify: 9 ( 1 – 2u ) | I18: 9 – 18u | N18: =CONCATENATE(TRUE,F18,COUNTIF($F$3:F18,F18)) -> TRUEHard2 | O18: 3 | P18: Multiply out the bracket and simplify: 7 ( 1 – 10v ) | Q18: 7 – 70v
F19: Hard | G19: 17 | H19: Write the number 3963 in standard form | I19: 3.963× 10^3 (10 to the power of 3) | N19: =CONCATENATE(TRUE,F19,COUNTIF($F$3:F19,F19)) -> TRUEHard3 | O19: 3 | P19: Write the number 3069 in standard form | Q19: 3.069× 10^3 (10 to the power of 3)
F20: Hard | G20: 18 | H20: Write the number 876 in standard form | I20: 8.76× 10^2 (10 to the power of 2) | N20: =CONCATENATE(TRUE,F20,COUNTIF($F$3:F20,F20)) -> TRUEHard4 | O20: 3 | P20: Write the number 304 in standard form | Q20: 3.04× 10^2 (10 to the power of 2)
F21: Hard | G21: 19 | H21: What is (–16)² ? | I21: 256 | N21: =CONCATENATE(TRUE,F21,COUNTIF($F$3:F21,F21)) -> TRUEHard5 | O21: 3 | P21: What is (–18)² ? | Q21: 324
F22: Hard | G22: 20 | H22: A laptop costs £900 . In a sale, its price is reduced by 15% . What is its price in the sale? | I22: £765 | N22: =CONCATENATE(TRUE,F22,COUNTIF($F$3:F22,F22)) -> TRUEHard6 | O22: 3 | P22: A scooter costs £800 . In a sale, its price is reduced by 15% . What is its price in the sale? | Q22: £680

Sheet SYSTEM FORMULAE
A1: Possible topics | B1: Num | C1: +-×÷ | D1: Surds | G1: numerical simplifying using laws of indices | S1: hard | T1: =COUNTIF(Worksheet!$F$3:$F$22,S1) -> 6 | U1: =COUNTIF(AH$5:AH$796,"TRUEHard") -> 64
C2: Frac | D2: Dec | E2: % | S2: medium | T2: =COUNTIF(Worksheet!$F$3:$F$22,S2) -> 9 | U2: =COUNTIF(AH$5:AH$796,"TRUEMedium") -> 146
A3: =COUNTIF(AE5:AE796,TRUE) -> 349 | B3: Neg | C3: Round | D3: Alg | E3: Eqn | S3: easy | T3: =COUNTIF(Worksheet!$F$3:$F$22,S3) -> 5 | U3: =COUNTIF(AH$5:AH$796,"TRUEEasy") -> 139
A4: allow inclusion? | B4: rand() | C4: topic | D4: difficulty | U4: Answers
A5: =CONCATENATE(AE5,D5,AG5) -> TRUEMedium1 | B5: =RAND() -> 0.2331678601 | C5: Eqn | D5: Medium | E5: 321 | F5: Solve the equation | G5: =RANDBETWEEN(2,10) -> 2 | H5: =CHOOSE(RANDBETWEEN(1,22),"a","b","c","d","f","g","h","j","k","m","n","p","q","r","s","t","u","v","w","x","y","z") -> q | I5: – | J5: =RANDBETWEEN(1,10) -> 5 | K5: = | L5: =G5*W5-J5 -> 19 | M5: . Show your working in full. | T5: =CONCATENATE(F5," ",G5,"",H5," ",I5," ",J5," ",K5," ",L5," ",M5," ",N5," ",O5," ",P5," ",Q5," ",R5) -> Solve the equation 2q – 5 = 19 . Show your working in full. | U5: =H5 -> q | V5: = | W5: =RANDBETWEEN(10,30) -> 12 | AC5: =IF(L5<0,NA(),"") ->  | AD5: =IF(OR(ISNA(U5),ISNA(V5),ISNA(W5),ISNA(X5),ISNA(Y5),ISNA(Z5),ISNA(AA5),ISNA(AB5),ISNA(AC5)),NA(),CONCATENATE(U5,V5,W5,X5,Y5,Z5,AA5,AB5)) -> q = 12 | AE5: =IF(ISNA(AD5),FALSE,IF(C5=$B$1,Worksheet!$B$3,IF(C5=$C$1,Worksheet!$B$4,IF(C5=$D$1,Worksheet!$B$5,IF(C5=$C$2,Worksheet!$D$3,IF(C5=$D$2,Worksheet!$D$4,IF(C5=$E$2,Worksheet!$D$5,IF(C5=$C$3,Worksheet!$D$6,IF(C5=$B$3,Worksheet!$B$6,IF(C5=$D$3,Worksheet!$B$9,IF(C5=$E$3,Worksheet!$D$9,FALSE))))))))))) -> TRUE | AF5: =IF(AE5,D5,"") -> Medium | AG5: =IF(AE5,COUNTIF($AF$5:AF5,AF5),"X") -> 1 | AH5: =CONCATENATE(AE5,AF5) -> TRUEMedium
A6: =CONCATENATE(AE6,D6,AG6) -> TRUEEasy1 | B6: =RAND() -> 0.9227154616 | C6: Dec | D6: Easy | E6: 130 | F6: Write down the next two numbers in this decreasing pattern: | G6: =RANDBETWEEN(1,20)+RANDBETWEEN(4,5)*0.001 -> 9.005 | H6: , | I6: =G6+$S6 -> 9.004 | J6: , | K6: =I6+$S6 -> 9.003 | L6: , | M6: =K6+$S6 -> 9.002 | N6: , | O6: _______________ | P6: , | Q6: _______________ | S6: -0.001 | T6: =CONCATENATE(F6," ",G6," ",H6," ",I6," ",J6," ",K6," ",L6," ",M6," ",N6," ",O6," ",P6," ",Q6," ",R6) -> Write down the next two numbers in this decreasing pattern: 9.005 , 9.004 , 9.003 , 9.002 , _______________ , _______________ | U6: =M6-0.01 -> 8.992 | V6: , | W6: =U6-0.01 -> 8.982 | AC6: =IF(ISERROR(T6),NA(),"") ->  | AD6: =IF(OR(ISNA(U6),ISNA(V6),ISNA(W6),ISNA(X6),ISNA(Y6),ISNA(Z6),ISNA(AA6),ISNA(AB6),ISNA(AC6)),NA(),CONCATENATE(U6,V6,W6,X6,Y6,Z6,AA6,AB6)) -> 8.992 , 8.982 | AE6: =IF(ISNA(AD6),FALSE,IF(C6=$B$1,Worksheet!$B$3,IF(C6=$C$1,Worksheet!$B$4,IF(C6=$D$1,Worksheet!$B$5,IF(C6=$C$2,Worksheet!$D$3,IF(C6=$D$2,Worksheet!$D$4,IF(C6=$E$2,Worksheet!$D$5,IF(C6=$C$3,Worksheet!$D$6,IF(C6=$B$3,Worksheet!$B$6,IF(C6=$D$3,Worksheet!$B$9,IF(C6=$E$3,Worksheet!$D$9,FALSE))))))))))) -> TRUE | AF6: =IF(AE6,D6,"") -> Easy | AG6: =IF(AE6,COUNTIF($AF$5:AF6,AF6),"X") -> 1 | AH6: =CONCATENATE(AE6,AF6) -> TRUEEasy
A7: =CONCATENATE(AE7,D7,AG7) -> TRUEEasy2 | B7: =RAND() -> 0.4029146883 | C7: Neg | D7: Easy | E7: 25 | F7: Work out the value of: | G7: =RANDBETWEEN(2,9) -> 6 | H7: × ( | I7: =RANDBETWEEN(1,K7-1) -> 2 | J7: – | K7: =RANDBETWEEN(5,10) -> 6 | L7: ) | T7: =CONCATENATE(F7," ",G7," ",H7," ",I7," ",J7," ",K7," ",L7," ",M7," ",N7," ",O7," ",P7," ",Q7," ",R7) -> Work out the value of: 6 × ( 2 – 6 ) | U7: =(I7-K7)*G7 -> -24 | AC7: =IF(ISERROR(T7),NA(),"") ->  | AD7: =IF(OR(ISNA(U7),ISNA(V7),ISNA(W7),ISNA(X7),ISNA(Y7),ISNA(Z7),ISNA(AA7),ISNA(AB7),ISNA(AC7)),NA(),CONCATENATE(U7,V7,W7,X7,Y7,Z7,AA7,AB7)) -> -24 | AE7: =IF(ISNA(AD7),FALSE,IF(C7=$B$1,Worksheet!$B$3,IF(C7=$C$1,Worksheet!$B$4,IF(C7=$D$1,Worksheet!$B$5,IF(C7=$C$2,Worksheet!$D$3,IF(C7=$D$2,Worksheet!$D$4,IF(C7=$E$2,Worksheet!$D$5,IF(C7=$C$3,Worksheet!$D$6,IF(C7=$B$3,Worksheet!$B$6,IF(C7=$D$3,Worksheet!$B$9,IF(C7=$E$3,Worksheet!$D$9,FALSE))))))))))) -> TRUE | AF7: =IF(AE7,D7,"") -> Easy | AG7: =IF(AE7,COUNTIF($AF$5:AF7,AF7),"X") -> 2 | AH7: =CONCATENATE(AE7,AF7) -> TRUEEasy
A8: =CONCATENATE(AE8,D8,AG8) -> TRUEMedium2 | B8: =RAND() -> 0.8770127788 | C8: Surds | D8: Medium | E8: 58 | F8: What is | G8: =RANDBETWEEN(2,100) -> 75 | H8: to the power of 0? ( | I8: =G8 -> 75 | J8: ^0 ) | T8: =CONCATENATE(F8," ",G8," ",H8," ",I8,"",J8," ",K8," ",L8," ",M8," ",N8," ",O8," ",P8," ",Q8," ",R8) -> What is 75 to the power of 0? ( 75^0 ) | U8: 1 | AC8: =IF(ISERROR(T8),NA(),"") ->  | AD8: =IF(OR(ISNA(U8),ISNA(V8),ISNA(W8),ISNA(X8),ISNA(Y8),ISNA(Z8),ISNA(AA8),ISNA(AB8),ISNA(AC8)),NA(),CONCATENATE(U8,V8,W8,X8,Y8,Z8,AA8,AB8)) -> 1 | AE8: =IF(ISNA(AD8),FALSE,IF(C8=$B$1,Worksheet!$B$3,IF(C8=$C$1,Worksheet!$B$4,IF(C8=$D$1,Worksheet!$B$5,IF(C8=$C$2,Worksheet!$D$3,IF(C8=$D$2,Worksheet!$D$4,IF(C8=$E$2,Worksheet!$D$5,IF(C8=$C$3,Worksheet!$D$6,IF(C8=$B$3,Worksheet!$B$6,IF(C8=$D$3,Worksheet!$B$9,IF(C8=$E$3,Worksheet!$D$9,FALSE))))))))))) -> TRUE | AF8: =IF(AE8,D8,"") -> Medium | AG8: =IF(AE8,COUNTIF($AF$5:AF8,AF8),"X") -> 2 | AH8: =CONCATENATE(AE8,AF8) -> TRUEMedium
A9: =CONCATENATE(AE9,D9,AG9) -> TRUEEasy3 | B9: =RAND() -> 0.01246625733 | C9: Alg | D9: Easy | E9: 314 | F9: Algebra. If | G9: =CHOOSE(RANDBETWEEN(1,22),"a","b","c","d","f","g","h","j","k","m","n","p","q","r","s","t","u","v","w","x","y","z") -> g | H9: = | I9: =RANDBETWEEN(2,5) -> 2 | J9: , what is the value of: | K9: =RANDBETWEEN(2,10) -> 6 | L9: =G9 -> g | M9: ² | N9: ? | T9: =CONCATENATE(F9," ",G9," ",H9," ",I9," ",J9," ",K9,"",L9,"",M9,"",N9," ",O9," ",P9," ",Q9," ",R9) -> Algebra. If g = 2 , what is the value of: 6g²? | U9: =K9*I9^2 -> 24 | AC9: =IF(ISERROR(T9),NA(),"") ->  | AD9: =IF(OR(ISNA(U9),ISNA(V9),ISNA(W9),ISNA(X9),ISNA(Y9),ISNA(Z9),ISNA(AA9),ISNA(AB9),ISNA(AC9)),NA(),CONCATENATE(U9,V9,W9,X9,Y9,Z9,AA9,AB9)) -> 24 | AE9: =IF(ISNA(AD9),FALSE,IF(C9=$B$1,Worksheet!$B$3,IF(C9=$C$1,Worksheet!$B$4,IF(C9=$D$1,Worksheet!$B$5,IF(C9=$C$2,Worksheet!$D$3,IF(C9=$D$2,Worksheet!$D$4,IF(C9=$E$2,Worksheet!$D$5,IF(C9=$C$3,Worksheet!$D$6,IF(C9=$B$3,Worksheet!$B$6,IF(C9=$D$3,Worksheet!$B$9,IF(C9=$E$3,Worksheet!$D$9,FALSE))))))))))) -> TRUE | AF9: =IF(AE9,D9,"") -> Easy | AG9: =IF(AE9,COUNTIF($AF$5:AF9,AF9),"X") -> 3 | AH9: =CONCATENATE(AE9,AF9) -> TRUEEasy
A10: =CONCATENATE(AE10,D10,AG10) -> TRUEEasy4 | B10: =RAND() -> 0.5988415231 | C10: Frac | D10: Easy | E10: 98 | F10: Add the fractions: | G10: =IF(I10=4,CHOOSE(RANDBETWEEN(1,2),1,3),RANDBETWEEN(1,I10-1)) -> 1 | H10: / | I10: =RANDBETWEEN(3,5) -> 4 | J10: + | K10: =IF(M10=4,CHOOSE(RANDBETWEEN(1,2),1,3),RANDBETWEEN(1,M10-1)) -> 3 | L10: / | M10: =SMALL(IF(I10={3,4,5},"",{3,4,5}),RANDBETWEEN(1,2)) -> 5 | N10: =IF(GCD(G10*M10+I10*K10,I10*M10)=1,"",", giving your answer in its simplest form") ->  | T10: =CONCATENATE(F10," ",G10,"",H10,"",I10," ",J10," ",K10,"",L10,"",M10," ",N10," ",O10," ",P10," ",Q10," ",R10) -> Add the fractions: 1/4 + 3/5 | U10: =(G10*M10+I10*K10)/GCD(G10*M10+I10*K10,I10*M10) -> 17 | V10: / | W10: =I10*M10/GCD(G10*M10+I10*K10,I10*M10) -> 20 | AC10: =IF(ISERROR(T10),NA(),"") ->  | AD10: =IF(OR(ISNA(U10),ISNA(V10),ISNA(W10),ISNA(X10),ISNA(Y10),ISNA(Z10),ISNA(AA10),ISNA(AB10),ISNA(AC10)),NA(),CONCATENATE(U10,V10,W10,X10,Y10,Z10,AA10,AB10)) -> 17/20 | AE10: =IF(ISNA(AD10),FALSE,IF(C10=$B$1,Worksheet!$B$3,IF(C10=$C$1,Worksheet!$B$4,IF(C10=$D$1,Worksheet!$B$5,IF(C10=$C$2,Worksheet!$D$3,IF(C10=$D$2,Worksheet!$D$4,IF(C10=$E$2,Worksheet!$D$5,IF(C10=$C$3,Worksheet!$D$6,IF(C10=$B$3,Worksheet!$B$6,IF(C10=$D$3,Worksheet!$B$9,IF(C10=$E$3,Worksheet!$D$9,FALSE))))))))))) -> TRUE | AF10: =IF(AE10,D10,"") -> Easy | AG10: =IF(AE10,COUNTIF($AF$5:AF10,AF10),"X") -> 4 | AH10: =CONCATENATE(AE10,AF10) -> TRUEEasy
A11: =CONCATENATE(AE11,D11,AG11) -> TRUEHard1 | B11: =RAND() -> 0.4770272714 | C11: Round | D11: Hard | E11: 187 | F11: Round the number | G11: =RANDBETWEEN(11,99)+RANDBETWEEN(1,99)/100 -> 40.07 | H11: to one significant figure | S11: =RANDBETWEEN(10000,99999) -> 64551 | T11: =CONCATENATE(F11," ",G11," ",H11," ",I11," ",J11," ",K11," ",L11," ",M11," ",N11," ",O11," ",P11," ",Q11," ",R11) -> Round the number 40.07 to one significant figure | U11: =MROUND(G11,10) -> 40 | AC11: =IF(ISERROR(T11),NA(),"") ->  | AD11: =IF(OR(ISNA(U11),ISNA(V11),ISNA(W11),ISNA(X11),ISNA(Y11),ISNA(Z11),ISNA(AA11),ISNA(AB11),ISNA(AC11)),NA(),CONCATENATE(U11,V11,W11,X11,Y11,Z11,AA11,AB11)) -> 40 | AE11: =IF(ISNA(AD11),FALSE,IF(C11=$B$1,Worksheet!$B$3,IF(C11=$C$1,Worksheet!$B$4,IF(C11=$D$1,Worksheet!$B$5,IF(C11=$C$2,Worksheet!$D$3,IF(C11=$D$2,Worksheet!$D$4,IF(C11=$E$2,Worksheet!$D$5,IF(C11=$C$3,Worksheet!$D$6,IF(C11=$B$3,Worksheet!$B$6,IF(C11=$D$3,Worksheet!$B$9,IF(C11=$E$3,Worksheet!$D$9,FALSE))))))))))) -> TRUE | AF11: =IF(AE11,D11,"") -> Hard | AG11: =IF(AE11,COUNTIF($AF$5:AF11,AF11),"X") -> 1 | AH11: =CONCATENATE(AE11,AF11) -> TRUEHard
A12: =CONCATENATE(AE12,D12,AG12) -> TRUEMedium3 | B12: =RAND() -> 0.3781523163 | C12: +-×÷ | D12: Medium | E12: 72 | F12: Use a written sum to divide: | G12: =RANDBETWEEN(70,500)*9+RANDBETWEEN(1,8) -> 1145 | H12: ÷ 9, giving your remainder as a fraction or to 2 decimal place | T12: =CONCATENATE(F12," ",G12," ",H12," ",I12," ",J12," ",K12," ",L12," ",M12," ",N12," ",O12," ",P12," ",Q12," ",R12) -> Use a written sum to divide: 1145 ÷ 9, giving your remainder as a fraction or to 2 decimal place | U12: =TEXT(G12/9,"#.00") -> 127.22 | V12: or | W12: =TEXT(G12/9,"### #/#") -> 127 2/9 | AC12: =IF(ISERROR(T12),NA(),"") ->  | AD12: =IF(OR(ISNA(U12),ISNA(V12),ISNA(W12),ISNA(X12),ISNA(Y12),ISNA(Z12),ISNA(AA12),ISNA(AB12),ISNA(AC12)),NA(),CONCATENATE(U12,V12,W12,X12,Y12,Z12,AA12,AB12)) -> 127.22 or 127 2/9 | AE12: =IF(ISNA(AD12),FALSE,IF(C12=$B$1,Worksheet!$B$3,IF(C12=$C$1,Worksheet!$B$4,IF(C12=$D$1,Worksheet!$B$5,IF(C12=$C$2,Worksheet!$D$3,IF(C12=$D$2,Worksheet!$D$4,IF(C12=$E$2,Worksheet!$D$5,IF(C12=$C$3,Worksheet!$D$6,IF(C12=$B$3,Worksheet!$B$6,IF(C12=$D$3,Worksheet!$B$9,IF(C12=$E$3,Worksheet!$D$9,FALSE))))))))))) -> TRUE | AF12: =IF(AE12,D12,"") -> Medium | AG12: =IF(AE12,COUNTIF($AF$5:AF12,AF12),"X") -> 3 | AH12: =CONCATENATE(AE12,AF12) -> TRUEMedium
A13: =CONCATENATE(AE13,D13,AG13) -> TRUEMedium4 | B13: =RAND() -> 0.934011177 | C13: Dec | D13: Medium | E13: 192 | F13: Change the number | G13: =RANDBETWEEN(1,9)+RANDBETWEEN(1,999)/1000 -> 1.448 | H13: × 10^ | I13: =RANDBETWEEN(2,6) -> 6 | J13: (10 to the power of | K13: =I13 -> 6 | L13: ) from standard form to normal form | T13: =CONCATENATE(F13," ",G13," ",H13,"",I13," ",J13," ",K13,"",L13," ",M13," ",N13," ",O13," ",P13," ",Q13," ",R13) -> Change the number 1.448 × 10^6 (10 to the power of 6) from standard form to normal form | U13: =G13*10^I13 -> 1448000 | AC13: =IF(ISERROR(T13),NA(),"") ->  | AD13: =IF(OR(ISNA(U13),ISNA(V13),ISNA(W13),ISNA(X13),ISNA(Y13),ISNA(Z13),ISNA(AA13),ISNA(AB13),ISNA(AC13)),NA(),CONCATENATE(U13,V13,W13,X13,Y13,Z13,AA13,AB13)) -> 1448000 | AE13: =IF(ISNA(AD13),FALSE,IF(C13=$B$1,Worksheet!$B$3,IF(C13=$C$1,Worksheet!$B$4,IF(C13=$D$1,Worksheet!$B$5,IF(C13=$C$2,Worksheet!$D$3,IF(C13=$D$2,Worksheet!$D$4,IF(C13=$E$2,Worksheet!$D$5,IF(C13=$C$3,Worksheet!$D$6,IF(C13=$B$3,Worksheet!$B$6,IF(C13=$D$3,Worksheet!$B$9,IF(C13=$E$3,Worksheet!$D$9,FALSE))))))))))) -> TRUE | AF13: =IF(AE13,D13,"") -> Medium | AG13: =IF(AE13,COUNTIF($AF$5:AF13,AF13),"X") -> 4 | AH13: =CONCATENATE(AE13,AF13) -> TRUEMedium
A14: =CONCATENATE(AE14,D14,AG14) -> TRUEMedium5 | B14: =RAND() -> 0.5534158346 | C14: Eqn | D14: Medium | E14: 349 | F14: Solve the equation | G14: ¼ | H14: =CHOOSE(RANDBETWEEN(1,22),"a","b","c","d","f","g","h","j","k","m","n","p","q","r","s","t","u","v","w","x","y","z") -> j | J14: = | K14: =RANDBETWEEN(2,10) -> 4 | T14: =CONCATENATE(F14," ",G14,"",H14,"",I14," ",J14," ",K14," ",L14," ",M14," ",N14," ",O14," ",P14," ",Q14," ",R14) -> Solve the equation ¼j = 4 | U14: =H14 -> j | V14: = | W14: =K14*4 -> 16 | AC14: =IF(L14<0,NA(),"") ->  | AD14: =IF(OR(ISNA(U14),ISNA(V14),ISNA(W14),ISNA(X14),ISNA(Y14),ISNA(Z14),ISNA(AA14),ISNA(AB14),ISNA(AC14)),NA(),CONCATENATE(U14,V14,W14,X14,Y14,Z14,AA14,AB14)) -> j=16 | AE14: =IF(ISNA(AD14),FALSE,IF(C14=$B$1,Worksheet!$B$3,IF(C14=$C$1,Worksheet!$B$4,IF(C14=$D$1,Worksheet!$B$5,IF(C14=$C$2,Worksheet!$D$3,IF(C14=$D$2,Worksheet!$D$4,IF(C14=$E$2,Worksheet!$D$5,IF(C14=$C$3,Worksheet!$D$6,IF(C14=$B$3,Worksheet!$B$6,IF(C14=$D$3,Worksheet!$B$9,IF(C14=$E$3,Worksheet!$D$9,FALSE))))))))))) -> TRUE | AF14: =IF(AE14,D14,"") -> Medium | AG14: =IF(AE14,COUNTIF($AF$5:AF14,AF14),"X") -> 5 | AH14: =CONCATENATE(AE14,AF14) -> TRUEMedium
A15: =CONCATENATE(AE15,D15,AG15) -> TRUEHard2 | B15: =RAND() -> 0.1184455821 | C15: Alg | D15: Hard | E15: 339 | F15: Multiply out the bracket and simplify: | G15: =RANDBETWEEN(2,10) -> 7 | H15: ( | I15: 1 | J15: – | K15: =RANDBETWEEN(1,10) -> 10 | L15: =CHOOSE(RANDBETWEEN(1,22),"a","b","c","d","f","g","h","j","k","m","n","p","q","r","s","t","u","v","w","x","y","z") -> v | M15: ) | T15: =CONCATENATE(F15," ",G15," ",H15," ",I15," ",J15," ",K15,"",L15," ",M15," ",N15," ",O15," ",P15," ",Q15," ",R15) -> Multiply out the bracket and simplify: 7 ( 1 – 10v ) | U15: =CONCATENATE(G15*I15," ",J15," ",G15*K15,L15) -> 7 – 70v | AC15: =IF(L15<0,NA(),"") ->  | AD15: =IF(OR(ISNA(U15),ISNA(V15),ISNA(W15),ISNA(X15),ISNA(Y15),ISNA(Z15),ISNA(AA15),ISNA(AB15),ISNA(AC15)),NA(),CONCATENATE(U15,V15,W15,X15,Y15,Z15,AA15,AB15)) -> 7 – 70v | AE15: =IF(ISNA(AD15),FALSE,IF(C15=$B$1,Worksheet!$B$3,IF(C15=$C$1,Worksheet!$B$4,IF(C15=$D$1,Worksheet!$B$5,IF(C15=$C$2,Worksheet!$D$3,IF(C15=$D$2,Worksheet!$D$4,IF(C15=$E$2,Worksheet!$D$5,IF(C15=$C$3,Worksheet!$D$6,IF(C15=$B$3,Worksheet!$B$6,IF(C15=$D$3,Worksheet!$B$9,IF(C15=$E$3,Worksheet!$D$9,FALSE))))))))))) -> TRUE | AF15: =IF(AE15,D15,"") -> Hard | AG15: =IF(AE15,COUNTIF($AF$5:AF15,AF15),"X") -> 2 | AH15: =CONCATENATE(AE15,AF15) -> TRUEHard
A16: =CONCATENATE(AE16,D16,AG16) -> TRUEEasy5 | B16: =RAND() -> 0.04493507097 | C16: +-×÷ | D16: Easy | E16: 67 | F16: Work out the value of: | G16: =RANDBETWEEN(2,9) -> 3 | H16: ( | I16: =RANDBETWEEN(K16,9) -> 8 | J16: – | K16: =RANDBETWEEN(1,7) -> 7 | L16: ) | T16: =CONCATENATE(F16," ",G16," ",H16," ",I16," ",J16," ",K16," ",L16," ",M16," ",N16," ",O16," ",P16," ",Q16," ",R16) -> Work out the value of: 3 ( 8 – 7 ) | U16: =(I16-K16)*G16 -> 3 | AC16: =IF(ISERROR(T16),NA(),"") ->  | AD16: =IF(OR(ISNA(U16),ISNA(V16),ISNA(W16),ISNA(X16),ISNA(Y16),ISNA(Z16),ISNA(AA16),ISNA(AB16),ISNA(AC16)),NA(),CONCATENATE(U16,V16,W16,X16,Y16,Z16,AA16,AB16)) -> 3 | AE16: =IF(ISNA(AD16),FALSE,IF(C16=$B$1,Worksheet!$B$3,IF(C16=$C$1,Worksheet!$B$4,IF(C16=$D$1,Worksheet!$B$5,IF(C16=$C$2,Worksheet!$D$3,IF(C16=$D$2,Worksheet!$D$4,IF(C16=$E$2,Worksheet!$D$5,IF(C16=$C$3,Worksheet!$D$6,IF(C16=$B$3,Worksheet!$B$6,IF(C16=$D$3,Worksheet!$B$9,IF(C16=$E$3,Worksheet!$D$9,FALSE))))))))))) -> TRUE | AF16: =IF(AE16,D16,"") -> Easy | AG16: =IF(AE16,COUNTIF($AF$5:AF16,AF16),"X") -> 5 | AH16: =CONCATENATE(AE16,AF16) -> TRUEEasy
A17: =CONCATENATE(AE17,D17,AG17) -> TRUEEasy6 | B17: =RAND() -> 0.629174216 | C17: Alg | D17: Easy | E17: 310 | F17: Algebra. If a = | G17: =RANDBETWEEN(1,5)+0.5 -> 2.5 | H17: and b = | I17: =RANDBETWEEN(1,5)+0.5 -> 4.5 | J17: , what is the value of: | K17: =RANDBETWEEN(2,9) -> 2 | L17: a + | M17: =RANDBETWEEN(2,9) -> 6 | N17: b ? | T17: =CONCATENATE(F17," ",G17," ",H17," ",I17," ",J17," ",K17,"",L17," ",M17,"",N17," ",O17," ",P17," ",Q17," ",R17) -> Algebra. If a = 2.5 and b = 4.5 , what is the value of: 2a + 6b ? | U17: =K17*G17+I17*M17 -> 32 | AC17: =IF(ISERROR(T17),NA(),"") ->  | AD17: =IF(OR(ISNA(U17),ISNA(V17),ISNA(W17),ISNA(X17),ISNA(Y17),ISNA(Z17),ISNA(AA17),ISNA(AB17),ISNA(AC17)),NA(),CONCATENATE(U17,V17,W17,X17,Y17,Z17,AA17,AB17)) -> 32 | AE17: =IF(ISNA(AD17),FALSE,IF(C17=$B$1,Worksheet!$B$3,IF(C17=$C$1,Worksheet!$B$4,IF(C17=$D$1,Worksheet!$B$5,IF(C17=$C$2,Worksheet!$D$3,IF(C17=$D$2,Worksheet!$D$4,IF(C17=$E$2,Worksheet!$D$5,IF(C17=$C$3,Worksheet!$D$6,IF(C17=$B$3,Worksheet!$B$6,IF(C17=$D$3,Worksheet!$B$9,IF(C17=$E$3,Worksheet!$D$9,FALSE))))))))))) -> TRUE | AF17: =IF(AE17,D17,"") -> Easy | AG17: =IF(AE17,COUNTIF($AF$5:AF17,AF17),"X") -> 6 | AH17: =CONCATENATE(AE17,AF17) -> TRUEEasy
A18: =CONCATENATE(AE18,D18,AG18) -> TRUEMedium6 | B18: =RAND() -> 0.8625865288 | C18: +-×÷ | D18: Medium | E18: 33 | F18: Which ONE of these numbers is a PRIME number: | G18: =IF(RAND()<0.25,S18,RANDBETWEEN(3,9)*RANDBETWEEN(3,9)) -> 21 | H18: , | I18: =IF(AND(G18<>S18,RAND()<0.34),S18,RANDBETWEEN(3,9)*RANDBETWEEN(3,10)) -> 31 | J18: , | K18: =IF(AND(G18<>S18,I18<>S18,RAND()<0.5),S18,RANDBETWEEN(2,10)*RANDBETWEEN(2,10)) -> 30 | L18: , | M18: =IF(AND(G18<>S18,I18<>S18,K18<>S18),S18,RANDBETWEEN(3,11)*RANDBETWEEN(5,11)) -> 32 | S18: =CHOOSE(RANDBETWEEN(1,10),13,11,17,19,23,29,31,37,43,41) -> 31 | T18: =CONCATENATE(F18," ",G18," ",H18," ",I18," ",J18," ",K18," ",L18," ",M18," ",N18," ",O18," ",P18," ",Q18," ",R18) -> Which ONE of these numbers is a PRIME number: 21 , 31 , 30 , 32 | U18: =S18 -> 31 | AC18: =IF(ISERROR(T18),NA(),"") ->  | AD18: =IF(OR(ISNA(U18),ISNA(V18),ISNA(W18),ISNA(X18),ISNA(Y18),ISNA(Z18),ISNA(AA18),ISNA(AB18),ISNA(AC18)),NA(),CONCATENATE(U18,V18,W18,X18,Y18,Z18,AA18,AB18)) -> 31 | AE18: =IF(ISNA(AD18),FALSE,IF(C18=$B$1,Worksheet!$B$3,IF(C18=$C$1,Worksheet!$B$4,IF(C18=$D$1,Worksheet!$B$5,IF(C18=$C$2,Worksheet!$D$3,IF(C18=$D$2,Worksheet!$D$4,IF(C18=$E$2,Worksheet!$D$5,IF(C18=$C$3,Worksheet!$D$6,IF(C18=$B$3,Worksheet!$B$6,IF(C18=$D$3,Worksheet!$B$9,IF(C18=$E$3,Worksheet!$D$9,FALSE))))))))))) -> TRUE | AF18: =IF(AE18,D18,"") -> Medium | AG18: =IF(AE18,COUNTIF($AF$5:AF18,AF18),"X") -> 6 | AH18: =CONCATENATE(AE18,AF18) -> TRUEMedium
A19: =CONCATENATE(AE19,D19,AG19) -> TRUEEasy7 | B19: =RAND() -> 0.9083930933 | C19: Alg | D19: Easy | E19: 312 | F19: Algebra. If | G19: =CHOOSE(RANDBETWEEN(1,22),"a","b","c","d","f","g","h","j","k","m","n","p","q","r","s","t","u","v","w","x","y","z") -> v | H19: = | I19: =RANDBETWEEN(1,5)+0.5 -> 4.5 | J19: , what is the value of: | K19: =RANDBETWEEN(1,10) -> 4 | L19: + | M19: =RANDBETWEEN(2,10) -> 9 | N19: =G19 -> v | O19: ? | T19: =CONCATENATE(F19," ",G19," ",H19," ",I19," ",J19," ",K19," ",L19," ",M19,"",N19," ",O19," ",P19," ",Q19," ",R19) -> Algebra. If v = 4.5 , what is the value of: 4 + 9v ? | U19: =K19+M19*I19 -> 44.5 | AC19: =IF(ISERROR(T19),NA(),"") ->  | AD19: =IF(OR(ISNA(U19),ISNA(V19),ISNA(W19),ISNA(X19),ISNA(Y19),ISNA(Z19),ISNA(AA19),ISNA(AB19),ISNA(AC19)),NA(),CONCATENATE(U19,V19,W19,X19,Y19,Z19,AA19,AB19)) -> 44.5 | AE19: =IF(ISNA(AD19),FALSE,IF(C19=$B$1,Worksheet!$B$3,IF(C19=$C$1,Worksheet!$B$4,IF(C19=$D$1,Worksheet!$B$5,IF(C19=$C$2,Worksheet!$D$3,IF(C19=$D$2,Worksheet!$D$4,IF(C19=$E$2,Worksheet!$D$5,IF(C19=$C$3,Worksheet!$D$6,IF(C19=$B$3,Worksheet!$B$6,IF(C19=$D$3,Worksheet!$B$9,IF(C19=$E$3,Worksheet!$D$9,FALSE))))))))))) -> TRUE | AF19: =IF(AE19,D19,"") -> Easy | AG19: =IF(AE19,COUNTIF($AF$5:AF19,AF19),"X") -> 7 | AH19: =CONCATENATE(AE19,AF19) -> TRUEEasy
A20: =CONCATENATE(AE20,D20,AG20) -> FALSEMediumX | B20: =RAND() -> 0.1588312695 | C20: Frac | D20: Medium | E20: 119 | F20: Multiply: | G20: =RANDBETWEEN(1,3) -> 2 | H20: =IF(J20=4,CHOOSE(RANDBETWEEN(1,2),1,3),RANDBETWEEN(1,J20-1)) -> 2 | I20: / | J20: =RANDBETWEEN(3,5) -> 3 | L20: × | M20: =RANDBETWEEN(1,3)*J20-RANDBETWEEN(1,J20-1) -> 1 | T20: =CONCATENATE(F20," ",G20," ",H20,"",I20,"",J20," ",K20," ",L20," ",M20," ",N20,"",O20,"",P20," ",Q20," ",R20) -> Multiply: 2 2/3 × 1 | U20: =M20*G20+INT(M20*H20/J20) -> 2 | V20: =MOD(H20*M20,J20)/AC20 -> 2 | W20: =IF(M20=1,NA(),"/") ->  | X20: =J20/AC20 -> 3 | Y20: =IF(V20="",""," or ") -> or | Z20: =IF(V20="","",X20*U20+V20) -> 8 | AA20: =IF(V20="","","/") -> / | AB20: =X20 -> 3 | AC20: =GCD(MOD(H20*M20,J20),J20) -> 1 | AD20: =IF(OR(ISNA(U20),ISNA(V20),ISNA(W20),ISNA(X20),ISNA(Y20),ISNA(Z20),ISNA(AA20),ISNA(AB20),ISNA(AC20)),NA(),CONCATENATE(IF(U20=0,"",U20),IF(U20=0,""," "),IF(U20=0,"",V20),IF(U20=0,"",W20),IF(U20=0,"",X20),IF(U20=0,"",Y20),Z20,AA20,AB20)) ->  | AE20: =IF(ISNA(AD20),FALSE,IF(C20=$B$1,Worksheet!$B$3,IF(C20=$C$1,Worksheet!$B$4,IF(C20=$D$1,Worksheet!$B$5,IF(C20=$C$2,Worksheet!$D$3,IF(C20=$D$2,Worksheet!$D$4,IF(C20=$E$2,Worksheet!$D$5,IF(C20=$C$3,Worksheet!$D$6,IF(C20=$B$3,Worksheet!$B$6,IF(C20=$D$3,Worksheet!$B$9,IF(C20=$E$3,Worksheet!$D$9,FALSE))))))))))) -> FALSE | AF20: =IF(AE20,D20,"") ->  | AG20: =IF(AE20,COUNTIF($AF$5:AF20,AF20),"X") -> X | AH20: =CONCATENATE(AE20,AF20) -> FALSE
A21: =CONCATENATE(AE21,D21,AG21) -> TRUEMedium7 | B21: =RAND() -> 0.5290870106 | C21: Frac | D21: Medium | E21: 100 | F21: Take away the fractions: | G21: =IF(I21=4,CHOOSE(RANDBETWEEN(1,2),1,3),RANDBETWEEN(1,I21-1)) -> 2 | H21: / | I21: =RANDBETWEEN(5,8) -> 7 | J21: – | K21: =RANDBETWEEN(1,MIN(M21-1,(G21/I21)*M21)) -> 1 | L21: / | M21: =SMALL(IF(I21={5,6,7,8},"",{5,6,7,8}),RANDBETWEEN(1,3)) -> 6 | N21: =IF(GCD(G21*M21+I21*K21,I21*M21)=1,"",", giving your answer in its simplest form") ->  | T21: =CONCATENATE(F21," ",G21,"",H21,"",I21," ",J21," ",K21,"",L21,"",M21," ",N21," ",O21," ",P21," ",Q21," ",R21) -> Take away the fractions: 2/7 – 1/6 | U21: =(G21*M21-I21*K21)/GCD(G21*M21+I21*K21,I21*M21) -> 5 | V21: / | W21: =I21*M21/GCD(G21*M21-I21*K21,I21*M21) -> 42 | Z21: =IF(U21=0,NA(),"") ->  | AC21: =IF(ISERROR(T21),NA(),"") ->  | AD21: =IF(OR(ISNA(U21),ISNA(V21),ISNA(W21),ISNA(X21),ISNA(Y21),ISNA(Z21),ISNA(AA21),ISNA(AB21),ISNA(AC21)),NA(),CONCATENATE(U21,V21,W21,X21,Y21,Z21,AA21,AB21)) -> 5/42 | AE21: =IF(ISNA(AD21),FALSE,IF(C21=$B$1,Worksheet!$B$3,IF(C21=$C$1,Worksheet!$B$4,IF(C21=$D$1,Worksheet!$B$5,IF(C21=$C$2,Worksheet!$D$3,IF(C21=$D$2,Worksheet!$D$4,IF(C21=$E$2,Worksheet!$D$5,IF(C21=$C$3,Worksheet!$D$6,IF(C21=$B$3,Worksheet!$B$6,IF(C21=$D$3,Worksheet!$B$9,IF(C21=$E$3,Worksheet!$D$9,FALSE))))))))))) -> TRUE | AF21: =IF(AE21,D21,"") -> Medium | AG21: =IF(AE21,COUNTIF($AF$5:AF21,AF21),"X") -> 7 | AH21: =CONCATENATE(AE21,AF21) -> TRUEMedium
A22: =CONCATENATE(AE22,D22,AG22) -> TRUEEasy8 | B22: =RAND() -> 0.3485373213 | C22: Frac | D22: Easy | E22: 112 | F22: Multiply: | G22: =RANDBETWEEN(2,10) -> 9 | J22: × | K22: =IF(M22=4,CHOOSE(RANDBETWEEN(1,2),1,3),RANDBETWEEN(1,M22-1)) -> 1 | L22: / | M22: =RANDBETWEEN(2,10) -> 4 | N22: =IF(GCD(K22,M22)=1,"",", giving your answer in its simplest form") ->  | T22: =CONCATENATE(F22," ",G22,"",H22,"",I22," ",J22," ",K22,"",L22,"",M22," ",N22," ",O22," ",P22," ",Q22," ",R22) -> Multiply: 9 × 1/4 | U22: =G22*K22/Z22 -> 9 | V22: =IF(M22/Z22=1,"","/") -> / | W22: =IF(M22/Z22=1,"",M22/Z22) -> 4 | Z22: =GCD(M22,G22*K22) -> 1 | AC22: =IF(ISERROR(T22),NA(),"") ->  | AD22: =IF(OR(ISNA(U22),ISNA(V22),ISNA(W22),ISNA(X22),ISNA(Y22),ISNA(Z22),ISNA(AA22),ISNA(AB22),ISNA(AC22)),NA(),CONCATENATE(U22,V22,W22,X22,Y22,AA22,AB22)) -> 9/4 | AE22: =IF(ISNA(AD22),FALSE,IF(C22=$B$1,Worksheet!$B$3,IF(C22=$C$1,Worksheet!$B$4,IF(C22=$D$1,Worksheet!$B$5,IF(C22=$C$2,Worksheet!$D$3,IF(C22=$D$2,Worksheet!$D$4,IF(C22=$E$2,Worksheet!$D$5,IF(C22=$C$3,Worksheet!$D$6,IF(C22=$B$3,Worksheet!$B$6,IF(C22=$D$3,Worksheet!$B$9,IF(C22=$E$3,Worksheet!$D$9,FALSE))))))))))) -> TRUE | AF22: =IF(AE22,D22,"") -> Easy | AG22: =IF(AE22,COUNTIF($AF$5:AF22,AF22),"X") -> 8 | AH22: =CONCATENATE(AE22,AF22) -> TRUEEasy
A23: =CONCATENATE(AE23,D23,AG23) -> TRUEMedium8 | B23: =RAND() -> 0.7903578862 | C23: Dec | D23: Medium | E23: 248 | F23: Divide: | G23: =S23*(RANDBETWEEN(1,9)+RANDBETWEEN(1,99)*10) -> 4858 | H23: ÷ | I23: =S23*10^RANDBETWEEN(1,2) -> 700 | S23: =RANDBETWEEN(2,9) -> 7 | T23: =CONCATENATE(F23," ",G23," ",H23," ",I23," ",J23," ",K23," ",L23," ",M23," ",N23," ",O23," ",P23," ",Q23," ",R23) -> Divide: 4858 ÷ 700 | U23: =G23/I23 -> 6.94 | AC23: =IF(ISERROR(T23),NA(),"") ->  | AD23: =IF(OR(ISNA(U23),ISNA(V23),ISNA(W23),ISNA(X23),ISNA(Y23),ISNA(Z23),ISNA(AA23),ISNA(AB23),ISNA(AC23)),NA(),CONCATENATE(U23,V23,W23,X23,Y23,Z23,AA23,AB23)) -> 6.94 | AE23: =IF(ISNA(AD23),FALSE,IF(C23=$B$1,Worksheet!$B$3,IF(C23=$C$1,Worksheet!$B$4,IF(C23=$D$1,Worksheet!$B$5,IF(C23=$C$2,Worksheet!$D$3,IF(C23=$D$2,Worksheet!$D$4,IF(C23=$E$2,Worksheet!$D$5,IF(C23=$C$3,Worksheet!$D$6,IF(C23=$B$3,Worksheet!$B$6,IF(C23=$D$3,Worksheet!$B$9,IF(C23=$E$3,Worksheet!$D$9,FALSE))))))))))) -> TRUE | AF23: =IF(AE23,D23,"") -> Medium | AG23: =IF(AE23,COUNTIF($AF$5:AF23,AF23),"X") -> 8 | AH23: =CONCATENATE(AE23,AF23) -> TRUEMedium
A24: =CONCATENATE(AE24,D24,AG24) -> TRUEMedium9 | B24: =RAND() -> 0.4512131471 | C24: Frac | D24: Medium | E24: 89 | F24: Write the mixed number | G24: =RANDBETWEEN(3,12) -> 11 | H24: =IF(J24=3,2,IF(J24=4,CHOOSE(RANDBETWEEN(1,2),1,3),IF(J24=5,RANDBETWEEN(1,4),IF(J24=6,CHOOSE(RANDBETWEEN(1,2),1,5),IF(J24=7,RANDBETWEEN(1,6),IF(J24=8,CHOOSE(RANDBETWEEN(1,4),1,3,5,7),IF(J24=9,CHOOSE(RANDBETWEEN(1,5),1,2,4,5,7),CHOOSE(RANDBETWEEN(1,4),1,3,7,9)))))))) -> 7 | I24: / | J24: =RANDBETWEEN(3,15) -> 14 | K24: as a topheavy fraction | T24: =CONCATENATE(F24," ",G24," ",H24,"",I24,"",J24," ",K24," ",L24," ",M24," ",N24," ",O24," ",P24," ",Q24," ",R24) -> Write the mixed number 11 7/14 as a topheavy fraction | U24: =J24*G24+H24 -> 161 | V24: / | W24: =J24 -> 14 | AC24: =IF(ISERROR(T24),NA(),"") ->  | AD24: =IF(OR(ISNA(U24),ISNA(V24),ISNA(W24),ISNA(X24),ISNA(Y24),ISNA(Z24),ISNA(AA24),ISNA(AB24),ISNA(AC24)),NA(),CONCATENATE(U24,V24,W24,X24,Y24,Z24,AA24,AB24)) -> 161/14 | AE24: =IF(ISNA(AD24),FALSE,IF(C24=$B$1,Worksheet!$B$3,IF(C24=$C$1,Worksheet!$B$4,IF(C24=$D$1,Worksheet!$B$5,IF(C24=$C$2,Worksheet!$D$3,IF(C24=$D$2,Worksheet!$D$4,IF(C24=$E$2,Worksheet!$D$5,IF(C24=$C$3,Worksheet!$D$6,IF(C24=$B$3,Worksheet!$B$6,IF(C24=$D$3,Worksheet!$B$9,IF(C24=$E$3,Worksheet!$D$9,FALSE))))))))))) -> TRUE | AF24: =IF(AE24,D24,"") -> Medium | AG24: =IF(AE24,COUNTIF($AF$5:AF24,AF24),"X") -> 9 | AH24: =CONCATENATE(AE24,AF24) -> TRUEMedium
A25: =CONCATENATE(AE25,D25,AG25) -> TRUEEasy9 | B25: =RAND() -> 0.400536946 | C25: Neg | D25: Easy | E25: 220 | F25: Take away: | G25: (– | H25: =RANDBETWEEN(1,10) -> 4 | I25: ) – (– | J25: =RANDBETWEEN(1,9) -> 6 | K25: ) | T25: =CONCATENATE(F25," ",G25,"",H25,"",I25,"",J25,"",K25," ",L25," ",M25," ",N25," ",O25," ",P25," ",Q25," ",R25) -> Take away: (–4) – (–6) | U25: =-1*H25+J25 -> 2 | AC25: =IF(ISERROR(T25),NA(),"") ->  | AD25: =IF(OR(ISNA(U25),ISNA(V25),ISNA(W25),ISNA(X25),ISNA(Y25),ISNA(Z25),ISNA(AA25),ISNA(AB25),ISNA(AC25)),NA(),CONCATENATE(U25,V25,W25,X25,Y25,Z25,AA25,AB25)) -> 2 | AE25: =IF(ISNA(AD25),FALSE,IF(C25=$B$1,Worksheet!$B$3,IF(C25=$C$1,Worksheet!$B$4,IF(C25=$D$1,Worksheet!$B$5,IF(C25=$C$2,Worksheet!$D$3,IF(C25=$D$2,Worksheet!$D$4,IF(C25=$E$2,Worksheet!$D$5,IF(C25=$C$3,Worksheet!$D$6,IF(C25=$B$3,Worksheet!$B$6,IF(C25=$D$3,Worksheet!$B$9,IF(C25=$E$3,Worksheet!$D$9,FALSE))))))))))) -> TRUE | AF25: =IF(AE25,D25,"") -> Easy | AG25: =IF(AE25,COUNTIF($AF$5:AF25,AF25),"X") -> 9 | AH25: =CONCATENATE(AE25,AF25) -> TRUEEasy
A26: =CONCATENATE(AE26,D26,AG26) -> TRUEEasy10 | B26: =RAND() -> 0.3540588513 | C26: +-×÷ | D26: Easy | E26: 24 | F26: Work out the value of: | G26: ( | H26: =IF(I26="–",RANDBETWEEN(J26,9),RANDBETWEEN(1,9)) -> 2 | I26: =CHOOSE(RANDBETWEEN(1,2),"+","–") -> + | J26: =RANDBETWEEN(1,5) -> 5 | K26: )( | L26: =IF(M26="–",RANDBETWEEN(N26,9),RANDBETWEEN(1,9)) -> 2 | M26: =CHOOSE(RANDBETWEEN(1,2),"+","–") -> – | N26: =RANDBETWEEN(1,5) -> 2 | O26: ) | T26: =CONCATENATE(F26," ",G26," ",H26," ",I26," ",J26," ",K26," ",L26," ",M26," ",N26," ",O26," ",P26," ",Q26," ",R26) -> Work out the value of: ( 2 + 5 )( 2 – 2 ) | U26: =(IF(I26="+",H26+J26,H26-J26)*IF(M26="+",L26+N26,L26-N26)) -> 0 | AC26: =IF(ISERROR(T26),NA(),"") ->  | AD26: =IF(OR(ISNA(U26),ISNA(V26),ISNA(W26),ISNA(X26),ISNA(Y26),ISNA(Z26),ISNA(AA26),ISNA(AB26),ISNA(AC26)),NA(),CONCATENATE(U26,V26,W26,X26,Y26,Z26,AA26,AB26)) -> 0 | AE26: =IF(ISNA(AD26),FALSE,IF(C26=$B$1,Worksheet!$B$3,IF(C26=$C$1,Worksheet!$B$4,IF(C26=$D$1,Worksheet!$B$5,IF(C26=$C$2,Worksheet!$D$3,IF(C26=$D$2,Worksheet!$D$4,IF(C26=$E$2,Worksheet!$D$5,IF(C26=$C$3,Worksheet!$D$6,IF(C26=$B$3,Worksheet!$B$6,IF(C26=$D$3,Worksheet!$B$9,IF(C26=$E$3,Worksheet!$D$9,FALSE))))))))))) -> TRUE | AF26: =IF(AE26,D26,"") -> Easy | AG26: =IF(AE26,COUNTIF($AF$5:AF26,AF26),"X") -> 10 | AH26: =CONCATENATE(AE26,AF26) -> TRUEEasy
A27: =CONCATENATE(AE27,D27,AG27) -> TRUEHard3 | B27: =RAND() -> 0.4901650558 | C27: Dec | D27: Hard | E27: 203 | F27: Write the number | G27: =RANDBETWEEN(2,9)*1000+RANDBETWEEN(1,999) -> 3069 | H27: in standard form | T27: =CONCATENATE(F27," ",G27," ",H27," ",I27," ",J27," ",K27," ",L27," ",M27," ",N27," ",O27," ",P27," ",Q27," ",R27) -> Write the number 3069 in standard form | U27: =G27/1000 -> 3.069 | V27: × 10^3 (10 to the power of 3) | AC27: =IF(ISERROR(T27),NA(),"") ->  | AD27: =IF(OR(ISNA(U27),ISNA(V27),ISNA(W27),ISNA(X27),ISNA(Y27),ISNA(Z27),ISNA(AA27),ISNA(AB27),ISNA(AC27)),NA(),CONCATENATE(U27,V27,W27,X27,Y27,Z27,AA27,AB27)) -> 3.069× 10^3 (10 to the power of 3) | AE27: =IF(ISNA(AD27),FALSE,IF(C27=$B$1,Worksheet!$B$3,IF(C27=$C$1,Worksheet!$B$4,IF(C27=$D$1,Worksheet!$B$5,IF(C27=$C$2,Worksheet!$D$3,IF(C27=$D$2,Worksheet!$D$4,IF(C27=$E$2,Worksheet!$D$5,IF(C27=$C$3,Worksheet!$D$6,IF(C27=$B$3,Worksheet!$B$6,IF(C27=$D$3,Worksheet!$B$9,IF(C27=$E$3,Worksheet!$D$9,FALSE))))))))))) -> TRUE | AF27: =IF(AE27,D27,"") -> Hard | AG27: =IF(AE27,COUNTIF($AF$5:AF27,AF27),"X") -> 3 | AH27: =CONCATENATE(AE27,AF27) -> TRUEHard
A28: =CONCATENATE(AE28,D28,AG28) -> TRUEHard4 | B28: =RAND() -> 0.3219186937 | C28: Dec | D28: Hard | E28: 204 | F28: Write the number | G28: =RANDBETWEEN(2,9)*100+RANDBETWEEN(1,99) -> 304 | H28: in standard form | T28: =CONCATENATE(F28," ",G28," ",H28," ",I28," ",J28," ",K28," ",L28," ",M28," ",N28," ",O28," ",P28," ",Q28," ",R28) -> Write the number 304 in standard form | U28: =G28/100 -> 3.04 | V28: × 10^2 (10 to the power of 2) | AC28: =IF(ISERROR(T28),NA(),"") ->  | AD28: =IF(OR(ISNA(U28),ISNA(V28),ISNA(W28),ISNA(X28),ISNA(Y28),ISNA(Z28),ISNA(AA28),ISNA(AB28),ISNA(AC28)),NA(),CONCATENATE(U28,V28,W28,X28,Y28,Z28,AA28,AB28)) -> 3.04× 10^2 (10 to the power of 2) | AE28: =IF(ISNA(AD28),FALSE,IF(C28=$B$1,Worksheet!$B$3,IF(C28=$C$1,Worksheet!$B$4,IF(C28=$D$1,Worksheet!$B$5,IF(C28=$C$2,Worksheet!$D$3,IF(C28=$D$2,Worksheet!$D$4,IF(C28=$E$2,Worksheet!$D$5,IF(C28=$C$3,Worksheet!$D$6,IF(C28=$B$3,Worksheet!$B$6,IF(C28=$D$3,Worksheet!$B$9,IF(C28=$E$3,Worksheet!$D$9,FALSE))))))))))) -> TRUE | AF28: =IF(AE28,D28,"") -> Hard | AG28: =IF(AE28,COUNTIF($AF$5:AF28,AF28),"X") -> 4 | AH28: =CONCATENATE(AE28,AF28) -> TRUEHard
A29: =CONCATENATE(AE29,D29,AG29) -> TRUEHard5 | B29: =RAND() -> 0.7684684896 | C29: Neg | D29: Hard | E29: 213 | F29: What is | G29: (– | H29: =RANDBETWEEN(11,20) -> 18 | I29: )² | J29: ? | T29: =CONCATENATE(F29," ",G29,"",H29,"",I29," ",J29," ",K29," ",L29," ",M29," ",N29," ",O29," ",P29," ",Q29," ",R29) -> What is (–18)² ? | U29: =H29^2 -> 324 | AC29: =IF(ISERROR(T29),NA(),"") ->  | AD29: =IF(OR(ISNA(U29),ISNA(V29),ISNA(W29),ISNA(X29),ISNA(Y29),ISNA(Z29),ISNA(AA29),ISNA(AB29),ISNA(AC29)),NA(),CONCATENATE(U29,V29,W29,X29,Y29,Z29,AA29,AB29)) -> 324 | AE29: =IF(ISNA(AD29),FALSE,IF(C29=$B$1,Worksheet!$B$3,IF(C29=$C$1,Worksheet!$B$4,IF(C29=$D$1,Worksheet!$B$5,IF(C29=$C$2,Worksheet!$D$3,IF(C29=$D$2,Worksheet!$D$4,IF(C29=$E$2,Worksheet!$D$5,IF(C29=$C$3,Worksheet!$D$6,IF(C29=$B$3,Worksheet!$B$6,IF(C29=$D$3,Worksheet!$B$9,IF(C29=$E$3,Worksheet!$D$9,FALSE))))))))))) -> TRUE | AF29: =IF(AE29,D29,"") -> Hard | AG29: =IF(AE29,COUNTIF($AF$5:AF29,AF29),"X") -> 5 | AH29: =CONCATENATE(AE29,AF29) -> TRUEHard
A30: =CONCATENATE(AE30,D30,AG30) -> TRUEEasy11 | B30: =RAND() -> 0.302104635 | C30: Dec | D30: Easy | E30: 245 | F30: Multiply: | G30: =RANDBETWEEN(1,9)+RANDBETWEEN(1,99)/100 -> 8.93 | H30: × | I30: =RANDBETWEEN(2,9)*10^RANDBETWEEN(2,2) -> 300 | T30: =CONCATENATE(F30," ",G30," ",H30," ",I30," ",J30," ",K30," ",L30," ",M30," ",N30," ",O30," ",P30," ",Q30," ",R30) -> Multiply: 8.93 × 300 | U30: =G30*I30 -> 2679 | AC30: =IF(ISERROR(T30),NA(),"") ->  | AD30: =IF(OR(ISNA(U30),ISNA(V30),ISNA(W30),ISNA(X30),ISNA(Y30),ISNA(Z30),ISNA(AA30),ISNA(AB30),ISNA(AC30)),NA(),CONCATENATE(U30,V30,W30,X30,Y30,Z30,AA30,AB30)) -> 2679 | AE30: =IF(ISNA(AD30),FALSE,IF(C30=$B$1,Worksheet!$B$3,IF(C30=$C$1,Worksheet!$B$4,IF(C30=$D$1,Worksheet!$B$5,IF(C30=$C$2,Worksheet!$D$3,IF(C30=$D$2,Worksheet!$D$4,IF(C30=$E$2,Worksheet!$D$5,IF(C30=$C$3,Worksheet!$D$6,IF(C30=$B$3,Worksheet!$B$6,IF(C30=$D$3,Worksheet!$B$9,IF(C30=$E$3,Worksheet!$D$9,FALSE))))))))))) -> TRUE | AF30: =IF(AE30,D30,"") -> Easy | AG30: =IF(AE30,COUNTIF($AF$5:AF30,AF30),"X") -> 11 | AH30: =CONCATENATE(AE30,AF30) -> TRUEEasy
A31: =CONCATENATE(AE31,D31,AG31) -> TRUEEasy12 | B31: =RAND() -> 0.054362571 | C31: % | D31: Easy | E31: 274 | F31: Calculate | G31: =10*CHOOSE(RANDBETWEEN(1,7),2,3,4,6,7,8,9) -> 70 | H31: % | I31: of | J31: £ | K31: =10*RANDBETWEEN(2,9) -> 70 | T31: =CONCATENATE(F31," ",G31,"",H31," ",I31," ",J31,"",K31," ",L31," ",M31," ",N31," ",O31," ",P31," ",Q31," ",R31) -> Calculate 70% of £70 | U31: £ | V31: =K31/100*G31 -> 49 | AC31: =IF(ISERROR(T31),NA(),"") ->  | AD31: =IF(OR(ISNA(U31),ISNA(V31),ISNA(W31),ISNA(X31),ISNA(Y31),ISNA(Z31),ISNA(AA31),ISNA(AB31),ISNA(AC31)),NA(),CONCATENATE(U31,V31,W31,X31,Y31,Z31,AA31,AB31)) -> £49 | AE31: =IF(ISNA(AD31),FALSE,IF(C31=$B$1,Worksheet!$B$3,IF(C31=$C$1,Worksheet!$B$4,IF(C31=$D$1,Worksheet!$B$5,IF(C31=$C$2,Worksheet!$D$3,IF(C31=$D$2,Worksheet!$D$4,IF(C31=$E$2,Worksheet!$D$5,IF(C31=$C$3,Worksheet!$D$6,IF(C31=$B$3,Worksheet!$B$6,IF(C31=$D$3,Worksheet!$B$9,IF(C31=$E$3,Worksheet!$D$9,FALSE))))))))))) -> TRUE | AF31: =IF(AE31,D31,"") -> Easy | AG31: =IF(AE31,COUNTIF($AF$5:AF31,AF31),"X") -> 12 | AH31: =CONCATENATE(AE31,AF31) -> TRUEEasy
A32: =CONCATENATE(AE32,D32,AG32) -> TRUEEasy13 | B32: =RAND() -> 0.6937293771 | C32: Dec | D32: Easy | E32: 129 | F32: Write down the next two numbers in this increasing pattern: | G32: =RANDBETWEEN(1,20)+0.99+RANDBETWEEN(6,7)*0.001 -> 2.996 | H32: , | I32: =G32+$S32 -> 2.997 | J32: , | K32: =I32+$S32 -> 2.998 | L32: , | M32: =K32+$S32 -> 2.999 | N32: , | O32: _______________ | P32: , | Q32: _______________ | S32: 0.001 | T32: =CONCATENATE(F32," ",G32," ",H32," ",I32," ",J32," ",K32," ",L32," ",M32," ",N32," ",O32," ",P32," ",Q32," ",R32) -> Write down the next two numbers in this increasing pattern: 2.996 , 2.997 , 2.998 , 2.999 , _______________ , _______________ | U32: =M32+0.01 -> 3.009 | V32: , | W32: =U32+0.01 -> 3.019 | AC32: =IF(ISERROR(T32),NA(),"") ->  | AD32: =IF(OR(ISNA(U32),ISNA(V32),ISNA(W32),ISNA(X32),ISNA(Y32),ISNA(Z32),ISNA(AA32),ISNA(AB32),ISNA(AC32)),NA(),CONCATENATE(U32,V32,W32,X32,Y32,Z32,AA32,AB32)) -> 3.009 , 3.019 | AE32: =IF(ISNA(AD32),FALSE,IF(C32=$B$1,Worksheet!$B$3,IF(C32=$C$1,Worksheet!$B$4,IF(C32=$D$1,Worksheet!$B$5,IF(C32=$C$2,Worksheet!$D$3,IF(C32=$D$2,Worksheet!$D$4,IF(C32=$E$2,Worksheet!$D$5,IF(C32=$C$3,Worksheet!$D$6,IF(C32=$B$3,Worksheet!$B$6,IF(C32=$D$3,Worksheet!$B$9,IF(C32=$E$3,Worksheet!$D$9,FALSE))))))))))) -> TRUE | AF32: =IF(AE32,D32,"") -> Easy | AG32: =IF(AE32,COUNTIF($AF$5:AF32,AF32),"X") -> 13 | AH32: =CONCATENATE(AE32,AF32) -> TRUEEasy
A33: =CONCATENATE(AE33,D33,AG33) -> TRUEMedium10 | B33: =RAND() -> 0.5254577711 | C33: % | D33: Medium | E33: 272 | F33: Calculate | G33: =RANDBETWEEN(1,9)*10+RANDBETWEEN(1,9) -> 93 | H33: % | I33: of | J33: £ | K33: =1000*RANDBETWEEN(2,9) -> 2000 | T33: =CONCATENATE(F33," ",G33,"",H33," ",I33," ",J33,"",K33," ",L33," ",M33," ",N33," ",O33," ",P33," ",Q33," ",R33) -> Calculate 93% of £2000 | U33: £ | V33: =K33/100*G33 -> 1860 | AC33: =IF(ISERROR(T33),NA(),"") ->  | AD33: =IF(OR(ISNA(U33),ISNA(V33),ISNA(W33),ISNA(X33),ISNA(Y33),ISNA(Z33),ISNA(AA33),ISNA(AB33),ISNA(AC33)),NA(),CONCATENATE(U33,V33,W33,X33,Y33,Z33,AA33,AB33)) -> £1860 | AE33: =IF(ISNA(AD33),FALSE,IF(C33=$B$1,Worksheet!$B$3,IF(C33=$C$1,Worksheet!$B$4,IF(C33=$D$1,Worksheet!$B$5,IF(C33=$C$2,Worksheet!$D$3,IF(C33=$D$2,Worksheet!$D$4,IF(C33=$E$2,Worksheet!$D$5,IF(C33=$C$3,Worksheet!$D$6,IF(C33=$B$3,Worksheet!$B$6,IF(C33=$D$3,Worksheet!$B$9,IF(C33=$E$3,Worksheet!$D$9,FALSE))))))))))) -> TRUE | AF33: =IF(AE33,D33,"") -> Medium | AG33: =IF(AE33,COUNTIF($AF$5:AF33,AF33),"X") -> 10 | AH33: =CONCATENATE(AE33,AF33) -> TRUEMedium
A34: =CONCATENATE(AE34,D34,AG34) -> TRUEHard6 | B34: =RAND() -> 0.4723141321 | C34: % | D34: Hard | E34: 280 | F34: A | G34: =CHOOSE(RANDBETWEEN(1,4),"holiday","laptop","scooter","television") -> scooter | H34: costs £ | I34: =100*RANDBETWEEN(4,9) -> 800 | J34: . In a sale, its price is reduced by | K34: 15 | L34: % | M34: . What is its price in the sale? | T34: =CONCATENATE(F34," ",G34," ",H34,"",I34," ",J34," ",K34,"",L34," ",M34," ",N34," ",O34," ",P34," ",Q34," ",R34) -> A scooter costs £800 . In a sale, its price is reduced by 15% . What is its price in the sale? | U34: £ | V34: =(100-K34)/100*I34 -> 680 | AC34: =IF(ISERROR(T34),NA(),"") ->  | AD34: =IF(OR(ISNA(U34),ISNA(V34),ISNA(W34),ISNA(X34),ISNA(Y34),ISNA(Z34),ISNA(AA34),ISNA(AB34),ISNA(AC34)),NA(),CONCATENATE(U34,V34,W34,X34,Y34,Z34,AA34,AB34)) -> £680 | AE34: =IF(ISNA(AD34),FALSE,IF(C34=$B$1,Worksheet!$B$3,IF(C34=$C$1,Worksheet!$B$4,IF(C34=$D$1,Worksheet!$B$5,IF(C34=$C$2,Worksheet!$D$3,IF(C34=$D$2,Worksheet!$D$4,IF(C34=$E$2,Worksheet!$D$5,IF(C34=$C$3,Worksheet!$D$6,IF(C34=$B$3,Worksheet!$B$6,IF(C34=$D$3,Worksheet!$B$9,IF(C34=$E$3,Worksheet!$D$9,FALSE))))))))))) -> TRUE | AF34: =IF(AE34,D34,"") -> Hard | AG34: =IF(AE34,COUNTIF($AF$5:AF34,AF34),"X") -> 6 | AH34: =CONCATENATE(AE34,AF34) -> TRUEHard
A35: =CONCATENATE(AE35,D35,AG35) -> TRUEEasy14 | B35: =RAND() -> 0.7025696146 | C35: Dec | D35: Easy | E35: 122 | F35: Write down the next two numbers in this decreasing pattern: | G35: =RANDBETWEEN(1001,9999)/100 -> 20.49 | H35: , | I35: =G35+$S35 -> 20.29 | J35: , | K35: =I35+$S35 -> 20.09 | L35: , | M35: =K35+$S35 -> 19.89 | N35: , | O35: _______________ | P35: , | Q35: _______________ | S35: =-1*10^RANDBETWEEN(-2,-1)*CHOOSE(RANDBETWEEN(1,2),2,5) -> -0.2 | T35: =CONCATENATE(F35," ",G35," ",H35," ",I35," ",J35," ",K35," ",L35," ",M35," ",N35," ",O35," ",P35," ",Q35," ",R35) -> Write down the next two numbers in this decreasing pattern: 20.49 , 20.29 , 20.09 , 19.89 , _______________ , _______________ | U35: =M35+S35 -> 19.69 | V35: , | W35: =U35+S35 -> 19.49 | AC35: =IF(ISERROR(T35),NA(),"") ->  | AD35: =IF(OR(ISNA(U35),ISNA(V35),ISNA(W35),ISNA(X35),ISNA(Y35),ISNA(Z35),ISNA(AA35),ISNA(AB35),ISNA(AC35)),NA(),CONCATENATE(U35,V35,W35,X35,Y35,Z35,AA35,AB35)) -> 19.69 , 19.49 | AE35: =IF(ISNA(AD35),FALSE,IF(C35=$B$1,Worksheet!$B$3,IF(C35=$C$1,Worksheet!$B$4,IF(C35=$D$1,Worksheet!$B$5,IF(C35=$C$2,Worksheet!$D$3,IF(C35=$D$2,Worksheet!$D$4,IF(C35=$E$2,Worksheet!$D$5,IF(C35=$C$3,Worksheet!$D$6,IF(C35=$B$3,Worksheet!$B$6,IF(C35=$D$3,Worksheet!$B$9,IF(C35=$E$3,Worksheet!$D$9,FALSE))))))))))) -> TRUE | AF35: =IF(AE35,D35,"") -> Easy | AG35: =IF(AE35,COUNTIF($AF$5:AF35,AF35),"X") -> 14 | AH35: =CONCATENATE(AE35,AF35) -> TRUEEasy
A36: =CONCATENATE(AE36,D36,AG36) -> TRUEMedium11 | B36: =RAND() -> 0.9884400249 | C36: Dec | D36: Medium | E36: 196 | F36: Write the number | G36: =RANDBETWEEN(2,9)/100 -> 0.02 | H36: in standard form | T36: =CONCATENATE(F36," ",G36," ",H36," ",I36," ",J36," ",K36," ",L36," ",M36," ",N36," ",O36," ",P36," ",Q36," ",R36) -> Write the number 0.02 in standard form | U36: =G36*100 -> 2 | V36: × 10^(-2) (10 to the power of -2) | AC36: =IF(ISERROR(T36),NA(),"") ->  | AD36: =IF(OR(ISNA(U36),ISNA(V36),ISNA(W36),ISNA(X36),ISNA(Y36),ISNA(Z36),ISNA(AA36),ISNA(AB36),ISNA(AC36)),NA(),CONCATENATE(U36,V36,W36,X36,Y36,Z36,AA36,AB36)) -> 2× 10^(-2) (10 to the power of -2) | AE36: =IF(ISNA(AD36),FALSE,IF(C36=$B$1,Worksheet!$B$3,IF(C36=$C$1,Worksheet!$B$4,IF(C36=$D$1,Worksheet!$B$5,IF(C36=$C$2,Worksheet!$D$3,IF(C36=$D$2,Worksheet!$D$4,IF(C36=$E$2,Worksheet!$D$5,IF(C36=$C$3,Worksheet!$D$6,IF(C36=$B$3,Worksheet!$B$6,IF(C36=$D$3,Worksheet!$B$9,IF(C36=$E$3,Worksheet!$D$9,FALSE))))))))))) -> TRUE | AF36: =IF(AE36,D36,"") -> Medium | AG36: =IF(AE36,COUNTIF($AF$5:AF36,AF36),"X") -> 11 | AH36: =CONCATENATE(AE36,AF36) -> TRUEMedium
A37: =CONCATENATE(AE37,D37,AG37) -> TRUEHard7 | B37: =RAND() -> 0.8597254652 | C37: % | D37: Hard | E37: 267 | F37: What sum could you type into a calculator to work out | G37: =RANDBETWEEN(1,20)+RANDBETWEEN(1,9)/10 -> 1.3 | H37: % | I37: of | J37: £ | K37: =RANDBETWEEN(1001,99999) -> 42547 | L37: ? Circle the correct answer: | M37: =CONCATENATE(K37," ÷ ",G37/100) -> 42547 ÷ 0.013 | N37: =CONCATENATE(K37," × ",G37/100) -> 42547 × 0.013 | O37: =CONCATENATE(G37/100," ÷ ",K37) -> 0.013 ÷ 42547 | P37: =CONCATENATE(G37/10," × ",K37) -> 0.13 × 42547 | T37: =CONCATENATE(F37," ",G37,"",H37," ",I37," ",J37,"",K37,"",L37," ",M37," ",N37," ",O37," ",P37," ",Q37," ",R37) -> What sum could you type into a calculator to work out 1.3% of £42547? Circle the correct answer: 42547 ÷ 0.013 42547 × 0.013 0.013 ÷ 42547 0.13 × 42547 | U37: =N37 -> 42547 × 0.013 | AC37: =IF(ISERROR(T37),NA(),"") ->  | AD37: =IF(OR(ISNA(U37),ISNA(V37),ISNA(W37),ISNA(X37),ISNA(Y37),ISNA(Z37),ISNA(AA37),ISNA(AB37),ISNA(AC37)),NA(),CONCATENATE(U37,V37,W37,X37,Y37,Z37,AA37,AB37)) -> 42547 × 0.013 | AE37: =IF(ISNA(AD37),FALSE,IF(C37=$B$1,Worksheet!$B$3,IF(C37=$C$1,Worksheet!$B$4,IF(C37=$D$1,Worksheet!$B$5,IF(C37=$C$2,Worksheet!$D$3,IF(C37=$D$2,Worksheet!$D$4,IF(C37=$E$2,Worksheet!$D$5,IF(C37=$C$3,Worksheet!$D$6,IF(C37=$B$3,Worksheet!$B$6,IF(C37=$D$3,Worksheet!$B$9,IF(C37=$E$3,Worksheet!$D$9,FALSE))))))))))) -> TRUE | AF37: =IF(AE37,D37,"") -> Hard | AG37: =IF(AE37,COUNTIF($AF$5:AF37,AF37),"X") -> 7 | AH37: =CONCATENATE(AE37,AF37) -> TRUEHard
A38: =CONCATENATE(AE38,D38,AG38) -> TRUEEasy15 | B38: =RAND() -> 0.3918530821 | C38: +-×÷ | D38: Easy | E38: 22 | F38: Work out the value of: | G38: =RANDBETWEEN(2,9) -> 6 | H38: ( | I38: =RANDBETWEEN(10,30) -> 26 | J38: + | K38: =RANDBETWEEN(10,30) -> 19 | L38: ) | T38: =CONCATENATE(F38," ",G38," ",H38," ",I38," ",J38," ",K38," ",L38," ",M38," ",N38," ",O38," ",P38," ",Q38," ",R38) -> Work out the value of: 6 ( 26 + 19 ) | U38: =(I38+K38)*G38 -> 270 | AC38: =IF(ISERROR(T38),NA(),"") ->  | AD38: =IF(OR(ISNA(U38),ISNA(V38),ISNA(W38),ISNA(X38),ISNA(Y38),ISNA(Z38),ISNA(AA38),ISNA(AB38),ISNA(AC38)),NA(),CONCATENATE(U38,V38,W38,X38,Y38,Z38,AA38,AB38)) -> 270 | AE38: =IF(ISNA(AD38),FALSE,IF(C38=$B$1,Worksheet!$B$3,IF(C38=$C$1,Worksheet!$B$4,IF(C38=$D$1,Worksheet!$B$5,IF(C38=$C$2,Worksheet!$D$3,IF(C38=$D$2,Worksheet!$D$4,IF(C38=$E$2,Worksheet!$D$5,IF(C38=$C$3,Worksheet!$D$6,IF(C38=$B$3,Worksheet!$B$6,IF(C38=$D$3,Worksheet!$B$9,IF(C38=$E$3,Worksheet!$D$9,FALSE))))))))))) -> TRUE | AF38: =IF(AE38,D38,"") -> Easy | AG38: =IF(AE38,COUNTIF($AF$5:AF38,AF38),"X") -> 15 | AH38: =CONCATENATE(AE38,AF38) -> TRUEEasy
A39: =CONCATENATE(AE39,D39,AG39) -> TRUEEasy16 | B39: =RAND() -> 0.2232125032 | C39: Dec | D39: Easy | E39: 136 | F39: Write the fraction | G39: =RANDBETWEEN(1,9)+RANDBETWEEN(1,9)*10+IF(I39=10000,RANDBETWEEN(1,9)*100,0) -> 17 | H39: / | I39: =CHOOSE(RANDBETWEEN(1,2),1000,1000) -> 1000 | J39: as a decimal | T39: =CONCATENATE(F39," ",G39,"",H39,"",I39," ",J39," ",K39," ",L39," ",M39," ",N39," ",O39," ",P39," ",Q39," ",R39) -> Write the fraction 17/1000 as a decimal | U39: =G39/I39 -> 0.017 | AC39: =IF(ISERROR(T39),NA(),"") ->  | AD39: =IF(OR(ISNA(U39),ISNA(V39),ISNA(W39),ISNA(X39),ISNA(Y39),ISNA(Z39),ISNA(AA39),ISNA(AB39),ISNA(AC39)),NA(),CONCATENATE(U39,V39,W39,X39,Y39,Z39,AA39,AB39)) -> 0.017 | AE39: =IF(ISNA(AD39),FALSE,IF(C39=$B$1,Worksheet!$B$3,IF(C39=$C$1,Worksheet!$B$4,IF(C39=$D$1,Worksheet!$B$5,IF(C39=$C$2,Worksheet!$D$3,IF(C39=$D$2,Worksheet!$D$4,IF(C39=$E$2,Worksheet!$D$5,IF(C39=$C$3,Worksheet!$D$6,IF(C39=$B$3,Worksheet!$B$6,IF(C39=$D$3,Worksheet!$B$9,IF(C39=$E$3,Worksheet!$D$9,FALSE))))))))))) -> TRUE | AF39: =IF(AE39,D39,"") -> Easy | AG39: =IF(AE39,COUNTIF($AF$5:AF39,AF39),"X") -> 16 | AH39: =CONCATENATE(AE39,AF39) -> TRUEEasy
A40: =CONCATENATE(AE40,D40,AG40) -> TRUEEasy17 | B40: =RAND() -> 0.04151079847 | C40: Frac | D40: Easy | E40: 74 | F40: Fractions. Without a calculator, work out: | G40: =TEXT(R40/S40,"##/##") -> 3/5 | H40: of | I40: =S40*RANDBETWEEN(3,9)*10^RANDBETWEEN(2,3) -> 20000 | R40: =RANDBETWEEN(2,S40-1) -> 3 | S40: =RANDBETWEEN(5,9) -> 5 | T40: =CONCATENATE(F40," ",G40," ",H40," ",I40," ",J40," ",K40," ",L40," ",M40," ",N40," ",O40," ",P40," ",Q40) -> Fractions. Without a calculator, work out: 3/5 of 20000 | U40: =I40/S40*VALUE(LEFT(G40,1)) -> 12000 | AC40: =IF(ISERROR(T40),NA(),"") ->  | AD40: =IF(OR(ISNA(U40),ISNA(V40),ISNA(W40),ISNA(X40),ISNA(Y40),ISNA(Z40),ISNA(AA40),ISNA(AB40),ISNA(AC40)),NA(),CONCATENATE(U40,V40,W40,X40,Y40,Z40,AA40,AB40)) -> 12000 | AE40: =IF(ISNA(AD40),FALSE,IF(C40=$B$1,Worksheet!$B$3,IF(C40=$C$1,Worksheet!$B$4,IF(C40=$D$1,Worksheet!$B$5,IF(C40=$C$2,Worksheet!$D$3,IF(C40=$D$2,Worksheet!$D$4,IF(C40=$E$2,Worksheet!$D$5,IF(C40=$C$3,Worksheet!$D$6,IF(C40=$B$3,Worksheet!$B$6,IF(C40=$D$3,Worksheet!$B$9,IF(C40=$E$3,Worksheet!$D$9,FALSE))))))))))) -> TRUE | AF40: =IF(AE40,D40,"") -> Easy | AG40: =IF(AE40,COUNTIF($AF$5:AF40,AF40),"X") -> 17 | AH40: =CONCATENATE(AE40,AF40) -> TRUEEasy
A41: =CONCATENATE(AE41,D41,AG41) -> TRUEHard8 | B41: =RAND() -> 0.2012830947 | C41: Dec | D41: Hard | E41: 255 | F41: Multiply: | G41: =RANDBETWEEN(10,99)*1000 -> 71000 | H41: × | I41: =10^RANDBETWEEN(-3,-2)*RANDBETWEEN(2,9) -> 0.07 | T41: =CONCATENATE(F41," ",G41," ",H41," ",I41," ",J41," ",K41," ",L41," ",M41," ",N41," ",O41," ",P41," ",Q41," ",R41) -> Multiply: 71000 × 0.07 | U41: =G41*I41 -> 4970 | AC41: =IF(ISERROR(T41),NA(),"") ->  | AD41: =IF(OR(ISNA(U41),ISNA(V41),ISNA(W41),ISNA(X41),ISNA(Y41),ISNA(Z41),ISNA(AA41),ISNA(AB41),ISNA(AC41)),NA(),CONCATENATE(U41,V41,W41,X41,Y41,Z41,AA41,AB41)) -> 4970 | AE41: =IF(ISNA(AD41),FALSE,IF(C41=$B$1,Worksheet!$B$3,IF(C41=$C$1,Worksheet!$B$4,IF(C41=$D$1,Worksheet!$B$5,IF(C41=$C$2,Worksheet!$D$3,IF(C41=$D$2,Worksheet!$D$4,IF(C41=$E$2,Worksheet!$D$5,IF(C41=$C$3,Worksheet!$D$6,IF(C41=$B$3,Worksheet!$B$6,IF(C41=$D$3,Worksheet!$B$9,IF(C41=$E$3,Worksheet!$D$9,FALSE))))))))))) -> TRUE | AF41: =IF(AE41,D41,"") -> Hard | AG41: =IF(AE41,COUNTIF($AF$5:AF41,AF41),"X") -> 8 | AH41: =CONCATENATE(AE41,AF41) -> TRUEHard
A42: =CONCATENATE(AE42,D42,AG42) -> TRUEEasy18 | B42: =RAND() -> 0.354179222 | C42: +-×÷ | D42: Easy | E42: 11 | F42: Take away | G42: =RANDBETWEEN(2,99)*1000 -> 17000 | H42: – | I42: =RANDBETWEEN(500,G42-100) -> 11792 | J42: without a calculator | T42: =CONCATENATE(F42," ",G42," ",H42," ",I42," ",J42," ",K42," ",L42," ",M42," ",N42," ",O42," ",P42," ",Q42," ",R42) -> Take away 17000 – 11792 without a calculator | U42: =G42-I42 -> 5208 | AC42: =IF(ISERROR(T42),NA(),"") ->  | AD42: =IF(OR(ISNA(U42),ISNA(V42),ISNA(W42),ISNA(X42),ISNA(Y42),ISNA(Z42),ISNA(AA42),ISNA(AB42),ISNA(AC42)),NA(),CONCATENATE(U42,V42,W42,X42,Y42,Z42,AA42,AB42)) -> 5208 | AE42: =IF(ISNA(AD42),FALSE,IF(C42=$B$1,Worksheet!$B$3,IF(C42=$C$1,Worksheet!$B$4,IF(C42=$D$1,Worksheet!$B$5,IF(C42=$C$2,Worksheet!$D$3,IF(C42=$D$2,Worksheet!$D$4,IF(C42=$E$2,Worksheet!$D$5,IF(C42=$C$3,Worksheet!$D$6,IF(C42=$B$3,Worksheet!$B$6,IF(C42=$D$3,Worksheet!$B$9,IF(C42=$E$3,Worksheet!$D$9,FALSE))))))))))) -> TRUE | AF42: =IF(AE42,D42,"") -> Easy | AG42: =IF(AE42,COUNTIF($AF$5:AF42,AF42),"X") -> 18 | AH42: =CONCATENATE(AE42,AF42) -> TRUEEasy
A43: =CONCATENATE(AE43,D43,AG43) -> TRUEEasy19 | B43: =RAND() -> 0.8946037006 | C43: +-×÷ | D43: Easy | E43: 66 | F43: Work out the value of: | G43: =RANDBETWEEN(2,9) -> 8 | H43: ( | I43: =RANDBETWEEN(1,7) -> 5 | J43: + | K43: =RANDBETWEEN(1,7) -> 4 | L43: ) | T43: =CONCATENATE(F43," ",G43," ",H43," ",I43," ",J43," ",K43," ",L43," ",M43," ",N43," ",O43," ",P43," ",Q43," ",R43) -> Work out the value of: 8 ( 5 + 4 ) | U43: =(I43+K43)*G43 -> 72 | AC43: =IF(ISERROR(T43),NA(),"") ->  | AD43: =IF(OR(ISNA(U43),ISNA(V43),ISNA(W43),ISNA(X43),ISNA(Y43),ISNA(Z43),ISNA(AA43),ISNA(AB43),ISNA(AC43)),NA(),CONCATENATE(U43,V43,W43,X43,Y43,Z43,AA43,AB43)) -> 72 | AE43: =IF(ISNA(AD43),FALSE,IF(C43=$B$1,Worksheet!$B$3,IF(C43=$C$1,Worksheet!$B$4,IF(C43=$D$1,Worksheet!$B$5,IF(C43=$C$2,Worksheet!$D$3,IF(C43=$D$2,Worksheet!$D$4,IF(C43=$E$2,Worksheet!$D$5,IF(C43=$C$3,Worksheet!$D$6,IF(C43=$B$3,Worksheet!$B$6,IF(C43=$D$3,Worksheet!$B$9,IF(C43=$E$3,Worksheet!$D$9,FALSE))))))))))) -> TRUE | AF43: =IF(AE43,D43,"") -> Easy | AG43: =IF(AE43,COUNTIF($AF$5:AF43,AF43),"X") -> 19 | AH43: =CONCATENATE(AE43,AF43) -> TRUEEasy
A44: =CONCATENATE(AE44,D44,AG44) -> TRUEHard9 | B44: =RAND() -> 0.6908815963 | C44: Dec | D44: Hard | E44: 202 | F44: Write the number | G44: =RANDBETWEEN(2,9)/100+RANDBETWEEN(1,99)/10000 -> 0.0809 | H44: in standard form | T44: =CONCATENATE(F44," ",G44," ",H44," ",I44," ",J44," ",K44," ",L44," ",M44," ",N44," ",O44," ",P44," ",Q44," ",R44) -> Write the number 0.0809 in standard form | U44: =G44*100 -> 8.09 | V44: × 10^(-2) (10 to the power of -2) | AC44: =IF(ISERROR(T44),NA(),"") ->  | AD44: =IF(OR(ISNA(U44),ISNA(V44),ISNA(W44),ISNA(X44),ISNA(Y44),ISNA(Z44),ISNA(AA44),ISNA(AB44),ISNA(AC44)),NA(),CONCATENATE(U44,V44,W44,X44,Y44,Z44,AA44,AB44)) -> 8.09× 10^(-2) (10 to the power of -2) | AE44: =IF(ISNA(AD44),FALSE,IF(C44=$B$1,Worksheet!$B$3,IF(C44=$C$1,Worksheet!$B$4,IF(C44=$D$1,Worksheet!$B$5,IF(C44=$C$2,Worksheet!$D$3,IF(C44=$D$2,Worksheet!$D$4,IF(C44=$E$2,Worksheet!$D$5,IF(C44=$C$3,Worksheet!$D$6,IF(C44=$B$3,Worksheet!$B$6,IF(C44=$D$3,Worksheet!$B$9,IF(C44=$E$3,Worksheet!$D$9,FALSE))))))))))) -> TRUE | AF44: =IF(AE44,D44,"") -> Hard | AG44: =IF(AE44,COUNTIF($AF$5:AF44,AF44),"X") -> 9 | AH44: =CONCATENATE(AE44,AF44) -> TRUEHard
A45: =CONCATENATE(AE45,D45,AG45) -> TRUEMedium12 | B45: =RAND() -> 0.864114299 | C45: Dec | D45: Medium | E45: 253 | F45: Multiply: | G45: =RANDBETWEEN(10,99)*100 -> 6000 | H45: × | I45: =10^RANDBETWEEN(-2,-1)*RANDBETWEEN(2,9) -> 0.08 | T45: =CONCATENATE(F45," ",G45," ",H45," ",I45," ",J45," ",K45," ",L45," ",M45," ",N45," ",O45," ",P45," ",Q45," ",R45) -> Multiply: 6000 × 0.08 | U45: =G45*I45 -> 480 | AC45: =IF(ISERROR(T45),NA(),"") ->  | AD45: =IF(OR(ISNA(U45),ISNA(V45),ISNA(W45),ISNA(X45),ISNA(Y45),ISNA(Z45),ISNA(AA45),ISNA(AB45),ISNA(AC45)),NA(),CONCATENATE(U45,V45,W45,X45,Y45,Z45,AA45,AB45)) -> 480 | AE45: =IF(ISNA(AD45),FALSE,IF(C45=$B$1,Worksheet!$B$3,IF(C45=$C$1,Worksheet!$B$4,IF(C45=$D$1,Worksheet!$B$5,IF(C45=$C$2,Worksheet!$D$3,IF(C45=$D$2,Worksheet!$D$4,IF(C45=$E$2,Worksheet!$D$5,IF(C45=$C$3,Worksheet!$D$6,IF(C45=$B$3,Worksheet!$B$6,IF(C45=$D$3,Worksheet!$B$9,IF(C45=$E$3,Worksheet!$D$9,FALSE))))))))))) -> TRUE | AF45: =IF(AE45,D45,"") -> Medium | AG45: =IF(AE45,COUNTIF($AF$5:AF45,AF45),"X") -> 12 | AH45: =CONCATENATE(AE45,AF45) -> TRUEMedium
A46: =CONCATENATE(AE46,D46,AG46) -> TRUEMedium13 | B46: =RAND() -> 0.8769057472 | C46: Dec | D46: Medium | E46: 162 | F46: What is seven eighths (7/8) as a decimal? | T46: =CONCATENATE(F46," ",G46," ",H46," ",I46," ",J46," ",K46," ",L46," ",M46," ",N46," ",O46," ",P46," ",Q46," ",R46) -> What is seven eighths (7/8) as a decimal? | U46: 0.875 | AC46: =IF(ISERROR(T46),NA(),"") ->  | AD46: =IF(OR(ISNA(U46),ISNA(V46),ISNA(W46),ISNA(X46),ISNA(Y46),ISNA(Z46),ISNA(AA46),ISNA(AB46),ISNA(AC46)),NA(),CONCATENATE(U46,V46,W46,X46,Y46,Z46,AA46,AB46)) -> 0.875 | AE46: =IF(ISNA(AD46),FALSE,IF(C46=$B$1,Worksheet!$B$3,IF(C46=$C$1,Worksheet!$B$4,IF(C46=$D$1,Worksheet!$B$5,IF(C46=$C$2,Worksheet!$D$3,IF(C46=$D$2,Worksheet!$D$4,IF(C46=$E$2,Worksheet!$D$5,IF(C46=$C$3,Worksheet!$D$6,IF(C46=$B$3,Worksheet!$B$6,IF(C46=$D$3,Worksheet!$B$9,IF(C46=$E$3,Worksheet!$D$9,FALSE))))))))))) -> TRUE | AF46: =IF(AE46,D46,"") -> Medium | AG46: =IF(AE46,COUNTIF($AF$5:AF46,AF46),"X") -> 13 | AH46: =CONCATENATE(AE46,AF46) -> TRUEMedium
A47: =CONCATENATE(AE47,D47,AG47) -> TRUEEasy20 | B47: =RAND() -> 0.1043987121 | C47: Alg | D47: Easy | E47: 315 | F47: Algebra. If | G47: =CHOOSE(RANDBETWEEN(1,22),"a","b","c","d","f","g","h","j","k","m","n","p","q","r","s","t","u","v","w","x","y","z") -> f | H47: = | I47: =RANDBETWEEN(2,5) -> 4 | J47: , what is the value of: | K47: =RANDBETWEEN(2,10) -> 5 | L47: =G47 -> f | M47: ² | N47: ? | T47: =CONCATENATE(F47," ",G47," ",H47," ",I47," ",J47," ",K47,"",L47,"",M47,"",N47," ",O47," ",P47," ",Q47," ",R47) -> Algebra. If f = 4 , what is the value of: 5f²? | U47: =K47*I47^2 -> 80 | AC47: =IF(ISERROR(T47),NA(),"") ->  | AD47: =IF(OR(ISNA(U47),ISNA(V47),ISNA(W47),ISNA(X47),ISNA(Y47),ISNA(Z47),ISNA(AA47),ISNA(AB47),ISNA(AC47)),NA(),CONCATENATE(U47,V47,W47,X47,Y47,Z47,AA47,AB47)) -> 80 | AE47: =IF(ISNA(AD47),FALSE,IF(C47=$B$1,Worksheet!$B$3,IF(C47=$C$1,Worksheet!$B$4,IF(C47=$D$1,Worksheet!$B$5,IF(C47=$C$2,Worksheet!$D$3,IF(C47=$D$2,Worksheet!$D$4,IF(C47=$E$2,Worksheet!$D$5,IF(C47=$C$3,Worksheet!$D$6,IF(C47=$B$3,Worksheet!$B$6,IF(C47=$D$3,Worksheet!$B$9,IF(C47=$E$3,Worksheet!$D$9,FALSE))))))))))) -> TRUE | AF47: =IF(AE47,D47,"") -> Easy | AG47: =IF(AE47,COUNTIF($AF$5:AF47,AF47),"X") -> 20 | AH47: =CONCATENATE(AE47,AF47) -> TRUEEasy
A48: =CONCATENATE(AE48,D48,AG48) -> TRUEHard10 | B48: =RAND() -> 0.2390640855 | C48: Dec | D48: Hard | E48: 243 | F48: Divide: | G48: =(9*RANDBETWEEN(11,99)+RANDBETWEEN(1,8))/10 -> 23.6 | H48: ÷ | I48: 9 | J48: , giving your answer as a decimal rounded to 3 decimal places | T48: =CONCATENATE(F48," ",G48," ",H48," ",I48," ",J48," ",K48," ",L48," ",M48," ",N48," ",O48," ",P48," ",Q48," ",R48) -> Divide: 23.6 ÷ 9 , giving your answer as a decimal rounded to 3 decimal places | U48: =MROUND(G48/I48,0.001) -> 2.622 | AC48: =IF(ISERROR(T48),NA(),"") ->  | AD48: =IF(OR(ISNA(U48),ISNA(V48),ISNA(W48),ISNA(X48),ISNA(Y48),ISNA(Z48),ISNA(AA48),ISNA(AB48),ISNA(AC48)),NA(),CONCATENATE(U48,V48,W48,X48,Y48,Z48,AA48,AB48)) -> 2.622 | AE48: =IF(ISNA(AD48),FALSE,IF(C48=$B$1,Worksheet!$B$3,IF(C48=$C$1,Worksheet!$B$4,IF(C48=$D$1,Worksheet!$B$5,IF(C48=$C$2,Worksheet!$D$3,IF(C48=$D$2,Worksheet!$D$4,IF(C48=$E$2,Worksheet!$D$5,IF(C48=$C$3,Worksheet!$D$6,IF(C48=$B$3,Worksheet!$B$6,IF(C48=$D$3,Worksheet!$B$9,IF(C48=$E$3,Worksheet!$D$9,FALSE))))))))))) -> TRUE | AF48: =IF(AE48,D48,"") -> Hard | AG48: =IF(AE48,COUNTIF($AF$5:AF48,AF48),"X") -> 10 | AH48: =CONCATENATE(AE48,AF48) -> TRUEHard
A49: =CONCATENATE(AE49,D49,AG49) -> TRUEMedium14 | B49: =RAND() -> 0.425684703 | C49: Frac | D49: Medium | E49: 102 | F49: Add the fractions: | G49: =IF(I49=4,CHOOSE(RANDBETWEEN(1,2),1,3),RANDBETWEEN(1,I49-1)) -> 3 | H49: / | I49: =RANDBETWEEN(5,8) -> 8 | J49: + | K49: =RANDBETWEEN(1,M49-1) -> 1 | L49: / | M49: =SMALL(IF(I49={5,6,7,8},"",{5,6,7,8}),RANDBETWEEN(1,3)) -> 6 | N49: =IF(GCD(G49*M49+I49*K49,I49*M49)=1,"",", giving your answer in its simplest form") -> , giving your answer in its simplest form | T49: =CONCATENATE(F49," ",G49,"",H49,"",I49," ",J49," ",K49,"",L49,"",M49," ",N49," ",O49," ",P49," ",Q49," ",R49) -> Add the fractions: 3/8 + 1/6 , giving your answer in its simplest form | U49: =(G49*M49+I49*K49)/GCD(G49*M49+I49*K49,I49*M49) -> 13 | V49: / | W49: =I49*M49/GCD(G49*M49+I49*K49,I49*M49) -> 24 | X49: =IF(INT(G49*M49+I49*K49/GCD(G49*M49+I49*K49,I49*M49))=G49*M49+I49*K49/GCD(G49*M49+I49*K49,I49*M49),"",NA()) ->  | AC49: =IF(ISERROR(T49),NA(),"") ->  | AD49: =IF(OR(ISNA(U49),ISNA(V49),ISNA(W49),ISNA(X49),ISNA(Y49),ISNA(Z49),ISNA(AA49),ISNA(AB49),ISNA(AC49)),NA(),CONCATENATE(U49,V49,W49,X49,Y49,Z49,AA49,AB49)) -> 13/24 | AE49: =IF(ISNA(AD49),FALSE,IF(C49=$B$1,Worksheet!$B$3,IF(C49=$C$1,Worksheet!$B$4,IF(C49=$D$1,Worksheet!$B$5,IF(C49=$C$2,Worksheet!$D$3,IF(C49=$D$2,Worksheet!$D$4,IF(C49=$E$2,Worksheet!$D$5,IF(C49=$C$3,Worksheet!$D$6,IF(C49=$B$3,Worksheet!$B$6,IF(C49=$D$3,Worksheet!$B$9,IF(C49=$E$3,Worksheet!$D$9,FALSE))))))))))) -> TRUE | AF49: =IF(AE49,D49,"") -> Medium | AG49: =IF(AE49,COUNTIF($AF$5:AF49,AF49),"X") -> 14 | AH49: =CONCATENATE(AE49,AF49) -> TRUEMedium
A50: =CONCATENATE(AE50,D50,AG50) -> TRUEMedium15 | B50: =RAND() -> 0.6999079991 | C50: Alg | D50: Medium | E50: 335 | F50: Multiply out the bracket and simplify: | G50: =RANDBETWEEN(2,10) -> 8 | H50: ( | I50: =CHOOSE(RANDBETWEEN(1,22),"a","b","c","d","f","g","h","j","k","m","n","p","q","r","s","t","u","v","w","x","y","z") -> r | J50: + | K50: =RANDBETWEEN(1,10) -> 6 | L50: ) | M50: + | N50: =RANDBETWEEN(1,10) -> 10 | T50: =CONCATENATE(F50," ",G50," ",H50," ",I50," ",J50," ",K50," ",L50," ",M50," ",N50," ",O50," ",P50," ",Q50," ",R50) -> Multiply out the bracket and simplify: 8 ( r + 6 ) + 10 | U50: =CONCATENATE(G50,I50," ",J50," ",G50*K50+N50) -> 8r + 58 | AC50: =IF(L50<0,NA(),"") ->  | AD50: =IF(OR(ISNA(U50),ISNA(V50),ISNA(W50),ISNA(X50),ISNA(Y50),ISNA(Z50),ISNA(AA50),ISNA(AB50),ISNA(AC50)),NA(),CONCATENATE(U50,V50,W50,X50,Y50,Z50,AA50,AB50)) -> 8r + 58 | AE50: =IF(ISNA(AD50),FALSE,IF(C50=$B$1,Worksheet!$B$3,IF(C50=$C$1,Worksheet!$B$4,IF(C50=$D$1,Worksheet!$B$5,IF(C50=$C$2,Worksheet!$D$3,IF(C50=$D$2,Worksheet!$D$4,IF(C50=$E$2,Worksheet!$D$5,IF(C50=$C$3,Worksheet!$D$6,IF(C50=$B$3,Worksheet!$B$6,IF(C50=$D$3,Worksheet!$B$9,IF(C50=$E$3,Worksheet!$D$9,FALSE))))))))))) -> TRUE | AF50: =IF(AE50,D50,"") -> Medium | AG50: =IF(AE50,COUNTIF($AF$5:AF50,AF50),"X") -> 15 | AH50: =CONCATENATE(AE50,AF50) -> TRUEMedium
A51: =CONCATENATE(AE51,D51,AG51) -> TRUEEasy21 | B51: =RAND() -> 0.01108200351 | C51: % | D51: Easy | E51: 288 | F51: What fraction is the same as | G51: 33⅓% | H51: ? | T51: =CONCATENATE(F51," ",G51,"",H51," ",I51," ",J51," ",K51," ",L51," ",M51," ",N51," ",O51," ",P51," ",Q51," ",R51) -> What fraction is the same as 33⅓%? | U51: 1/3 (one third) | AC51: =IF(ISERROR(T51),NA(),"") ->  | AD51: =IF(OR(ISNA(U51),ISNA(V51),ISNA(W51),ISNA(X51),ISNA(Y51),ISNA(Z51),ISNA(AA51),ISNA(AB51),ISNA(AC51)),NA(),CONCATENATE(U51,V51,W51,X51,Y51,Z51,AA51,AB51)) -> 1/3 (one third) | AE51: =IF(ISNA(AD51),FALSE,IF(C51=$B$1,Worksheet!$B$3,IF(C51=$C$1,Worksheet!$B$4,IF(C51=$D$1,Worksheet!$B$5,IF(C51=$C$2,Worksheet!$D$3,IF(C51=$D$2,Worksheet!$D$4,IF(C51=$E$2,Worksheet!$D$5,IF(C51=$C$3,Worksheet!$D$6,IF(C51=$B$3,Worksheet!$B$6,IF(C51=$D$3,Worksheet!$B$9,IF(C51=$E$3,Worksheet!$D$9,FALSE))))))))))) -> TRUE | AF51: =IF(AE51,D51,"") -> Easy | AG51: =IF(AE51,COUNTIF($AF$5:AF51,AF51),"X") -> 21 | AH51: =CONCATENATE(AE51,AF51) -> TRUEEasy
A52: =CONCATENATE(AE52,D52,AG52) -> TRUEMedium16 | B52: =RAND() -> 0.4944018972 | C52: Alg | D52: Medium | E52: 317 | F52: Algebra. If | G52: =CHOOSE(RANDBETWEEN(1,22),"a","b","c","d","f","g","h","j","k","m","n","p","q","r","s","t","u","v","w","x","y","z") -> s | H52: = | I52: =RANDBETWEEN(5,10) -> 7 | J52: , what is the value of: | K52: =RANDBETWEEN(2,10) -> 10 | L52: =G52 -> s | M52: ² | N52: ? | T52: =CONCATENATE(F52," ",G52," ",H52," ",I52," ",J52," ",K52,"",L52,"",M52,"",N52," ",O52," ",P52," ",Q52," ",R52) -> Algebra. If s = 7 , what is the value of: 10s²? | U52: =K52*I52^2 -> 490 | AC52: =IF(ISERROR(T52),NA(),"") ->  | AD52: =IF(OR(ISNA(U52),ISNA(V52),ISNA(W52),ISNA(X52),ISNA(Y52),ISNA(Z52),ISNA(AA52),ISNA(AB52),ISNA(AC52)),NA(),CONCATENATE(U52,V52,W52,X52,Y52,Z52,AA52,AB52)) -> 490 | AE52: =IF(ISNA(AD52),FALSE,IF(C52=$B$1,Worksheet!$B$3,IF(C52=$C$1,Worksheet!$B$4,IF(C52=$D$1,Worksheet!$B$5,IF(C52=$C$2,Worksheet!$D$3,IF(C52=$D$2,Worksheet!$D$4,IF(C52=$E$2,Worksheet!$D$5,IF(C52=$C$3,Worksheet!$D$6,IF(C52=$B$3,Worksheet!$B$6,IF(C52=$D$3,Worksheet!$B$9,IF(C52=$E$3,Worksheet!$D$9,FALSE))))))))))) -> TRUE | AF52: =IF(AE52,D52,"") -> Medium | AG52: =IF(AE52,COUNTIF($AF$5:AF52,AF52),"X") -> 16 | AH52: =CONCATENATE(AE52,AF52) -> TRUEMedium
A53: =CONCATENATE(AE53,D53,AG53) -> TRUEEasy22 | B53: =RAND() -> 0.8594863228 | C53: Dec | D53: Easy | E53: 191 | F53: Change the number | G53: =RANDBETWEEN(1,9)+RANDBETWEEN(1,9)/10 -> 2.8 | H53: × 10^ | I53: =RANDBETWEEN(-5,-1) -> -3 | J53: (10 to the power of | K53: =I53 -> -3 | L53: ) from standard form to normal form | T53: =CONCATENATE(F53," ",G53," ",H53,"(",I53,") ",J53," (",K53,")",L53," ",M53," ",N53," ",O53," ",P53," ",Q53," ",R53) -> Change the number 2.8 × 10^(-3) (10 to the power of (-3)) from standard form to normal form | U53: =G53*10^I53 -> 0.0028 | AC53: =IF(ISERROR(T53),NA(),"") ->  | AD53: =IF(OR(ISNA(U53),ISNA(V53),ISNA(W53),ISNA(X53),ISNA(Y53),ISNA(Z53),ISNA(AA53),ISNA(AB53),ISNA(AC53)),NA(),CONCATENATE(U53,V53,W53,X53,Y53,Z53,AA53,AB53)) -> 0.0028 | AE53: =IF(ISNA(AD53),FALSE,IF(C53=$B$1,Worksheet!$B$3,IF(C53=$C$1,Worksheet!$B$4,IF(C53=$D$1,Worksheet!$B$5,IF(C53=$C$2,Worksheet!$D$3,IF(C53=$D$2,Worksheet!$D$4,IF(C53=$E$2,Worksheet!$D$5,IF(C53=$C$3,Worksheet!$D$6,IF(C53=$B$3,Worksheet!$B$6,IF(C53=$D$3,Worksheet!$B$9,IF(C53=$E$3,Worksheet!$D$9,FALSE))))))))))) -> TRUE | AF53: =IF(AE53,D53,"") -> Easy | AG53: =IF(AE53,COUNTIF($AF$5:AF53,AF53),"X") -> 22 | AH53: =CONCATENATE(AE53,AF53) -> TRUEEasy
A54: =CONCATENATE(AE54,D54,AG54) -> TRUEMedium17 | B54: =RAND() -> 0.5735219369 | C54: +-×÷ | D54: Medium | E54: 73 | F54: Use a written sum to divide: | G54: =RANDBETWEEN(70,500)*6+RANDBETWEEN(1,5) -> 1660 | H54: ÷ 6, giving your remainder as a fraction or to 2 decimal place | T54: =CONCATENATE(F54," ",G54," ",H54," ",I54," ",J54," ",K54," ",L54," ",M54," ",N54," ",O54," ",P54," ",Q54," ",R54) -> Use a written sum to divide: 1660 ÷ 6, giving your remainder as a fraction or to 2 decimal place | U54: =TEXT(G54/6,"#.00") -> 276.67 | V54: or | W54: =TEXT(G54/6,"### #/#") -> 276 2/3 | AC54: =IF(ISERROR(T54),NA(),"") ->  | AD54: =IF(OR(ISNA(U54),ISNA(V54),ISNA(W54),ISNA(X54),ISNA(Y54),ISNA(Z54),ISNA(AA54),ISNA(AB54),ISNA(AC54)),NA(),CONCATENATE(U54,V54,W54,X54,Y54,Z54,AA54,AB54)) -> 276.67 or 276 2/3 | AE54: =IF(ISNA(AD54),FALSE,IF(C54=$B$1,Worksheet!$B$3,IF(C54=$C$1,Worksheet!$B$4,IF(C54=$D$1,Worksheet!$B$5,IF(C54=$C$2,Worksheet!$D$3,IF(C54=$D$2,Worksheet!$D$4,IF(C54=$E$2,Worksheet!$D$5,IF(C54=$C$3,Worksheet!$D$6,IF(C54=$B$3,Worksheet!$B$6,IF(C54=$D$3,Worksheet!$B$9,IF(C54=$E$3,Worksheet!$D$9,FALSE))))))))))) -> TRUE | AF54: =IF(AE54,D54,"") -> Medium | AG54: =IF(AE54,COUNTIF($AF$5:AF54,AF54),"X") -> 17 | AH54: =CONCATENATE(AE54,AF54) -> TRUEMedium
A55: =CONCATENATE(AE55,D55,AG55) -> TRUEMedium18 | B55: =RAND() -> 0.58357629 | C55: Frac | D55: Medium | E55: 90 | F55: Write the mixed number | G55: =RANDBETWEEN(5,15) -> 5 | H55: =IF(J55=3,2,IF(J55=4,CHOOSE(RANDBETWEEN(1,2),1,3),IF(J55=5,RANDBETWEEN(1,4),IF(J55=6,CHOOSE(RANDBETWEEN(1,2),1,5),IF(J55=7,RANDBETWEEN(1,6),IF(J55=8,CHOOSE(RANDBETWEEN(1,4),1,3,5,7),IF(J55=9,CHOOSE(RANDBETWEEN(1,5),1,2,4,5,7),CHOOSE(RANDBETWEEN(1,4),1,3,7,9)))))))) -> 5 | I55: / | J55: =RANDBETWEEN(5,15) -> 9 | K55: as a topheavy fraction | T55: =CONCATENATE(F55," ",G55," ",H55,"",I55,"",J55," ",K55," ",L55," ",M55," ",N55," ",O55," ",P55," ",Q55," ",R55) -> Write the mixed number 5 5/9 as a topheavy fraction | U55: =J55*G55+H55 -> 50 | V55: / | W55: =J55 -> 9 | AC55: =IF(ISERROR(T55),NA(),"") ->  | AD55: =IF(OR(ISNA(U55),ISNA(V55),ISNA(W55),ISNA(X55),ISNA(Y55),ISNA(Z55),ISNA(AA55),ISNA(AB55),ISNA(AC55)),NA(),CONCATENATE(U55,V55,W55,X55,Y55,Z55,AA55,AB55)) -> 50/9 | AE55: =IF(ISNA(AD55),FALSE,IF(C55=$B$1,Worksheet!$B$3,IF(C55=$C$1,Worksheet!$B$4,IF(C55=$D$1,Worksheet!$B$5,IF(C55=$C$2,Worksheet!$D$3,IF(C55=$D$2,Worksheet!$D$4,IF(C55=$E$2,Worksheet!$D$5,IF(C55=$C$3,Worksheet!$D$6,IF(C55=$B$3,Worksheet!$B$6,IF(C55=$D$3,Worksheet!$B$9,IF(C55=$E$3,Worksheet!$D$9,FALSE))))))))))) -> TRUE | AF55: =IF(AE55,D55,"") -> Medium | AG55: =IF(AE55,COUNTIF($AF$5:AF55,AF55),"X") -> 18 | AH55: =CONCATENATE(AE55,AF55) -> TRUEMedium
A56: =CONCATENATE(AE56,D56,AG56) -> TRUEEasy23 | B56: =RAND() -> 0.04041676543 | C56: Neg | D56: Easy | E56: 218 | F56: Take away: | G56: =RANDBETWEEN(30,60) -> 42 | H56: – | I56: =RANDBETWEEN(G56+1,80) -> 64 | T56: =CONCATENATE(F56," ",G56," ",H56," ",I56,"",J56,"",K56," ",L56," ",M56," ",N56," ",O56," ",P56," ",Q56," ",R56) -> Take away: 42 – 64 | U56: =G56-I56 -> -22 | AC56: =IF(ISERROR(T56),NA(),"") ->  | AD56: =IF(OR(ISNA(U56),ISNA(V56),ISNA(W56),ISNA(X56),ISNA(Y56),ISNA(Z56),ISNA(AA56),ISNA(AB56),ISNA(AC56)),NA(),CONCATENATE(U56,V56,W56,X56,Y56,Z56,AA56,AB56)) -> -22 | AE56: =IF(ISNA(AD56),FALSE,IF(C56=$B$1,Worksheet!$B$3,IF(C56=$C$1,Worksheet!$B$4,IF(C56=$D$1,Worksheet!$B$5,IF(C56=$C$2,Worksheet!$D$3,IF(C56=$D$2,Worksheet!$D$4,IF(C56=$E$2,Worksheet!$D$5,IF(C56=$C$3,Worksheet!$D$6,IF(C56=$B$3,Worksheet!$B$6,IF(C56=$D$3,Worksheet!$B$9,IF(C56=$E$3,Worksheet!$D$9,FALSE))))))))))) -> TRUE | AF56: =IF(AE56,D56,"") -> Easy | AG56: =IF(AE56,COUNTIF($AF$5:AF56,AF56),"X") -> 23 | AH56: =CONCATENATE(AE56,AF56) -> TRUEEasy
A57: =CONCATENATE(AE57,D57,AG57) -> TRUEEasy24 | B57: =RAND() -> 0.6233158549 | C57: Alg | D57: Easy | E57: 332 | F57: Multiply out the bracket: | G57: =RANDBETWEEN(2,10) -> 10 | H57: ( | I57: =CHOOSE(RANDBETWEEN(1,22),"a","b","c","d","f","g","h","j","k","m","n","p","q","r","s","t","u","v","w","x","y","z") -> q | J57: – | K57: =RANDBETWEEN(1,10) -> 1 | L57: ) | T57: =CONCATENATE(F57," ",G57," ",H57," ",I57," ",J57," ",K57," ",L57," ",M57," ",N57," ",O57," ",P57," ",Q57," ",R57) -> Multiply out the bracket: 10 ( q – 1 ) | U57: =CONCATENATE(G57,I57," ",J57," ",G57*K57) -> 10q – 10 | AC57: =IF(L57<0,NA(),"") ->  | AD57: =IF(OR(ISNA(U57),ISNA(V57),ISNA(W57),ISNA(X57),ISNA(Y57),ISNA(Z57),ISNA(AA57),ISNA(AB57),ISNA(AC57)),NA(),CONCATENATE(U57,V57,W57,X57,Y57,Z57,AA57,AB57)) -> 10q – 10 | AE57: =IF(ISNA(AD57),FALSE,IF(C57=$B$1,Worksheet!$B$3,IF(C57=$C$1,Worksheet!$B$4,IF(C57=$D$1,Worksheet!$B$5,IF(C57=$C$2,Worksheet!$D$3,IF(C57=$D$2,Worksheet!$D$4,IF(C57=$E$2,Worksheet!$D$5,IF(C57=$C$3,Worksheet!$D$6,IF(C57=$B$3,Worksheet!$B$6,IF(C57=$D$3,Worksheet!$B$9,IF(C57=$E$3,Worksheet!$D$9,FALSE))))))))))) -> TRUE | AF57: =IF(AE57,D57,"") -> Easy | AG57: =IF(AE57,COUNTIF($AF$5:AF57,AF57),"X") -> 24 | AH57: =CONCATENATE(AE57,AF57) -> TRUEEasy
A58: =CONCATENATE(AE58,D58,AG58) -> TRUEMedium19 | B58: =RAND() -> 0.752396681 | C58: Round | D58: Medium | E58: 182 | F58: Round the number | G58: =TEXT(S58,"###,###") -> 13,502 | H58: to one significant figure | S58: =RANDBETWEEN(10000,99999) -> 13502 | T58: =CONCATENATE(F58," ",G58," ",H58," ",I58," ",J58," ",K58," ",L58," ",M58," ",N58," ",O58," ",P58," ",Q58," ",R58) -> Round the number 13,502 to one significant figure | U58: =TEXT(MROUND(S58,10000),"###,###") -> 10,000 | AC58: =IF(ISERROR(T58),NA(),"") ->  | AD58: =IF(OR(ISNA(U58),ISNA(V58),ISNA(W58),ISNA(X58),ISNA(Y58),ISNA(Z58),ISNA(AA58),ISNA(AB58),ISNA(AC58)),NA(),CONCATENATE(U58,V58,W58,X58,Y58,Z58,AA58,AB58)) -> 10,000 | AE58: =IF(ISNA(AD58),FALSE,IF(C58=$B$1,Worksheet!$B$3,IF(C58=$C$1,Worksheet!$B$4,IF(C58=$D$1,Worksheet!$B$5,IF(C58=$C$2,Worksheet!$D$3,IF(C58=$D$2,Worksheet!$D$4,IF(C58=$E$2,Worksheet!$D$5,IF(C58=$C$3,Worksheet!$D$6,IF(C58=$B$3,Worksheet!$B$6,IF(C58=$D$3,Worksheet!$B$9,IF(C58=$E$3,Worksheet!$D$9,FALSE))))))))))) -> TRUE | AF58: =IF(AE58,D58,"") -> Medium | AG58: =IF(AE58,COUNTIF($AF$5:AF58,AF58),"X") -> 19 | AH58: =CONCATENATE(AE58,AF58) -> TRUEMedium
A59: =CONCATENATE(AE59,D59,AG59) -> TRUEEasy25 | B59: =RAND() -> 0.496681993 | C59: Neg | D59: Easy | E59: 27 | F59: Work out the value of: | G59: ( | H59: =RANDBETWEEN(1,J59-1) -> 4 | I59: =CHOOSE(RANDBETWEEN(1,2),"+","–") -> + | J59: =RANDBETWEEN(5,10) -> 7 | K59: ) × ( | L59: =RANDBETWEEN(1,N59-1) -> 6 | M59: =IF(I59="+","–",CHOOSE(RANDBETWEEN(1,2),"+","–")) -> – | N59: =RANDBETWEEN(5,10) -> 7 | O59: ) | T59: =CONCATENATE(F59," ",G59," ",H59," ",I59," ",J59," ",K59," ",L59," ",M59," ",N59," ",O59," ",P59," ",Q59," ",R59) -> Work out the value of: ( 4 + 7 ) × ( 6 – 7 ) | U59: =(IF(I59="+",H59+J59,H59-J59)*IF(M59="+",L59+N59,L59-N59)) -> -11 | AC59: =IF(ISERROR(T59),NA(),"") ->  | AD59: =IF(OR(ISNA(U59),ISNA(V59),ISNA(W59),ISNA(X59),ISNA(Y59),ISNA(Z59),ISNA(AA59),ISNA(AB59),ISNA(AC59)),NA(),CONCATENATE(U59,V59,W59,X59,Y59,Z59,AA59,AB59)) -> -11 | AE59: =IF(ISNA(AD59),FALSE,IF(C59=$B$1,Worksheet!$B$3,IF(C59=$C$1,Worksheet!$B$4,IF(C59=$D$1,Worksheet!$B$5,IF(C59=$C$2,Worksheet!$D$3,IF(C59=$D$2,Worksheet!$D$4,IF(C59=$E$2,Worksheet!$D$5,IF(C59=$C$3,Worksheet!$D$6,IF(C59=$B$3,Worksheet!$B$6,IF(C59=$D$3,Worksheet!$B$9,IF(C59=$E$3,Worksheet!$D$9,FALSE))))))))))) -> TRUE | AF59: =IF(AE59,D59,"") -> Easy | AG59: =IF(AE59,COUNTIF($AF$5:AF59,AF59),"X") -> 25 | AH59: =CONCATENATE(AE59,AF59) -> TRUEEasy
A60: =CONCATENATE(AE60,D60,AG60) -> TRUEMedium20 | B60: =RAND() -> 0.2285827703 | C60: Alg | D60: Medium | E60: 305 | F60: Algebra. If | G60: =CHOOSE(RANDBETWEEN(1,22),"a","b","c","d","f","g","h","j","k","m","n","p","q","r","s","t","u","v","w","x","y","z") -> b | H60: = | I60: =RANDBETWEEN(-10,-1) -> -9 | J60: , what is the value of: | K60: =RANDBETWEEN(4,10)*10 -> 70 | L60: – | M60: =RANDBETWEEN(2,10) -> 7 | N60: =G60 -> b | O60: ? | T60: =CONCATENATE(F60," ",G60," ",H60," ",I60," ",J60," ",K60," ",L60," ",M60,"",N60," ",O60," ",P60," ",Q60," ",R60) -> Algebra. If b = -9 , what is the value of: 70 – 7b ? | U60: =K60-M60*I60 -> 133 | AC60: =IF(ISERROR(T60),NA(),"") ->  | AD60: =IF(OR(ISNA(U60),ISNA(V60),ISNA(W60),ISNA(X60),ISNA(Y60),ISNA(Z60),ISNA(AA60),ISNA(AB60),ISNA(AC60)),NA(),CONCATENATE(U60,V60,W60,X60,Y60,Z60,AA60,AB60)) -> 133 | AE60: =IF(ISNA(AD60),FALSE,IF(C60=$B$1,Worksheet!$B$3,IF(C60=$C$1,Worksheet!$B$4,IF(C60=$D$1,Worksheet!$B$5,IF(C60=$C$2,Worksheet!$D$3,IF(C60=$D$2,Worksheet!$D$4,IF(C60=$E$2,Worksheet!$D$5,IF(C60=$C$3,Worksheet!$D$6,IF(C60=$B$3,Worksheet!$B$6,IF(C60=$D$3,Worksheet!$B$9,IF(C60=$E$3,Worksheet!$D$9,FALSE))))))))))) -> TRUE | AF60: =IF(AE60,D60,"") -> Medium | AG60: =IF(AE60,COUNTIF($AF$5:AF60,AF60),"X") -> 20 | AH60: =CONCATENATE(AE60,AF60) -> TRUEMedium
A61: =CONCATENATE(AE61,D61,AG61) -> TRUEMedium21 | B61: =RAND() -> 0.5772139361 | C61: Alg | D61: Medium | E61: 340 | F61: Factorise: | G61: =S61*RANDBETWEEN(1,10) -> 3 | H61: =CHOOSE(RANDBETWEEN(1,22),"a","b","c","d","f","g","h","j","k","m","n","p","q","r","s","t","u","v","w","x","y","z") -> p | I61: + | J61: =S61*RANDBETWEEN(2,10) -> 27 | S61: =RANDBETWEEN(2,5) -> 3 | T61: =CONCATENATE(F61," ",G61,"",H61," ",I61," ",J61," ",K61," ",L61," ",M61," ",N61," ",O61," ",P61," ",Q61," ",R61) -> Factorise: 3p + 27 | U61: =AC61 -> 3 | V61: ( | W61: =IF(G61/AC61=1,"",G61/AC61) ->  | X61: =H61 -> p | Y61: =I61 -> + | Z61: =J61/AC61 -> 9 | AA61: ) | AC61: =GCD(G61,J61) -> 3 | AD61: =IF(OR(ISNA(U61),ISNA(V61),ISNA(W61),ISNA(X61),ISNA(Y61),ISNA(Z61),ISNA(AA61),ISNA(AB61),ISNA(AC61)),NA(),CONCATENATE(U61,V61,W61,X61,Y61,Z61,AA61,AB61)) -> 3(p+9) | AE61: =IF(ISNA(AD61),FALSE,IF(C61=$B$1,Worksheet!$B$3,IF(C61=$C$1,Worksheet!$B$4,IF(C61=$D$1,Worksheet!$B$5,IF(C61=$C$2,Worksheet!$D$3,IF(C61=$D$2,Worksheet!$D$4,IF(C61=$E$2,Worksheet!$D$5,IF(C61=$C$3,Worksheet!$D$6,IF(C61=$B$3,Worksheet!$B$6,IF(C61=$D$3,Worksheet!$B$9,IF(C61=$E$3,Worksheet!$D$9,FALSE))))))))))) -> TRUE | AF61: =IF(AE61,D61,"") -> Medium | AG61: =IF(AE61,COUNTIF($AF$5:AF61,AF61),"X") -> 21 | AH61: =CONCATENATE(AE61,AF61) -> TRUEMedium
A62: =CONCATENATE(AE62,D62,AG62) -> TRUEEasy26 | B62: =RAND() -> 0.1531299671 | C62: % | D62: Easy | E62: 263 | F62: =CONCATENATE(CHOOSE(RANDBETWEEN(1,10),"Jemma","Cameron","Stephen","Matthew","Charlie","Liam","Megan","Elliot","John","Chelsea")," gets a mark of ") -> Matthew gets a mark of | G62: =RANDBETWEEN(1,I62-1) -> 36 | H62: / | I62: =CHOOSE(RANDBETWEEN(1,3),20,25,50) -> 50 | J62: on a | K62: =CHOOSE(RANDBETWEEN(1,4),"spelling","geography","french","science") -> geography | L62: test. What percentage is this? | T62: =CONCATENATE(F62,"",G62,"",H62,"",I62," ",J62," ",K62," ",L62," ",M62," ",N62," ",O62," ",P62," ",Q62," ",R62) -> Matthew gets a mark of 36/50 on a geography test. What percentage is this? | U62: =G62/I62*100 -> 72 | V62: % | Y62: =IF(U62=50,NA(),"") ->  | AC62: =IF(ISERROR(T62),NA(),"") ->  | AD62: =IF(OR(ISNA(U62),ISNA(V62),ISNA(W62),ISNA(X62),ISNA(Y62),ISNA(Z62),ISNA(AA62),ISNA(AB62),ISNA(AC62)),NA(),CONCATENATE(U62,V62,W62,X62,Y62,Z62,AA62,AB62)) -> 72% | AE62: =IF(ISNA(AD62),FALSE,IF(C62=$B$1,Worksheet!$B$3,IF(C62=$C$1,Worksheet!$B$4,IF(C62=$D$1,Worksheet!$B$5,IF(C62=$C$2,Worksheet!$D$3,IF(C62=$D$2,Worksheet!$D$4,IF(C62=$E$2,Worksheet!$D$5,IF(C62=$C$3,Worksheet!$D$6,IF(C62=$B$3,Worksheet!$B$6,IF(C62=$D$3,Worksheet!$B$9,IF(C62=$E$3,Worksheet!$D$9,FALSE))))))))))) -> TRUE | AF62: =IF(AE62,D62,"") -> Easy | AG62: =IF(AE62,COUNTIF($AF$5:AF62,AF62),"X") -> 26 | AH62: =CONCATENATE(AE62,AF62) -> TRUEEasy
A63: =CONCATENATE(AE63,D63,AG63) -> TRUEEasy27 | B63: =RAND() -> 0.02935165759 | C63: Dec | D63: Easy | E63: 159 | F63: What is one eighth (1/8) as a decimal? | T63: =CONCATENATE(F63," ",G63," ",H63," ",I63," ",J63," ",K63," ",L63," ",M63," ",N63," ",O63," ",P63," ",Q63," ",R63) -> What is one eighth (1/8) as a decimal? | U63: 0.125 | AC63: =IF(ISERROR(T63),NA(),"") ->  | AD63: =IF(OR(ISNA(U63),ISNA(V63),ISNA(W63),ISNA(X63),ISNA(Y63),ISNA(Z63),ISNA(AA63),ISNA(AB63),ISNA(AC63)),NA(),CONCATENATE(U63,V63,W63,X63,Y63,Z63,AA63,AB63)) -> 0.125 | AE63: =IF(ISNA(AD63),FALSE,IF(C63=$B$1,Worksheet!$B$3,IF(C63=$C$1,Worksheet!$B$4,IF(C63=$D$1,Worksheet!$B$5,IF(C63=$C$2,Worksheet!$D$3,IF(C63=$D$2,Worksheet!$D$4,IF(C63=$E$2,Worksheet!$D$5,IF(C63=$C$3,Worksheet!$D$6,IF(C63=$B$3,Worksheet!$B$6,IF(C63=$D$3,Worksheet!$B$9,IF(C63=$E$3,Worksheet!$D$9,FALSE))))))))))) -> TRUE | AF63: =IF(AE63,D63,"") -> Easy | AG63: =IF(AE63,COUNTIF($AF$5:AF63,AF63),"X") -> 27 | AH63: =CONCATENATE(AE63,AF63) -> TRUEEasy
A64: =CONCATENATE(AE64,D64,AG64) -> TRUEMedium22 | B64: =RAND() -> 0.1847999348 | C64: Frac | D64: Medium | E64: 77 | F64: Fractions. Without a calculator, work out: | G64: =TEXT(R64/S64,"##/##") -> 1/8 | H64: of | I64: =S64*RANDBETWEEN(3,6) -> 48 | R64: =RANDBETWEEN(2,S64-1) -> 2 | S64: =RANDBETWEEN(11,19) -> 16 | T64: =CONCATENATE(F64," ",G64," ",H64," ",I64," ",J64," ",K64," ",L64," ",M64," ",N64," ",O64," ",P64," ",Q64) -> Fractions. Without a calculator, work out: 1/8 of 48 | U64: =I64/S64*VALUE(LEFT(G64,SEARCH("/",G64,1)-1)) -> 3 | AC64: =IF(ISERROR(T64),NA(),"") ->  | AD64: =IF(OR(ISNA(U64),ISNA(V64),ISNA(W64),ISNA(X64),ISNA(Y64),ISNA(Z64),ISNA(AA64),ISNA(AB64),ISNA(AC64)),NA(),CONCATENATE(U64,V64,W64,X64,Y64,Z64,AA64,AB64)) -> 3 | AE64: =IF(ISNA(AD64),FALSE,IF(C64=$B$1,Worksheet!$B$3,IF(C64=$C$1,Worksheet!$B$4,IF(C64=$D$1,Worksheet!$B$5,IF(C64=$C$2,Worksheet!$D$3,IF(C64=$D$2,Worksheet!$D$4,IF(C64=$E$2,Worksheet!$D$5,IF(C64=$C$3,Worksheet!$D$6,IF(C64=$B$3,Worksheet!$B$6,IF(C64=$D$3,Worksheet!$B$9,IF(C64=$E$3,Worksheet!$D$9,FALSE))))))))))) -> TRUE | AF64: =IF(AE64,D64,"") -> Medium | AG64: =IF(AE64,COUNTIF($AF$5:AF64,AF64),"X") -> 22 | AH64: =CONCATENATE(AE64,AF64) -> TRUEMedium
A65: =CONCATENATE(AE65,D65,AG65) -> TRUEMedium23 | B65: =RAND() -> 0.235956134 | C65: Dec | D65: Medium | E65: 144 | F65: Write the decimal | G65: =S65/10000 -> 0.2776 | H65: as a fraction | I65: =IF(GCD(1000,S65)<>1,", simplifying your answer","") -> , simplifying your answer | S65: =RANDBETWEEN(1,999)*10+RANDBETWEEN(1,9) -> 2776 | T65: =CONCATENATE(F65," ",G65," ",H65," ",I65," ",J65," ",K65," ",L65," ",M65," ",N65," ",O65," ",P65," ",Q65," ",R65) -> Write the decimal 0.2776 as a fraction , simplifying your answer | U65: =TEXT(S65/10000,"###/#####") -> 347/1250 | AC65: =IF(ISERROR(T65),NA(),"") ->  | AD65: =IF(OR(ISNA(U65),ISNA(V65),ISNA(W65),ISNA(X65),ISNA(Y65),ISNA(Z65),ISNA(AA65),ISNA(AB65),ISNA(AC65)),NA(),CONCATENATE(U65,V65,W65,X65,Y65,Z65,AA65,AB65)) -> 347/1250 | AE65: =IF(ISNA(AD65),FALSE,IF(C65=$B$1,Worksheet!$B$3,IF(C65=$C$1,Worksheet!$B$4,IF(C65=$D$1,Worksheet!$B$5,IF(C65=$C$2,Worksheet!$D$3,IF(C65=$D$2,Worksheet!$D$4,IF(C65=$E$2,Worksheet!$D$5,IF(C65=$C$3,Worksheet!$D$6,IF(C65=$B$3,Worksheet!$B$6,IF(C65=$D$3,Worksheet!$B$9,IF(C65=$E$3,Worksheet!$D$9,FALSE))))))))))) -> TRUE | AF65: =IF(AE65,D65,"") -> Medium | AG65: =IF(AE65,COUNTIF($AF$5:AF65,AF65),"X") -> 23 | AH65: =CONCATENATE(AE65,AF65) -> TRUEMedium
A66: =CONCATENATE(AE66,D66,AG66) -> TRUEEasy28 | B66: =RAND() -> 0.6883536027 | C66: Num | D66: Easy | E66: 6 | F66: Write down the next two numbers in this increasing pattern: | G66: =TEXT(RANDBETWEEN(1,99)*10^RANDBETWEEN(6,7)+RANDBETWEEN(0,9)*10^RANDBETWEEN(3,5),"###,###") -> 990,000,000 | H66: , | I66: =TEXT(G66+$S66,"###,###,###") -> 991,000,000 | J66: , | K66: =TEXT(I66+$S66,"###,###,###") -> 992,000,000 | L66: , | M66: =TEXT(K66+$S66,"###,###,###") -> 993,000,000 | N66: , | O66: _______________ | P66: , | Q66: _______________ | S66: =10^RANDBETWEEN(4,6) -> 1000000 | T66: =CONCATENATE(F66," ",G66," ",H66," ",I66," ",J66," ",K66," ",L66," ",M66," ",N66," ",O66," ",P66," ",Q66," ",R66) -> Write down the next two numbers in this increasing pattern: 990,000,000 , 991,000,000 , 992,000,000 , 993,000,000 , _______________ , _______________ | U66: =TEXT(M66+S66,"###,###,###") -> 994,000,000 | V66: , | W66: =TEXT(U66+S66,"###,###,###") -> 995,000,000 | AC66: =IF(ISERROR(T66),NA(),"") ->  | AD66: =IF(OR(ISNA(U66),ISNA(V66),ISNA(W66),ISNA(X66),ISNA(Y66),ISNA(Z66),ISNA(AA66),ISNA(AB66),ISNA(AC66)),NA(),CONCATENATE(U66,V66,W66,X66,Y66,Z66,AA66,AB66)) -> 994,000,000 , 995,000,000 | AE66: =IF(ISNA(AD66),FALSE,IF(C66=$B$1,Worksheet!$B$3,IF(C66=$C$1,Worksheet!$B$4,IF(C66=$D$1,Worksheet!$B$5,IF(C66=$C$2,Worksheet!$D$3,IF(C66=$D$2,Worksheet!$D$4,IF(C66=$E$2,Worksheet!$D$5,IF(C66=$C$3,Worksheet!$D$6,IF(C66=$B$3,Worksheet!$B$6,IF(C66=$D$3,Worksheet!$B$9,IF(C66=$E$3,Worksheet!$D$9,FALSE))))))))))) -> TRUE | AF66: =IF(AE66,D66,"") -> Easy | AG66: =IF(AE66,COUNTIF($AF$5:AF66,AF66),"X") -> 28 | AH66: =CONCATENATE(AE66,AF66) -> TRUEEasy
A67: =CONCATENATE(AE67,D67,AG67) -> TRUEEasy29 | B67: =RAND() -> 0.7513211026 | C67: % | D67: Easy | E67: 264 | F67: What sum could you type into a calculator to work out | G67: =RANDBETWEEN(1,99) -> 33 | H67: % | I67: of | J67: £ | K67: =RANDBETWEEN(1001,99999) -> 38120 | L67: ? Circle the correct answer: | M67: =CONCATENATE(K67," × 100 ÷ ",G67) -> 38120 × 100 ÷ 33 | N67: =CONCATENATE(K67," ÷ ",G67) -> 38120 ÷ 33 | O67: =CONCATENATE(K67," ÷ 100 × ",G67) -> 38120 ÷ 100 × 33 | T67: =CONCATENATE(F67," ",G67,"",H67," ",I67," ",J67,"",K67,"",L67," ",M67," ",N67," ",O67," ",P67," ",Q67," ",R67) -> What sum could you type into a calculator to work out 33% of £38120? Circle the correct answer: 38120 × 100 ÷ 33 38120 ÷ 33 38120 ÷ 100 × 33 | U67: =O67 -> 38120 ÷ 100 × 33 | AC67: =IF(ISERROR(T67),NA(),"") ->  | AD67: =IF(OR(ISNA(U67),ISNA(V67),ISNA(W67),ISNA(X67),ISNA(Y67),ISNA(Z67),ISNA(AA67),ISNA(AB67),ISNA(AC67)),NA(),CONCATENATE(U67,V67,W67,X67,Y67,Z67,AA67,AB67)) -> 38120 ÷ 100 × 33 | AE67: =IF(ISNA(AD67),FALSE,IF(C67=$B$1,Worksheet!$B$3,IF(C67=$C$1,Worksheet!$B$4,IF(C67=$D$1,Worksheet!$B$5,IF(C67=$C$2,Worksheet!$D$3,IF(C67=$D$2,Worksheet!$D$4,IF(C67=$E$2,Worksheet!$D$5,IF(C67=$C$3,Worksheet!$D$6,IF(C67=$B$3,Worksheet!$B$6,IF(C67=$D$3,Worksheet!$B$9,IF(C67=$E$3,Worksheet!$D$9,FALSE))))))))))) -> TRUE | AF67: =IF(AE67,D67,"") -> Easy | AG67: =IF(AE67,COUNTIF($AF$5:AF67,AF67),"X") -> 29 | AH67: =CONCATENATE(AE67,AF67) -> TRUEEasy
A68: =CONCATENATE(AE68,D68,AG68) -> TRUEMedium24 | B68: =RAND() -> 0.05062789866 | C68: +-×÷ | D68: Medium | E68: 149 | F68: Take away by writing down a sum: | G68: =RANDBETWEEN(1,9)+RANDBETWEEN(1,9)*0.1 -> 1.3 | H68: – | I68: =RANDBETWEEN(1,FLOOR(G68,1))+RANDBETWEEN(0,9)*0.1+RANDBETWEEN(0,9)*0.01+RANDBETWEEN(1,9)*0.001 -> 1.126 | T68: =CONCATENATE(F68," ",G68," ",H68," ",I68," ",J68," ",K68," ",L68," ",M68," ",N68," ",O68," ",P68," ",Q68," ",R68) -> Take away by writing down a sum: 1.3 – 1.126 | U68: =ROUND(G68-I68,3) -> 0.174 | V68: =IF(U68<0,NA(),"") ->  | AC68: =IF(ISERROR(T68),NA(),"") ->  | AD68: =IF(OR(ISNA(U68),ISNA(V68),ISNA(W68),ISNA(X68),ISNA(Y68),ISNA(Z68),ISNA(AA68),ISNA(AB68),ISNA(AC68)),NA(),CONCATENATE(U68,V68,W68,X68,Y68,Z68,AA68,AB68)) -> 0.174 | AE68: =IF(ISNA(AD68),FALSE,IF(C68=$B$1,Worksheet!$B$3,IF(C68=$C$1,Worksheet!$B$4,IF(C68=$D$1,Worksheet!$B$5,IF(C68=$C$2,Worksheet!$D$3,IF(C68=$D$2,Worksheet!$D$4,IF(C68=$E$2,Worksheet!$D$5,IF(C68=$C$3,Worksheet!$D$6,IF(C68=$B$3,Worksheet!$B$6,IF(C68=$D$3,Worksheet!$B$9,IF(C68=$E$3,Worksheet!$D$9,FALSE))))))))))) -> TRUE | AF68: =IF(AE68,D68,"") -> Medium | AG68: =IF(AE68,COUNTIF($AF$5:AF68,AF68),"X") -> 24 | AH68: =CONCATENATE(AE68,AF68) -> TRUEMedium
A69: =CONCATENATE(AE69,D69,AG69) -> TRUEMedium25 | B69: =RAND() -> 0.2300713 | C69: % | D69: Medium | E69: 271 | F69: Calculate | G69: =RANDBETWEEN(1,9)*10+RANDBETWEEN(1,9) -> 87 | H69: % | I69: of | J69: £ | K69: =1000*RANDBETWEEN(2,9) -> 5000 | T69: =CONCATENATE(F69," ",G69,"",H69," ",I69," ",J69,"",K69," ",L69," ",M69," ",N69," ",O69," ",P69," ",Q69," ",R69) -> Calculate 87% of £5000 | U69: £ | V69: =K69/100*G69 -> 4350 | AC69: =IF(ISERROR(T69),NA(),"") ->  | AD69: =IF(OR(ISNA(U69),ISNA(V69),ISNA(W69),ISNA(X69),ISNA(Y69),ISNA(Z69),ISNA(AA69),ISNA(AB69),ISNA(AC69)),NA(),CONCATENATE(U69,V69,W69,X69,Y69,Z69,AA69,AB69)) -> £4350 | AE69: =IF(ISNA(AD69),FALSE,IF(C69=$B$1,Worksheet!$B$3,IF(C69=$C$1,Worksheet!$B$4,IF(C69=$D$1,Worksheet!$B$5,IF(C69=$C$2,Worksheet!$D$3,IF(C69=$D$2,Worksheet!$D$4,IF(C69=$E$2,Worksheet!$D$5,IF(C69=$C$3,Worksheet!$D$6,IF(C69=$B$3,Worksheet!$B$6,IF(C69=$D$3,Worksheet!$B$9,IF(C69=$E$3,Worksheet!$D$9,FALSE))))))))))) -> TRUE | AF69: =IF(AE69,D69,"") -> Medium | AG69: =IF(AE69,COUNTIF($AF$5:AF69,AF69),"X") -> 25 | AH69: =CONCATENATE(AE69,AF69) -> TRUEMedium
A70: =CONCATENATE(AE70,D70,AG70) -> TRUEEasy30 | B70: =RAND() -> 0.3900246038 | C70: Dec | D70: Easy | E70: 189 | F70: Change the number | G70: =RANDBETWEEN(1,9)+RANDBETWEEN(1,9)/10 -> 2.3 | H70: × 10^ | I70: =RANDBETWEEN(2,6) -> 3 | J70: (10 to the power of | K70: =I70 -> 3 | L70: ) from standard form to normal form | T70: =CONCATENATE(F70," ",G70," ",H70,"",I70," ",J70," ",K70,"",L70," ",M70," ",N70," ",O70," ",P70," ",Q70," ",R70) -> Change the number 2.3 × 10^3 (10 to the power of 3) from standard form to normal form | U70: =G70*10^I70 -> 2300 | AC70: =IF(ISERROR(T70),NA(),"") ->  | AD70: =IF(OR(ISNA(U70),ISNA(V70),ISNA(W70),ISNA(X70),ISNA(Y70),ISNA(Z70),ISNA(AA70),ISNA(AB70),ISNA(AC70)),NA(),CONCATENATE(U70,V70,W70,X70,Y70,Z70,AA70,AB70)) -> 2300 | AE70: =IF(ISNA(AD70),FALSE,IF(C70=$B$1,Worksheet!$B$3,IF(C70=$C$1,Worksheet!$B$4,IF(C70=$D$1,Worksheet!$B$5,IF(C70=$C$2,Worksheet!$D$3,IF(C70=$D$2,Worksheet!$D$4,IF(C70=$E$2,Worksheet!$D$5,IF(C70=$C$3,Worksheet!$D$6,IF(C70=$B$3,Worksheet!$B$6,IF(C70=$D$3,Worksheet!$B$9,IF(C70=$E$3,Worksheet!$D$9,FALSE))))))))))) -> TRUE | AF70: =IF(AE70,D70,"") -> Easy | AG70: =IF(AE70,COUNTIF($AF$5:AF70,AF70),"X") -> 30 | AH70: =CONCATENATE(AE70,AF70) -> TRUEEasy
A71: =CONCATENATE(AE71,D71,AG71) -> TRUEEasy31 | B71: =RAND() -> 0.9592906627 | C71: Num | D71: Easy | E71: 4 | F71: Write down the next two numbers in this increasing pattern: | G71: =TEXT(RANDBETWEEN(1,99)*1000000+RANDBETWEEN(0,99)*1000+RANDBETWEEN(1,999),"###,###") -> 39,044,707 | H71: , | I71: =TEXT(G71+$S71,"###,###,###") -> 39,054,707 | J71: , | K71: =TEXT(I71+$S71,"###,###,###") -> 39,064,707 | L71: , | M71: =TEXT(K71+$S71,"###,###,###") -> 39,074,707 | N71: , | O71: _______________ | P71: , | Q71: _______________ | S71: =CHOOSE(RANDBETWEEN(1,3),10000,100000,1000000) -> 10000 | T71: =CONCATENATE(F71," ",G71," ",H71," ",I71," ",J71," ",K71," ",L71," ",M71," ",N71," ",O71," ",P71," ",Q71," ",R71) -> Write down the next two numbers in this increasing pattern: 39,044,707 , 39,054,707 , 39,064,707 , 39,074,707 , _______________ , _______________ | U71: =TEXT(M71+S71,"###,###,###") -> 39,084,707 | V71: , | W71: =TEXT(U71+S71,"###,###,###") -> 39,094,707 | AC71: =IF(ISERROR(T71),NA(),"") ->  | AD71: =IF(OR(ISNA(U71),ISNA(V71),ISNA(W71),ISNA(X71),ISNA(Y71),ISNA(Z71),ISNA(AA71),ISNA(AB71),ISNA(AC71)),NA(),CONCATENATE(U71,V71,W71,X71,Y71,Z71,AA71,AB71)) -> 39,084,707 , 39,094,707 | AE71: =IF(ISNA(AD71),FALSE,IF(C71=$B$1,Worksheet!$B$3,IF(C71=$C$1,Worksheet!$B$4,IF(C71=$D$1,Worksheet!$B$5,IF(C71=$C$2,Worksheet!$D$3,IF(C71=$D$2,Worksheet!$D$4,IF(C71=$E$2,Worksheet!$D$5,IF(C71=$C$3,Worksheet!$D$6,IF(C71=$B$3,Worksheet!$B$6,IF(C71=$D$3,Worksheet!$B$9,IF(C71=$E$3,Worksheet!$D$9,FALSE))))))))))) -> TRUE | AF71: =IF(AE71,D71,"") -> Easy | AG71: =IF(AE71,COUNTIF($AF$5:AF71,AF71),"X") -> 31 | AH71: =CONCATENATE(AE71,AF71) -> TRUEEasy
A72: =CONCATENATE(AE72,D72,AG72) -> TRUEHard11 | B72: =RAND() -> 0.3886774011 | C72: Eqn | D72: Hard | E72: 345 | F72: Solve the equation | G72: =CHOOSE(RANDBETWEEN(1,22),"a","b","c","d","f","g","h","j","k","m","n","p","q","r","s","t","u","v","w","x","y","z") -> k | H72: = | I72: =RANDBETWEEN(2,10)^2 -> 4 | T72: =CONCATENATE(F72," ",G72," ",H72," ",I72," ",J72," ",K72," ",L72," ",M72," ",N72," ",O72," ",P72," ",Q72," ",R72) -> Solve the equation k = 4 | U72: =G72 -> k | V72: = | W72: ± | X72: =SQRT(I72) -> 2 | AC72: =IF(L72<0,NA(),"") ->  | AD72: =IF(OR(ISNA(U72),ISNA(V72),ISNA(W72),ISNA(X72),ISNA(Y72),ISNA(Z72),ISNA(AA72),ISNA(AB72),ISNA(AC72)),NA(),CONCATENATE(U72,V72,W72,X72,Y72,Z72,AA72,AB72)) -> k=±2 | AE72: =IF(ISNA(AD72),FALSE,IF(C72=$B$1,Worksheet!$B$3,IF(C72=$C$1,Worksheet!$B$4,IF(C72=$D$1,Worksheet!$B$5,IF(C72=$C$2,Worksheet!$D$3,IF(C72=$D$2,Worksheet!$D$4,IF(C72=$E$2,Worksheet!$D$5,IF(C72=$C$3,Worksheet!$D$6,IF(C72=$B$3,Worksheet!$B$6,IF(C72=$D$3,Worksheet!$B$9,IF(C72=$E$3,Worksheet!$D$9,FALSE))))))))))) -> TRUE | AF72: =IF(AE72,D72,"") -> Hard | AG72: =IF(AE72,COUNTIF($AF$5:AF72,AF72),"X") -> 11 | AH72: =CONCATENATE(AE72,AF72) -> TRUEHard
A73: =CONCATENATE(AE73,D73,AG73) -> TRUEEasy32 | B73: =RAND() -> 0.4583107252 | C73: +-×÷ | D73: Easy | E73: 61 | F73: Work out the value of: | G73: ( | H73: =RANDBETWEEN(2,5) -> 2 | I73: × | J73: =RANDBETWEEN(2,IF(H73=5,4,5)) -> 5 | K73: )² | T73: =CONCATENATE(F73," ",G73," ",H73," ",I73," ",J73," ",K73," ",L73," ",M73," ",N73," ",O73," ",P73," ",Q73," ",R73) -> Work out the value of: ( 2 × 5 )² | U73: =(H73*J73)^2 -> 100 | AC73: =IF(ISERROR(T73),NA(),"") ->  | AD73: =IF(OR(ISNA(U73),ISNA(V73),ISNA(W73),ISNA(X73),ISNA(Y73),ISNA(Z73),ISNA(AA73),ISNA(AB73),ISNA(AC73)),NA(),CONCATENATE(U73,V73,W73,X73,Y73,Z73,AA73,AB73)) -> 100 | AE73: =IF(ISNA(AD73),FALSE,IF(C73=$B$1,Worksheet!$B$3,IF(C73=$C$1,Worksheet!$B$4,IF(C73=$D$1,Worksheet!$B$5,IF(C73=$C$2,Worksheet!$D$3,IF(C73=$D$2,Worksheet!$D$4,IF(C73=$E$2,Worksheet!$D$5,IF(C73=$C$3,Worksheet!$D$6,IF(C73=$B$3,Worksheet!$B$6,IF(C73=$D$3,Worksheet!$B$9,IF(C73=$E$3,Worksheet!$D$9,FALSE))))))))))) -> TRUE | AF73: =IF(AE73,D73,"") -> Easy | AG73: =IF(AE73,COUNTIF($AF$5:AF73,AF73),"X") -> 32 | AH73: =CONCATENATE(AE73,AF73) -> TRUEEasy
A74: =CONCATENATE(AE74,D74,AG74) -> TRUEEasy33 | B74: =RAND() -> 0.3943223883 | C74: Dec | D74: Easy | E74: 157 | F74: Divide: | G74: =RANDBETWEEN(11,99) -> 56 | H74: ÷ | I74: 10000 | T74: =CONCATENATE(F74," ",G74," ",H74," ",I74," ",J74," ",K74," ",L74," ",M74," ",N74," ",O74," ",P74," ",Q74," ",R74) -> Divide: 56 ÷ 10000 | U74: =G74/I74 -> 0.0056 | AC74: =IF(ISERROR(T74),NA(),"") ->  | AD74: =IF(OR(ISNA(U74),ISNA(V74),ISNA(W74),ISNA(X74),ISNA(Y74),ISNA(Z74),ISNA(AA74),ISNA(AB74),ISNA(AC74)),NA(),CONCATENATE(U74,V74,W74,X74,Y74,Z74,AA74,AB74)) -> 0.0056 | AE74: =IF(ISNA(AD74),FALSE,IF(C74=$B$1,Worksheet!$B$3,IF(C74=$C$1,Worksheet!$B$4,IF(C74=$D$1,Worksheet!$B$5,IF(C74=$C$2,Worksheet!$D$3,IF(C74=$D$2,Worksheet!$D$4,IF(C74=$E$2,Worksheet!$D$5,IF(C74=$C$3,Worksheet!$D$6,IF(C74=$B$3,Worksheet!$B$6,IF(C74=$D$3,Worksheet!$B$9,IF(C74=$E$3,Worksheet!$D$9,FALSE))))))))))) -> TRUE | AF74: =IF(AE74,D74,"") -> Easy | AG74: =IF(AE74,COUNTIF($AF$5:AF74,AF74),"X") -> 33 | AH74: =CONCATENATE(AE74,AF74) -> TRUEEasy
A75: =CONCATENATE(AE75,D75,AG75) -> TRUEHard12 | B75: =RAND() -> 0.6736329704 | C75: Dec | D75: Hard | E75: 142 | F75: What number is exactly half way between | G75: =RANDBETWEEN(1,9)+RANDBETWEEN(0,9)*0.1+RANDBETWEEN(1,9)*0.01+RANDBETWEEN(1,9)*0.001 -> 1.378 | H75: and | I75: =G75+0.005 -> 1.383 | J75: ? | T75: =CONCATENATE(F75," ",G75," ",H75," ",I75,"",J75,"",K75," ",L75," ",M75," ",N75," ",O75," ",P75," ",Q75," ",R75) -> What number is exactly half way between 1.378 and 1.383? | U75: =G75+0.0025 -> 1.3805 | AC75: =IF(ISERROR(T75),NA(),"") ->  | AD75: =IF(OR(ISNA(U75),ISNA(V75),ISNA(W75),ISNA(X75),ISNA(Y75),ISNA(Z75),ISNA(AA75),ISNA(AB75),ISNA(AC75)),NA(),CONCATENATE(U75,V75,W75,X75,Y75,Z75,AA75,AB75)) -> 1.3805 | AE75: =IF(ISNA(AD75),FALSE,IF(C75=$B$1,Worksheet!$B$3,IF(C75=$C$1,Worksheet!$B$4,IF(C75=$D$1,Worksheet!$B$5,IF(C75=$C$2,Worksheet!$D$3,IF(C75=$D$2,Worksheet!$D$4,IF(C75=$E$2,Worksheet!$D$5,IF(C75=$C$3,Worksheet!$D$6,IF(C75=$B$3,Worksheet!$B$6,IF(C75=$D$3,Worksheet!$B$9,IF(C75=$E$3,Worksheet!$D$9,FALSE))))))))))) -> TRUE | AF75: =IF(AE75,D75,"") -> Hard | AG75: =IF(AE75,COUNTIF($AF$5:AF75,AF75),"X") -> 12 | AH75: =CONCATENATE(AE75,AF75) -> TRUEHard
A76: =CONCATENATE(AE76,D76,AG76) -> TRUEEasy34 | B76: =RAND() -> 0.7491289781 | C76: +-×÷ | D76: Easy | E76: 14 | F76: Multiply | G76: =RANDBETWEEN(6,9) -> 8 | H76: × | I76: =RANDBETWEEN(6,9) -> 6 | T76: =CONCATENATE(F76," ",G76," ",H76," ",I76," ",J76," ",K76," ",L76," ",M76," ",N76," ",O76," ",P76," ",Q76," ",R76) -> Multiply 8 × 6 | U76: =G76*I76 -> 48 | AC76: =IF(ISERROR(T76),NA(),"") ->  | AD76: =IF(OR(ISNA(U76),ISNA(V76),ISNA(W76),ISNA(X76),ISNA(Y76),ISNA(Z76),ISNA(AA76),ISNA(AB76),ISNA(AC76)),NA(),CONCATENATE(U76,V76,W76,X76,Y76,Z76,AA76,AB76)) -> 48 | AE76: =IF(ISNA(AD76),FALSE,IF(C76=$B$1,Worksheet!$B$3,IF(C76=$C$1,Worksheet!$B$4,IF(C76=$D$1,Worksheet!$B$5,IF(C76=$C$2,Worksheet!$D$3,IF(C76=$D$2,Worksheet!$D$4,IF(C76=$E$2,Worksheet!$D$5,IF(C76=$C$3,Worksheet!$D$6,IF(C76=$B$3,Worksheet!$B$6,IF(C76=$D$3,Worksheet!$B$9,IF(C76=$E$3,Worksheet!$D$9,FALSE))))))))))) -> TRUE | AF76: =IF(AE76,D76,"") -> Easy | AG76: =IF(AE76,COUNTIF($AF$5:AF76,AF76),"X") -> 34 | AH76: =CONCATENATE(AE76,AF76) -> TRUEEasy
A77: =CONCATENATE(AE77,D77,AG77) -> TRUEHard13 | B77: =RAND() -> 0.4050220993 | C77: Neg | D77: Hard | E77: 232 | F77: Work out of the value of: | G77: (– | H77: =RANDBETWEEN(2,10) -> 3 | I77: )² – | J77: =RANDBETWEEN(H77^2+1,H77^2+20) -> 24 | T77: =CONCATENATE(F77," ",G77,"",H77,"",I77," ",J77," ",K77," ",L77," ",M77," ",N77," ",O77," ",P77," ",Q77," ",R77) -> Work out of the value of: (–3)² – 24 | U77: =H77^2-J77 -> -15 | AC77: =IF(ISERROR(T77),NA(),"") ->  | AD77: =IF(OR(ISNA(U77),ISNA(V77),ISNA(W77),ISNA(X77),ISNA(Y77),ISNA(Z77),ISNA(AA77),ISNA(AB77),ISNA(AC77)),NA(),CONCATENATE(U77,V77,W77,X77,Y77,Z77,AA77,AB77)) -> -15 | AE77: =IF(ISNA(AD77),FALSE,IF(C77=$B$1,Worksheet!$B$3,IF(C77=$C$1,Worksheet!$B$4,IF(C77=$D$1,Worksheet!$B$5,IF(C77=$C$2,Worksheet!$D$3,IF(C77=$D$2,Worksheet!$D$4,IF(C77=$E$2,Worksheet!$D$5,IF(C77=$C$3,Worksheet!$D$6,IF(C77=$B$3,Worksheet!$B$6,IF(C77=$D$3,Worksheet!$B$9,IF(C77=$E$3,Worksheet!$D$9,FALSE))))))))))) -> TRUE | AF77: =IF(AE77,D77,"") -> Hard | AG77: =IF(AE77,COUNTIF($AF$5:AF77,AF77),"X") -> 13 | AH77: =CONCATENATE(AE77,AF77) -> TRUEHard
A78: =CONCATENATE(AE78,D78,AG78) -> TRUEMedium26 | B78: =RAND() -> 0.998331806 | C78: Round | D78: Medium | E78: 178 | F78: Round the number | G78: =RANDBETWEEN(100,999)*10+RANDBETWEEN(0,9) -> 6317 | H78: to one significant figure | T78: =CONCATENATE(F78," ",G78," ",H78," ",I78," ",J78," ",K78," ",L78," ",M78," ",N78," ",O78," ",P78," ",Q78," ",R78) -> Round the number 6317 to one significant figure | U78: =MROUND(G78,1000) -> 6000 | AC78: =IF(ISERROR(T78),NA(),"") ->  | AD78: =IF(OR(ISNA(U78),ISNA(V78),ISNA(W78),ISNA(X78),ISNA(Y78),ISNA(Z78),ISNA(AA78),ISNA(AB78),ISNA(AC78)),NA(),CONCATENATE(U78,V78,W78,X78,Y78,Z78,AA78,AB78)) -> 6000 | AE78: =IF(ISNA(AD78),FALSE,IF(C78=$B$1,Worksheet!$B$3,IF(C78=$C$1,Worksheet!$B$4,IF(C78=$D$1,Worksheet!$B$5,IF(C78=$C$2,Worksheet!$D$3,IF(C78=$D$2,Worksheet!$D$4,IF(C78=$E$2,Worksheet!$D$5,IF(C78=$C$3,Worksheet!$D$6,IF(C78=$B$3,Worksheet!$B$6,IF(C78=$D$3,Worksheet!$B$9,IF(C78=$E$3,Worksheet!$D$9,FALSE))))))))))) -> TRUE | AF78: =IF(AE78,D78,"") -> Medium | AG78: =IF(AE78,COUNTIF($AF$5:AF78,AF78),"X") -> 26 | AH78: =CONCATENATE(AE78,AF78) -> TRUEMedium
A79: =CONCATENATE(AE79,D79,AG79) -> TRUEMedium27 | B79: =RAND() -> 0.1346785902 | C79: Dec | D79: Medium | E79: 161 | F79: What is five eighths (5/8) as a decimal? | T79: =CONCATENATE(F79," ",G79," ",H79," ",I79," ",J79," ",K79," ",L79," ",M79," ",N79," ",O79," ",P79," ",Q79," ",R79) -> What is five eighths (5/8) as a decimal? | U79: 0.625 | AC79: =IF(ISERROR(T79),NA(),"") ->  | AD79: =IF(OR(ISNA(U79),ISNA(V79),ISNA(W79),ISNA(X79),ISNA(Y79),ISNA(Z79),ISNA(AA79),ISNA(AB79),ISNA(AC79)),NA(),CONCATENATE(U79,V79,W79,X79,Y79,Z79,AA79,AB79)) -> 0.625 | AE79: =IF(ISNA(AD79),FALSE,IF(C79=$B$1,Worksheet!$B$3,IF(C79=$C$1,Worksheet!$B$4,IF(C79=$D$1,Worksheet!$B$5,IF(C79=$C$2,Worksheet!$D$3,IF(C79=$D$2,Worksheet!$D$4,IF(C79=$E$2,Worksheet!$D$5,IF(C79=$C$3,Worksheet!$D$6,IF(C79=$B$3,Worksheet!$B$6,IF(C79=$D$3,Worksheet!$B$9,IF(C79=$E$3,Worksheet!$D$9,FALSE))))))))))) -> TRUE | AF79: =IF(AE79,D79,"") -> Medium | AG79: =IF(AE79,COUNTIF($AF$5:AF79,AF79),"X") -> 27 | AH79: =CONCATENATE(AE79,AF79) -> TRUEMedium
A80: =CONCATENATE(AE80,D80,AG80) -> TRUEMedium28 | B80: =RAND() -> 0.2243806496 | C80: Eqn | D80: Medium | E80: 325 | F80: Solve the equation | G80: =RANDBETWEEN(2,10) -> 10 | H80: =CHOOSE(RANDBETWEEN(1,22),"a","b","c","d","f","g","h","j","k","m","n","p","q","r","s","t","u","v","w","x","y","z") -> c | I80: – | J80: =RANDBETWEEN(1,10) -> 4 | K80: = | L80: =G80*(W80/Y80)-J80 -> 23 | M80: . Show your working in full and give your answer as a fraction. | T80: =CONCATENATE(F80," ",G80,"",H80," ",I80," ",J80," ",K80," ",L80," ",M80," ",N80," ",O80," ",P80," ",Q80," ",R80) -> Solve the equation 10c – 4 = 23 . Show your working in full and give your answer as a fraction. | U80: =H80 -> c | V80: = | W80: =AB80*G80+AA80 -> 27 | X80: / | Y80: =G80 -> 10 | AA80: =RANDBETWEEN(1,G80) -> 7 | AB80: =RANDBETWEEN(1,10) -> 2 | AC80: =IF(L80<0,NA(),"") ->  | AD80: =IF(OR(ISNA(U80),ISNA(V80),ISNA(W80),ISNA(X80),ISNA(Y80),ISNA(Z80),ISNA(AA80),ISNA(AB80),ISNA(AC80)),NA(),CONCATENATE(U80,V80,W80,X80,Y80,Z80)) -> c = 27/10 | AE80: =IF(ISNA(AD80),FALSE,IF(C80=$B$1,Worksheet!$B$3,IF(C80=$C$1,Worksheet!$B$4,IF(C80=$D$1,Worksheet!$B$5,IF(C80=$C$2,Worksheet!$D$3,IF(C80=$D$2,Worksheet!$D$4,IF(C80=$E$2,Worksheet!$D$5,IF(C80=$C$3,Worksheet!$D$6,IF(C80=$B$3,Worksheet!$B$6,IF(C80=$D$3,Worksheet!$B$9,IF(C80=$E$3,Worksheet!$D$9,FALSE))))))))))) -> TRUE | AF80: =IF(AE80,D80,"") -> Medium | AG80: =IF(AE80,COUNTIF($AF$5:AF80,AF80),"X") -> 28 | AH80: =CONCATENATE(AE80,AF80) -> TRUEMedium
A81: =CONCATENATE(AE81,D81,AG81) -> TRUEEasy35 | B81: =RAND() -> 0.3302948819 | C81: % | D81: Easy | E81: 289 | F81: What fraction is the same as | G81: 66⅔% | H81: ? | T81: =CONCATENATE(F81," ",G81,"",H81," ",I81," ",J81," ",K81," ",L81," ",M81," ",N81," ",O81," ",P81," ",Q81," ",R81) -> What fraction is the same as 66⅔%? | U81: 2/3 (two thirds) | AC81: =IF(ISERROR(T81),NA(),"") ->  | AD81: =IF(OR(ISNA(U81),ISNA(V81),ISNA(W81),ISNA(X81),ISNA(Y81),ISNA(Z81),ISNA(AA81),ISNA(AB81),ISNA(AC81)),NA(),CONCATENATE(U81,V81,W81,X81,Y81,Z81,AA81,AB81)) -> 2/3 (two thirds) | AE81: =IF(ISNA(AD81),FALSE,IF(C81=$B$1,Worksheet!$B$3,IF(C81=$C$1,Worksheet!$B$4,IF(C81=$D$1,Worksheet!$B$5,IF(C81=$C$2,Worksheet!$D$3,IF(C81=$D$2,Worksheet!$D$4,IF(C81=$E$2,Worksheet!$D$5,IF(C81=$C$3,Worksheet!$D$6,IF(C81=$B$3,Worksheet!$B$6,IF(C81=$D$3,Worksheet!$B$9,IF(C81=$E$3,Worksheet!$D$9,FALSE))))))))))) -> TRUE | AF81: =IF(AE81,D81,"") -> Easy | AG81: =IF(AE81,COUNTIF($AF$5:AF81,AF81),"X") -> 35 | AH81: =CONCATENATE(AE81,AF81) -> TRUEEasy
A82: =CONCATENATE(AE82,D82,AG82) -> TRUEEasy36 | B82: =RAND() -> 0.7782922989 | C82: Eqn | D82: Easy | E82: 327 | F82: Solve the inequation | G82: =RANDBETWEEN(2,10) -> 9 | H82: =CHOOSE(RANDBETWEEN(1,22),"a","b","c","d","f","g","h","j","k","m","n","p","q","r","s","t","u","v","w","x","y","z") -> r | I82: + | J82: =RANDBETWEEN(1,10) -> 6 | K82: =CHOOSE(RANDBETWEEN(1,4),"<",">","≤","≥") -> ≥ | L82: =G82*W82+J82 -> 24 | M82: . Show your working in full. | T82: =CONCATENATE(F82," ",G82,"",H82," ",I82," ",J82," ",K82," ",L82," ",M82," ",N82," ",O82," ",P82," ",Q82," ",R82) -> Solve the inequation 9r + 6 ≥ 24 . Show your working in full. | U82: =H82 -> r | V82: =K82 -> ≥ | W82: =RANDBETWEEN(2,10) -> 2 | AC82: =IF(ISERROR(T82),NA(),"") ->  | AD82: =IF(OR(ISNA(U82),ISNA(V82),ISNA(W82),ISNA(X82),ISNA(Y82),ISNA(Z82),ISNA(AA82),ISNA(AB82),ISNA(AC82)),NA(),CONCATENATE(U82," ",V82," ",W82,X82,Y82,Z82,AA82,AB82)) -> r ≥ 2 | AE82: =IF(ISNA(AD82),FALSE,IF(C82=$B$1,Worksheet!$B$3,IF(C82=$C$1,Worksheet!$B$4,IF(C82=$D$1,Worksheet!$B$5,IF(C82=$C$2,Worksheet!$D$3,IF(C82=$D$2,Worksheet!$D$4,IF(C82=$E$2,Worksheet!$D$5,IF(C82=$C$3,Worksheet!$D$6,IF(C82=$B$3,Worksheet!$B$6,IF(C82=$D$3,Worksheet!$B$9,IF(C82=$E$3,Worksheet!$D$9,FALSE))))))))))) -> TRUE | AF82: =IF(AE82,D82,"") -> Easy | AG82: =IF(AE82,COUNTIF($AF$5:AF82,AF82),"X") -> 36 | AH82: =CONCATENATE(AE82,AF82) -> TRUEEasy
A83: =CONCATENATE(AE83,D83,AG83) -> TRUEMedium29 | B83: =RAND() -> 0.8631118884 | C83: % | D83: Medium | E83: 276 | F83: Calculate | G83: =RANDBETWEEN(1,9)*10+5 -> 65 | H83: % | I83: of | J83: £ | K83: =1000*RANDBETWEEN(2,9) -> 9000 | T83: =CONCATENATE(F83," ",G83,"",H83," ",I83," ",J83,"",K83," ",L83," ",M83," ",N83," ",O83," ",P83," ",Q83," ",R83) -> Calculate 65% of £9000 | U83: £ | V83: =K83/100*G83 -> 5850 | AC83: =IF(ISERROR(T83),NA(),"") ->  | AD83: =IF(OR(ISNA(U83),ISNA(V83),ISNA(W83),ISNA(X83),ISNA(Y83),ISNA(Z83),ISNA(AA83),ISNA(AB83),ISNA(AC83)),NA(),CONCATENATE(U83,V83,W83,X83,Y83,Z83,AA83,AB83)) -> £5850 | AE83: =IF(ISNA(AD83),FALSE,IF(C83=$B$1,Worksheet!$B$3,IF(C83=$C$1,Worksheet!$B$4,IF(C83=$D$1,Worksheet!$B$5,IF(C83=$C$2,Worksheet!$D$3,IF(C83=$D$2,Worksheet!$D$4,IF(C83=$E$2,Worksheet!$D$5,IF(C83=$C$3,Worksheet!$D$6,IF(C83=$B$3,Worksheet!$B$6,IF(C83=$D$3,Worksheet!$B$9,IF(C83=$E$3,Worksheet!$D$9,FALSE))))))))))) -> TRUE | AF83: =IF(AE83,D83,"") -> Medium | AG83: =IF(AE83,COUNTIF($AF$5:AF83,AF83),"X") -> 29 | AH83: =CONCATENATE(AE83,AF83) -> TRUEMedium
A84: =CONCATENATE(AE84,D84,AG84) -> TRUEMedium30 | B84: =RAND() -> 0.1935309825 | C84: Dec | D84: Medium | E84: 147 | F84: Fill in the blank: | G84: =RANDBETWEEN(1001,9999)/1000 -> 6.238 | H84: + | I84: ________ | J84: = | K84: =ROUNDUP(G84,0)+RANDBETWEEN(1,4) -> 10 | T84: =CONCATENATE(F84," ",G84," ",H84," ",I84," ",J84," ",K84," ",L84," ",M84," ",N84," ",O84," ",P84," ",Q84," ",R84) -> Fill in the blank: 6.238 + ________ = 10 | U84: =ROUND(K84-G84,3) -> 3.762 | AC84: =IF(ISERROR(T84),NA(),"") ->  | AD84: =IF(OR(ISNA(U84),ISNA(V84),ISNA(W84),ISNA(X84),ISNA(Y84),ISNA(Z84),ISNA(AA84),ISNA(AB84),ISNA(AC84)),NA(),CONCATENATE(U84,V84,W84,X84,Y84,Z84,AA84,AB84)) -> 3.762 | AE84: =IF(ISNA(AD84),FALSE,IF(C84=$B$1,Worksheet!$B$3,IF(C84=$C$1,Worksheet!$B$4,IF(C84=$D$1,Worksheet!$B$5,IF(C84=$C$2,Worksheet!$D$3,IF(C84=$D$2,Worksheet!$D$4,IF(C84=$E$2,Worksheet!$D$5,IF(C84=$C$3,Worksheet!$D$6,IF(C84=$B$3,Worksheet!$B$6,IF(C84=$D$3,Worksheet!$B$9,IF(C84=$E$3,Worksheet!$D$9,FALSE))))))))))) -> TRUE | AF84: =IF(AE84,D84,"") -> Medium | AG84: =IF(AE84,COUNTIF($AF$5:AF84,AF84),"X") -> 30 | AH84: =CONCATENATE(AE84,AF84) -> TRUEMedium
A85: =CONCATENATE(AE85,D85,AG85) -> TRUEEasy37 | B85: =RAND() -> 0.8118219826 | C85: Round | D85: Easy | E85: 174 | F85: Round the number | G85: =ROUND(RAND()+RANDBETWEEN(11,999),8) -> 38.65584949 | H85: to | I85: the nearest penny | T85: =CONCATENATE(F85," ",G85," ",H85," ",I85," ",J85," ",K85," ",L85," ",M85," ",N85," ",O85," ",P85," ",Q85," ",R85) -> Round the number 38.65584949 to the nearest penny | U85: £ | V85: =TEXT(ROUND(G85,2),"0.00") -> 38.66 | AC85: =IF(ISERROR(T85),NA(),"") ->  | AD85: =IF(OR(ISNA(U85),ISNA(V85),ISNA(W85),ISNA(X85),ISNA(Y85),ISNA(Z85),ISNA(AA85),ISNA(AB85),ISNA(AC85)),NA(),CONCATENATE(U85,V85,W85,X85,Y85,Z85,AA85,AB85)) -> £38.66 | AE85: =IF(ISNA(AD85),FALSE,IF(C85=$B$1,Worksheet!$B$3,IF(C85=$C$1,Worksheet!$B$4,IF(C85=$D$1,Worksheet!$B$5,IF(C85=$C$2,Worksheet!$D$3,IF(C85=$D$2,Worksheet!$D$4,IF(C85=$E$2,Worksheet!$D$5,IF(C85=$C$3,Worksheet!$D$6,IF(C85=$B$3,Worksheet!$B$6,IF(C85=$D$3,Worksheet!$B$9,IF(C85=$E$3,Worksheet!$D$9,FALSE))))))))))) -> TRUE | AF85: =IF(AE85,D85,"") -> Easy | AG85: =IF(AE85,COUNTIF($AF$5:AF85,AF85),"X") -> 37 | AH85: =CONCATENATE(AE85,AF85) -> TRUEEasy
A86: =CONCATENATE(AE86,D86,AG86) -> TRUEEasy38 | B86: =RAND() -> 0.3923678257 | C86: % | D86: Easy | E86: 261 | F86: Change the fraction | G86: =RANDBETWEEN(1,I86-1) -> 6 | H86: / | I86: =CHOOSE(RANDBETWEEN(1,3),20,25,50) -> 25 | J86: into a percentage | T86: =CONCATENATE(F86," ",G86,"",H86,"",I86," ",J86," ",K86," ",L86," ",M86," ",N86," ",O86," ",P86," ",Q86," ",R86) -> Change the fraction 6/25 into a percentage | U86: =G86/I86*100 -> 24 | V86: % | AC86: =IF(ISERROR(T86),NA(),"") ->  | AD86: =IF(OR(ISNA(U86),ISNA(V86),ISNA(W86),ISNA(X86),ISNA(Y86),ISNA(Z86),ISNA(AA86),ISNA(AB86),ISNA(AC86)),NA(),CONCATENATE(U86,V86,W86,X86,Y86,Z86,AA86,AB86)) -> 24% | AE86: =IF(ISNA(AD86),FALSE,IF(C86=$B$1,Worksheet!$B$3,IF(C86=$C$1,Worksheet!$B$4,IF(C86=$D$1,Worksheet!$B$5,IF(C86=$C$2,Worksheet!$D$3,IF(C86=$D$2,Worksheet!$D$4,IF(C86=$E$2,Worksheet!$D$5,IF(C86=$C$3,Worksheet!$D$6,IF(C86=$B$3,Worksheet!$B$6,IF(C86=$D$3,Worksheet!$B$9,IF(C86=$E$3,Worksheet!$D$9,FALSE))))))))))) -> TRUE | AF86: =IF(AE86,D86,"") -> Easy | AG86: =IF(AE86,COUNTIF($AF$5:AF86,AF86),"X") -> 38 | AH86: =CONCATENATE(AE86,AF86) -> TRUEEasy
A87: =CONCATENATE(AE87,D87,AG87) -> TRUEMedium31 | B87: =RAND() -> 0.2263151418 | C87: Eqn | D87: Medium | E87: 342 | F87: Change the subject of the formula | G87: =CHOOSE(RANDBETWEEN(1,22),"a","b","c","d","f","g","h","j","k","m","n","p","q","r","s","t","u","v","w","x","y","z") -> a | H87: = | I87: =RANDBETWEEN(2,10) -> 3 | J87: =CHOOSE(RANDBETWEEN(1,22),"a","b","c","d","f","g","h","j","k","m","n","p","q","r","s","t","u","v","w","x","y","z") -> g | K87: to | L87: =J87 -> g | T87: =CONCATENATE(F87," ",G87,"",H87,"",I87,"",J87," ",K87," ",L87," ",M87," ",N87," ",O87," ",P87," ",Q87," ",R87) -> Change the subject of the formula a=3g to g | U87: =IF(G87=J87,NA(),"") ->  | V87: =L87 -> g | W87: = | X87: =G87 -> a | Y87: / | Z87: =I87 -> 3 | AC87: =IF(L87<0,NA(),"") ->  | AD87: =IF(OR(ISNA(U87),ISNA(V87),ISNA(W87),ISNA(X87),ISNA(Y87),ISNA(Z87),ISNA(AA87),ISNA(AB87),ISNA(AC87)),NA(),CONCATENATE(U87,V87,W87,X87,Y87,Z87,AA87,AB87)) -> g=a/3 | AE87: =IF(ISNA(AD87),FALSE,IF(C87=$B$1,Worksheet!$B$3,IF(C87=$C$1,Worksheet!$B$4,IF(C87=$D$1,Worksheet!$B$5,IF(C87=$C$2,Worksheet!$D$3,IF(C87=$D$2,Worksheet!$D$4,IF(C87=$E$2,Worksheet!$D$5,IF(C87=$C$3,Worksheet!$D$6,IF(C87=$B$3,Worksheet!$B$6,IF(C87=$D$3,Worksheet!$B$9,IF(C87=$E$3,Worksheet!$D$9,FALSE))))))))))) -> TRUE | AF87: =IF(AE87,D87,"") -> Medium | AG87: =IF(AE87,COUNTIF($AF$5:AF87,AF87),"X") -> 31 | AH87: =CONCATENATE(AE87,AF87) -> TRUEMedium
A88: =CONCATENATE(AE88,D88,AG88) -> TRUEMedium32 | B88: =RAND() -> 0.7854244174 | C88: Dec | D88: Medium | E88: 252 | F88: Multiply: | G88: =10^RANDBETWEEN(-2,-1)*RANDBETWEEN(2,9) -> 0.05 | H88: × | I88: =RANDBETWEEN(10,99)*100 -> 8400 | T88: =CONCATENATE(F88," ",G88," ",H88," ",I88," ",J88," ",K88," ",L88," ",M88," ",N88," ",O88," ",P88," ",Q88," ",R88) -> Multiply: 0.05 × 8400 | U88: =G88*I88 -> 420 | AC88: =IF(ISERROR(T88),NA(),"") ->  | AD88: =IF(OR(ISNA(U88),ISNA(V88),ISNA(W88),ISNA(X88),ISNA(Y88),ISNA(Z88),ISNA(AA88),ISNA(AB88),ISNA(AC88)),NA(),CONCATENATE(U88,V88,W88,X88,Y88,Z88,AA88,AB88)) -> 420 | AE88: =IF(ISNA(AD88),FALSE,IF(C88=$B$1,Worksheet!$B$3,IF(C88=$C$1,Worksheet!$B$4,IF(C88=$D$1,Worksheet!$B$5,IF(C88=$C$2,Worksheet!$D$3,IF(C88=$D$2,Worksheet!$D$4,IF(C88=$E$2,Worksheet!$D$5,IF(C88=$C$3,Worksheet!$D$6,IF(C88=$B$3,Worksheet!$B$6,IF(C88=$D$3,Worksheet!$B$9,IF(C88=$E$3,Worksheet!$D$9,FALSE))))))))))) -> TRUE | AF88: =IF(AE88,D88,"") -> Medium | AG88: =IF(AE88,COUNTIF($AF$5:AF88,AF88),"X") -> 32 | AH88: =CONCATENATE(AE88,AF88) -> TRUEMedium
A89: =CONCATENATE(AE89,D89,AG89) -> TRUEHard14 | B89: =RAND() -> 0.4891749004 | C89: Surds | D89: Hard | E89: 48 | F89: Simplify | G89: =RANDBETWEEN(2,5) -> 3 | H89: √ | I89: =CHOOSE(RANDBETWEEN(1,4),2,3,5,7) -> 5 | J89: × | K89: =RANDBETWEEN(2,5) -> 4 | L89: √ | M89: =I89 -> 5 | T89: =CONCATENATE(F89,"",G89,"",H89,"",I89," ",J89," ",K89,"",L89,"",M89," ",N89," ",O89," ",P89," ",Q89," ",R89) -> Simplify 3√5 × 4√5 | U89: =M89*K89*G89 -> 60 | AC89: =IF(ISERROR(T89),NA(),"") ->  | AD89: =IF(OR(ISNA(U89),ISNA(V89),ISNA(W89),ISNA(X89),ISNA(Y89),ISNA(Z89),ISNA(AA89),ISNA(AB89),ISNA(AC89)),NA(),CONCATENATE(U89,V89,W89,X89,Y89,Z89,AA89,AB89)) -> 60 | AE89: =IF(ISNA(AD89),FALSE,IF(C89=$B$1,Worksheet!$B$3,IF(C89=$C$1,Worksheet!$B$4,IF(C89=$D$1,Worksheet!$B$5,IF(C89=$C$2,Worksheet!$D$3,IF(C89=$D$2,Worksheet!$D$4,IF(C89=$E$2,Worksheet!$D$5,IF(C89=$C$3,Worksheet!$D$6,IF(C89=$B$3,Worksheet!$B$6,IF(C89=$D$3,Worksheet!$B$9,IF(C89=$E$3,Worksheet!$D$9,FALSE))))))))))) -> TRUE | AF89: =IF(AE89,D89,"") -> Hard | AG89: =IF(AE89,COUNTIF($AF$5:AF89,AF89),"X") -> 14 | AH89: =CONCATENATE(AE89,AF89) -> TRUEHard
A90: =CONCATENATE(AE90,D90,AG90) -> TRUEMedium33 | B90: =RAND() -> 0.4990479378 | C90: Neg | D90: Medium | E90: 223 | F90: Take away: | G90: (– | H90: =RANDBETWEEN(1,10) -> 5 | I90: ) – (– | J90: =RANDBETWEEN(1,9) -> 8 | K90: ) | T90: =CONCATENATE(F90," ",G90,"",H90,"",I90,"",J90,"",K90," ",L90," ",M90," ",N90," ",O90," ",P90," ",Q90," ",R90) -> Take away: (–5) – (–8) | U90: =-1*H90+J90 -> 3 | AC90: =IF(ISERROR(T90),NA(),"") ->  | AD90: =IF(OR(ISNA(U90),ISNA(V90),ISNA(W90),ISNA(X90),ISNA(Y90),ISNA(Z90),ISNA(AA90),ISNA(AB90),ISNA(AC90)),NA(),CONCATENATE(U90,V90,W90,X90,Y90,Z90,AA90,AB90)) -> 3 | AE90: =IF(ISNA(AD90),FALSE,IF(C90=$B$1,Worksheet!$B$3,IF(C90=$C$1,Worksheet!$B$4,IF(C90=$D$1,Worksheet!$B$5,IF(C90=$C$2,Worksheet!$D$3,IF(C90=$D$2,Worksheet!$D$4,IF(C90=$E$2,Worksheet!$D$5,IF(C90=$C$3,Worksheet!$D$6,IF(C90=$B$3,Worksheet!$B$6,IF(C90=$D$3,Worksheet!$B$9,IF(C90=$E$3,Worksheet!$D$9,FALSE))))))))))) -> TRUE | AF90: =IF(AE90,D90,"") -> Medium | AG90: =IF(AE90,COUNTIF($AF$5:AF90,AF90),"X") -> 33 | AH90: =CONCATENATE(AE90,AF90) -> TRUEMedium
A91: =CONCATENATE(AE91,D91,AG91) -> TRUEMedium34 | B91: =RAND() -> 0.6883513603 | C91: Dec | D91: Medium | E91: 193 | F91: Change the number | G91: =RANDBETWEEN(1,9)+RANDBETWEEN(1,999)/1000 -> 7.853 | H91: × 10^ | I91: =RANDBETWEEN(2,6) -> 6 | J91: (10 to the power of | K91: =I91 -> 6 | L91: ) from standard form to normal form | T91: =CONCATENATE(F91," ",G91," ",H91,"",I91," ",J91," ",K91,"",L91," ",M91," ",N91," ",O91," ",P91," ",Q91," ",R91) -> Change the number 7.853 × 10^6 (10 to the power of 6) from standard form to normal form | U91: =G91*10^I91 -> 7853000 | AC91: =IF(ISERROR(T91),NA(),"") ->  | AD91: =IF(OR(ISNA(U91),ISNA(V91),ISNA(W91),ISNA(X91),ISNA(Y91),ISNA(Z91),ISNA(AA91),ISNA(AB91),ISNA(AC91)),NA(),CONCATENATE(U91,V91,W91,X91,Y91,Z91,AA91,AB91)) -> 7853000 | AE91: =IF(ISNA(AD91),FALSE,IF(C91=$B$1,Worksheet!$B$3,IF(C91=$C$1,Worksheet!$B$4,IF(C91=$D$1,Worksheet!$B$5,IF(C91=$C$2,Worksheet!$D$3,IF(C91=$D$2,Worksheet!$D$4,IF(C91=$E$2,Worksheet!$D$5,IF(C91=$C$3,Worksheet!$D$6,IF(C91=$B$3,Worksheet!$B$6,IF(C91=$D$3,Worksheet!$B$9,IF(C91=$E$3,Worksheet!$D$9,FALSE))))))))))) -> TRUE | AF91: =IF(AE91,D91,"") -> Medium | AG91: =IF(AE91,COUNTIF($AF$5:AF91,AF91),"X") -> 34 | AH91: =CONCATENATE(AE91,AF91) -> TRUEMedium
A92: =CONCATENATE(AE92,D92,AG92) -> TRUEMedium35 | B92: =RAND() -> 0.3303170309 | C92: % | D92: Medium | E92: 290 | F92: What fraction is the same as | G92: 12½% | H92: ? | T92: =CONCATENATE(F92," ",G92,"",H92," ",I92," ",J92," ",K92," ",L92," ",M92," ",N92," ",O92," ",P92," ",Q92," ",R92) -> What fraction is the same as 12½%? | U92: 1/8 (one eighth) | AC92: =IF(ISERROR(T92),NA(),"") ->  | AD92: =IF(OR(ISNA(U92),ISNA(V92),ISNA(W92),ISNA(X92),ISNA(Y92),ISNA(Z92),ISNA(AA92),ISNA(AB92),ISNA(AC92)),NA(),CONCATENATE(U92,V92,W92,X92,Y92,Z92,AA92,AB92)) -> 1/8 (one eighth) | AE92: =IF(ISNA(AD92),FALSE,IF(C92=$B$1,Worksheet!$B$3,IF(C92=$C$1,Worksheet!$B$4,IF(C92=$D$1,Worksheet!$B$5,IF(C92=$C$2,Worksheet!$D$3,IF(C92=$D$2,Worksheet!$D$4,IF(C92=$E$2,Worksheet!$D$5,IF(C92=$C$3,Worksheet!$D$6,IF(C92=$B$3,Worksheet!$B$6,IF(C92=$D$3,Worksheet!$B$9,IF(C92=$E$3,Worksheet!$D$9,FALSE))))))))))) -> TRUE | AF92: =IF(AE92,D92,"") -> Medium | AG92: =IF(AE92,COUNTIF($AF$5:AF92,AF92),"X") -> 35 | AH92: =CONCATENATE(AE92,AF92) -> TRUEMedium
A93: =CONCATENATE(AE93,D93,AG93) -> TRUEEasy39 | B93: =RAND() -> 0.7161230349 | C93: Neg | D93: Easy | E93: 209 | F93: Multiply: | G93: =RANDBETWEEN(2,10)*10 -> 40 | H93: × (– | I93: =RANDBETWEEN(2,10) -> 9 | J93: ) | T93: =CONCATENATE(F93," ",G93," ",H93,"",I93,"",J93," ",K93," ",L93," ",M93," ",N93," ",O93," ",P93," ",Q93," ",R93) -> Multiply: 40 × (–9) | U93: =G93*I93 -> 360 | AC93: =IF(ISERROR(T93),NA(),"") ->  | AD93: =IF(OR(ISNA(U93),ISNA(V93),ISNA(W93),ISNA(X93),ISNA(Y93),ISNA(Z93),ISNA(AA93),ISNA(AB93),ISNA(AC93)),NA(),CONCATENATE(U93,V93,W93,X93,Y93,Z93,AA93,AB93)) -> 360 | AE93: =IF(ISNA(AD93),FALSE,IF(C93=$B$1,Worksheet!$B$3,IF(C93=$C$1,Worksheet!$B$4,IF(C93=$D$1,Worksheet!$B$5,IF(C93=$C$2,Worksheet!$D$3,IF(C93=$D$2,Worksheet!$D$4,IF(C93=$E$2,Worksheet!$D$5,IF(C93=$C$3,Worksheet!$D$6,IF(C93=$B$3,Worksheet!$B$6,IF(C93=$D$3,Worksheet!$B$9,IF(C93=$E$3,Worksheet!$D$9,FALSE))))))))))) -> TRUE | AF93: =IF(AE93,D93,"") -> Easy | AG93: =IF(AE93,COUNTIF($AF$5:AF93,AF93),"X") -> 39 | AH93: =CONCATENATE(AE93,AF93) -> TRUEEasy
A94: =CONCATENATE(AE94,D94,AG94) -> TRUEEasy40 | B94: =RAND() -> 0.5356745275 | C94: Alg | D94: Easy | E94: 311 | F94: Algebra. If a = | G94: =RANDBETWEEN(1,5)+0.5 -> 1.5 | H94: and b = | I94: =RANDBETWEEN(1,5)+0.5 -> 2.5 | J94: , what is the value of: | K94: =RANDBETWEEN(3,9) -> 3 | L94: a – | M94: =RANDBETWEEN(2,10) -> 9 | N94: b ? | T94: =CONCATENATE(F94," ",G94," ",H94," ",I94," ",J94," ",K94,"",L94," ",M94,"",N94," ",O94," ",P94," ",Q94," ",R94) -> Algebra. If a = 1.5 and b = 2.5 , what is the value of: 3a – 9b ? | U94: =K94*G94-I94*M94 -> -18 | AC94: =IF(ISERROR(T94),NA(),"") ->  | AD94: =IF(OR(ISNA(U94),ISNA(V94),ISNA(W94),ISNA(X94),ISNA(Y94),ISNA(Z94),ISNA(AA94),ISNA(AB94),ISNA(AC94)),NA(),CONCATENATE(U94,V94,W94,X94,Y94,Z94,AA94,AB94)) -> -18 | AE94: =IF(ISNA(AD94),FALSE,IF(C94=$B$1,Worksheet!$B$3,IF(C94=$C$1,Worksheet!$B$4,IF(C94=$D$1,Worksheet!$B$5,IF(C94=$C$2,Worksheet!$D$3,IF(C94=$D$2,Worksheet!$D$4,IF(C94=$E$2,Worksheet!$D$5,IF(C94=$C$3,Worksheet!$D$6,IF(C94=$B$3,Worksheet!$B$6,IF(C94=$D$3,Worksheet!$B$9,IF(C94=$E$3,Worksheet!$D$9,FALSE))))))))))) -> TRUE | AF94: =IF(AE94,D94,"") -> Easy | AG94: =IF(AE94,COUNTIF($AF$5:AF94,AF94),"X") -> 40 | AH94: =CONCATENATE(AE94,AF94) -> TRUEEasy
A95: =CONCATENATE(AE95,D95,AG95) -> TRUEMedium36 | B95: =RAND() -> 0.1358057407 | C95: Surds | D95: Medium | E95: 41 | F95: What is the cube root of | G95: =RANDBETWEEN(1,3)^3 -> 27 | H95: ? ( ³√ | I95: =G95 -> 27 | J95: ) | T95: =CONCATENATE(F95," ",G95," ",H95,"",I95," ",J95," ",K95," ",L95," ",M95," ",N95," ",O95," ",P95," ",Q95," ",R95) -> What is the cube root of 27 ? ( ³√27 ) | U95: =G95^(1/3) -> 3 | AC95: =IF(ISERROR(T95),NA(),"") ->  | AD95: =IF(OR(ISNA(U95),ISNA(V95),ISNA(W95),ISNA(X95),ISNA(Y95),ISNA(Z95),ISNA(AA95),ISNA(AB95),ISNA(AC95)),NA(),CONCATENATE(U95,V95,W95,X95,Y95,Z95,AA95,AB95)) -> 3 | AE95: =IF(ISNA(AD95),FALSE,IF(C95=$B$1,Worksheet!$B$3,IF(C95=$C$1,Worksheet!$B$4,IF(C95=$D$1,Worksheet!$B$5,IF(C95=$C$2,Worksheet!$D$3,IF(C95=$D$2,Worksheet!$D$4,IF(C95=$E$2,Worksheet!$D$5,IF(C95=$C$3,Worksheet!$D$6,IF(C95=$B$3,Worksheet!$B$6,IF(C95=$D$3,Worksheet!$B$9,IF(C95=$E$3,Worksheet!$D$9,FALSE))))))))))) -> TRUE | AF95: =IF(AE95,D95,"") -> Medium | AG95: =IF(AE95,COUNTIF($AF$5:AF95,AF95),"X") -> 36 | AH95: =CONCATENATE(AE95,AF95) -> TRUEMedium
A96: =CONCATENATE(AE96,D96,AG96) -> TRUEEasy41 | B96: =RAND() -> 0.9049123747 | C96: Frac | D96: Easy | E96: 81 | F96: Write the fraction | G96: =S96*U96 -> 80 | H96: / | I96: =S96*W96 -> 96 | J96: in its simplest form | S96: =2^RANDBETWEEN(3,5) -> 16 | T96: =CONCATENATE(F96," ",G96,"",H96,"",I96," ",J96," ",K96," ",L96," ",M96," ",N96," ",O96," ",P96," ",Q96," ",R96) -> Write the fraction 80/96 in its simplest form | U96: =IF(W96=3,2,IF(W96=4,CHOOSE(RANDBETWEEN(1,2),1,3),IF(W96=5,RANDBETWEEN(1,4),IF(W96=6,CHOOSE(RANDBETWEEN(1,2),1,5),IF(W96=7,RANDBETWEEN(1,6),IF(W96=8,CHOOSE(RANDBETWEEN(1,4),1,3,5,7),IF(W96=9,CHOOSE(RANDBETWEEN(1,5),1,2,4,5,7),CHOOSE(RANDBETWEEN(1,4),1,3,7,9)))))))) -> 5 | V96: / | W96: =RANDBETWEEN(3,10) -> 6 | AC96: =IF(ISERROR(T96),NA(),"") ->  | AD96: =IF(OR(ISNA(U96),ISNA(V96),ISNA(W96),ISNA(X96),ISNA(Y96),ISNA(Z96),ISNA(AA96),ISNA(AB96),ISNA(AC96)),NA(),CONCATENATE(U96,V96,W96,X96,Y96,Z96,AA96,AB96)) -> 5/6 | AE96: =IF(ISNA(AD96),FALSE,IF(C96=$B$1,Worksheet!$B$3,IF(C96=$C$1,Worksheet!$B$4,IF(C96=$D$1,Worksheet!$B$5,IF(C96=$C$2,Worksheet!$D$3,IF(C96=$D$2,Worksheet!$D$4,IF(C96=$E$2,Worksheet!$D$5,IF(C96=$C$3,Worksheet!$D$6,IF(C96=$B$3,Worksheet!$B$6,IF(C96=$D$3,Worksheet!$B$9,IF(C96=$E$3,Worksheet!$D$9,FALSE))))))))))) -> TRUE | AF96: =IF(AE96,D96,"") -> Easy | AG96: =IF(AE96,COUNTIF($AF$5:AF96,AF96),"X") -> 41 | AH96: =CONCATENATE(AE96,AF96) -> TRUEEasy
A97: =CONCATENATE(AE97,D97,AG97) -> TRUEHard15 | B97: =RAND() -> 0.2842328228 | C97: % | D97: Hard | E97: 283 | F97: Write | G97: =RANDBETWEEN(1,9)+RANDBETWEEN(1,9)/10 -> 7.3 | H97: % | I97: as a fraction in its simplest form | T97: =CONCATENATE(F97," ",G97,"",H97," ",I97," ",J97," ",K97," ",L97," ",M97," ",N97," ",O97," ",P97," ",Q97," ",R97) -> Write 7.3% as a fraction in its simplest form | U97: =TEXT(G97/100,"##/###") -> 10/137 | AC97: =IF(ISERROR(T97),NA(),"") ->  | AD97: =IF(OR(ISNA(U97),ISNA(V97),ISNA(W97),ISNA(X97),ISNA(Y97),ISNA(Z97),ISNA(AA97),ISNA(AB97),ISNA(AC97)),NA(),CONCATENATE(U97,V97,W97,X97,Y97,Z97,AA97,AB97)) -> 10/137 | AE97: =IF(ISNA(AD97),FALSE,IF(C97=$B$1,Worksheet!$B$3,IF(C97=$C$1,Worksheet!$B$4,IF(C97=$D$1,Worksheet!$B$5,IF(C97=$C$2,Worksheet!$D$3,IF(C97=$D$2,Worksheet!$D$4,IF(C97=$E$2,Worksheet!$D$5,IF(C97=$C$3,Worksheet!$D$6,IF(C97=$B$3,Worksheet!$B$6,IF(C97=$D$3,Worksheet!$B$9,IF(C97=$E$3,Worksheet!$D$9,FALSE))))))))))) -> TRUE | AF97: =IF(AE97,D97,"") -> Hard | AG97: =IF(AE97,COUNTIF($AF$5:AF97,AF97),"X") -> 15 | AH97: =CONCATENATE(AE97,AF97) -> TRUEHard
A98: =CONCATENATE(AE98,D98,AG98) -> TRUEEasy42 | B98: =RAND() -> 0.2961603638 | C98: Surds | D98: Easy | E98: 35 | F98: Square roots. What is √ | G98: =RANDBETWEEN(1,10)^2 -> 100 | H98: ? | T98: =CONCATENATE(F98,"",G98," ",H98," ",I98," ",J98," ",K98," ",L98," ",M98," ",N98," ",O98," ",P98," ",Q98," ",R98) -> Square roots. What is √100 ? | U98: =SQRT(G98) -> 10 | AC98: =IF(ISERROR(T98),NA(),"") ->  | AD98: =IF(OR(ISNA(U98),ISNA(V98),ISNA(W98),ISNA(X98),ISNA(Y98),ISNA(Z98),ISNA(AA98),ISNA(AB98),ISNA(AC98)),NA(),CONCATENATE(U98,V98,W98,X98,Y98,Z98,AA98,AB98)) -> 10 | AE98: =IF(ISNA(AD98),FALSE,IF(C98=$B$1,Worksheet!$B$3,IF(C98=$C$1,Worksheet!$B$4,IF(C98=$D$1,Worksheet!$B$5,IF(C98=$C$2,Worksheet!$D$3,IF(C98=$D$2,Worksheet!$D$4,IF(C98=$E$2,Worksheet!$D$5,IF(C98=$C$3,Worksheet!$D$6,IF(C98=$B$3,Worksheet!$B$6,IF(C98=$D$3,Worksheet!$B$9,IF(C98=$E$3,Worksheet!$D$9,FALSE))))))))))) -> TRUE | AF98: =IF(AE98,D98,"") -> Easy | AG98: =IF(AE98,COUNTIF($AF$5:AF98,AF98),"X") -> 42 | AH98: =CONCATENATE(AE98,AF98) -> TRUEEasy
A99: =CONCATENATE(AE99,D99,AG99) -> TRUEHard16 | B99: =RAND() -> 0.7563524796 | C99: Round | D99: Hard | E99: 186 | F99: Round the number | G99: =RANDBETWEEN(1,9)+RANDBETWEEN(0,9)/10+RANDBETWEEN(1,9)/100 -> 7.85 | H99: to one significant figure | T99: =CONCATENATE(F99," ",G99," ",H99," ",I99," ",J99," ",K99," ",L99," ",M99," ",N99," ",O99," ",P99," ",Q99," ",R99) -> Round the number 7.85 to one significant figure | U99: =MROUND(G99,1) -> 8 | AC99: =IF(ISERROR(T99),NA(),"") ->  | AD99: =IF(OR(ISNA(U99),ISNA(V99),ISNA(W99),ISNA(X99),ISNA(Y99),ISNA(Z99),ISNA(AA99),ISNA(AB99),ISNA(AC99)),NA(),CONCATENATE(U99,V99,W99,X99,Y99,Z99,AA99,AB99)) -> 8 | AE99: =IF(ISNA(AD99),FALSE,IF(C99=$B$1,Worksheet!$B$3,IF(C99=$C$1,Worksheet!$B$4,IF(C99=$D$1,Worksheet!$B$5,IF(C99=$C$2,Worksheet!$D$3,IF(C99=$D$2,Worksheet!$D$4,IF(C99=$E$2,Worksheet!$D$5,IF(C99=$C$3,Worksheet!$D$6,IF(C99=$B$3,Worksheet!$B$6,IF(C99=$D$3,Worksheet!$B$9,IF(C99=$E$3,Worksheet!$D$9,FALSE))))))))))) -> TRUE | AF99: =IF(AE99,D99,"") -> Hard | AG99: =IF(AE99,COUNTIF($AF$5:AF99,AF99),"X") -> 16 | AH99: =CONCATENATE(AE99,AF99) -> TRUEHard
A100: =CONCATENATE(AE100,D100,AG100) -> TRUEHard17 | B100: =RAND() -> 0.8279949766 | C100: Surds | D100: Hard | E100: 42 | F100: What is the cube root of | G100: =CHOOSE(RANDBETWEEN(1,4),4,5,6,10)^3 -> 216 | H100: ? ( ³√ | I100: =G100 -> 216 | J100: ) | T100: =CONCATENATE(F100," ",G100," ",H100,"",I100," ",J100," ",K100," ",L100," ",M100," ",N100," ",O100," ",P100," ",Q100," ",R100) -> What is the cube root of 216 ? ( ³√216 ) | U100: =G100^(1/3) -> 6 | AC100: =IF(ISERROR(T100),NA(),"") ->  | AD100: =IF(OR(ISNA(U100),ISNA(V100),ISNA(W100),ISNA(X100),ISNA(Y100),ISNA(Z100),ISNA(AA100),ISNA(AB100),ISNA(AC100)),NA(),CONCATENATE(U100,V100,W100,X100,Y100,Z100,AA100,AB100)) -> 6 | AE100: =IF(ISNA(AD100),FALSE,IF(C100=$B$1,Worksheet!$B$3,IF(C100=$C$1,Worksheet!$B$4,IF(C100=$D$1,Worksheet!$B$5,IF(C100=$C$2,Worksheet!$D$3,IF(C100=$D$2,Worksheet!$D$4,IF(C100=$E$2,Worksheet!$D$5,IF(C100=$C$3,Worksheet!$D$6,IF(C100=$B$3,Worksheet!$B$6,IF(C100=$D$3,Worksheet!$B$9,IF(C100=$E$3,Worksheet!$D$9,FALSE))))))))))) -> TRUE | AF100: =IF(AE100,D100,"") -> Hard | AG100: =IF(AE100,COUNTIF($AF$5:AF100,AF100),"X") -> 17 | AH100: =CONCATENATE(AE100,AF100) -> TRUEHard
A101: =CONCATENATE(AE101,D101,AG101) -> TRUEMedium37 | B101: =RAND() -> 0.5696320035 | C101: Alg | D101: Medium | E101: 333 | F101: Multiply out the bracket: | G101: =RANDBETWEEN(2,10) -> 8 | H101: ( | I101: =RANDBETWEEN(2,10) -> 2 | J101: =CHOOSE(RANDBETWEEN(1,22),"a","b","c","d","f","g","h","j","k","m","n","p","q","r","s","t","u","v","w","x","y","z") -> r | K101: + | L101: =RANDBETWEEN(1,10) -> 2 | M101: ) | T101: =CONCATENATE(F101," ",G101," ",H101," ",I101," ",J101," ",K101," ",L101," ",M101," ",N101," ",O101," ",P101," ",Q101," ",R101) -> Multiply out the bracket: 8 ( 2 r + 2 ) | U101: =CONCATENATE(G101*I101,J101," ",K101," ",G101*L101) -> 16r + 16 | AC101: =IF(L101<0,NA(),"") ->  | AD101: =IF(OR(ISNA(U101),ISNA(V101),ISNA(W101),ISNA(X101),ISNA(Y101),ISNA(Z101),ISNA(AA101),ISNA(AB101),ISNA(AC101)),NA(),CONCATENATE(U101,V101,W101,X101,Y101,Z101,AA101,AB101)) -> 16r + 16 | AE101: =IF(ISNA(AD101),FALSE,IF(C101=$B$1,Worksheet!$B$3,IF(C101=$C$1,Worksheet!$B$4,IF(C101=$D$1,Worksheet!$B$5,IF(C101=$C$2,Worksheet!$D$3,IF(C101=$D$2,Worksheet!$D$4,IF(C101=$E$2,Worksheet!$D$5,IF(C101=$C$3,Worksheet!$D$6,IF(C101=$B$3,Worksheet!$B$6,IF(C101=$D$3,Worksheet!$B$9,IF(C101=$E$3,Worksheet!$D$9,FALSE))))))))))) -> TRUE | AF101: =IF(AE101,D101,"") -> Medium | AG101: =IF(AE101,COUNTIF($AF$5:AF101,AF101),"X") -> 37 | AH101: =CONCATENATE(AE101,AF101) -> TRUEMedium
A102: =CONCATENATE(AE102,D102,AG102) -> TRUEEasy43 | B102: =RAND() -> 0.7183097803 | C102: Neg | D102: Easy | E102: 26 | F102: Work out the value of: | G102: =RANDBETWEEN(2,9) -> 6 | H102: × ( | I102: =RANDBETWEEN(1,K102-1) -> 4 | J102: – | K102: =RANDBETWEEN(5,10) -> 6 | L102: ) | T102: =CONCATENATE(F102," ",G102," ",H102," ",I102," ",J102," ",K102," ",L102," ",M102," ",N102," ",O102," ",P102," ",Q102," ",R102) -> Work out the value of: 6 × ( 4 – 6 ) | U102: =(I102-K102)*G102 -> -12 | AC102: =IF(ISERROR(T102),NA(),"") ->  | AD102: =IF(OR(ISNA(U102),ISNA(V102),ISNA(W102),ISNA(X102),ISNA(Y102),ISNA(Z102),ISNA(AA102),ISNA(AB102),ISNA(AC102)),NA(),CONCATENATE(U102,V102,W102,X102,Y102,Z102,AA102,AB102)) -> -12 | AE102: =IF(ISNA(AD102),FALSE,IF(C102=$B$1,Worksheet!$B$3,IF(C102=$C$1,Worksheet!$B$4,IF(C102=$D$1,Worksheet!$B$5,IF(C102=$C$2,Worksheet!$D$3,IF(C102=$D$2,Worksheet!$D$4,IF(C102=$E$2,Worksheet!$D$5,IF(C102=$C$3,Worksheet!$D$6,IF(C102=$B$3,Worksheet!$B$6,IF(C102=$D$3,Worksheet!$B$9,IF(C102=$E$3,Worksheet!$D$9,FALSE))))))))))) -> TRUE | AF102: =IF(AE102,D102,"") -> Easy | AG102: =IF(AE102,COUNTIF($AF$5:AF102,AF102),"X") -> 43 | AH102: =CONCATENATE(AE102,AF102) -> TRUEEasy
A103: =CONCATENATE(AE103,D103,AG103) -> TRUEEasy44 | B103: =RAND() -> 0.7400660894 | C103: Frac | D103: Easy | E103: 79 | F103: Fractions. Without a calculator, work out: | G103: =TEXT(R103/S103,"##/##") -> 3/4 | H103: of | I103: =S103*RANDBETWEEN(3,9)*10^RANDBETWEEN(2,3) -> 3200 | R103: =RANDBETWEEN(2,S103-1) -> 6 | S103: =RANDBETWEEN(5,9) -> 8 | T103: =CONCATENATE(F103," ",G103," ",H103," ",I103," ",J103," ",K103," ",L103," ",M103," ",N103," ",O103," ",P103," ",Q103) -> Fractions. Without a calculator, work out: 3/4 of 3200 | U103: =I103/S103*VALUE(LEFT(G103,1)) -> 1200 | AC103: =IF(ISERROR(T103),NA(),"") ->  | AD103: =IF(OR(ISNA(U103),ISNA(V103),ISNA(W103),ISNA(X103),ISNA(Y103),ISNA(Z103),ISNA(AA103),ISNA(AB103),ISNA(AC103)),NA(),CONCATENATE(U103,V103,W103,X103,Y103,Z103,AA103,AB103)) -> 1200 | AE103: =IF(ISNA(AD103),FALSE,IF(C103=$B$1,Worksheet!$B$3,IF(C103=$C$1,Worksheet!$B$4,IF(C103=$D$1,Worksheet!$B$5,IF(C103=$C$2,Worksheet!$D$3,IF(C103=$D$2,Worksheet!$D$4,IF(C103=$E$2,Worksheet!$D$5,IF(C103=$C$3,Worksheet!$D$6,IF(C103=$B$3,Worksheet!$B$6,IF(C103=$D$3,Worksheet!$B$9,IF(C103=$E$3,Worksheet!$D$9,FALSE))))))))))) -> TRUE | AF103: =IF(AE103,D103,"") -> Easy | AG103: =IF(AE103,COUNTIF($AF$5:AF103,AF103),"X") -> 44 | AH103: =CONCATENATE(AE103,AF103) -> TRUEEasy
A104: =CONCATENATE(AE104,D104,AG104) -> TRUEMedium38 | B104: =RAND() -> 0.3144764518 | C104: +-×÷ | D104: Medium | E104: 12 | F104: Take away | G104: =RANDBETWEEN(2,99)*10000+RANDBETWEEN(1,99)*100 -> 549700 | H104: – | I104: =RANDBETWEEN(500,G104-100) -> 231786 | J104: without a calculator | T104: =CONCATENATE(F104," ",G104," ",H104," ",I104," ",J104," ",K104," ",L104," ",M104," ",N104," ",O104," ",P104," ",Q104," ",R104) -> Take away 549700 – 231786 without a calculator | U104: =G104-I104 -> 317914 | AC104: =IF(ISERROR(T104),NA(),"") ->  | AD104: =IF(OR(ISNA(U104),ISNA(V104),ISNA(W104),ISNA(X104),ISNA(Y104),ISNA(Z104),ISNA(AA104),ISNA(AB104),ISNA(AC104)),NA(),CONCATENATE(U104,V104,W104,X104,Y104,Z104,AA104,AB104)) -> 317914 | AE104: =IF(ISNA(AD104),FALSE,IF(C104=$B$1,Worksheet!$B$3,IF(C104=$C$1,Worksheet!$B$4,IF(C104=$D$1,Worksheet!$B$5,IF(C104=$C$2,Worksheet!$D$3,IF(C104=$D$2,Worksheet!$D$4,IF(C104=$E$2,Worksheet!$D$5,IF(C104=$C$3,Worksheet!$D$6,IF(C104=$B$3,Worksheet!$B$6,IF(C104=$D$3,Worksheet!$B$9,IF(C104=$E$3,Worksheet!$D$9,FALSE))))))))))) -> TRUE | AF104: =IF(AE104,D104,"") -> Medium | AG104: =IF(AE104,COUNTIF($AF$5:AF104,AF104),"X") -> 38 | AH104: =CONCATENATE(AE104,AF104) -> TRUEMedium
A105: =CONCATENATE(AE105,D105,AG105) -> TRUEEasy45 | B105: =RAND() -> 0.2851132284 | C105: Dec | D105: Easy | E105: 256 | F105: Divide: | G105: =RANDBETWEEN(2,9)*10^RANDBETWEEN(0,1) -> 80 | H105: ÷ | I105: =10^RANDBETWEEN(-2,-1) -> 0.1 | T105: =CONCATENATE(F105," ",G105," ",H105," ",I105," ",J105," ",K105," ",L105," ",M105," ",N105," ",O105," ",P105," ",Q105," ",R105) -> Divide: 80 ÷ 0.1 | U105: =G105/I105 -> 800 | AC105: =IF(ISERROR(T105),NA(),"") ->  | AD105: =IF(OR(ISNA(U105),ISNA(V105),ISNA(W105),ISNA(X105),ISNA(Y105),ISNA(Z105),ISNA(AA105),ISNA(AB105),ISNA(AC105)),NA(),CONCATENATE(U105,V105,W105,X105,Y105,Z105,AA105,AB105)) -> 800 | AE105: =IF(ISNA(AD105),FALSE,IF(C105=$B$1,Worksheet!$B$3,IF(C105=$C$1,Worksheet!$B$4,IF(C105=$D$1,Worksheet!$B$5,IF(C105=$C$2,Worksheet!$D$3,IF(C105=$D$2,Worksheet!$D$4,IF(C105=$E$2,Worksheet!$D$5,IF(C105=$C$3,Worksheet!$D$6,IF(C105=$B$3,Worksheet!$B$6,IF(C105=$D$3,Worksheet!$B$9,IF(C105=$E$3,Worksheet!$D$9,FALSE))))))))))) -> TRUE | AF105: =IF(AE105,D105,"") -> Easy | AG105: =IF(AE105,COUNTIF($AF$5:AF105,AF105),"X") -> 45 | AH105: =CONCATENATE(AE105,AF105) -> TRUEEasy
A106: =CONCATENATE(AE106,D106,AG106) -> TRUEMedium39 | B106: =RAND() -> 0.6163227049 | C106: Dec | D106: Medium | E106: 247 | F106: Multiply: | G106: =RANDBETWEEN(1,9)+RANDBETWEEN(1,999)/1000 -> 3.046 | H106: × | I106: =RANDBETWEEN(2,9)*10^RANDBETWEEN(2,3) -> 5000 | T106: =CONCATENATE(F106," ",G106," ",H106," ",I106," ",J106," ",K106," ",L106," ",M106," ",N106," ",O106," ",P106," ",Q106," ",R106) -> Multiply: 3.046 × 5000 | U106: =G106*I106 -> 15230 | AC106: =IF(ISERROR(T106),NA(),"") ->  | AD106: =IF(OR(ISNA(U106),ISNA(V106),ISNA(W106),ISNA(X106),ISNA(Y106),ISNA(Z106),ISNA(AA106),ISNA(AB106),ISNA(AC106)),NA(),CONCATENATE(U106,V106,W106,X106,Y106,Z106,AA106,AB106)) -> 15230 | AE106: =IF(ISNA(AD106),FALSE,IF(C106=$B$1,Worksheet!$B$3,IF(C106=$C$1,Worksheet!$B$4,IF(C106=$D$1,Worksheet!$B$5,IF(C106=$C$2,Worksheet!$D$3,IF(C106=$D$2,Worksheet!$D$4,IF(C106=$E$2,Worksheet!$D$5,IF(C106=$C$3,Worksheet!$D$6,IF(C106=$B$3,Worksheet!$B$6,IF(C106=$D$3,Worksheet!$B$9,IF(C106=$E$3,Worksheet!$D$9,FALSE))))))))))) -> TRUE | AF106: =IF(AE106,D106,"") -> Medium | AG106: =IF(AE106,COUNTIF($AF$5:AF106,AF106),"X") -> 39 | AH106: =CONCATENATE(AE106,AF106) -> TRUEMedium
A107: =CONCATENATE(AE107,D107,AG107) -> TRUEMedium40 | B107: =RAND() -> 0.2736224455 | C107: +-×÷ | D107: Medium | E107: 9 | F107: Fill in the blank: | G107: =RANDBETWEEN(101,999)*100 -> 75300 | H107: + _______ = | I107: =TEXT(100000,"##,###") -> 100,000 | T107: =CONCATENATE(F107," ",G107," ",H107," ",I107," ",J107," ",K107," ",L107," ",M107," ",N107," ",O107," ",P107," ",Q107," ",R107) -> Fill in the blank: 75300 + _______ = 100,000 | U107: =100000-G107 -> 24700 | AC107: =IF(ISERROR(T107),NA(),"") ->  | AD107: =IF(OR(ISNA(U107),ISNA(V107),ISNA(W107),ISNA(X107),ISNA(Y107),ISNA(Z107),ISNA(AA107),ISNA(AB107),ISNA(AC107)),NA(),CONCATENATE(U107,V107,W107,X107,Y107,Z107,AA107,AB107)) -> 24700 | AE107: =IF(ISNA(AD107),FALSE,IF(C107=$B$1,Worksheet!$B$3,IF(C107=$C$1,Worksheet!$B$4,IF(C107=$D$1,Worksheet!$B$5,IF(C107=$C$2,Worksheet!$D$3,IF(C107=$D$2,Worksheet!$D$4,IF(C107=$E$2,Worksheet!$D$5,IF(C107=$C$3,Worksheet!$D$6,IF(C107=$B$3,Worksheet!$B$6,IF(C107=$D$3,Worksheet!$B$9,IF(C107=$E$3,Worksheet!$D$9,FALSE))))))))))) -> TRUE | AF107: =IF(AE107,D107,"") -> Medium | AG107: =IF(AE107,COUNTIF($AF$5:AF107,AF107),"X") -> 40 | AH107: =CONCATENATE(AE107,AF107) -> TRUEMedium
A108: =CONCATENATE(AE108,D108,AG108) -> TRUEMedium41 | B108: =RAND() -> 0.1159481264 | C108: % | D108: Medium | E108: 287 | F108: Write | G108: =(RANDBETWEEN(1,9)*10+5)/1000 -> 0.085 | H108: as a percentage | T108: =CONCATENATE(F108," ",G108," ",H108," ",I108," ",J108," ",K108," ",L108," ",M108," ",N108," ",O108," ",P108," ",Q108," ",R108) -> Write 0.085 as a percentage | U108: =G108*100 -> 8.5 | V108: % | AC108: =IF(ISERROR(T108),NA(),"") ->  | AD108: =IF(OR(ISNA(U108),ISNA(V108),ISNA(W108),ISNA(X108),ISNA(Y108),ISNA(Z108),ISNA(AA108),ISNA(AB108),ISNA(AC108)),NA(),CONCATENATE(U108,V108,W108,X108,Y108,Z108,AA108,AB108)) -> 8.5% | AE108: =IF(ISNA(AD108),FALSE,IF(C108=$B$1,Worksheet!$B$3,IF(C108=$C$1,Worksheet!$B$4,IF(C108=$D$1,Worksheet!$B$5,IF(C108=$C$2,Worksheet!$D$3,IF(C108=$D$2,Worksheet!$D$4,IF(C108=$E$2,Worksheet!$D$5,IF(C108=$C$3,Worksheet!$D$6,IF(C108=$B$3,Worksheet!$B$6,IF(C108=$D$3,Worksheet!$B$9,IF(C108=$E$3,Worksheet!$D$9,FALSE))))))))))) -> TRUE | AF108: =IF(AE108,D108,"") -> Medium | AG108: =IF(AE108,COUNTIF($AF$5:AF108,AF108),"X") -> 41 | AH108: =CONCATENATE(AE108,AF108) -> TRUEMedium
A109: =CONCATENATE(AE109,D109,AG109) -> TRUEEasy46 | B109: =RAND() -> 0.5545893931 | C109: Dec | D109: Easy | E109: 123 | F109: Add: | G109: =RANDBETWEEN(2,6)+0.1*RANDBETWEEN(3,9) -> 5.5 | H109: + | I109: =RANDBETWEEN(2,5)+RANDBETWEEN(0,9)*0.1+RANDBETWEEN(1,9)*0.01 -> 5.37 | T109: =CONCATENATE(F109," ",G109," ",H109," ",I109," ",J109," ",K109," ",L109," ",M109," ",N109," ",O109," ",P109," ",Q109," ",R109) -> Add: 5.5 + 5.37 | U109: =G109+I109 -> 10.87 | AC109: =IF(ISERROR(T109),NA(),"") ->  | AD109: =IF(OR(ISNA(U109),ISNA(V109),ISNA(W109),ISNA(X109),ISNA(Y109),ISNA(Z109),ISNA(AA109),ISNA(AB109),ISNA(AC109)),NA(),CONCATENATE(U109,V109,W109,X109,Y109,Z109,AA109,AB109)) -> 10.87 | AE109: =IF(ISNA(AD109),FALSE,IF(C109=$B$1,Worksheet!$B$3,IF(C109=$C$1,Worksheet!$B$4,IF(C109=$D$1,Worksheet!$B$5,IF(C109=$C$2,Worksheet!$D$3,IF(C109=$D$2,Worksheet!$D$4,IF(C109=$E$2,Worksheet!$D$5,IF(C109=$C$3,Worksheet!$D$6,IF(C109=$B$3,Worksheet!$B$6,IF(C109=$D$3,Worksheet!$B$9,IF(C109=$E$3,Worksheet!$D$9,FALSE))))))))))) -> TRUE | AF109: =IF(AE109,D109,"") -> Easy | AG109: =IF(AE109,COUNTIF($AF$5:AF109,AF109),"X") -> 46 | AH109: =CONCATENATE(AE109,AF109) -> TRUEEasy
A110: =CONCATENATE(AE110,D110,AG110) -> TRUEMedium42 | B110: =RAND() -> 0.6206540112 | C110: Dec | D110: Medium | E110: 257 | F110: Divide: | G110: =RANDBETWEEN(2,5)*10^RANDBETWEEN(0,2)*S110 -> 1200 | H110: ÷ | I110: =10^RANDBETWEEN(-2,-1)*S110 -> 0.4 | S110: =RANDBETWEEN(2,5) -> 4 | T110: =CONCATENATE(F110," ",G110," ",H110," ",I110," ",J110," ",K110," ",L110," ",M110," ",N110," ",O110," ",P110," ",Q110," ",R110) -> Divide: 1200 ÷ 0.4 | U110: =G110/I110 -> 3000 | AC110: =IF(ISERROR(T110),NA(),"") ->  | AD110: =IF(OR(ISNA(U110),ISNA(V110),ISNA(W110),ISNA(X110),ISNA(Y110),ISNA(Z110),ISNA(AA110),ISNA(AB110),ISNA(AC110)),NA(),CONCATENATE(U110,V110,W110,X110,Y110,Z110,AA110,AB110)) -> 3000 | AE110: =IF(ISNA(AD110),FALSE,IF(C110=$B$1,Worksheet!$B$3,IF(C110=$C$1,Worksheet!$B$4,IF(C110=$D$1,Worksheet!$B$5,IF(C110=$C$2,Worksheet!$D$3,IF(C110=$D$2,Worksheet!$D$4,IF(C110=$E$2,Worksheet!$D$5,IF(C110=$C$3,Worksheet!$D$6,IF(C110=$B$3,Worksheet!$B$6,IF(C110=$D$3,Worksheet!$B$9,IF(C110=$E$3,Worksheet!$D$9,FALSE))))))))))) -> TRUE | AF110: =IF(AE110,D110,"") -> Medium | AG110: =IF(AE110,COUNTIF($AF$5:AF110,AF110),"X") -> 42 | AH110: =CONCATENATE(AE110,AF110) -> TRUEMedium
A111: =CONCATENATE(AE111,D111,AG111) -> TRUEHard18 | B111: =RAND() -> 0.03614488976 | C111: Frac | D111: Hard | E111: 114 | F111: Take away the mixed numbers: | G111: =RANDBETWEEN(M111+1,5) -> 3 | H111: =IF(J111=4,CHOOSE(RANDBETWEEN(1,2),1,3),RANDBETWEEN(1,J111-1)) -> 2 | I111: / | J111: =RANDBETWEEN(3,5) -> 3 | L111: – | M111: =RANDBETWEEN(1,3) -> 1 | N111: =IF(P111=4,CHOOSE(RANDBETWEEN(1,2),1,3),RANDBETWEEN(1,P111-1)) -> 3 | O111: / | P111: =SMALL(IF(J111={3,4,5},"",{3,4,5}),RANDBETWEEN(1,2)) -> 4 | T111: =CONCATENATE(F111," ",G111," ",H111,"",I111,"",J111," ",K111," ",L111," ",M111," ",N111,"",O111,"",P111," ",Q111," ",R111) -> Take away the mixed numbers: 3 2/3 – 1 3/4 | U111: =IF(P111*H111-J111*N111<=0,G111-M111-1,G111-M111) -> 1 | V111: =(H111*P111-J111*N111+IF(H111*P111-J111*N111<0,J111*P111,0))/AC111 -> 11 | W111: / | X111: =J111*P111/AC111 -> 12 | Y111: =IF(V111="",""," or ") -> or | Z111: =IF(V111="","",X111*U111+V111) -> 23 | AA111: =IF(V111="","","/") -> / | AB111: =X111 -> 12 | AC111: =GCD(ABS(H111*P111-J111*N111),P111*J111) -> 1 | AD111: =IF(OR(ISNA(U111),ISNA(V111),ISNA(W111),ISNA(X111),ISNA(Y111),ISNA(Z111),ISNA(AA111),ISNA(AB111),ISNA(AC111)),NA(),CONCATENATE(IF(U111=0,"",U111),IF(U111=0,""," "),IF(U111=0,"",V111),IF(U111=0,"",W111),IF(U111=0,"",X111),IF(U111=0,"",Y111),Z111,AA111,AB111)) -> 1 11/12 or 23/12 | AE111: =IF(ISNA(AD111),FALSE,IF(C111=$B$1,Worksheet!$B$3,IF(C111=$C$1,Worksheet!$B$4,IF(C111=$D$1,Worksheet!$B$5,IF(C111=$C$2,Worksheet!$D$3,IF(C111=$D$2,Worksheet!$D$4,IF(C111=$E$2,Worksheet!$D$5,IF(C111=$C$3,Worksheet!$D$6,IF(C111=$B$3,Worksheet!$B$6,IF(C111=$D$3,Worksheet!$B$9,IF(C111=$E$3,Worksheet!$D$9,FALSE))))))))))) -> TRUE | AF111: =IF(AE111,D111,"") -> Hard | AG111: =IF(AE111,COUNTIF($AF$5:AF111,AF111),"X") -> 18 | AH111: =CONCATENATE(AE111,AF111) -> TRUEHard
A112: =CONCATENATE(AE112,D112,AG112) -> TRUEMedium43 | B112: =RAND() -> 0.6031865432 | C112: % | D112: Medium | E112: 300 | F112: What is £ | G112: =S112*I112 -> 27000 | H112: as a percentage of £ | I112: =RANDBETWEEN(2,9)*10^RANDBETWEEN(2,4) -> 30000 | J112: ? | S112: =0.1*RANDBETWEEN(2,9) -> 0.9 | T112: =CONCATENATE(F112,"",G112," ",H112,"",I112," ",J112," ",K112," ",L112," ",M112," ",N112," ",O112," ",P112," ",Q112," ",R112) -> What is £27000 as a percentage of £30000 ? | U112: =S112*100 -> 90 | V112: % | AC112: =IF(ISERROR(T112),NA(),"") ->  | AD112: =IF(OR(ISNA(U112),ISNA(V112),ISNA(W112),ISNA(X112),ISNA(Y112),ISNA(Z112),ISNA(AA112),ISNA(AB112),ISNA(AC112)),NA(),CONCATENATE(U112,V112,W112,X112,Y112,Z112,AA112,AB112)) -> 90% | AE112: =IF(ISNA(AD112),FALSE,IF(C112=$B$1,Worksheet!$B$3,IF(C112=$C$1,Worksheet!$B$4,IF(C112=$D$1,Worksheet!$B$5,IF(C112=$C$2,Worksheet!$D$3,IF(C112=$D$2,Worksheet!$D$4,IF(C112=$E$2,Worksheet!$D$5,IF(C112=$C$3,Worksheet!$D$6,IF(C112=$B$3,Worksheet!$B$6,IF(C112=$D$3,Worksheet!$B$9,IF(C112=$E$3,Worksheet!$D$9,FALSE))))))))))) -> TRUE | AF112: =IF(AE112,D112,"") -> Medium | AG112: =IF(AE112,COUNTIF($AF$5:AF112,AF112),"X") -> 43 | AH112: =CONCATENATE(AE112,AF112) -> TRUEMedium
A113: =CONCATENATE(AE113,D113,AG113) -> TRUEEasy47 | B113: =RAND() -> 0.6127003494 | C113: Neg | D113: Easy | E113: 215 | F113: Add: | G113: (– | H113: =RANDBETWEEN(10,30) -> 26 | I113: ) + (– | J113: =RANDBETWEEN(10,30) -> 21 | K113: ) | T113: =CONCATENATE(F113," ",G113,"",H113,"",I113,"",J113,"",K113," ",L113," ",M113," ",N113," ",O113," ",P113," ",Q113," ",R113) -> Add: (–26) + (–21) | U113: – | V113: =H113+J113 -> 47 | AC113: =IF(ISERROR(T113),NA(),"") ->  | AD113: =IF(OR(ISNA(U113),ISNA(V113),ISNA(W113),ISNA(X113),ISNA(Y113),ISNA(Z113),ISNA(AA113),ISNA(AB113),ISNA(AC113)),NA(),CONCATENATE(U113,V113,W113,X113,Y113,Z113,AA113,AB113)) -> –47 | AE113: =IF(ISNA(AD113),FALSE,IF(C113=$B$1,Worksheet!$B$3,IF(C113=$C$1,Worksheet!$B$4,IF(C113=$D$1,Worksheet!$B$5,IF(C113=$C$2,Worksheet!$D$3,IF(C113=$D$2,Worksheet!$D$4,IF(C113=$E$2,Worksheet!$D$5,IF(C113=$C$3,Worksheet!$D$6,IF(C113=$B$3,Worksheet!$B$6,IF(C113=$D$3,Worksheet!$B$9,IF(C113=$E$3,Worksheet!$D$9,FALSE))))))))))) -> TRUE | AF113: =IF(AE113,D113,"") -> Easy | AG113: =IF(AE113,COUNTIF($AF$5:AF113,AF113),"X") -> 47 | AH113: =CONCATENATE(AE113,AF113) -> TRUEEasy
A114: =CONCATENATE(AE114,D114,AG114) -> TRUEMedium44 | B114: =RAND() -> 0.4366159022 | C114: Eqn | D114: Medium | E114: 322 | F114: Solve the equation | G114: =RANDBETWEEN(2,10) -> 8 | H114: =CHOOSE(RANDBETWEEN(1,22),"a","b","c","d","f","g","h","j","k","m","n","p","q","r","s","t","u","v","w","x","y","z") -> m | I114: + | J114: =RANDBETWEEN(1,10) -> 6 | K114: = | L114: =G114*(W114/Y114)+J114 -> 43 | M114: . Show your working in full and give your answer as a fraction. | T114: =CONCATENATE(F114," ",G114,"",H114," ",I114," ",J114," ",K114," ",L114," ",M114," ",N114," ",O114," ",P114," ",Q114," ",R114) -> Solve the equation 8m + 6 = 43 . Show your working in full and give your answer as a fraction. | U114: =H114 -> m | V114: = | W114: =AB114*G114+AA114 -> 37 | X114: / | Y114: =G114 -> 8 | AA114: =RANDBETWEEN(1,G114) -> 5 | AB114: =RANDBETWEEN(1,10) -> 4 | AC114: =IF(ISERROR(T114),NA(),"") ->  | AD114: =IF(OR(ISNA(U114),ISNA(V114),ISNA(W114),ISNA(X114),ISNA(Y114),ISNA(Z114),ISNA(AA114),ISNA(AB114),ISNA(AC114)),NA(),CONCATENATE(U114,V114,W114,X114,Y114,Z114)) -> m = 37/8 | AE114: =IF(ISNA(AD114),FALSE,IF(C114=$B$1,Worksheet!$B$3,IF(C114=$C$1,Worksheet!$B$4,IF(C114=$D$1,Worksheet!$B$5,IF(C114=$C$2,Worksheet!$D$3,IF(C114=$D$2,Worksheet!$D$4,IF(C114=$E$2,Worksheet!$D$5,IF(C114=$C$3,Worksheet!$D$6,IF(C114=$B$3,Worksheet!$B$6,IF(C114=$D$3,Worksheet!$B$9,IF(C114=$E$3,Worksheet!$D$9,FALSE))))))))))) -> TRUE | AF114: =IF(AE114,D114,"") -> Medium | AG114: =IF(AE114,COUNTIF($AF$5:AF114,AF114),"X") -> 44 | AH114: =CONCATENATE(AE114,AF114) -> TRUEMedium
A115: =CONCATENATE(AE115,D115,AG115) -> TRUEHard19 | B115: =RAND() -> 0.1923141959 | C115: Neg | D115: Hard | E115: 230 | F115: Work out of the value of: | G115: =RANDBETWEEN(1,20) -> 13 | H115: – | I115: =RANDBETWEEN(2,5) -> 5 | J115: × (– | K115: =RANDBETWEEN(2,5) -> 4 | L115: ) | M115: (remember BODMAS) | T115: =CONCATENATE(F115," ",G115," ",H115,"",I115,"",J115,"",K115,"",L115," ",M115," ",N115," ",O115," ",P115," ",Q115," ",R115) -> Work out of the value of: 13 – 5 × (–4) (remember BODMAS) | U115: =G115+I115*K115 -> 33 | AC115: =IF(ISERROR(T115),NA(),"") ->  | AD115: =IF(OR(ISNA(U115),ISNA(V115),ISNA(W115),ISNA(X115),ISNA(Y115),ISNA(Z115),ISNA(AA115),ISNA(AB115),ISNA(AC115)),NA(),CONCATENATE(U115,V115,W115,X115,Y115,Z115,AA115,AB115)) -> 33 | AE115: =IF(ISNA(AD115),FALSE,IF(C115=$B$1,Worksheet!$B$3,IF(C115=$C$1,Worksheet!$B$4,IF(C115=$D$1,Worksheet!$B$5,IF(C115=$C$2,Worksheet!$D$3,IF(C115=$D$2,Worksheet!$D$4,IF(C115=$E$2,Worksheet!$D$5,IF(C115=$C$3,Worksheet!$D$6,IF(C115=$B$3,Worksheet!$B$6,IF(C115=$D$3,Worksheet!$B$9,IF(C115=$E$3,Worksheet!$D$9,FALSE))))))))))) -> TRUE | AF115: =IF(AE115,D115,"") -> Hard | AG115: =IF(AE115,COUNTIF($AF$5:AF115,AF115),"X") -> 19 | AH115: =CONCATENATE(AE115,AF115) -> TRUEHard
A116: =CONCATENATE(AE116,D116,AG116) -> TRUEHard20 | B116: =RAND() -> 0.5844592112 | C116: Alg | D116: Hard | E116: 308 | F116: Algebra. If x = | G116: =RANDBETWEEN(-5,5) -> -5 | H116: and y = | I116: =RANDBETWEEN(-5,5) -> -2 | J116: , what is the value of | K116: =RANDBETWEEN(2,5) -> 4 | L116: (x – y) ? | T116: =CONCATENATE(F116," ",G116," ",H116," ",I116," ",J116," ",K116,"",L116," ",M116," ",N116," ",O116," ",P116," ",Q116," ",R116) -> Algebra. If x = -5 and y = -2 , what is the value of 4(x – y) ? | U116: =(G116-I116)*K116 -> -12 | AC116: =IF(ISERROR(T116),NA(),"") ->  | AD116: =IF(OR(ISNA(U116),ISNA(V116),ISNA(W116),ISNA(X116),ISNA(Y116),ISNA(Z116),ISNA(AA116),ISNA(AB116),ISNA(AC116)),NA(),CONCATENATE(U116,V116,W116,X116,Y116,Z116,AA116,AB116)) -> -12 | AE116: =IF(ISNA(AD116),FALSE,IF(C116=$B$1,Worksheet!$B$3,IF(C116=$C$1,Worksheet!$B$4,IF(C116=$D$1,Worksheet!$B$5,IF(C116=$C$2,Worksheet!$D$3,IF(C116=$D$2,Worksheet!$D$4,IF(C116=$E$2,Worksheet!$D$5,IF(C116=$C$3,Worksheet!$D$6,IF(C116=$B$3,Worksheet!$B$6,IF(C116=$D$3,Worksheet!$B$9,IF(C116=$E$3,Worksheet!$D$9,FALSE))))))))))) -> TRUE | AF116: =IF(AE116,D116,"") -> Hard | AG116: =IF(AE116,COUNTIF($AF$5:AF116,AF116),"X") -> 20 | AH116: =CONCATENATE(AE116,AF116) -> TRUEHard
A117: =CONCATENATE(AE117,D117,AG117) -> TRUEMedium45 | B117: =RAND() -> 0.7075412907 | C117: Frac | D117: Medium | E117: 118 | F117: Multiply: | G117: =RANDBETWEEN(1,5) -> 4 | H117: =IF(J117=4,CHOOSE(RANDBETWEEN(1,2),1,3),RANDBETWEEN(1,J117-1)) -> 1 | I117: / | J117: =RANDBETWEEN(3,5) -> 3 | L117: × | M117: =RANDBETWEEN(1,3)*J117 -> 3 | T117: =CONCATENATE(F117," ",G117," ",H117,"",I117,"",J117," ",K117," ",L117," ",M117," ",N117,"",O117,"",P117," ",Q117," ",R117) -> Multiply: 4 1/3 × 3 | U117: =M117*G117+M117*H117/J117 -> 13 | AC117: =IF(ISERROR(T117),NA(),"") ->  | AD117: =IF(OR(ISNA(U117),ISNA(V117),ISNA(W117),ISNA(X117),ISNA(Y117),ISNA(Z117),ISNA(AA117),ISNA(AB117),ISNA(AC117)),NA(),CONCATENATE(U117,V117,W117,X117,Y117,Z117,AA117,AB117)) -> 13 | AE117: =IF(ISNA(AD117),FALSE,IF(C117=$B$1,Worksheet!$B$3,IF(C117=$C$1,Worksheet!$B$4,IF(C117=$D$1,Worksheet!$B$5,IF(C117=$C$2,Worksheet!$D$3,IF(C117=$D$2,Worksheet!$D$4,IF(C117=$E$2,Worksheet!$D$5,IF(C117=$C$3,Worksheet!$D$6,IF(C117=$B$3,Worksheet!$B$6,IF(C117=$D$3,Worksheet!$B$9,IF(C117=$E$3,Worksheet!$D$9,FALSE))))))))))) -> TRUE | AF117: =IF(AE117,D117,"") -> Medium | AG117: =IF(AE117,COUNTIF($AF$5:AF117,AF117),"X") -> 45 | AH117: =CONCATENATE(AE117,AF117) -> TRUEMedium
A118: =CONCATENATE(AE118,D118,AG118) -> TRUEHard21 | B118: =RAND() -> 0.9278154613 | C118: % | D118: Hard | E118: 293 | F118: What fraction is the same as | G118: 87½% | H118: ? | T118: =CONCATENATE(F118," ",G118,"",H118," ",I118," ",J118," ",K118," ",L118," ",M118," ",N118," ",O118," ",P118," ",Q118," ",R118) -> What fraction is the same as 87½%? | U118: 7/8 (seven eighths) | AC118: =IF(ISERROR(T118),NA(),"") ->  | AD118: =IF(OR(ISNA(U118),ISNA(V118),ISNA(W118),ISNA(X118),ISNA(Y118),ISNA(Z118),ISNA(AA118),ISNA(AB118),ISNA(AC118)),NA(),CONCATENATE(U118,V118,W118,X118,Y118,Z118,AA118,AB118)) -> 7/8 (seven eighths) | AE118: =IF(ISNA(AD118),FALSE,IF(C118=$B$1,Worksheet!$B$3,IF(C118=$C$1,Worksheet!$B$4,IF(C118=$D$1,Worksheet!$B$5,IF(C118=$C$2,Worksheet!$D$3,IF(C118=$D$2,Worksheet!$D$4,IF(C118=$E$2,Worksheet!$D$5,IF(C118=$C$3,Worksheet!$D$6,IF(C118=$B$3,Worksheet!$B$6,IF(C118=$D$3,Worksheet!$B$9,IF(C118=$E$3,Worksheet!$D$9,FALSE))))))))))) -> TRUE | AF118: =IF(AE118,D118,"") -> Hard | AG118: =IF(AE118,COUNTIF($AF$5:AF118,AF118),"X") -> 21 | AH118: =CONCATENATE(AE118,AF118) -> TRUEHard
A119: =CONCATENATE(AE119,D119,AG119) -> TRUEMedium46 | B119: =RAND() -> 0.6974705318 | C119: Neg | D119: Medium | E119: 225 | F119: Work out the value of: ( | G119: =RANDBETWEEN(-5,-1) -> -3 | H119: ) + | I119: =RANDBETWEEN(1,10) -> 3 | J119: × | K119: =RANDBETWEEN(1,10) -> 7 | L119: (remember BODMAS) | T119: =CONCATENATE(F119,"",G119,"",H119," ",I119," ",J119," ",K119," ",L119," ",M119," ",N119," ",O119," ",P119," ",Q119," ",R119) -> Work out the value of: (-3) + 3 × 7 (remember BODMAS) | U119: =G119+I119*K119 -> 18 | AC119: =IF(ISERROR(T119),NA(),"") ->  | AD119: =IF(OR(ISNA(U119),ISNA(V119),ISNA(W119),ISNA(X119),ISNA(Y119),ISNA(Z119),ISNA(AA119),ISNA(AB119),ISNA(AC119)),NA(),CONCATENATE(U119,V119,W119,X119,Y119,Z119,AA119,AB119)) -> 18 | AE119: =IF(ISNA(AD119),FALSE,IF(C119=$B$1,Worksheet!$B$3,IF(C119=$C$1,Worksheet!$B$4,IF(C119=$D$1,Worksheet!$B$5,IF(C119=$C$2,Worksheet!$D$3,IF(C119=$D$2,Worksheet!$D$4,IF(C119=$E$2,Worksheet!$D$5,IF(C119=$C$3,Worksheet!$D$6,IF(C119=$B$3,Worksheet!$B$6,IF(C119=$D$3,Worksheet!$B$9,IF(C119=$E$3,Worksheet!$D$9,FALSE))))))))))) -> TRUE | AF119: =IF(AE119,D119,"") -> Medium | AG119: =IF(AE119,COUNTIF($AF$5:AF119,AF119),"X") -> 46 | AH119: =CONCATENATE(AE119,AF119) -> TRUEMedium
A120: =CONCATENATE(AE120,D120,AG120) -> TRUEMedium47 | B120: =RAND() -> 0.3555670345 | C120: Frac | D120: Medium | E120: 80 | F120: Fractions. Without a calculator, work out: | G120: =TEXT(R120/S120,"##/##") -> 9/17 | H120: of | I120: =S120*RANDBETWEEN(3,6) -> 102 | R120: =RANDBETWEEN(2,S120-1) -> 9 | S120: =RANDBETWEEN(11,19) -> 17 | T120: =CONCATENATE(F120," ",G120," ",H120," ",I120," ",J120," ",K120," ",L120," ",M120," ",N120," ",O120," ",P120," ",Q120) -> Fractions. Without a calculator, work out: 9/17 of 102 | U120: =I120/S120*VALUE(LEFT(G120,SEARCH("/",G120,1)-1)) -> 54 | AC120: =IF(ISERROR(T120),NA(),"") ->  | AD120: =IF(OR(ISNA(U120),ISNA(V120),ISNA(W120),ISNA(X120),ISNA(Y120),ISNA(Z120),ISNA(AA120),ISNA(AB120),ISNA(AC120)),NA(),CONCATENATE(U120,V120,W120,X120,Y120,Z120,AA120,AB120)) -> 54 | AE120: =IF(ISNA(AD120),FALSE,IF(C120=$B$1,Worksheet!$B$3,IF(C120=$C$1,Worksheet!$B$4,IF(C120=$D$1,Worksheet!$B$5,IF(C120=$C$2,Worksheet!$D$3,IF(C120=$D$2,Worksheet!$D$4,IF(C120=$E$2,Worksheet!$D$5,IF(C120=$C$3,Worksheet!$D$6,IF(C120=$B$3,Worksheet!$B$6,IF(C120=$D$3,Worksheet!$B$9,IF(C120=$E$3,Worksheet!$D$9,FALSE))))))))))) -> TRUE | AF120: =IF(AE120,D120,"") -> Medium | AG120: =IF(AE120,COUNTIF($AF$5:AF120,AF120),"X") -> 47 | AH120: =CONCATENATE(AE120,AF120) -> TRUEMedium
A121: =CONCATENATE(AE121,D121,AG121) -> TRUEEasy48 | B121: =RAND() -> 0.9142238445 | C121: Frac | D121: Easy | E121: 99 | F121: Take away the fractions: | G121: =IF(I121=4,CHOOSE(RANDBETWEEN(1,2),1,3),RANDBETWEEN(1,I121-1)) -> 4 | H121: / | I121: =RANDBETWEEN(3,5) -> 5 | J121: – | K121: =IF(M121=4,CHOOSE(RANDBETWEEN(1,2),1,3),RANDBETWEEN(1,MIN(G121/I121*M121,M121-1))) -> 2 | L121: / | M121: =SMALL(IF(I121={3,4,5},"",{3,4,5}),RANDBETWEEN(1,2)) -> 3 | N121: =IF(GCD(G121*M121+I121*K121,I121*M121)=1,"",", giving your answer in its simplest form") ->  | T121: =CONCATENATE(F121," ",G121,"",H121,"",I121," ",J121," ",K121,"",L121,"",M121," ",N121," ",O121," ",P121," ",Q121," ",R121) -> Take away the fractions: 4/5 – 2/3 | U121: =(G121*M121-I121*K121)/GCD(G121*M121+I121*K121,I121*M121) -> 2 | V121: / | W121: =I121*M121/GCD(G121*M121-I121*K121,I121*M121) -> 15 | Z121: =IF(U121=0,NA(),"") ->  | AC121: =IF(ISERROR(T121),NA(),"") ->  | AD121: =IF(OR(ISNA(U121),ISNA(V121),ISNA(W121),ISNA(X121),ISNA(Y121),ISNA(Z121),ISNA(AA121),ISNA(AB121),ISNA(AC121)),NA(),CONCATENATE(U121,V121,W121,X121,Y121,Z121,AA121,AB121)) -> 2/15 | AE121: =IF(ISNA(AD121),FALSE,IF(C121=$B$1,Worksheet!$B$3,IF(C121=$C$1,Worksheet!$B$4,IF(C121=$D$1,Worksheet!$B$5,IF(C121=$C$2,Worksheet!$D$3,IF(C121=$D$2,Worksheet!$D$4,IF(C121=$E$2,Worksheet!$D$5,IF(C121=$C$3,Worksheet!$D$6,IF(C121=$B$3,Worksheet!$B$6,IF(C121=$D$3,Worksheet!$B$9,IF(C121=$E$3,Worksheet!$D$9,FALSE))))))))))) -> TRUE | AF121: =IF(AE121,D121,"") -> Easy | AG121: =IF(AE121,COUNTIF($AF$5:AF121,AF121),"X") -> 48 | AH121: =CONCATENATE(AE121,AF121) -> TRUEEasy
A122: =CONCATENATE(AE122,D122,AG122) -> TRUEMedium48 | B122: =RAND() -> 0.9527204531 | C122: Frac | D122: Medium | E122: 95 | F122: Change the fraction | G122: =RANDBETWEEN(1,8) -> 3 | H122: /9 | I122: into a decimal correct to 3 decimal places | T122: =CONCATENATE(F122," ",G122,"",H122," ",I122," ",J122," ",K122," ",L122," ",M122," ",N122," ",O122," ",P122," ",Q122," ",R122) -> Change the fraction 3/9 into a decimal correct to 3 decimal places | U122: =TEXT(G122/9,"0.000") -> 0.333 | AC122: =IF(ISERROR(T122),NA(),"") ->  | AD122: =IF(OR(ISNA(U122),ISNA(V122),ISNA(W122),ISNA(X122),ISNA(Y122),ISNA(Z122),ISNA(AA122),ISNA(AB122),ISNA(AC122)),NA(),CONCATENATE(U122,V122,W122,X122,Y122,Z122,AA122,AB122)) -> 0.333 | AE122: =IF(ISNA(AD122),FALSE,IF(C122=$B$1,Worksheet!$B$3,IF(C122=$C$1,Worksheet!$B$4,IF(C122=$D$1,Worksheet!$B$5,IF(C122=$C$2,Worksheet!$D$3,IF(C122=$D$2,Worksheet!$D$4,IF(C122=$E$2,Worksheet!$D$5,IF(C122=$C$3,Worksheet!$D$6,IF(C122=$B$3,Worksheet!$B$6,IF(C122=$D$3,Worksheet!$B$9,IF(C122=$E$3,Worksheet!$D$9,FALSE))))))))))) -> TRUE | AF122: =IF(AE122,D122,"") -> Medium | AG122: =IF(AE122,COUNTIF($AF$5:AF122,AF122),"X") -> 48 | AH122: =CONCATENATE(AE122,AF122) -> TRUEMedium
A123: =CONCATENATE(AE123,D123,AG123) -> TRUEMedium49 | B123: =RAND() -> 0.6516109517 | C123: % | D123: Medium | E123: 281 | F123: A | G123: =CHOOSE(RANDBETWEEN(1,5),"jacket","pair of trainers","mobile phone","MP3 player","video game") -> MP3 player | H123: costs £ | I123: =10*RANDBETWEEN(4,9) -> 90 | J123: . In a sale, its price is reduced by | K123: =RANDBETWEEN(2,9) -> 4 | L123: % | M123: . What is its price in the sale? | T123: =CONCATENATE(F123," ",G123," ",H123,"",I123," ",J123," ",K123,"",L123," ",M123," ",N123," ",O123," ",P123," ",Q123," ",R123) -> A MP3 player costs £90 . In a sale, its price is reduced by 4% . What is its price in the sale? | U123: £ | V123: =TEXT((100-K123)/100*I123,"#.00") -> 86.40 | AC123: =IF(ISERROR(T123),NA(),"") ->  | AD123: =IF(OR(ISNA(U123),ISNA(V123),ISNA(W123),ISNA(X123),ISNA(Y123),ISNA(Z123),ISNA(AA123),ISNA(AB123),ISNA(AC123)),NA(),CONCATENATE(U123,V123,W123,X123,Y123,Z123,AA123,AB123)) -> £86.40 | AE123: =IF(ISNA(AD123),FALSE,IF(C123=$B$1,Worksheet!$B$3,IF(C123=$C$1,Worksheet!$B$4,IF(C123=$D$1,Worksheet!$B$5,IF(C123=$C$2,Worksheet!$D$3,IF(C123=$D$2,Worksheet!$D$4,IF(C123=$E$2,Worksheet!$D$5,IF(C123=$C$3,Worksheet!$D$6,IF(C123=$B$3,Worksheet!$B$6,IF(C123=$D$3,Worksheet!$B$9,IF(C123=$E$3,Worksheet!$D$9,FALSE))))))))))) -> TRUE | AF123: =IF(AE123,D123,"") -> Medium | AG123: =IF(AE123,COUNTIF($AF$5:AF123,AF123),"X") -> 49 | AH123: =CONCATENATE(AE123,AF123) -> TRUEMedium
A124: =CONCATENATE(AE124,D124,AG124) -> TRUEMedium50 | B124: =RAND() -> 0.6597551399 | C124: Dec | D124: Medium | E124: 200 | F124: Write the number | G124: =RANDBETWEEN(2,9)/10 -> 0.5 | H124: in standard form | T124: =CONCATENATE(F124," ",G124," ",H124," ",I124," ",J124," ",K124," ",L124," ",M124," ",N124," ",O124," ",P124," ",Q124," ",R124) -> Write the number 0.5 in standard form | U124: =G124*10 -> 5 | V124: × 10^(-1) (10 to the power of -1) | AC124: =IF(ISERROR(T124),NA(),"") ->  | AD124: =IF(OR(ISNA(U124),ISNA(V124),ISNA(W124),ISNA(X124),ISNA(Y124),ISNA(Z124),ISNA(AA124),ISNA(AB124),ISNA(AC124)),NA(),CONCATENATE(U124,V124,W124,X124,Y124,Z124,AA124,AB124)) -> 5× 10^(-1) (10 to the power of -1) | AE124: =IF(ISNA(AD124),FALSE,IF(C124=$B$1,Worksheet!$B$3,IF(C124=$C$1,Worksheet!$B$4,IF(C124=$D$1,Worksheet!$B$5,IF(C124=$C$2,Worksheet!$D$3,IF(C124=$D$2,Worksheet!$D$4,IF(C124=$E$2,Worksheet!$D$5,IF(C124=$C$3,Worksheet!$D$6,IF(C124=$B$3,Worksheet!$B$6,IF(C124=$D$3,Worksheet!$B$9,IF(C124=$E$3,Worksheet!$D$9,FALSE))))))))))) -> TRUE | AF124: =IF(AE124,D124,"") -> Medium | AG124: =IF(AE124,COUNTIF($AF$5:AF124,AF124),"X") -> 50 | AH124: =CONCATENATE(AE124,AF124) -> TRUEMedium
A125: =CONCATENATE(AE125,D125,AG125) -> TRUEEasy49 | B125: =RAND() -> 0.01015316947 | C125: Neg | D125: Easy | E125: 214 | F125: What is | G125: (– | H125: =RANDBETWEEN(1,10) -> 10 | I125: )² | J125: ? | T125: =CONCATENATE(F125," ",G125,"",H125,"",I125," ",J125," ",K125," ",L125," ",M125," ",N125," ",O125," ",P125," ",Q125," ",R125) -> What is (–10)² ? | U125: =H125^2 -> 100 | AC125: =IF(ISERROR(T125),NA(),"") ->  | AD125: =IF(OR(ISNA(U125),ISNA(V125),ISNA(W125),ISNA(X125),ISNA(Y125),ISNA(Z125),ISNA(AA125),ISNA(AB125),ISNA(AC125)),NA(),CONCATENATE(U125,V125,W125,X125,Y125,Z125,AA125,AB125)) -> 100 | AE125: =IF(ISNA(AD125),FALSE,IF(C125=$B$1,Worksheet!$B$3,IF(C125=$C$1,Worksheet!$B$4,IF(C125=$D$1,Worksheet!$B$5,IF(C125=$C$2,Worksheet!$D$3,IF(C125=$D$2,Worksheet!$D$4,IF(C125=$E$2,Worksheet!$D$5,IF(C125=$C$3,Worksheet!$D$6,IF(C125=$B$3,Worksheet!$B$6,IF(C125=$D$3,Worksheet!$B$9,IF(C125=$E$3,Worksheet!$D$9,FALSE))))))))))) -> TRUE | AF125: =IF(AE125,D125,"") -> Easy | AG125: =IF(AE125,COUNTIF($AF$5:AF125,AF125),"X") -> 49 | AH125: =CONCATENATE(AE125,AF125) -> TRUEEasy
A126: =CONCATENATE(AE126,D126,AG126) -> TRUEHard22 | B126: =RAND() -> 0.9670992919 | C126: Dec | D126: Hard | E126: 205 | F126: Write the number | G126: =RANDBETWEEN(2,9)*10000+RANDBETWEEN(1,999)*10 -> 79150 | H126: in standard form | T126: =CONCATENATE(F126," ",G126," ",H126," ",I126," ",J126," ",K126," ",L126," ",M126," ",N126," ",O126," ",P126," ",Q126," ",R126) -> Write the number 79150 in standard form | U126: =G126/10000 -> 7.915 | V126: × 10^4 (10 to the power of 4) | AC126: =IF(ISERROR(T126),NA(),"") ->  | AD126: =IF(OR(ISNA(U126),ISNA(V126),ISNA(W126),ISNA(X126),ISNA(Y126),ISNA(Z126),ISNA(AA126),ISNA(AB126),ISNA(AC126)),NA(),CONCATENATE(U126,V126,W126,X126,Y126,Z126,AA126,AB126)) -> 7.915× 10^4 (10 to the power of 4) | AE126: =IF(ISNA(AD126),FALSE,IF(C126=$B$1,Worksheet!$B$3,IF(C126=$C$1,Worksheet!$B$4,IF(C126=$D$1,Worksheet!$B$5,IF(C126=$C$2,Worksheet!$D$3,IF(C126=$D$2,Worksheet!$D$4,IF(C126=$E$2,Worksheet!$D$5,IF(C126=$C$3,Worksheet!$D$6,IF(C126=$B$3,Worksheet!$B$6,IF(C126=$D$3,Worksheet!$B$9,IF(C126=$E$3,Worksheet!$D$9,FALSE))))))))))) -> TRUE | AF126: =IF(AE126,D126,"") -> Hard | AG126: =IF(AE126,COUNTIF($AF$5:AF126,AF126),"X") -> 22 | AH126: =CONCATENATE(AE126,AF126) -> TRUEHard
A127: =CONCATENATE(AE127,D127,AG127) -> TRUEMedium51 | B127: =RAND() -> 0.79863446 | C127: Frac | D127: Medium | E127: 78 | F127: Fractions. Without a calculator, work out: | G127: =TEXT(R127/S127,"##/##") -> 11/35 | H127: of | I127: =S127*RANDBETWEEN(3,6) -> 210 | R127: =RANDBETWEEN(2,S127-1) -> 22 | S127: =RANDBETWEEN(2,10)*10 -> 70 | T127: =CONCATENATE(F127," ",G127," ",H127," ",I127," ",J127," ",K127," ",L127," ",M127," ",N127," ",O127," ",P127," ",Q127) -> Fractions. Without a calculator, work out: 11/35 of 210 | U127: =I127/S127*VALUE(LEFT(G127,1)) -> 3 | AC127: =IF(ISERROR(T127),NA(),"") ->  | AD127: =IF(OR(ISNA(U127),ISNA(V127),ISNA(W127),ISNA(X127),ISNA(Y127),ISNA(Z127),ISNA(AA127),ISNA(AB127),ISNA(AC127)),NA(),CONCATENATE(U127,V127,W127,X127,Y127,Z127,AA127,AB127)) -> 3 | AE127: =IF(ISNA(AD127),FALSE,IF(C127=$B$1,Worksheet!$B$3,IF(C127=$C$1,Worksheet!$B$4,IF(C127=$D$1,Worksheet!$B$5,IF(C127=$C$2,Worksheet!$D$3,IF(C127=$D$2,Worksheet!$D$4,IF(C127=$E$2,Worksheet!$D$5,IF(C127=$C$3,Worksheet!$D$6,IF(C127=$B$3,Worksheet!$B$6,IF(C127=$D$3,Worksheet!$B$9,IF(C127=$E$3,Worksheet!$D$9,FALSE))))))))))) -> TRUE | AF127: =IF(AE127,D127,"") -> Medium | AG127: =IF(AE127,COUNTIF($AF$5:AF127,AF127),"X") -> 51 | AH127: =CONCATENATE(AE127,AF127) -> TRUEMedium
A128: =CONCATENATE(AE128,D128,AG128) -> TRUEMedium52 | B128: =RAND() -> 0.5009000706 | C128: Dec | D128: Medium | E128: 167 | F128: Rewrite the numbers in order from | G128: =IF(RAND()<0.5,"smallest to biggest: ","biggest to smallest: ") -> biggest to smallest: | H128: =$S128/1000000 -> 0.881138 | I128: =MROUND(($S128/RANDBETWEEN(2,3))/1000000,10^RANDBETWEEN(-3,-2)) -> 0.294 | J128: =MROUND(($S128/RANDBETWEEN(4,5))/1000000,10^RANDBETWEEN(-5,-4)) -> 0.22028 | K128: =MROUND(($S128/RANDBETWEEN(5,6))/1000000,10^RANDBETWEEN(-5,-1)) -> 0.1 | L128: =MROUND(($S128*2/RANDBETWEEN(5,6))/1000000,10^RANDBETWEEN(-5,-1)) -> 0.4 | N128: =L128 -> 0.4 | O128: =H128 -> 0.881138 | P128: =I128 -> 0.294 | Q128: =J128 -> 0.22028 | R128: =K128 -> 0.1 | S128: =RANDBETWEEN(101,999999) -> 881138 | T128: =CONCATENATE(F128," ",G128," ",H128,", ",I128,", ",J128,", ",K128,", ",L128," ",M128) -> Rewrite the numbers in order from biggest to smallest: 0.881138, 0.294, 0.22028, 0.1, 0.4 | U128: =IF(LARGE($N128:$R128,IF($G128="biggest to smallest: ",1,5))=$O128,$H128,IF(LARGE($N128:$R128,IF($G128="biggest to smallest: ",1,5))=$P128,$I128,IF(LARGE($N128:$R128,IF($G128="biggest to smallest: ",1,5))=$Q128,$J128,IF(LARGE($N128:$R128,IF($G128="biggest to smallest: ",1,5))=$R128,$K128,$L128)))) -> 0.881138 | V128: =IF(LARGE($N128:$R128,IF($G128="biggest to smallest: ",2,4))=$O128,$H128,IF(LARGE($N128:$R128,IF($G128="biggest to smallest: ",2,4))=$P128,$I128,IF(LARGE($N128:$R128,IF($G128="biggest to smallest: ",2,4))=$Q128,$J128,IF(LARGE($N128:$R128,IF($G128="biggest to smallest: ",2,4))=$R128,$K128,$L128)))) -> 0.4 | W128: =IF(LARGE($N128:$R128,IF($G128="biggest to smallest: ",3,3))=$O128,$H128,IF(LARGE($N128:$R128,IF($G128="biggest to smallest: ",3,3))=$P128,$I128,IF(LARGE($N128:$R128,IF($G128="biggest to smallest: ",3,3))=$Q128,$J128,IF(LARGE($N128:$R128,IF($G128="biggest to smallest: ",3,3))=$R128,$K128,$L128)))) -> 0.294 | X128: =IF(LARGE($N128:$R128,IF($G128="biggest to smallest: ",4,2))=$O128,$H128,IF(LARGE($N128:$R128,IF($G128="biggest to smallest: ",4,2))=$P128,$I128,IF(LARGE($N128:$R128,IF($G128="biggest to smallest: ",4,2))=$Q128,$J128,IF(LARGE($N128:$R128,IF($G128="biggest to smallest: ",4,2))=$R128,$K128,$L128)))) -> 0.22028 | Y128: =IF(LARGE($N128:$R128,IF($G128="biggest to smallest: ",5,1))=$O128,$H128,IF(LARGE($N128:$R128,IF($G128="biggest to smallest: ",5,1))=$P128,$I128,IF(LARGE($N128:$R128,IF($G128="biggest to smallest: ",5,1))=$Q128,$J128,IF(LARGE($N128:$R128,IF($G128="biggest to smallest: ",5,1))=$R128,$K128,$L128)))) -> 0.1 | AB128: =IF(OR(H128=L128,I128=L128,J128=L128,K128=L128,I128=J128,I128=K128),NA(),"") ->  | AC128: =IF(ISERROR(T128),NA(),"") ->  | AD128: =IF(OR(ISNA(U128),ISNA(V128),ISNA(W128),ISNA(X128),ISNA(Y128)),NA(),CONCATENATE(U128,", ",V128,", ",W128,", ",X128,", ",Y128,Z128,AA128,AB128,AC128)) -> 0.881138, 0.4, 0.294, 0.22028, 0.1 | AE128: TRUE | AF128: =IF(AE128,D128,"") -> Medium | AG128: =IF(AE128,COUNTIF($AF$5:AF128,AF128),"X") -> 52 | AH128: =CONCATENATE(AE128,AF128) -> TRUEMedium
A129: =CONCATENATE(AE129,D129,AG129) -> TRUEEasy50 | B129: =RAND() -> 0.7210574015 | C129: +-×÷ | D129: Easy | E129: 23 | F129: Work out the value of: | G129: =RANDBETWEEN(2,9) -> 6 | H129: ( | I129: =RANDBETWEEN(10,30) -> 12 | J129: – | K129: =RANDBETWEEN(1,I129) -> 5 | L129: ) | T129: =CONCATENATE(F129," ",G129," ",H129," ",I129," ",J129," ",K129," ",L129," ",M129," ",N129," ",O129," ",P129," ",Q129," ",R129) -> Work out the value of: 6 ( 12 – 5 ) | U129: =(I129-K129)*G129 -> 42 | AC129: =IF(ISERROR(T129),NA(),"") ->  | AD129: =IF(OR(ISNA(U129),ISNA(V129),ISNA(W129),ISNA(X129),ISNA(Y129),ISNA(Z129),ISNA(AA129),ISNA(AB129),ISNA(AC129)),NA(),CONCATENATE(U129,V129,W129,X129,Y129,Z129,AA129,AB129)) -> 42 | AE129: =IF(ISNA(AD129),FALSE,IF(C129=$B$1,Worksheet!$B$3,IF(C129=$C$1,Worksheet!$B$4,IF(C129=$D$1,Worksheet!$B$5,IF(C129=$C$2,Worksheet!$D$3,IF(C129=$D$2,Worksheet!$D$4,IF(C129=$E$2,Worksheet!$D$5,IF(C129=$C$3,Worksheet!$D$6,IF(C129=$B$3,Worksheet!$B$6,IF(C129=$D$3,Worksheet!$B$9,IF(C129=$E$3,Worksheet!$D$9,FALSE))))))))))) -> TRUE | AF129: =IF(AE129,D129,"") -> Easy | AG129: =IF(AE129,COUNTIF($AF$5:AF129,AF129),"X") -> 50 | AH129: =CONCATENATE(AE129,AF129) -> TRUEEasy
A130: =CONCATENATE(AE130,D130,AG130) -> TRUEEasy51 | B130: =RAND() -> 0.3528793486 | C130: Dec | D130: Easy | E130: 188 | F130: Change the number | G130: =RANDBETWEEN(1,9)+RANDBETWEEN(1,9)/10 -> 6.1 | H130: × 10^ | I130: =RANDBETWEEN(2,6) -> 6 | J130: (10 to the power of | K130: =I130 -> 6 | L130: ) from standard form to normal form | T130: =CONCATENATE(F130," ",G130," ",H130,"",I130," ",J130," ",K130,"",L130," ",M130," ",N130," ",O130," ",P130," ",Q130," ",R130) -> Change the number 6.1 × 10^6 (10 to the power of 6) from standard form to normal form | U130: =G130*10^I130 -> 6100000 | AC130: =IF(ISERROR(T130),NA(),"") ->  | AD130: =IF(OR(ISNA(U130),ISNA(V130),ISNA(W130),ISNA(X130),ISNA(Y130),ISNA(Z130),ISNA(AA130),ISNA(AB130),ISNA(AC130)),NA(),CONCATENATE(U130,V130,W130,X130,Y130,Z130,AA130,AB130)) -> 6100000 | AE130: =IF(ISNA(AD130),FALSE,IF(C130=$B$1,Worksheet!$B$3,IF(C130=$C$1,Worksheet!$B$4,IF(C130=$D$1,Worksheet!$B$5,IF(C130=$C$2,Worksheet!$D$3,IF(C130=$D$2,Worksheet!$D$4,IF(C130=$E$2,Worksheet!$D$5,IF(C130=$C$3,Worksheet!$D$6,IF(C130=$B$3,Worksheet!$B$6,IF(C130=$D$3,Worksheet!$B$9,IF(C130=$E$3,Worksheet!$D$9,FALSE))))))))))) -> TRUE | AF130: =IF(AE130,D130,"") -> Easy | AG130: =IF(AE130,COUNTIF($AF$5:AF130,AF130),"X") -> 51 | AH130: =CONCATENATE(AE130,AF130) -> TRUEEasy
A131: =CONCATENATE(AE131,D131,AG131) -> TRUEMedium53 | B131: =RAND() -> 0.7252712038 | C131: Eqn | D131: Medium | E131: 319 | F131: Solve the equation | G131: =RANDBETWEEN(2,10) -> 6 | H131: =CHOOSE(RANDBETWEEN(1,22),"a","b","c","d","f","g","h","j","k","m","n","p","q","r","s","t","u","v","w","x","y","z") -> y | I131: + | J131: =RANDBETWEEN(1,10) -> 5 | K131: = | L131: =G131*W131+J131 -> 89 | M131: . Show your working in full. | T131: =CONCATENATE(F131," ",G131,"",H131," ",I131," ",J131," ",K131," ",L131," ",M131," ",N131," ",O131," ",P131," ",Q131," ",R131) -> Solve the equation 6y + 5 = 89 . Show your working in full. | U131: =H131 -> y | V131: = | W131: =RANDBETWEEN(10,30) -> 14 | AC131: =IF(ISERROR(T131),NA(),"") ->  | AD131: =IF(OR(ISNA(U131),ISNA(V131),ISNA(W131),ISNA(X131),ISNA(Y131),ISNA(Z131),ISNA(AA131),ISNA(AB131),ISNA(AC131)),NA(),CONCATENATE(U131,V131,W131,X131,Y131,Z131,AA131,AB131)) -> y = 14 | AE131: =IF(ISNA(AD131),FALSE,IF(C131=$B$1,Worksheet!$B$3,IF(C131=$C$1,Worksheet!$B$4,IF(C131=$D$1,Worksheet!$B$5,IF(C131=$C$2,Worksheet!$D$3,IF(C131=$D$2,Worksheet!$D$4,IF(C131=$E$2,Worksheet!$D$5,IF(C131=$C$3,Worksheet!$D$6,IF(C131=$B$3,Worksheet!$B$6,IF(C131=$D$3,Worksheet!$B$9,IF(C131=$E$3,Worksheet!$D$9,FALSE))))))))))) -> TRUE | AF131: =IF(AE131,D131,"") -> Medium | AG131: =IF(AE131,COUNTIF($AF$5:AF131,AF131),"X") -> 53 | AH131: =CONCATENATE(AE131,AF131) -> TRUEMedium
A132: =CONCATENATE(AE132,D132,AG132) -> TRUEEasy52 | B132: =RAND() -> 0.1948480499 | C132: Frac | D132: Easy | E132: 85 | F132: Write the topheavy fraction | G132: =5*RANDBETWEEN(1,5)+RANDBETWEEN(1,4) -> 19 | H132: /5 | I132: as a mixed number | T132: =CONCATENATE(F132," ",G132,"",H132," ",I132," ",J132," ",K132," ",L132," ",M132," ",N132," ",O132," ",P132," ",Q132," ",R132) -> Write the topheavy fraction 19/5 as a mixed number | U132: =INT(G132/5) -> 3 | W132: =MOD(G132,5) -> 4 | X132: / | Y132: 5 | AC132: =IF(ISERROR(T132),NA(),"") ->  | AD132: =IF(OR(ISNA(U132),ISNA(V132),ISNA(W132),ISNA(X132),ISNA(Y132),ISNA(Z132),ISNA(AA132),ISNA(AB132),ISNA(AC132)),NA(),CONCATENATE(U132,V132,W132,X132,Y132,Z132,AA132,AB132)) -> 3 4/5 | AE132: =IF(ISNA(AD132),FALSE,IF(C132=$B$1,Worksheet!$B$3,IF(C132=$C$1,Worksheet!$B$4,IF(C132=$D$1,Worksheet!$B$5,IF(C132=$C$2,Worksheet!$D$3,IF(C132=$D$2,Worksheet!$D$4,IF(C132=$E$2,Worksheet!$D$5,IF(C132=$C$3,Worksheet!$D$6,IF(C132=$B$3,Worksheet!$B$6,IF(C132=$D$3,Worksheet!$B$9,IF(C132=$E$3,Worksheet!$D$9,FALSE))))))))))) -> TRUE | AF132: =IF(AE132,D132,"") -> Easy | AG132: =IF(AE132,COUNTIF($AF$5:AF132,AF132),"X") -> 52 | AH132: =CONCATENATE(AE132,AF132) -> TRUEEasy
A133: =CONCATENATE(AE133,D133,AG133) -> TRUEHard23 | B133: =RAND() -> 0.342060663 | C133: Frac | D133: Hard | E133: 120 | F133: Multiply: | G133: =RANDBETWEEN(1,5) -> 5 | H133: =IF(J133=4,CHOOSE(RANDBETWEEN(1,2),1,3),RANDBETWEEN(1,J133-1)) -> 1 | I133: / | J133: =RANDBETWEEN(3,5) -> 5 | L133: × | M133: =RANDBETWEEN(2,4)*J133-RANDBETWEEN(1,J133-1) -> 14 | T133: =CONCATENATE(F133," ",G133," ",H133,"",I133,"",J133," ",K133," ",L133," ",M133," ",N133,"",O133,"",P133," ",Q133," ",R133) -> Multiply: 5 1/5 × 14 | U133: =M133*G133+INT(M133*H133/J133) -> 72 | V133: =MOD(H133*M133,J133)/AC133 -> 4 | W133: =IF(M133=1,NA(),"/") -> / | X133: =J133/AC133 -> 5 | Y133: =IF(V133="",""," or ") -> or | Z133: =IF(V133="","",X133*U133+V133) -> 364 | AA133: =IF(V133="","","/") -> / | AB133: =X133 -> 5 | AC133: =GCD(MOD(H133*M133,J133),J133) -> 1 | AD133: =IF(OR(ISNA(U133),ISNA(V133),ISNA(W133),ISNA(X133),ISNA(Y133),ISNA(Z133),ISNA(AA133),ISNA(AB133),ISNA(AC133)),NA(),CONCATENATE(IF(U133=0,"",U133),IF(U133=0,""," "),IF(U133=0,"",V133),IF(U133=0,"",W133),IF(U133=0,"",X133),IF(U133=0,"",Y133),Z133,AA133,AB133)) -> 72 4/5 or 364/5 | AE133: =IF(ISNA(AD133),FALSE,IF(C133=$B$1,Worksheet!$B$3,IF(C133=$C$1,Worksheet!$B$4,IF(C133=$D$1,Worksheet!$B$5,IF(C133=$C$2,Worksheet!$D$3,IF(C133=$D$2,Worksheet!$D$4,IF(C133=$E$2,Worksheet!$D$5,IF(C133=$C$3,Worksheet!$D$6,IF(C133=$B$3,Worksheet!$B$6,IF(C133=$D$3,Worksheet!$B$9,IF(C133=$E$3,Worksheet!$D$9,FALSE))))))))))) -> TRUE | AF133: =IF(AE133,D133,"") -> Hard | AG133: =IF(AE133,COUNTIF($AF$5:AF133,AF133),"X") -> 23 | AH133: =CONCATENATE(AE133,AF133) -> TRUEHard
A134: =CONCATENATE(AE134,D134,AG134) -> TRUEEasy53 | B134: =RAND() -> 0.3333075584 | C134: Dec | D134: Easy | E134: 137 | F134: What number is exactly half way between | G134: =RANDBETWEEN(1,9)+RANDBETWEEN(0,9)*0.1+RANDBETWEEN(1,9)*0.01+RANDBETWEEN(1,8)*0.001 -> 2.953 | H134: and | I134: =G134+0.001 -> 2.954 | J134: ? | T134: =CONCATENATE(F134," ",G134," ",H134," ",I134,"",J134,"",K134," ",L134," ",M134," ",N134," ",O134," ",P134," ",Q134," ",R134) -> What number is exactly half way between 2.953 and 2.954? | U134: =G134+0.0005 -> 2.9535 | AC134: =IF(ISERROR(T134),NA(),"") ->  | AD134: =IF(OR(ISNA(U134),ISNA(V134),ISNA(W134),ISNA(X134),ISNA(Y134),ISNA(Z134),ISNA(AA134),ISNA(AB134),ISNA(AC134)),NA(),CONCATENATE(U134,V134,W134,X134,Y134,Z134,AA134,AB134)) -> 2.9535 | AE134: =IF(ISNA(AD134),FALSE,IF(C134=$B$1,Worksheet!$B$3,IF(C134=$C$1,Worksheet!$B$4,IF(C134=$D$1,Worksheet!$B$5,IF(C134=$C$2,Worksheet!$D$3,IF(C134=$D$2,Worksheet!$D$4,IF(C134=$E$2,Worksheet!$D$5,IF(C134=$C$3,Worksheet!$D$6,IF(C134=$B$3,Worksheet!$B$6,IF(C134=$D$3,Worksheet!$B$9,IF(C134=$E$3,Worksheet!$D$9,FALSE))))))))))) -> TRUE | AF134: =IF(AE134,D134,"") -> Easy | AG134: =IF(AE134,COUNTIF($AF$5:AF134,AF134),"X") -> 53 | AH134: =CONCATENATE(AE134,AF134) -> TRUEEasy
A135: =CONCATENATE(AE135,D135,AG135) -> TRUEEasy54 | B135: =RAND() -> 0.8059813077 | C135: Alg | D135: Easy | E135: 331 | F135: Multiply out the bracket: | G135: =RANDBETWEEN(2,10) -> 3 | H135: ( | I135: =CHOOSE(RANDBETWEEN(1,22),"a","b","c","d","f","g","h","j","k","m","n","p","q","r","s","t","u","v","w","x","y","z") -> n | J135: + | K135: =RANDBETWEEN(1,10) -> 9 | L135: ) | T135: =CONCATENATE(F135," ",G135," ",H135," ",I135," ",J135," ",K135," ",L135," ",M135," ",N135," ",O135," ",P135," ",Q135," ",R135) -> Multiply out the bracket: 3 ( n + 9 ) | U135: =CONCATENATE(G135,I135," ",J135," ",G135*K135) -> 3n + 27 | AC135: =IF(L135<0,NA(),"") ->  | AD135: =IF(OR(ISNA(U135),ISNA(V135),ISNA(W135),ISNA(X135),ISNA(Y135),ISNA(Z135),ISNA(AA135),ISNA(AB135),ISNA(AC135)),NA(),CONCATENATE(U135,V135,W135,X135,Y135,Z135,AA135,AB135)) -> 3n + 27 | AE135: =IF(ISNA(AD135),FALSE,IF(C135=$B$1,Worksheet!$B$3,IF(C135=$C$1,Worksheet!$B$4,IF(C135=$D$1,Worksheet!$B$5,IF(C135=$C$2,Worksheet!$D$3,IF(C135=$D$2,Worksheet!$D$4,IF(C135=$E$2,Worksheet!$D$5,IF(C135=$C$3,Worksheet!$D$6,IF(C135=$B$3,Worksheet!$B$6,IF(C135=$D$3,Worksheet!$B$9,IF(C135=$E$3,Worksheet!$D$9,FALSE))))))))))) -> TRUE | AF135: =IF(AE135,D135,"") -> Easy | AG135: =IF(AE135,COUNTIF($AF$5:AF135,AF135),"X") -> 54 | AH135: =CONCATENATE(AE135,AF135) -> TRUEEasy
A136: =CONCATENATE(AE136,D136,AG136) -> TRUEMedium54 | B136: =RAND() -> 0.8487386047 | C136: Surds | D136: Medium | E136: 37 | F136: Square roots. What is √ | G136: =(RANDBETWEEN(2,10)*10)^2 -> 3600 | H136: ? | T136: =CONCATENATE(F136,"",G136," ",H136," ",I136," ",J136," ",K136," ",L136," ",M136," ",N136," ",O136," ",P136," ",Q136," ",R136) -> Square roots. What is √3600 ? | U136: =SQRT(G136) -> 60 | AC136: =IF(ISERROR(T136),NA(),"") ->  | AD136: =IF(OR(ISNA(U136),ISNA(V136),ISNA(W136),ISNA(X136),ISNA(Y136),ISNA(Z136),ISNA(AA136),ISNA(AB136),ISNA(AC136)),NA(),CONCATENATE(U136,V136,W136,X136,Y136,Z136,AA136,AB136)) -> 60 | AE136: =IF(ISNA(AD136),FALSE,IF(C136=$B$1,Worksheet!$B$3,IF(C136=$C$1,Worksheet!$B$4,IF(C136=$D$1,Worksheet!$B$5,IF(C136=$C$2,Worksheet!$D$3,IF(C136=$D$2,Worksheet!$D$4,IF(C136=$E$2,Worksheet!$D$5,IF(C136=$C$3,Worksheet!$D$6,IF(C136=$B$3,Worksheet!$B$6,IF(C136=$D$3,Worksheet!$B$9,IF(C136=$E$3,Worksheet!$D$9,FALSE))))))))))) -> TRUE | AF136: =IF(AE136,D136,"") -> Medium | AG136: =IF(AE136,COUNTIF($AF$5:AF136,AF136),"X") -> 54 | AH136: =CONCATENATE(AE136,AF136) -> TRUEMedium
A137: =CONCATENATE(AE137,D137,AG137) -> TRUEMedium55 | B137: =RAND() -> 0.2854272243 | C137: % | D137: Medium | E137: 278 | F137: A | G137: =CHOOSE(RANDBETWEEN(1,5),"jacket","pair of trainers","mobile phone","MP3 player","video game") -> mobile phone | H137: costs £ | I137: =10*RANDBETWEEN(4,9) -> 70 | J137: . In a sale, its price is reduced by | K137: =10*RANDBETWEEN(2,4) -> 40 | L137: % | M137: . What is its price in the sale? | T137: =CONCATENATE(F137," ",G137," ",H137,"",I137," ",J137," ",K137,"",L137," ",M137," ",N137," ",O137," ",P137," ",Q137," ",R137) -> A mobile phone costs £70 . In a sale, its price is reduced by 40% . What is its price in the sale? | U137: £ | V137: =(100-K137)/100*I137 -> 42 | AC137: =IF(ISERROR(T137),NA(),"") ->  | AD137: =IF(OR(ISNA(U137),ISNA(V137),ISNA(W137),ISNA(X137),ISNA(Y137),ISNA(Z137),ISNA(AA137),ISNA(AB137),ISNA(AC137)),NA(),CONCATENATE(U137,V137,W137,X137,Y137,Z137,AA137,AB137)) -> £42 | AE137: =IF(ISNA(AD137),FALSE,IF(C137=$B$1,Worksheet!$B$3,IF(C137=$C$1,Worksheet!$B$4,IF(C137=$D$1,Worksheet!$B$5,IF(C137=$C$2,Worksheet!$D$3,IF(C137=$D$2,Worksheet!$D$4,IF(C137=$E$2,Worksheet!$D$5,IF(C137=$C$3,Worksheet!$D$6,IF(C137=$B$3,Worksheet!$B$6,IF(C137=$D$3,Worksheet!$B$9,IF(C137=$E$3,Worksheet!$D$9,FALSE))))))))))) -> TRUE | AF137: =IF(AE137,D137,"") -> Medium | AG137: =IF(AE137,COUNTIF($AF$5:AF137,AF137),"X") -> 55 | AH137: =CONCATENATE(AE137,AF137) -> TRUEMedium
A138: =CONCATENATE(AE138,D138,AG138) -> TRUEEasy55 | B138: =RAND() -> 0.03075526834 | C138: +-×÷ | D138: Easy | E138: 10 | F138: Add | G138: =RANDBETWEEN(10000,99999) -> 98809 | H138: + | I138: =RANDBETWEEN(10000,99999) -> 36598 | J138: without a calculator | T138: =CONCATENATE(F138," ",G138," ",H138," ",I138," ",J138," ",K138," ",L138," ",M138," ",N138," ",O138," ",P138," ",Q138," ",R138) -> Add 98809 + 36598 without a calculator | U138: =G138+I138 -> 135407 | AC138: =IF(ISERROR(T138),NA(),"") ->  | AD138: =IF(OR(ISNA(U138),ISNA(V138),ISNA(W138),ISNA(X138),ISNA(Y138),ISNA(Z138),ISNA(AA138),ISNA(AB138),ISNA(AC138)),NA(),CONCATENATE(U138,V138,W138,X138,Y138,Z138,AA138,AB138)) -> 135407 | AE138: =IF(ISNA(AD138),FALSE,IF(C138=$B$1,Worksheet!$B$3,IF(C138=$C$1,Worksheet!$B$4,IF(C138=$D$1,Worksheet!$B$5,IF(C138=$C$2,Worksheet!$D$3,IF(C138=$D$2,Worksheet!$D$4,IF(C138=$E$2,Worksheet!$D$5,IF(C138=$C$3,Worksheet!$D$6,IF(C138=$B$3,Worksheet!$B$6,IF(C138=$D$3,Worksheet!$B$9,IF(C138=$E$3,Worksheet!$D$9,FALSE))))))))))) -> TRUE | AF138: =IF(AE138,D138,"") -> Easy | AG138: =IF(AE138,COUNTIF($AF$5:AF138,AF138),"X") -> 55 | AH138: =CONCATENATE(AE138,AF138) -> TRUEEasy
A139: =CONCATENATE(AE139,D139,AG139) -> TRUEEasy56 | B139: =RAND() -> 0.6384135644 | C139: % | D139: Easy | E139: 268 | F139: What is | G139: 33⅓% | H139: of | I139: =3*RANDBETWEEN(2,10)*10^RANDBETWEEN(0,3) -> 27 | J139: ? | T139: =CONCATENATE(F139," ",G139," ",H139," ",I139,"",J139," ",K139," ",L139," ",M139," ",N139," ",O139," ",P139," ",Q139," ",R139) -> What is 33⅓% of 27? | U139: =I139/3 -> 9 | AC139: =IF(ISERROR(T139),NA(),"") ->  | AD139: =IF(OR(ISNA(U139),ISNA(V139),ISNA(W139),ISNA(X139),ISNA(Y139),ISNA(Z139),ISNA(AA139),ISNA(AB139),ISNA(AC139)),NA(),CONCATENATE(U139,V139,W139,X139,Y139,Z139,AA139,AB139)) -> 9 | AE139: =IF(ISNA(AD139),FALSE,IF(C139=$B$1,Worksheet!$B$3,IF(C139=$C$1,Worksheet!$B$4,IF(C139=$D$1,Worksheet!$B$5,IF(C139=$C$2,Worksheet!$D$3,IF(C139=$D$2,Worksheet!$D$4,IF(C139=$E$2,Worksheet!$D$5,IF(C139=$C$3,Worksheet!$D$6,IF(C139=$B$3,Worksheet!$B$6,IF(C139=$D$3,Worksheet!$B$9,IF(C139=$E$3,Worksheet!$D$9,FALSE))))))))))) -> TRUE | AF139: =IF(AE139,D139,"") -> Easy | AG139: =IF(AE139,COUNTIF($AF$5:AF139,AF139),"X") -> 56 | AH139: =CONCATENATE(AE139,AF139) -> TRUEEasy
A140: =CONCATENATE(AE140,D140,AG140) -> TRUEMedium56 | B140: =RAND() -> 0.4986352899 | C140: Alg | D140: Medium | E140: 313 | F140: Algebra. If | G140: =CHOOSE(RANDBETWEEN(1,22),"a","b","c","d","f","g","h","j","k","m","n","p","q","r","s","t","u","v","w","x","y","z") -> u | H140: = | I140: =RANDBETWEEN(1,5)+0.5 -> 5.5 | J140: , what is the value of: | K140: =RANDBETWEEN(4,10)*10 -> 70 | L140: – | M140: =RANDBETWEEN(2,10) -> 10 | N140: =G140 -> u | O140: ? | T140: =CONCATENATE(F140," ",G140," ",H140," ",I140," ",J140," ",K140," ",L140," ",M140,"",N140," ",O140," ",P140," ",Q140," ",R140) -> Algebra. If u = 5.5 , what is the value of: 70 – 10u ? | U140: =K140-M140*I140 -> 15 | AC140: =IF(ISERROR(T140),NA(),"") ->  | AD140: =IF(OR(ISNA(U140),ISNA(V140),ISNA(W140),ISNA(X140),ISNA(Y140),ISNA(Z140),ISNA(AA140),ISNA(AB140),ISNA(AC140)),NA(),CONCATENATE(U140,V140,W140,X140,Y140,Z140,AA140,AB140)) -> 15 | AE140: =IF(ISNA(AD140),FALSE,IF(C140=$B$1,Worksheet!$B$3,IF(C140=$C$1,Worksheet!$B$4,IF(C140=$D$1,Worksheet!$B$5,IF(C140=$C$2,Worksheet!$D$3,IF(C140=$D$2,Worksheet!$D$4,IF(C140=$E$2,Worksheet!$D$5,IF(C140=$C$3,Worksheet!$D$6,IF(C140=$B$3,Worksheet!$B$6,IF(C140=$D$3,Worksheet!$B$9,IF(C140=$E$3,Worksheet!$D$9,FALSE))))))))))) -> TRUE | AF140: =IF(AE140,D140,"") -> Medium | AG140: =IF(AE140,COUNTIF($AF$5:AF140,AF140),"X") -> 56 | AH140: =CONCATENATE(AE140,AF140) -> TRUEMedium
A141: =CONCATENATE(AE141,D141,AG141) -> TRUEMedium57 | B141: =RAND() -> 0.4731894114 | C141: Surds | D141: Medium | E141: 51 | F141: Simplify | G141: =RANDBETWEEN(4,10) -> 5 | H141: √ | I141: =CHOOSE(RANDBETWEEN(1,4),2,3,5,7) -> 2 | J141: – | K141: =RANDBETWEEN(2,G141-1) -> 3 | L141: √ | M141: =I141 -> 2 | T141: =CONCATENATE(F141,"",G141,"",H141,"",I141," ",J141," ",K141,"",L141,"",M141," ",N141," ",O141," ",P141," ",Q141," ",R141) -> Simplify 5√2 – 3√2 | U141: =G141-K141 -> 2 | V141: √ | W141: =I141 -> 2 | AC141: =IF(ISERROR(T141),NA(),"") ->  | AD141: =IF(OR(ISNA(U141),ISNA(V141),ISNA(W141),ISNA(X141),ISNA(Y141),ISNA(Z141),ISNA(AA141),ISNA(AB141),ISNA(AC141)),NA(),CONCATENATE(U141,V141,W141,X141,Y141,Z141,AA141,AB141)) -> 2√2 | AE141: =IF(ISNA(AD141),FALSE,IF(C141=$B$1,Worksheet!$B$3,IF(C141=$C$1,Worksheet!$B$4,IF(C141=$D$1,Worksheet!$B$5,IF(C141=$C$2,Worksheet!$D$3,IF(C141=$D$2,Worksheet!$D$4,IF(C141=$E$2,Worksheet!$D$5,IF(C141=$C$3,Worksheet!$D$6,IF(C141=$B$3,Worksheet!$B$6,IF(C141=$D$3,Worksheet!$B$9,IF(C141=$E$3,Worksheet!$D$9,FALSE))))))))))) -> TRUE | AF141: =IF(AE141,D141,"") -> Medium | AG141: =IF(AE141,COUNTIF($AF$5:AF141,AF141),"X") -> 57 | AH141: =CONCATENATE(AE141,AF141) -> TRUEMedium
A142: =CONCATENATE(AE142,D142,AG142) -> TRUEEasy57 | B142: =RAND() -> 0.1136391787 | C142: +-×÷ | D142: Easy | E142: 148 | F142: Take away: | G142: =RANDBETWEEN(1,9)+RANDBETWEEN(1,9)*0.1+RANDBETWEEN(0,9)*0.01 -> 3.12 | H142: – | I142: =RANDBETWEEN(1,9)+RANDBETWEEN(0,9)*0.1+RANDBETWEEN(0,9)*0.01+RANDBETWEEN(1,9)*0.001 -> 8.255 | T142: =CONCATENATE(F142," ",G142," ",H142," ",I142," ",J142," ",K142," ",L142," ",M142," ",N142," ",O142," ",P142," ",Q142," ",R142) -> Take away: 3.12 – 8.255 | U142: =G142+I142 -> 11.375 | AC142: =IF(ISERROR(T142),NA(),"") ->  | AD142: =IF(OR(ISNA(U142),ISNA(V142),ISNA(W142),ISNA(X142),ISNA(Y142),ISNA(Z142),ISNA(AA142),ISNA(AB142),ISNA(AC142)),NA(),CONCATENATE(U142,V142,W142,X142,Y142,Z142,AA142,AB142)) -> 11.375 | AE142: =IF(ISNA(AD142),FALSE,IF(C142=$B$1,Worksheet!$B$3,IF(C142=$C$1,Worksheet!$B$4,IF(C142=$D$1,Worksheet!$B$5,IF(C142=$C$2,Worksheet!$D$3,IF(C142=$D$2,Worksheet!$D$4,IF(C142=$E$2,Worksheet!$D$5,IF(C142=$C$3,Worksheet!$D$6,IF(C142=$B$3,Worksheet!$B$6,IF(C142=$D$3,Worksheet!$B$9,IF(C142=$E$3,Worksheet!$D$9,FALSE))))))))))) -> TRUE | AF142: =IF(AE142,D142,"") -> Easy | AG142: =IF(AE142,COUNTIF($AF$5:AF142,AF142),"X") -> 57 | AH142: =CONCATENATE(AE142,AF142) -> TRUEEasy
A143: =CONCATENATE(AE143,D143,AG143) -> TRUEHard24 | B143: =RAND() -> 0.0883705056 | C143: Frac | D143: Hard | E143: 115 | F143: Add the mixed numbers: | G143: =RANDBETWEEN(1,5) -> 4 | H143: =IF(J143=4,CHOOSE(RANDBETWEEN(1,2),1,3),RANDBETWEEN(1,J143-1)) -> 1 | I143: / | J143: =RANDBETWEEN(5,8) -> 5 | L143: + | M143: =RANDBETWEEN(1,5) -> 1 | N143: =RANDBETWEEN(1,P143-1) -> 1 | O143: / | P143: =SMALL(IF(J143={5,6,7,8},"",{5,6,7,8}),RANDBETWEEN(1,3)) -> 6 | T143: =CONCATENATE(F143," ",G143," ",H143,"",I143,"",J143," ",K143," ",L143," ",M143," ",N143,"",O143,"",P143," ",Q143," ",R143) -> Add the mixed numbers: 4 1/5 + 1 1/6 | U143: =IF(P143*H143+J143*N143>=J143*P143,M143+G143+1,M143+G143) -> 5 | V143: =IF((H143*P143+J143*N143-IF(H143*P143+J143*N143>=J143*P143,J143*P143,0))/AC143=0,"",(H143*P143+J143*N143-IF(H143*P143+J143*N143>=J143*P143,J143*P143,0))/AC143) -> 11 | W143: =IF((H143*P143+J143*N143-IF(H143*P143+J143*N143>=J143*P143,J143*P143,0))/AC143=0,"","/") -> / | X143: =IF((H143*P143+J143*N143-IF(H143*P143+J143*N143>=J143*P143,J143*P143,0))/AC143=0,"",J143*P143/AC143) -> 30 | Y143: =IF(V143="",""," or ") -> or | Z143: =IF(V143="","",X143*U143+V143) -> 161 | AA143: =IF(V143="","","/") -> / | AB143: =X143 -> 30 | AC143: =GCD(H143*P143+J143*N143,P143*J143) -> 1 | AD143: =IF(OR(ISNA(U143),ISNA(V143),ISNA(W143),ISNA(X143),ISNA(Y143),ISNA(Z143),ISNA(AA143),ISNA(AB143),ISNA(AC143)),NA(),CONCATENATE(U143," ",V143,W143,X143,Y143,Z143,AA143,AB143)) -> 5 11/30 or 161/30 | AE143: =IF(ISNA(AD143),FALSE,IF(C143=$B$1,Worksheet!$B$3,IF(C143=$C$1,Worksheet!$B$4,IF(C143=$D$1,Worksheet!$B$5,IF(C143=$C$2,Worksheet!$D$3,IF(C143=$D$2,Worksheet!$D$4,IF(C143=$E$2,Worksheet!$D$5,IF(C143=$C$3,Worksheet!$D$6,IF(C143=$B$3,Worksheet!$B$6,IF(C143=$D$3,Worksheet!$B$9,IF(C143=$E$3,Worksheet!$D$9,FALSE))))))))))) -> TRUE | AF143: =IF(AE143,D143,"") -> Hard | AG143: =IF(AE143,COUNTIF($AF$5:AF143,AF143),"X") -> 24 | AH143: =CONCATENATE(AE143,AF143) -> TRUEHard
A144: =CONCATENATE(AE144,D144,AG144) -> TRUEEasy58 | B144: =RAND() -> 0.6209743453 | C144: Eqn | D144: Easy | E144: 320 | F144: Solve the equation | G144: =RANDBETWEEN(2,10) -> 8 | H144: =CHOOSE(RANDBETWEEN(1,22),"a","b","c","d","f","g","h","j","k","m","n","p","q","r","s","t","u","v","w","x","y","z") -> k | I144: – | J144: =RANDBETWEEN(1,10) -> 4 | K144: = | L144: =G144*W144-J144 -> 228 | M144: . Show your working in full. | T144: =CONCATENATE(F144," ",G144,"",H144," ",I144," ",J144," ",K144," ",L144," ",M144," ",N144," ",O144," ",P144," ",Q144," ",R144) -> Solve the equation 8k – 4 = 228 . Show your working in full. | U144: =H144 -> k | V144: = | W144: =RANDBETWEEN(10,30) -> 29 | AC144: =IF(L144<0,NA(),"") ->  | AD144: =IF(OR(ISNA(U144),ISNA(V144),ISNA(W144),ISNA(X144),ISNA(Y144),ISNA(Z144),ISNA(AA144),ISNA(AB144),ISNA(AC144)),NA(),CONCATENATE(U144,V144,W144,X144,Y144,Z144,AA144,AB144)) -> k = 29 | AE144: =IF(ISNA(AD144),FALSE,IF(C144=$B$1,Worksheet!$B$3,IF(C144=$C$1,Worksheet!$B$4,IF(C144=$D$1,Worksheet!$B$5,IF(C144=$C$2,Worksheet!$D$3,IF(C144=$D$2,Worksheet!$D$4,IF(C144=$E$2,Worksheet!$D$5,IF(C144=$C$3,Worksheet!$D$6,IF(C144=$B$3,Worksheet!$B$6,IF(C144=$D$3,Worksheet!$B$9,IF(C144=$E$3,Worksheet!$D$9,FALSE))))))))))) -> TRUE | AF144: =IF(AE144,D144,"") -> Easy | AG144: =IF(AE144,COUNTIF($AF$5:AF144,AF144),"X") -> 58 | AH144: =CONCATENATE(AE144,AF144) -> TRUEEasy
A145: =CONCATENATE(AE145,D145,AG145) -> TRUEMedium58 | B145: =RAND() -> 0.8217472431 | C145: Round | D145: Medium | E145: 173 | F145: Round the number | G145: =ROUND(RAND()+RANDBETWEEN(11,999),8) -> 485.1459288 | H145: to | I145: =CHOOSE(RANDBETWEEN(1,2),"two","three") -> three | J145: =CONCATENATE("decimal place",IF(I145="one","","s")) -> decimal places | T145: =CONCATENATE(F145," ",G145," ",H145," ",I145," ",J145," ",K145," ",L145," ",M145," ",N145," ",O145," ",P145," ",Q145," ",R145) -> Round the number 485.1459288 to three decimal places | U145: =ROUND(G145,IF(I145="two",2,3)) -> 485.146 | AC145: =IF(ISERROR(T145),NA(),"") ->  | AD145: =IF(OR(ISNA(U145),ISNA(V145),ISNA(W145),ISNA(X145),ISNA(Y145),ISNA(Z145),ISNA(AA145),ISNA(AB145),ISNA(AC145)),NA(),CONCATENATE(U145,V145,W145,X145,Y145,Z145,AA145,AB145)) -> 485.146 | AE145: =IF(ISNA(AD145),FALSE,IF(C145=$B$1,Worksheet!$B$3,IF(C145=$C$1,Worksheet!$B$4,IF(C145=$D$1,Worksheet!$B$5,IF(C145=$C$2,Worksheet!$D$3,IF(C145=$D$2,Worksheet!$D$4,IF(C145=$E$2,Worksheet!$D$5,IF(C145=$C$3,Worksheet!$D$6,IF(C145=$B$3,Worksheet!$B$6,IF(C145=$D$3,Worksheet!$B$9,IF(C145=$E$3,Worksheet!$D$9,FALSE))))))))))) -> TRUE | AF145: =IF(AE145,D145,"") -> Medium | AG145: =IF(AE145,COUNTIF($AF$5:AF145,AF145),"X") -> 58 | AH145: =CONCATENATE(AE145,AF145) -> TRUEMedium
A146: =CONCATENATE(AE146,D146,AG146) -> TRUEHard25 | B146: =RAND() -> 0.8743207472 | C146: Surds | D146: Hard | E146: 53 | F146: Simplify | G146: =RANDBETWEEN(4,10) -> 10 | H146: √ | I146: =CHOOSE(RANDBETWEEN(1,4),2,3,5,7) -> 3 | J146: – | L146: √ | M146: =I146 -> 3 | T146: =CONCATENATE(F146,"",G146,"",H146,"",I146," ",J146," ",K146,"",L146,"",M146," ",N146," ",O146," ",P146," ",Q146," ",R146) -> Simplify 10√3 – √3 | U146: =G146-1 -> 9 | V146: √ | W146: =I146 -> 3 | AC146: =IF(ISERROR(T146),NA(),"") ->  | AD146: =IF(OR(ISNA(U146),ISNA(V146),ISNA(W146),ISNA(X146),ISNA(Y146),ISNA(Z146),ISNA(AA146),ISNA(AB146),ISNA(AC146)),NA(),CONCATENATE(U146,V146,W146,X146,Y146,Z146,AA146,AB146)) -> 9√3 | AE146: =IF(ISNA(AD146),FALSE,IF(C146=$B$1,Worksheet!$B$3,IF(C146=$C$1,Worksheet!$B$4,IF(C146=$D$1,Worksheet!$B$5,IF(C146=$C$2,Worksheet!$D$3,IF(C146=$D$2,Worksheet!$D$4,IF(C146=$E$2,Worksheet!$D$5,IF(C146=$C$3,Worksheet!$D$6,IF(C146=$B$3,Worksheet!$B$6,IF(C146=$D$3,Worksheet!$B$9,IF(C146=$E$3,Worksheet!$D$9,FALSE))))))))))) -> TRUE | AF146: =IF(AE146,D146,"") -> Hard | AG146: =IF(AE146,COUNTIF($AF$5:AF146,AF146),"X") -> 25 | AH146: =CONCATENATE(AE146,AF146) -> TRUEHard
A147: =CONCATENATE(AE147,D147,AG147) -> TRUEHard26 | B147: =RAND() -> 0.5861293121 | C147: Frac | D147: Hard | E147: 110 | F147: Divide the fractions: | G147: =IF(I147=4,CHOOSE(RANDBETWEEN(1,2),1,3),RANDBETWEEN(1,I147-1)) -> 3 | H147: / | I147: =RANDBETWEEN(9,20) -> 17 | J147: × | K147: =RANDBETWEEN(1,MIN(M147-1,(G147/I147)*M147)) -> 1 | L147: / | M147: =RANDBETWEEN(9,20) -> 15 | N147: =IF(GCD(G147*M147,I147*K147)=1,"",", giving your answer in its simplest form") ->  | T147: =CONCATENATE(F147," ",G147,"",H147,"",I147," ",J147," ",K147,"",L147,"",M147," ",N147," ",O147," ",P147," ",Q147," ",R147) -> Divide the fractions: 3/17 × 1/15 | U147: =(G147*M147)/GCD(G147*M147,I147*K147) -> 45 | V147: / | W147: =I147*K147/GCD(G147*M147,I147*K147) -> 17 | Z147: =IF(U147=0,NA(),"") ->  | AC147: =IF(ISERROR(T147),NA(),"") ->  | AD147: =IF(OR(ISNA(U147),ISNA(V147),ISNA(W147),ISNA(X147),ISNA(Y147),ISNA(Z147),ISNA(AA147),ISNA(AB147),ISNA(AC147)),NA(),CONCATENATE(U147,V147,W147,X147,Y147,Z147,AA147,AB147)) -> 45/17 | AE147: =IF(ISNA(AD147),FALSE,IF(C147=$B$1,Worksheet!$B$3,IF(C147=$C$1,Worksheet!$B$4,IF(C147=$D$1,Worksheet!$B$5,IF(C147=$C$2,Worksheet!$D$3,IF(C147=$D$2,Worksheet!$D$4,IF(C147=$E$2,Worksheet!$D$5,IF(C147=$C$3,Worksheet!$D$6,IF(C147=$B$3,Worksheet!$B$6,IF(C147=$D$3,Worksheet!$B$9,IF(C147=$E$3,Worksheet!$D$9,FALSE))))))))))) -> TRUE | AF147: =IF(AE147,D147,"") -> Hard | AG147: =IF(AE147,COUNTIF($AF$5:AF147,AF147),"X") -> 26 | AH147: =CONCATENATE(AE147,AF147) -> TRUEHard
A148: =CONCATENATE(AE148,D148,AG148) -> TRUEHard27 | B148: =RAND() -> 0.3303571489 | C148: Round | D148: Hard | E148: 185 | F148: Round the number | G148: =RANDBETWEEN(100,999)+RANDBETWEEN(1,9)/10 -> 118.6 | H148: to one significant figure | T148: =CONCATENATE(F148," ",G148," ",H148," ",I148," ",J148," ",K148," ",L148," ",M148," ",N148," ",O148," ",P148," ",Q148," ",R148) -> Round the number 118.6 to one significant figure | U148: =MROUND(G148,100) -> 100 | AC148: =IF(ISERROR(T148),NA(),"") ->  | AD148: =IF(OR(ISNA(U148),ISNA(V148),ISNA(W148),ISNA(X148),ISNA(Y148),ISNA(Z148),ISNA(AA148),ISNA(AB148),ISNA(AC148)),NA(),CONCATENATE(U148,V148,W148,X148,Y148,Z148,AA148,AB148)) -> 100 | AE148: =IF(ISNA(AD148),FALSE,IF(C148=$B$1,Worksheet!$B$3,IF(C148=$C$1,Worksheet!$B$4,IF(C148=$D$1,Worksheet!$B$5,IF(C148=$C$2,Worksheet!$D$3,IF(C148=$D$2,Worksheet!$D$4,IF(C148=$E$2,Worksheet!$D$5,IF(C148=$C$3,Worksheet!$D$6,IF(C148=$B$3,Worksheet!$B$6,IF(C148=$D$3,Worksheet!$B$9,IF(C148=$E$3,Worksheet!$D$9,FALSE))))))))))) -> TRUE | AF148: =IF(AE148,D148,"") -> Hard | AG148: =IF(AE148,COUNTIF($AF$5:AF148,AF148),"X") -> 27 | AH148: =CONCATENATE(AE148,AF148) -> TRUEHard
A149: =CONCATENATE(AE149,D149,AG149) -> TRUEMedium59 | B149: =RAND() -> 0.7603328303 | C149: Frac | D149: Medium | E149: 113 | F149: Add the mixed numbers: | G149: =RANDBETWEEN(1,5) -> 2 | H149: =IF(J149=4,CHOOSE(RANDBETWEEN(1,2),1,3),RANDBETWEEN(1,J149-1)) -> 1 | I149: / | J149: =RANDBETWEEN(3,5) -> 3 | L149: + | M149: =RANDBETWEEN(1,5) -> 5 | N149: =IF(P149=4,CHOOSE(RANDBETWEEN(1,2),1,3),RANDBETWEEN(1,P149-1)) -> 3 | O149: / | P149: =SMALL(IF(J149={3,4,5},"",{3,4,5}),RANDBETWEEN(1,2)) -> 4 | T149: =CONCATENATE(F149," ",G149," ",H149,"",I149,"",J149," ",K149," ",L149," ",M149," ",N149,"",O149,"",P149," ",Q149," ",R149) -> Add the mixed numbers: 2 1/3 + 5 3/4 | U149: =IF(P149*H149+J149*N149>=J149*P149,M149+G149+1,M149+G149) -> 8 | V149: =IF((H149*P149+J149*N149-IF(H149*P149+J149*N149>=J149*P149,J149*P149,0))/AC149=0,"",(H149*P149+J149*N149-IF(H149*P149+J149*N149>=J149*P149,J149*P149,0))/AC149) -> 1 | W149: =IF((H149*P149+J149*N149-IF(H149*P149+J149*N149>=J149*P149,J149*P149,0))/AC149=0,"","/") -> / | X149: =IF((H149*P149+J149*N149-IF(H149*P149+J149*N149>=J149*P149,J149*P149,0))/AC149=0,"",J149*P149/AC149) -> 12 | Y149: =IF(V149="",""," or ") -> or | Z149: =IF(V149="","",X149*U149+V149) -> 97 | AA149: =IF(V149="","","/") -> / | AB149: =X149 -> 12 | AC149: =GCD(H149*P149+J149*N149,P149*J149) -> 1 | AD149: =IF(OR(ISNA(U149),ISNA(V149),ISNA(W149),ISNA(X149),ISNA(Y149),ISNA(Z149),ISNA(AA149),ISNA(AB149),ISNA(AC149)),NA(),CONCATENATE(U149," ",V149,W149,X149,Y149,Z149,AA149,AB149)) -> 8 1/12 or 97/12 | AE149: =IF(ISNA(AD149),FALSE,IF(C149=$B$1,Worksheet!$B$3,IF(C149=$C$1,Worksheet!$B$4,IF(C149=$D$1,Worksheet!$B$5,IF(C149=$C$2,Worksheet!$D$3,IF(C149=$D$2,Worksheet!$D$4,IF(C149=$E$2,Worksheet!$D$5,IF(C149=$C$3,Worksheet!$D$6,IF(C149=$B$3,Worksheet!$B$6,IF(C149=$D$3,Worksheet!$B$9,IF(C149=$E$3,Worksheet!$D$9,FALSE))))))))))) -> TRUE | AF149: =IF(AE149,D149,"") -> Medium | AG149: =IF(AE149,COUNTIF($AF$5:AF149,AF149),"X") -> 59 | AH149: =CONCATENATE(AE149,AF149) -> TRUEMedium
A150: =CONCATENATE(AE150,D150,AG150) -> TRUEMedium60 | B150: =RAND() -> 0.00244925055 | C150: Surds | D150: Medium | E150: 54 | F150: Simplify | G150: =RANDBETWEEN(2,5) -> 3 | H150: √ | I150: =CHOOSE(RANDBETWEEN(1,4),2,3,5,7) -> 2 | J150: × | L150: √ | M150: =I150 -> 2 | T150: =CONCATENATE(F150,"",G150,"",H150,"",I150," ",J150," ",K150,"",L150,"",M150," ",N150," ",O150," ",P150," ",Q150," ",R150) -> Simplify 3√2 × √2 | U150: =M150*G150 -> 6 | W150: =IF(AND(G150=G149,I150=I149,K150=K149),NA(),"") ->  | AC150: =IF(ISERROR(T150),NA(),"") ->  | AD150: =IF(OR(ISNA(U150),ISNA(V150),ISNA(W150),ISNA(X150),ISNA(Y150),ISNA(Z150),ISNA(AA150),ISNA(AB150),ISNA(AC150)),NA(),CONCATENATE(U150,V150,W150,X150,Y150,Z150,AA150,AB150)) -> 6 | AE150: =IF(ISNA(AD150),FALSE,IF(C150=$B$1,Worksheet!$B$3,IF(C150=$C$1,Worksheet!$B$4,IF(C150=$D$1,Worksheet!$B$5,IF(C150=$C$2,Worksheet!$D$3,IF(C150=$D$2,Worksheet!$D$4,IF(C150=$E$2,Worksheet!$D$5,IF(C150=$C$3,Worksheet!$D$6,IF(C150=$B$3,Worksheet!$B$6,IF(C150=$D$3,Worksheet!$B$9,IF(C150=$E$3,Worksheet!$D$9,FALSE))))))))))) -> TRUE | AF150: =IF(AE150,D150,"") -> Medium | AG150: =IF(AE150,COUNTIF($AF$5:AF150,AF150),"X") -> 60 | AH150: =CONCATENATE(AE150,AF150) -> TRUEMedium
A151: =CONCATENATE(AE151,D151,AG151) -> TRUEMedium61 | B151: =RAND() -> 0.03199961245 | C151: Surds | D151: Medium | E151: 36 | F151: Square roots. What is √ | G151: =RANDBETWEEN(11,15)^2 -> 169 | H151: ? | T151: =CONCATENATE(F151,"",G151," ",H151," ",I151," ",J151," ",K151," ",L151," ",M151," ",N151," ",O151," ",P151," ",Q151," ",R151) -> Square roots. What is √169 ? | U151: =SQRT(G151) -> 13 | AC151: =IF(ISERROR(T151),NA(),"") ->  | AD151: =IF(OR(ISNA(U151),ISNA(V151),ISNA(W151),ISNA(X151),ISNA(Y151),ISNA(Z151),ISNA(AA151),ISNA(AB151),ISNA(AC151)),NA(),CONCATENATE(U151,V151,W151,X151,Y151,Z151,AA151,AB151)) -> 13 | AE151: =IF(ISNA(AD151),FALSE,IF(C151=$B$1,Worksheet!$B$3,IF(C151=$C$1,Worksheet!$B$4,IF(C151=$D$1,Worksheet!$B$5,IF(C151=$C$2,Worksheet!$D$3,IF(C151=$D$2,Worksheet!$D$4,IF(C151=$E$2,Worksheet!$D$5,IF(C151=$C$3,Worksheet!$D$6,IF(C151=$B$3,Worksheet!$B$6,IF(C151=$D$3,Worksheet!$B$9,IF(C151=$E$3,Worksheet!$D$9,FALSE))))))))))) -> TRUE | AF151: =IF(AE151,D151,"") -> Medium | AG151: =IF(AE151,COUNTIF($AF$5:AF151,AF151),"X") -> 61 | AH151: =CONCATENATE(AE151,AF151) -> TRUEMedium
A152: =CONCATENATE(AE152,D152,AG152) -> TRUEMedium62 | B152: =RAND() -> 0.7941675368 | C152: +-×÷ | D152: Medium | E152: 71 | F152: Use a written sum to divide: | G152: =RANDBETWEEN(70,500)*7+RANDBETWEEN(1,6) -> 1419 | H152: ÷ 7, giving your remainder as a fraction or to 2 decimal place | T152: =CONCATENATE(F152," ",G152," ",H152," ",I152," ",J152," ",K152," ",L152," ",M152," ",N152," ",O152," ",P152," ",Q152," ",R152) -> Use a written sum to divide: 1419 ÷ 7, giving your remainder as a fraction or to 2 decimal place | U152: =TEXT(G152/7,"#.00") -> 202.71 | V152: or | W152: =TEXT(G152/7,"### #/#") -> 202 5/7 | AC152: =IF(ISERROR(T152),NA(),"") ->  | AD152: =IF(OR(ISNA(U152),ISNA(V152),ISNA(W152),ISNA(X152),ISNA(Y152),ISNA(Z152),ISNA(AA152),ISNA(AB152),ISNA(AC152)),NA(),CONCATENATE(U152,V152,W152,X152,Y152,Z152,AA152,AB152)) -> 202.71 or 202 5/7 | AE152: =IF(ISNA(AD152),FALSE,IF(C152=$B$1,Worksheet!$B$3,IF(C152=$C$1,Worksheet!$B$4,IF(C152=$D$1,Worksheet!$B$5,IF(C152=$C$2,Worksheet!$D$3,IF(C152=$D$2,Worksheet!$D$4,IF(C152=$E$2,Worksheet!$D$5,IF(C152=$C$3,Worksheet!$D$6,IF(C152=$B$3,Worksheet!$B$6,IF(C152=$D$3,Worksheet!$B$9,IF(C152=$E$3,Worksheet!$D$9,FALSE))))))))))) -> TRUE | AF152: =IF(AE152,D152,"") -> Medium | AG152: =IF(AE152,COUNTIF($AF$5:AF152,AF152),"X") -> 62 | AH152: =CONCATENATE(AE152,AF152) -> TRUEMedium
A153: =CONCATENATE(AE153,D153,AG153) -> TRUEHard28 | B153: =RAND() -> 0.6390525464 | C153: Neg | D153: Hard | E153: 231 | F153: Work out of the value of: | G153: =RANDBETWEEN(1,20) -> 19 | H153: – (– | I153: =RANDBETWEEN(2,5) -> 4 | J153: ) × | K153: =RANDBETWEEN(2,5) -> 4 | M153: (remember BODMAS) | T153: =CONCATENATE(F153," ",G153," ",H153,"",I153,"",J153,"",K153,"",L153," ",M153," ",N153," ",O153," ",P153," ",Q153," ",R153) -> Work out of the value of: 19 – (–4) × 4 (remember BODMAS) | U153: =G153+I153*K153 -> 35 | AC153: =IF(ISERROR(T153),NA(),"") ->  | AD153: =IF(OR(ISNA(U153),ISNA(V153),ISNA(W153),ISNA(X153),ISNA(Y153),ISNA(Z153),ISNA(AA153),ISNA(AB153),ISNA(AC153)),NA(),CONCATENATE(U153,V153,W153,X153,Y153,Z153,AA153,AB153)) -> 35 | AE153: =IF(ISNA(AD153),FALSE,IF(C153=$B$1,Worksheet!$B$3,IF(C153=$C$1,Worksheet!$B$4,IF(C153=$D$1,Worksheet!$B$5,IF(C153=$C$2,Worksheet!$D$3,IF(C153=$D$2,Worksheet!$D$4,IF(C153=$E$2,Worksheet!$D$5,IF(C153=$C$3,Worksheet!$D$6,IF(C153=$B$3,Worksheet!$B$6,IF(C153=$D$3,Worksheet!$B$9,IF(C153=$E$3,Worksheet!$D$9,FALSE))))))))))) -> TRUE | AF153: =IF(AE153,D153,"") -> Hard | AG153: =IF(AE153,COUNTIF($AF$5:AF153,AF153),"X") -> 28 | AH153: =CONCATENATE(AE153,AF153) -> TRUEHard
A154: =CONCATENATE(AE154,D154,AG154) -> TRUEHard29 | B154: =RAND() -> 0.9739796636 | C154: +-×÷ | D154: Hard | E154: 21 | F154: Use a method of your choice to multiply | G154: =RANDBETWEEN(1,9)+100*RANDBETWEEN(1,3)+RANDBETWEEN(1,9) -> 116 | H154: × | I154: =RANDBETWEEN(2,9)*10+RANDBETWEEN(1,9) -> 45 | J154: without a calculator | T154: =CONCATENATE(F154," ",G154," ",H154," ",I154," ",J154," ",K154," ",L154," ",M154," ",N154," ",O154," ",P154," ",Q154," ",R154) -> Use a method of your choice to multiply 116 × 45 without a calculator | U154: =G154*I154 -> 5220 | AC154: =IF(ISERROR(T154),NA(),"") ->  | AD154: =IF(OR(ISNA(U154),ISNA(V154),ISNA(W154),ISNA(X154),ISNA(Y154),ISNA(Z154),ISNA(AA154),ISNA(AB154),ISNA(AC154)),NA(),CONCATENATE(U154,V154,W154,X154,Y154,Z154,AA154,AB154)) -> 5220 | AE154: =IF(ISNA(AD154),FALSE,IF(C154=$B$1,Worksheet!$B$3,IF(C154=$C$1,Worksheet!$B$4,IF(C154=$D$1,Worksheet!$B$5,IF(C154=$C$2,Worksheet!$D$3,IF(C154=$D$2,Worksheet!$D$4,IF(C154=$E$2,Worksheet!$D$5,IF(C154=$C$3,Worksheet!$D$6,IF(C154=$B$3,Worksheet!$B$6,IF(C154=$D$3,Worksheet!$B$9,IF(C154=$E$3,Worksheet!$D$9,FALSE))))))))))) -> TRUE | AF154: =IF(AE154,D154,"") -> Hard | AG154: =IF(AE154,COUNTIF($AF$5:AF154,AF154),"X") -> 29 | AH154: =CONCATENATE(AE154,AF154) -> TRUEHard
A155: =CONCATENATE(AE155,D155,AG155) -> TRUEEasy59 | B155: =RAND() -> 0.2408402228 | C155: Dec | D155: Easy | E155: 143 | F155: Write the decimal | G155: =S155/1000 -> 0.197 | H155: as a fraction | I155: =IF(GCD(1000,S155)<>1,", simplifying your answer","") ->  | S155: =RANDBETWEEN(1,99)*10+RANDBETWEEN(1,9) -> 197 | T155: =CONCATENATE(F155," ",G155," ",H155," ",I155," ",J155," ",K155," ",L155," ",M155," ",N155," ",O155," ",P155," ",Q155," ",R155) -> Write the decimal 0.197 as a fraction | U155: =TEXT(S155/1000,"###/####") -> 197/1000 | AC155: =IF(ISERROR(T155),NA(),"") ->  | AD155: =IF(OR(ISNA(U155),ISNA(V155),ISNA(W155),ISNA(X155),ISNA(Y155),ISNA(Z155),ISNA(AA155),ISNA(AB155),ISNA(AC155)),NA(),CONCATENATE(U155,V155,W155,X155,Y155,Z155,AA155,AB155)) -> 197/1000 | AE155: =IF(ISNA(AD155),FALSE,IF(C155=$B$1,Worksheet!$B$3,IF(C155=$C$1,Worksheet!$B$4,IF(C155=$D$1,Worksheet!$B$5,IF(C155=$C$2,Worksheet!$D$3,IF(C155=$D$2,Worksheet!$D$4,IF(C155=$E$2,Worksheet!$D$5,IF(C155=$C$3,Worksheet!$D$6,IF(C155=$B$3,Worksheet!$B$6,IF(C155=$D$3,Worksheet!$B$9,IF(C155=$E$3,Worksheet!$D$9,FALSE))))))))))) -> TRUE | AF155: =IF(AE155,D155,"") -> Easy | AG155: =IF(AE155,COUNTIF($AF$5:AF155,AF155),"X") -> 59 | AH155: =CONCATENATE(AE155,AF155) -> TRUEEasy
A156: =CONCATENATE(AE156,D156,AG156) -> TRUEMedium63 | B156: =RAND() -> 0.07408208542 | C156: Alg | D156: Medium | E156: 307 | F156: Algebra. If x = | G156: =RANDBETWEEN(-5,5) -> 5 | H156: and y = | I156: =RANDBETWEEN(-5,5) -> 5 | J156: , what is the value of | K156: =RANDBETWEEN(2,5) -> 3 | L156: (x + y) ? | T156: =CONCATENATE(F156," ",G156," ",H156," ",I156," ",J156," ",K156,"",L156," ",M156," ",N156," ",O156," ",P156," ",Q156," ",R156) -> Algebra. If x = 5 and y = 5 , what is the value of 3(x + y) ? | U156: =(G156+I156)*K156 -> 30 | AC156: =IF(ISERROR(T156),NA(),"") ->  | AD156: =IF(OR(ISNA(U156),ISNA(V156),ISNA(W156),ISNA(X156),ISNA(Y156),ISNA(Z156),ISNA(AA156),ISNA(AB156),ISNA(AC156)),NA(),CONCATENATE(U156,V156,W156,X156,Y156,Z156,AA156,AB156)) -> 30 | AE156: =IF(ISNA(AD156),FALSE,IF(C156=$B$1,Worksheet!$B$3,IF(C156=$C$1,Worksheet!$B$4,IF(C156=$D$1,Worksheet!$B$5,IF(C156=$C$2,Worksheet!$D$3,IF(C156=$D$2,Worksheet!$D$4,IF(C156=$E$2,Worksheet!$D$5,IF(C156=$C$3,Worksheet!$D$6,IF(C156=$B$3,Worksheet!$B$6,IF(C156=$D$3,Worksheet!$B$9,IF(C156=$E$3,Worksheet!$D$9,FALSE))))))))))) -> TRUE | AF156: =IF(AE156,D156,"") -> Medium | AG156: =IF(AE156,COUNTIF($AF$5:AF156,AF156),"X") -> 63 | AH156: =CONCATENATE(AE156,AF156) -> TRUEMedium
A157: =CONCATENATE(AE157,D157,AG157) -> TRUEEasy60 | B157: =RAND() -> 0.01361185682 | C157: Dec | D157: Easy | E157: 126 | F157: Multiply (without writing a sum down): | G157: =RANDBETWEEN(2,5)+0.5 -> 2.5 | H157: × | I157: =RANDBETWEEN(2,9) -> 7 | T157: =CONCATENATE(F157," ",G157," ",H157," ",I157," ",J157," ",K157," ",L157," ",M157," ",N157," ",O157," ",P157," ",Q157," ",R157) -> Multiply (without writing a sum down): 2.5 × 7 | U157: =G157*I157 -> 17.5 | AC157: =IF(ISERROR(T157),NA(),"") ->  | AD157: =IF(OR(ISNA(U157),ISNA(V157),ISNA(W157),ISNA(X157),ISNA(Y157),ISNA(Z157),ISNA(AA157),ISNA(AB157),ISNA(AC157)),NA(),CONCATENATE(U157,V157,W157,X157,Y157,Z157,AA157,AB157)) -> 17.5 | AE157: =IF(ISNA(AD157),FALSE,IF(C157=$B$1,Worksheet!$B$3,IF(C157=$C$1,Worksheet!$B$4,IF(C157=$D$1,Worksheet!$B$5,IF(C157=$C$2,Worksheet!$D$3,IF(C157=$D$2,Worksheet!$D$4,IF(C157=$E$2,Worksheet!$D$5,IF(C157=$C$3,Worksheet!$D$6,IF(C157=$B$3,Worksheet!$B$6,IF(C157=$D$3,Worksheet!$B$9,IF(C157=$E$3,Worksheet!$D$9,FALSE))))))))))) -> TRUE | AF157: =IF(AE157,D157,"") -> Easy | AG157: =IF(AE157,COUNTIF($AF$5:AF157,AF157),"X") -> 60 | AH157: =CONCATENATE(AE157,AF157) -> TRUEEasy
A158: =CONCATENATE(AE158,D158,AG158) -> TRUEHard30 | B158: =RAND() -> 0.7335813809 | C158: % | D158: Hard | E158: 285 | F158: Write | G158: =RANDBETWEEN(1,9)/1000 -> 0.002 | H158: as a percentage | T158: =CONCATENATE(F158," ",G158," ",H158," ",I158," ",J158," ",K158," ",L158," ",M158," ",N158," ",O158," ",P158," ",Q158," ",R158) -> Write 0.002 as a percentage | U158: =G158*100 -> 0.2 | V158: % | AC158: =IF(ISERROR(T158),NA(),"") ->  | AD158: =IF(OR(ISNA(U158),ISNA(V158),ISNA(W158),ISNA(X158),ISNA(Y158),ISNA(Z158),ISNA(AA158),ISNA(AB158),ISNA(AC158)),NA(),CONCATENATE(U158,V158,W158,X158,Y158,Z158,AA158,AB158)) -> 0.2% | AE158: =IF(ISNA(AD158),FALSE,IF(C158=$B$1,Worksheet!$B$3,IF(C158=$C$1,Worksheet!$B$4,IF(C158=$D$1,Worksheet!$B$5,IF(C158=$C$2,Worksheet!$D$3,IF(C158=$D$2,Worksheet!$D$4,IF(C158=$E$2,Worksheet!$D$5,IF(C158=$C$3,Worksheet!$D$6,IF(C158=$B$3,Worksheet!$B$6,IF(C158=$D$3,Worksheet!$B$9,IF(C158=$E$3,Worksheet!$D$9,FALSE))))))))))) -> TRUE | AF158: =IF(AE158,D158,"") -> Hard | AG158: =IF(AE158,COUNTIF($AF$5:AF158,AF158),"X") -> 30 | AH158: =CONCATENATE(AE158,AF158) -> TRUEHard
A159: =CONCATENATE(AE159,D159,AG159) -> TRUEMedium64 | B159: =RAND() -> 0.4733643699 | C159: Dec | D159: Medium | E159: 238 | F159: Divide: | G159: =3*RANDBETWEEN(11,99)+RANDBETWEEN(1,2) -> 151 | H159: ÷ | I159: 3 | J159: , giving your answer as a decimal rounded to 3 decimal places | T159: =CONCATENATE(F159," ",G159," ",H159," ",I159," ",J159," ",K159," ",L159," ",M159," ",N159," ",O159," ",P159," ",Q159," ",R159) -> Divide: 151 ÷ 3 , giving your answer as a decimal rounded to 3 decimal places | U159: =MROUND(G159/I159,0.001) -> 50.333 | AC159: =IF(ISERROR(T159),NA(),"") ->  | AD159: =IF(OR(ISNA(U159),ISNA(V159),ISNA(W159),ISNA(X159),ISNA(Y159),ISNA(Z159),ISNA(AA159),ISNA(AB159),ISNA(AC159)),NA(),CONCATENATE(U159,V159,W159,X159,Y159,Z159,AA159,AB159)) -> 50.333 | AE159: =IF(ISNA(AD159),FALSE,IF(C159=$B$1,Worksheet!$B$3,IF(C159=$C$1,Worksheet!$B$4,IF(C159=$D$1,Worksheet!$B$5,IF(C159=$C$2,Worksheet!$D$3,IF(C159=$D$2,Worksheet!$D$4,IF(C159=$E$2,Worksheet!$D$5,IF(C159=$C$3,Worksheet!$D$6,IF(C159=$B$3,Worksheet!$B$6,IF(C159=$D$3,Worksheet!$B$9,IF(C159=$E$3,Worksheet!$D$9,FALSE))))))))))) -> TRUE | AF159: =IF(AE159,D159,"") -> Medium | AG159: =IF(AE159,COUNTIF($AF$5:AF159,AF159),"X") -> 64 | AH159: =CONCATENATE(AE159,AF159) -> TRUEMedium
A160: =CONCATENATE(AE160,D160,AG160) -> TRUEMedium65 | B160: =RAND() -> 0.7462544148 | C160: Dec | D160: Medium | E160: 140 | F160: What number is exactly half way between | G160: =RANDBETWEEN(1,9)+RANDBETWEEN(0,9)*0.1+RANDBETWEEN(1,9)*0.01 -> 8.24 | H160: and | I160: =G160+0.05 -> 8.29 | J160: ? | T160: =CONCATENATE(F160," ",G160," ",H160," ",I160,"",J160,"",K160," ",L160," ",M160," ",N160," ",O160," ",P160," ",Q160," ",R160) -> What number is exactly half way between 8.24 and 8.29? | U160: =G160+0.025 -> 8.265 | AC160: =IF(ISERROR(T160),NA(),"") ->  | AD160: =IF(OR(ISNA(U160),ISNA(V160),ISNA(W160),ISNA(X160),ISNA(Y160),ISNA(Z160),ISNA(AA160),ISNA(AB160),ISNA(AC160)),NA(),CONCATENATE(U160,V160,W160,X160,Y160,Z160,AA160,AB160)) -> 8.265 | AE160: =IF(ISNA(AD160),FALSE,IF(C160=$B$1,Worksheet!$B$3,IF(C160=$C$1,Worksheet!$B$4,IF(C160=$D$1,Worksheet!$B$5,IF(C160=$C$2,Worksheet!$D$3,IF(C160=$D$2,Worksheet!$D$4,IF(C160=$E$2,Worksheet!$D$5,IF(C160=$C$3,Worksheet!$D$6,IF(C160=$B$3,Worksheet!$B$6,IF(C160=$D$3,Worksheet!$B$9,IF(C160=$E$3,Worksheet!$D$9,FALSE))))))))))) -> TRUE | AF160: =IF(AE160,D160,"") -> Medium | AG160: =IF(AE160,COUNTIF($AF$5:AF160,AF160),"X") -> 65 | AH160: =CONCATENATE(AE160,AF160) -> TRUEMedium
A161: =CONCATENATE(AE161,D161,AG161) -> TRUEMedium66 | B161: =RAND() -> 0.7405134635 | C161: Dec | D161: Medium | E161: 139 | F161: What number is exactly half way between | G161: =RANDBETWEEN(1,9)+RANDBETWEEN(0,9)*0.1+RANDBETWEEN(1,9)*0.01 -> 9.35 | H161: and | I161: =G161+0.03 -> 9.38 | J161: ? | T161: =CONCATENATE(F161," ",G161," ",H161," ",I161,"",J161,"",K161," ",L161," ",M161," ",N161," ",O161," ",P161," ",Q161," ",R161) -> What number is exactly half way between 9.35 and 9.38? | U161: =G161+0.015 -> 9.365 | AC161: =IF(ISERROR(T161),NA(),"") ->  | AD161: =IF(OR(ISNA(U161),ISNA(V161),ISNA(W161),ISNA(X161),ISNA(Y161),ISNA(Z161),ISNA(AA161),ISNA(AB161),ISNA(AC161)),NA(),CONCATENATE(U161,V161,W161,X161,Y161,Z161,AA161,AB161)) -> 9.365 | AE161: =IF(ISNA(AD161),FALSE,IF(C161=$B$1,Worksheet!$B$3,IF(C161=$C$1,Worksheet!$B$4,IF(C161=$D$1,Worksheet!$B$5,IF(C161=$C$2,Worksheet!$D$3,IF(C161=$D$2,Worksheet!$D$4,IF(C161=$E$2,Worksheet!$D$5,IF(C161=$C$3,Worksheet!$D$6,IF(C161=$B$3,Worksheet!$B$6,IF(C161=$D$3,Worksheet!$B$9,IF(C161=$E$3,Worksheet!$D$9,FALSE))))))))))) -> TRUE | AF161: =IF(AE161,D161,"") -> Medium | AG161: =IF(AE161,COUNTIF($AF$5:AF161,AF161),"X") -> 66 | AH161: =CONCATENATE(AE161,AF161) -> TRUEMedium
A162: =CONCATENATE(AE162,D162,AG162) -> TRUEMedium67 | B162: =RAND() -> 0.4257536926 | C162: +-×÷ | D162: Medium | E162: 32 | F162: Which ONE of these numbers is a PRIME number: | G162: =IF(RAND()<0.25,S162,CHOOSE(RANDBETWEEN(1,2),9,6)) -> 6 | H162: , | I162: =IF(AND(G162<>S162,RAND()<0.34),S162,CHOOSE(RANDBETWEEN(1,2),8,4)) -> 7 | J162: , | K162: =IF(AND(G162<>S162,I162<>S162,RAND()<0.5),S162,IF(G162=S162,CHOOSE(RANDBETWEEN(1,2),6,9),IF(I162=4,8,IF(I162=8,4,IF(G162=6,9,6))))) -> 9 | L162: , | M162: =IF(AND(G162<>S162,I162<>S162,K162<>S162),S162,IF(INT((G162*I162*K162)/6)<>(G162*I162*K162)/6,6,IF(INT((G162*I162*K162)/4)<>(G162*I162*K162)/4,4,IF(INT((G162*I162*K162)/9)<>(G162*I162*K162)/9,9,8)))) -> 4 | S162: =CHOOSE(RANDBETWEEN(1,4),2,3,5,7) -> 7 | T162: =CONCATENATE(F162," ",G162," ",H162," ",I162," ",J162," ",K162," ",L162," ",M162," ",N162," ",O162," ",P162," ",Q162," ",R162) -> Which ONE of these numbers is a PRIME number: 6 , 7 , 9 , 4 | U162: =S162 -> 7 | AC162: =IF(ISERROR(T162),NA(),"") ->  | AD162: =IF(OR(ISNA(U162),ISNA(V162),ISNA(W162),ISNA(X162),ISNA(Y162),ISNA(Z162),ISNA(AA162),ISNA(AB162),ISNA(AC162)),NA(),CONCATENATE(U162,V162,W162,X162,Y162,Z162,AA162,AB162)) -> 7 | AE162: =IF(ISNA(AD162),FALSE,IF(C162=$B$1,Worksheet!$B$3,IF(C162=$C$1,Worksheet!$B$4,IF(C162=$D$1,Worksheet!$B$5,IF(C162=$C$2,Worksheet!$D$3,IF(C162=$D$2,Worksheet!$D$4,IF(C162=$E$2,Worksheet!$D$5,IF(C162=$C$3,Worksheet!$D$6,IF(C162=$B$3,Worksheet!$B$6,IF(C162=$D$3,Worksheet!$B$9,IF(C162=$E$3,Worksheet!$D$9,FALSE))))))))))) -> TRUE | AF162: =IF(AE162,D162,"") -> Medium | AG162: =IF(AE162,COUNTIF($AF$5:AF162,AF162),"X") -> 67 | AH162: =CONCATENATE(AE162,AF162) -> TRUEMedium
A163: =CONCATENATE(AE163,D163,AG163) -> TRUEHard31 | B163: =RAND() -> 0.2780892455 | C163: Surds | D163: Hard | E163: 56 | F163: Negative powers: What is 10 to the power of negative | G163: =RANDBETWEEN(1,4) -> 3 | H163: ? ( 10 ^ – | I163: =G163 -> 3 | J163: ) | T163: =CONCATENATE(F163," ",G163," ",H163," ",I163," ",J163," ",K163," ",L163," ",M163," ",N163," ",O163," ",P163," ",Q163," ",R163) -> Negative powers: What is 10 to the power of negative 3 ? ( 10 ^ – 3 ) | U163: =10^-1*G163 -> 0.3 | AC163: =IF(ISERROR(T163),NA(),"") ->  | AD163: =IF(OR(ISNA(U163),ISNA(V163),ISNA(W163),ISNA(X163),ISNA(Y163),ISNA(Z163),ISNA(AA163),ISNA(AB163),ISNA(AC163)),NA(),CONCATENATE(U163,V163,W163,X163,Y163,Z163,AA163,AB163)) -> 0.3 | AE163: =IF(ISNA(AD163),FALSE,IF(C163=$B$1,Worksheet!$B$3,IF(C163=$C$1,Worksheet!$B$4,IF(C163=$D$1,Worksheet!$B$5,IF(C163=$C$2,Worksheet!$D$3,IF(C163=$D$2,Worksheet!$D$4,IF(C163=$E$2,Worksheet!$D$5,IF(C163=$C$3,Worksheet!$D$6,IF(C163=$B$3,Worksheet!$B$6,IF(C163=$D$3,Worksheet!$B$9,IF(C163=$E$3,Worksheet!$D$9,FALSE))))))))))) -> TRUE | AF163: =IF(AE163,D163,"") -> Hard | AG163: =IF(AE163,COUNTIF($AF$5:AF163,AF163),"X") -> 31 | AH163: =CONCATENATE(AE163,AF163) -> TRUEHard
A164: =CONCATENATE(AE164,D164,AG164) -> TRUEMedium68 | B164: =RAND() -> 0.8213331883 | C164: Frac | D164: Medium | E164: 82 | F164: Write the fraction | G164: =S164*U164 -> 1800 | H164: / | I164: =S164*W164 -> 7200 | J164: in its simplest form | S164: =2^RANDBETWEEN(0,3)*3^RANDBETWEEN(0,2)*5^RANDBETWEEN(1,2) -> 1800 | T164: =CONCATENATE(F164," ",G164,"",H164,"",I164," ",J164," ",K164," ",L164," ",M164," ",N164," ",O164," ",P164," ",Q164," ",R164) -> Write the fraction 1800/7200 in its simplest form | U164: =IF(W164=3,2,IF(W164=4,CHOOSE(RANDBETWEEN(1,2),1,3),IF(W164=5,RANDBETWEEN(1,4),IF(W164=6,CHOOSE(RANDBETWEEN(1,2),1,5),IF(W164=7,RANDBETWEEN(1,6),IF(W164=8,CHOOSE(RANDBETWEEN(1,4),1,3,5,7),IF(W164=9,CHOOSE(RANDBETWEEN(1,5),1,2,4,5,7),CHOOSE(RANDBETWEEN(1,4),1,3,7,9)))))))) -> 1 | V164: / | W164: =RANDBETWEEN(3,10) -> 4 | AC164: =IF(ISERROR(T164),NA(),"") ->  | AD164: =IF(OR(ISNA(U164),ISNA(V164),ISNA(W164),ISNA(X164),ISNA(Y164),ISNA(Z164),ISNA(AA164),ISNA(AB164),ISNA(AC164)),NA(),CONCATENATE(U164,V164,W164,X164,Y164,Z164,AA164,AB164)) -> 1/4 | AE164: =IF(ISNA(AD164),FALSE,IF(C164=$B$1,Worksheet!$B$3,IF(C164=$C$1,Worksheet!$B$4,IF(C164=$D$1,Worksheet!$B$5,IF(C164=$C$2,Worksheet!$D$3,IF(C164=$D$2,Worksheet!$D$4,IF(C164=$E$2,Worksheet!$D$5,IF(C164=$C$3,Worksheet!$D$6,IF(C164=$B$3,Worksheet!$B$6,IF(C164=$D$3,Worksheet!$B$9,IF(C164=$E$3,Worksheet!$D$9,FALSE))))))))))) -> TRUE | AF164: =IF(AE164,D164,"") -> Medium | AG164: =IF(AE164,COUNTIF($AF$5:AF164,AF164),"X") -> 68 | AH164: =CONCATENATE(AE164,AF164) -> TRUEMedium
A165: =CONCATENATE(AE165,D165,AG165) -> TRUEEasy61 | B165: =RAND() -> 0.3004568225 | C165: Dec | D165: Easy | E165: 127 | F165: Divide (without writing a sum down): | G165: =U165*I165 -> 8.8 | H165: ÷ | I165: =RANDBETWEEN(2,5) -> 2 | T165: =CONCATENATE(F165," ",G165," ",H165," ",I165," ",J165," ",K165," ",L165," ",M165," ",N165," ",O165," ",P165," ",Q165," ",R165) -> Divide (without writing a sum down): 8.8 ÷ 2 | U165: =RANDBETWEEN(1,5)+RANDBETWEEN(1,9)*0.1 -> 4.4 | AC165: =IF(ISERROR(T165),NA(),"") ->  | AD165: =IF(OR(ISNA(U165),ISNA(V165),ISNA(W165),ISNA(X165),ISNA(Y165),ISNA(Z165),ISNA(AA165),ISNA(AB165),ISNA(AC165)),NA(),CONCATENATE(U165,V165,W165,X165,Y165,Z165,AA165,AB165)) -> 4.4 | AE165: =IF(ISNA(AD165),FALSE,IF(C165=$B$1,Worksheet!$B$3,IF(C165=$C$1,Worksheet!$B$4,IF(C165=$D$1,Worksheet!$B$5,IF(C165=$C$2,Worksheet!$D$3,IF(C165=$D$2,Worksheet!$D$4,IF(C165=$E$2,Worksheet!$D$5,IF(C165=$C$3,Worksheet!$D$6,IF(C165=$B$3,Worksheet!$B$6,IF(C165=$D$3,Worksheet!$B$9,IF(C165=$E$3,Worksheet!$D$9,FALSE))))))))))) -> TRUE | AF165: =IF(AE165,D165,"") -> Easy | AG165: =IF(AE165,COUNTIF($AF$5:AF165,AF165),"X") -> 61 | AH165: =CONCATENATE(AE165,AF165) -> TRUEEasy
A166: =CONCATENATE(AE166,D166,AG166) -> TRUEMedium69 | B166: =RAND() -> 0.4523006422 | C166: Surds | D166: Medium | E166: 34 | F166: Which ONE of these numbers is a SQUARE number: | G166: =IF(RAND()<0.25,S166,CHOOSE(RANDBETWEEN(1,3),3,5,12)*RANDBETWEEN(6,11)) -> 45 | H166: , | I166: =IF(AND(G166<>S166,RAND()<0.34),S166,2*RANDBETWEEN(19,31)) -> 44 | J166: , | K166: =IF(AND(G166<>S166,I166<>S166,RAND()<0.5),S166,3*RANDBETWEEN(13,26)) -> 144 | L166: , | M166: =IF(AND(G166<>S166,I166<>S166,K166<>S166),S166,9*RANDBETWEEN(10,15)) -> 126 | S166: =RANDBETWEEN(5,15)^2 -> 144 | T166: =CONCATENATE(F166," ",G166," ",H166," ",I166," ",J166," ",K166," ",L166," ",M166," ",N166," ",O166," ",P166," ",Q166," ",R166) -> Which ONE of these numbers is a SQUARE number: 45 , 44 , 144 , 126 | U166: =S166 -> 144 | AC166: =IF(ISERROR(T166),NA(),"") ->  | AD166: =IF(OR(ISNA(U166),ISNA(V166),ISNA(W166),ISNA(X166),ISNA(Y166),ISNA(Z166),ISNA(AA166),ISNA(AB166),ISNA(AC166)),NA(),CONCATENATE(U166,V166,W166,X166,Y166,Z166,AA166,AB166)) -> 144 | AE166: =IF(ISNA(AD166),FALSE,IF(C166=$B$1,Worksheet!$B$3,IF(C166=$C$1,Worksheet!$B$4,IF(C166=$D$1,Worksheet!$B$5,IF(C166=$C$2,Worksheet!$D$3,IF(C166=$D$2,Worksheet!$D$4,IF(C166=$E$2,Worksheet!$D$5,IF(C166=$C$3,Worksheet!$D$6,IF(C166=$B$3,Worksheet!$B$6,IF(C166=$D$3,Worksheet!$B$9,IF(C166=$E$3,Worksheet!$D$9,FALSE))))))))))) -> TRUE | AF166: =IF(AE166,D166,"") -> Medium | AG166: =IF(AE166,COUNTIF($AF$5:AF166,AF166),"X") -> 69 | AH166: =CONCATENATE(AE166,AF166) -> TRUEMedium
A167: =CONCATENATE(AE167,D167,AG167) -> TRUEEasy62 | B167: =RAND() -> 0.3559516884 | C167: +-×÷ | D167: Easy | E167: 64 | F167: Divide without a calculator: | G167: =RANDBETWEEN(2,10)*4+RANDBETWEEN(1,3) -> 31 | H167: ÷ | I167: 4 | T167: =CONCATENATE(F167," ",G167," ",H167," ",I167," ",J167," ",K167," ",L167," ",M167," ",N167," ",O167," ",P167," ",Q167," ",R167) -> Divide without a calculator: 31 ÷ 4 | U167: =G167/I167 -> 7.75 | V167: or | W167: =TEXT(U167,"# #/#") -> 7 3/4 | AC167: =IF(ISERROR(T167),NA(),"") ->  | AD167: =IF(OR(ISNA(U167),ISNA(V167),ISNA(W167),ISNA(X167),ISNA(Y167),ISNA(Z167),ISNA(AA167),ISNA(AB167),ISNA(AC167)),NA(),CONCATENATE(U167,V167,W167,X167,Y167,Z167,AA167,AB167)) -> 7.75 or 7 3/4 | AE167: =IF(ISNA(AD167),FALSE,IF(C167=$B$1,Worksheet!$B$3,IF(C167=$C$1,Worksheet!$B$4,IF(C167=$D$1,Worksheet!$B$5,IF(C167=$C$2,Worksheet!$D$3,IF(C167=$D$2,Worksheet!$D$4,IF(C167=$E$2,Worksheet!$D$5,IF(C167=$C$3,Worksheet!$D$6,IF(C167=$B$3,Worksheet!$B$6,IF(C167=$D$3,Worksheet!$B$9,IF(C167=$E$3,Worksheet!$D$9,FALSE))))))))))) -> TRUE | AF167: =IF(AE167,D167,"") -> Easy | AG167: =IF(AE167,COUNTIF($AF$5:AF167,AF167),"X") -> 62 | AH167: =CONCATENATE(AE167,AF167) -> TRUEEasy
A168: =CONCATENATE(AE168,D168,AG168) -> TRUEEasy63 | B168: =RAND() -> 0.3096793254 | C168: % | D168: Easy | E168: 277 | F168: Calculate | G168: =RANDBETWEEN(1,9)*10+5 -> 85 | H168: % | I168: of | J168: £ | K168: =1000*RANDBETWEEN(2,9) -> 3000 | T168: =CONCATENATE(F168," ",G168,"",H168," ",I168," ",J168,"",K168," ",L168," ",M168," ",N168," ",O168," ",P168," ",Q168," ",R168) -> Calculate 85% of £3000 | U168: £ | V168: =K168/100*G168 -> 2550 | AC168: =IF(ISERROR(T168),NA(),"") ->  | AD168: =IF(OR(ISNA(U168),ISNA(V168),ISNA(W168),ISNA(X168),ISNA(Y168),ISNA(Z168),ISNA(AA168),ISNA(AB168),ISNA(AC168)),NA(),CONCATENATE(U168,V168,W168,X168,Y168,Z168,AA168,AB168)) -> £2550 | AE168: =IF(ISNA(AD168),FALSE,IF(C168=$B$1,Worksheet!$B$3,IF(C168=$C$1,Worksheet!$B$4,IF(C168=$D$1,Worksheet!$B$5,IF(C168=$C$2,Worksheet!$D$3,IF(C168=$D$2,Worksheet!$D$4,IF(C168=$E$2,Worksheet!$D$5,IF(C168=$C$3,Worksheet!$D$6,IF(C168=$B$3,Worksheet!$B$6,IF(C168=$D$3,Worksheet!$B$9,IF(C168=$E$3,Worksheet!$D$9,FALSE))))))))))) -> TRUE | AF168: =IF(AE168,D168,"") -> Easy | AG168: =IF(AE168,COUNTIF($AF$5:AF168,AF168),"X") -> 63 | AH168: =CONCATENATE(AE168,AF168) -> TRUEEasy
A169: =CONCATENATE(AE169,D169,AG169) -> TRUEHard32 | B169: =RAND() -> 0.175896526 | C169: Surds | D169: Hard | E169: 18 | F169: Square numbers. Use an appropriate written sum to calculate | G169: =RANDBETWEEN(2,9)*10+RANDBETWEEN(1,9) -> 48 | H169: ² | T169: =CONCATENATE(F169," ",G169,"",H169," ",I169," ",J169," ",K169," ",L169," ",M169," ",N169," ",O169," ",P169," ",Q169," ",R169) -> Square numbers. Use an appropriate written sum to calculate 48² | U169: =G169^2 -> 2304 | AC169: =IF(ISERROR(T169),NA(),"") ->  | AD169: =IF(OR(ISNA(U169),ISNA(V169),ISNA(W169),ISNA(X169),ISNA(Y169),ISNA(Z169),ISNA(AA169),ISNA(AB169),ISNA(AC169)),NA(),CONCATENATE(U169,V169,W169,X169,Y169,Z169,AA169,AB169)) -> 2304 | AE169: =IF(ISNA(AD169),FALSE,IF(C169=$B$1,Worksheet!$B$3,IF(C169=$C$1,Worksheet!$B$4,IF(C169=$D$1,Worksheet!$B$5,IF(C169=$C$2,Worksheet!$D$3,IF(C169=$D$2,Worksheet!$D$4,IF(C169=$E$2,Worksheet!$D$5,IF(C169=$C$3,Worksheet!$D$6,IF(C169=$B$3,Worksheet!$B$6,IF(C169=$D$3,Worksheet!$B$9,IF(C169=$E$3,Worksheet!$D$9,FALSE))))))))))) -> TRUE | AF169: =IF(AE169,D169,"") -> Hard | AG169: =IF(AE169,COUNTIF($AF$5:AF169,AF169),"X") -> 32 | AH169: =CONCATENATE(AE169,AF169) -> TRUEHard
A170: =CONCATENATE(AE170,D170,AG170) -> TRUEMedium70 | B170: =RAND() -> 0.9990234172 | C170: Dec | D170: Medium | E170: 197 | F170: Write the number | G170: =RANDBETWEEN(2,9)*1000 -> 8000 | H170: in standard form | T170: =CONCATENATE(F170," ",G170," ",H170," ",I170," ",J170," ",K170," ",L170," ",M170," ",N170," ",O170," ",P170," ",Q170," ",R170) -> Write the number 8000 in standard form | U170: =G170/1000 -> 8 | V170: × 10^3 (10 to the power of 3) | AC170: =IF(ISERROR(T170),NA(),"") ->  | AD170: =IF(OR(ISNA(U170),ISNA(V170),ISNA(W170),ISNA(X170),ISNA(Y170),ISNA(Z170),ISNA(AA170),ISNA(AB170),ISNA(AC170)),NA(),CONCATENATE(U170,V170,W170,X170,Y170,Z170,AA170,AB170)) -> 8× 10^3 (10 to the power of 3) | AE170: =IF(ISNA(AD170),FALSE,IF(C170=$B$1,Worksheet!$B$3,IF(C170=$C$1,Worksheet!$B$4,IF(C170=$D$1,Worksheet!$B$5,IF(C170=$C$2,Worksheet!$D$3,IF(C170=$D$2,Worksheet!$D$4,IF(C170=$E$2,Worksheet!$D$5,IF(C170=$C$3,Worksheet!$D$6,IF(C170=$B$3,Worksheet!$B$6,IF(C170=$D$3,Worksheet!$B$9,IF(C170=$E$3,Worksheet!$D$9,FALSE))))))))))) -> TRUE | AF170: =IF(AE170,D170,"") -> Medium | AG170: =IF(AE170,COUNTIF($AF$5:AF170,AF170),"X") -> 70 | AH170: =CONCATENATE(AE170,AF170) -> TRUEMedium
A171: =CONCATENATE(AE171,D171,AG171) -> TRUEMedium71 | B171: =RAND() -> 0.9263019688 | C171: Neg | D171: Medium | E171: 226 | F171: Work out of the value of: | G171: =RANDBETWEEN(10,30) -> 15 | H171: + (– | I171: =RANDBETWEEN(2,6) -> 6 | J171: ) × | K171: =RANDBETWEEN(1,10) -> 1 | L171: (remember BODMAS) | T171: =CONCATENATE(F171," ",G171," ",H171,"",I171,"",J171," ",K171," ",L171," ",M171," ",N171," ",O171," ",P171," ",Q171," ",R171) -> Work out of the value of: 15 + (–6) × 1 (remember BODMAS) | U171: =G171-I171*K171 -> 9 | AC171: =IF(ISERROR(T171),NA(),"") ->  | AD171: =IF(OR(ISNA(U171),ISNA(V171),ISNA(W171),ISNA(X171),ISNA(Y171),ISNA(Z171),ISNA(AA171),ISNA(AB171),ISNA(AC171)),NA(),CONCATENATE(U171,V171,W171,X171,Y171,Z171,AA171,AB171)) -> 9 | AE171: =IF(ISNA(AD171),FALSE,IF(C171=$B$1,Worksheet!$B$3,IF(C171=$C$1,Worksheet!$B$4,IF(C171=$D$1,Worksheet!$B$5,IF(C171=$C$2,Worksheet!$D$3,IF(C171=$D$2,Worksheet!$D$4,IF(C171=$E$2,Worksheet!$D$5,IF(C171=$C$3,Worksheet!$D$6,IF(C171=$B$3,Worksheet!$B$6,IF(C171=$D$3,Worksheet!$B$9,IF(C171=$E$3,Worksheet!$D$9,FALSE))))))))))) -> TRUE | AF171: =IF(AE171,D171,"") -> Medium | AG171: =IF(AE171,COUNTIF($AF$5:AF171,AF171),"X") -> 71 | AH171: =CONCATENATE(AE171,AF171) -> TRUEMedium
A172: =CONCATENATE(AE172,D172,AG172) -> TRUEMedium72 | B172: =RAND() -> 0.07296833029 | C172: % | D172: Medium | E172: 295 | F172: What is three eighths (3/8) as a percentage? | T172: =CONCATENATE(F172," ",G172," ",H172," ",I172," ",J172," ",K172," ",L172," ",M172," ",N172," ",O172," ",P172," ",Q172," ",R172) -> What is three eighths (3/8) as a percentage? | U172: 37.5% | AC172: =IF(ISERROR(T172),NA(),"") ->  | AD172: =IF(OR(ISNA(U172),ISNA(V172),ISNA(W172),ISNA(X172),ISNA(Y172),ISNA(Z172),ISNA(AA172),ISNA(AB172),ISNA(AC172)),NA(),CONCATENATE(U172,V172,W172,X172,Y172,Z172,AA172,AB172)) -> 37.5% | AE172: =IF(ISNA(AD172),FALSE,IF(C172=$B$1,Worksheet!$B$3,IF(C172=$C$1,Worksheet!$B$4,IF(C172=$D$1,Worksheet!$B$5,IF(C172=$C$2,Worksheet!$D$3,IF(C172=$D$2,Worksheet!$D$4,IF(C172=$E$2,Worksheet!$D$5,IF(C172=$C$3,Worksheet!$D$6,IF(C172=$B$3,Worksheet!$B$6,IF(C172=$D$3,Worksheet!$B$9,IF(C172=$E$3,Worksheet!$D$9,FALSE))))))))))) -> TRUE | AF172: =IF(AE172,D172,"") -> Medium | AG172: =IF(AE172,COUNTIF($AF$5:AF172,AF172),"X") -> 72 | AH172: =CONCATENATE(AE172,AF172) -> TRUEMedium
A173: =CONCATENATE(AE173,D173,AG173) -> TRUEMedium73 | B173: =RAND() -> 0.5245602063 | C173: +-×÷ | D173: Medium | E173: 154 | F173: Divide by writing down a sum: | G173: =RANDBETWEEN(0,9)+RANDBETWEEN(1,99)*0.01 -> 8.01 | H173: ÷ | I173: =CHOOSE(RANDBETWEEN(1,2),5,8,4) -> 8 | T173: =CONCATENATE(F173," ",G173," ",H173," ",I173," ",J173," ",K173," ",L173," ",M173," ",N173," ",O173," ",P173," ",Q173," ",R173) -> Divide by writing down a sum: 8.01 ÷ 8 | U173: =G173/I173 -> 1.00125 | AC173: =IF(ISERROR(T173),NA(),"") ->  | AD173: =IF(OR(ISNA(U173),ISNA(V173),ISNA(W173),ISNA(X173),ISNA(Y173),ISNA(Z173),ISNA(AA173),ISNA(AB173),ISNA(AC173)),NA(),CONCATENATE(U173,V173,W173,X173,Y173,Z173,AA173,AB173)) -> 1.00125 | AE173: =IF(ISNA(AD173),FALSE,IF(C173=$B$1,Worksheet!$B$3,IF(C173=$C$1,Worksheet!$B$4,IF(C173=$D$1,Worksheet!$B$5,IF(C173=$C$2,Worksheet!$D$3,IF(C173=$D$2,Worksheet!$D$4,IF(C173=$E$2,Worksheet!$D$5,IF(C173=$C$3,Worksheet!$D$6,IF(C173=$B$3,Worksheet!$B$6,IF(C173=$D$3,Worksheet!$B$9,IF(C173=$E$3,Worksheet!$D$9,FALSE))))))))))) -> TRUE | AF173: =IF(AE173,D173,"") -> Medium | AG173: =IF(AE173,COUNTIF($AF$5:AF173,AF173),"X") -> 73 | AH173: =CONCATENATE(AE173,AF173) -> TRUEMedium
A174: =CONCATENATE(AE174,D174,AG174) -> TRUEMedium74 | B174: =RAND() -> 0.9913195404 | C174: % | D174: Medium | E174: 292 | F174: What fraction is the same as | G174: 62½% | H174: ? | T174: =CONCATENATE(F174," ",G174,"",H174," ",I174," ",J174," ",K174," ",L174," ",M174," ",N174," ",O174," ",P174," ",Q174," ",R174) -> What fraction is the same as 62½%? | U174: 5/8 (five eighths) | AC174: =IF(ISERROR(T174),NA(),"") ->  | AD174: =IF(OR(ISNA(U174),ISNA(V174),ISNA(W174),ISNA(X174),ISNA(Y174),ISNA(Z174),ISNA(AA174),ISNA(AB174),ISNA(AC174)),NA(),CONCATENATE(U174,V174,W174,X174,Y174,Z174,AA174,AB174)) -> 5/8 (five eighths) | AE174: =IF(ISNA(AD174),FALSE,IF(C174=$B$1,Worksheet!$B$3,IF(C174=$C$1,Worksheet!$B$4,IF(C174=$D$1,Worksheet!$B$5,IF(C174=$C$2,Worksheet!$D$3,IF(C174=$D$2,Worksheet!$D$4,IF(C174=$E$2,Worksheet!$D$5,IF(C174=$C$3,Worksheet!$D$6,IF(C174=$B$3,Worksheet!$B$6,IF(C174=$D$3,Worksheet!$B$9,IF(C174=$E$3,Worksheet!$D$9,FALSE))))))))))) -> TRUE | AF174: =IF(AE174,D174,"") -> Medium | AG174: =IF(AE174,COUNTIF($AF$5:AF174,AF174),"X") -> 74 | AH174: =CONCATENATE(AE174,AF174) -> TRUEMedium
A175: =CONCATENATE(AE175,D175,AG175) -> TRUEEasy64 | B175: =RAND() -> 0.5580293942 | C175: Frac | D175: Easy | E175: 106 | F175: Divide: | G175: 1 | J175: ÷ | K175: =IF(M175=4,CHOOSE(RANDBETWEEN(1,2),1,3),RANDBETWEEN(1,M175-1)) -> 1 | L175: / | M175: =RANDBETWEEN(2,10) -> 3 | N175: =IF(GCD(K175,M175)=1,"",", giving your answer in its simplest form") ->  | T175: =CONCATENATE(F175," ",G175,"",H175,"",I175," ",J175," ",K175,"",L175,"",M175," ",N175," ",O175," ",P175," ",Q175," ",R175) -> Divide: 1 ÷ 1/3 | U175: =M175/Z175 -> 3 | V175: =IF(K175/Z175=1,"","/") ->  | W175: =IF(K175/Z175=1,"",K175/Z175) ->  | Z175: =GCD(M175,K175) -> 1 | AC175: =IF(ISERROR(T175),NA(),"") ->  | AD175: =IF(OR(ISNA(U175),ISNA(V175),ISNA(W175),ISNA(X175),ISNA(Y175),ISNA(Z175),ISNA(AA175),ISNA(AB175),ISNA(AC175)),NA(),CONCATENATE(U175,V175,W175,X175,Y175,AA175,AB175)) -> 3 | AE175: =IF(ISNA(AD175),FALSE,IF(C175=$B$1,Worksheet!$B$3,IF(C175=$C$1,Worksheet!$B$4,IF(C175=$D$1,Worksheet!$B$5,IF(C175=$C$2,Worksheet!$D$3,IF(C175=$D$2,Worksheet!$D$4,IF(C175=$E$2,Worksheet!$D$5,IF(C175=$C$3,Worksheet!$D$6,IF(C175=$B$3,Worksheet!$B$6,IF(C175=$D$3,Worksheet!$B$9,IF(C175=$E$3,Worksheet!$D$9,FALSE))))))))))) -> TRUE | AF175: =IF(AE175,D175,"") -> Easy | AG175: =IF(AE175,COUNTIF($AF$5:AF175,AF175),"X") -> 64 | AH175: =CONCATENATE(AE175,AF175) -> TRUEEasy
A176: =CONCATENATE(AE176,D176,AG176) -> TRUEEasy65 | B176: =RAND() -> 0.03090598094 | C176: Dec | D176: Easy | E176: 131 | F176: Write down the next two numbers in this decreasing pattern: | G176: =RANDBETWEEN(10001,99999)/1000 -> 95.586 | H176: , | I176: =G176+$S176 -> 95.581 | J176: , | K176: =I176+$S176 -> 95.576 | L176: , | M176: =K176+$S176 -> 95.571 | N176: , | O176: _______________ | P176: , | Q176: _______________ | S176: =-1*10^RANDBETWEEN(-3,-1)*CHOOSE(RANDBETWEEN(1,2),2,5) -> -0.005 | T176: =CONCATENATE(F176," ",G176," ",H176," ",I176," ",J176," ",K176," ",L176," ",M176," ",N176," ",O176," ",P176," ",Q176," ",R176) -> Write down the next two numbers in this decreasing pattern: 95.586 , 95.581 , 95.576 , 95.571 , _______________ , _______________ | U176: =M176+S176 -> 95.566 | V176: , | W176: =U176+S176 -> 95.561 | AC176: =IF(ISERROR(T176),NA(),"") ->  | AD176: =IF(OR(ISNA(U176),ISNA(V176),ISNA(W176),ISNA(X176),ISNA(Y176),ISNA(Z176),ISNA(AA176),ISNA(AB176),ISNA(AC176)),NA(),CONCATENATE(U176,V176,W176,X176,Y176,Z176,AA176,AB176)) -> 95.566 , 95.561 | AE176: =IF(ISNA(AD176),FALSE,IF(C176=$B$1,Worksheet!$B$3,IF(C176=$C$1,Worksheet!$B$4,IF(C176=$D$1,Worksheet!$B$5,IF(C176=$C$2,Worksheet!$D$3,IF(C176=$D$2,Worksheet!$D$4,IF(C176=$E$2,Worksheet!$D$5,IF(C176=$C$3,Worksheet!$D$6,IF(C176=$B$3,Worksheet!$B$6,IF(C176=$D$3,Worksheet!$B$9,IF(C176=$E$3,Worksheet!$D$9,FALSE))))))))))) -> TRUE | AF176: =IF(AE176,D176,"") -> Easy | AG176: =IF(AE176,COUNTIF($AF$5:AF176,AF176),"X") -> 65 | AH176: =CONCATENATE(AE176,AF176) -> TRUEEasy
A177: =CONCATENATE(AE177,D177,AG177) -> TRUEMedium75 | B177: =RAND() -> 0.4797644608 | C177: Dec | D177: Medium | E177: 241 | F177: Divide: | G177: =(3*RANDBETWEEN(11,99)+RANDBETWEEN(1,2))/10 -> 25.6 | H177: ÷ | I177: 3 | J177: , giving your answer as a decimal rounded to 3 decimal places | T177: =CONCATENATE(F177," ",G177," ",H177," ",I177," ",J177," ",K177," ",L177," ",M177," ",N177," ",O177," ",P177," ",Q177," ",R177) -> Divide: 25.6 ÷ 3 , giving your answer as a decimal rounded to 3 decimal places | U177: =MROUND(G177/I177,0.001) -> 8.533 | AC177: =IF(ISERROR(T177),NA(),"") ->  | AD177: =IF(OR(ISNA(U177),ISNA(V177),ISNA(W177),ISNA(X177),ISNA(Y177),ISNA(Z177),ISNA(AA177),ISNA(AB177),ISNA(AC177)),NA(),CONCATENATE(U177,V177,W177,X177,Y177,Z177,AA177,AB177)) -> 8.533 | AE177: =IF(ISNA(AD177),FALSE,IF(C177=$B$1,Worksheet!$B$3,IF(C177=$C$1,Worksheet!$B$4,IF(C177=$D$1,Worksheet!$B$5,IF(C177=$C$2,Worksheet!$D$3,IF(C177=$D$2,Worksheet!$D$4,IF(C177=$E$2,Worksheet!$D$5,IF(C177=$C$3,Worksheet!$D$6,IF(C177=$B$3,Worksheet!$B$6,IF(C177=$D$3,Worksheet!$B$9,IF(C177=$E$3,Worksheet!$D$9,FALSE))))))))))) -> TRUE | AF177: =IF(AE177,D177,"") -> Medium | AG177: =IF(AE177,COUNTIF($AF$5:AF177,AF177),"X") -> 75 | AH177: =CONCATENATE(AE177,AF177) -> TRUEMedium
A178: =CONCATENATE(AE178,D178,AG178) -> TRUEMedium76 | B178: =RAND() -> 0.3378431027 | C178: Neg | D178: Medium | E178: 234 | F178: Add: | G178: (– | H178: =RANDBETWEEN(1,9)+0.5 -> 6.5 | I178: ) + (– | J178: =RANDBETWEEN(1,9)+0.5 -> 8.5 | K178: ) | T178: =CONCATENATE(F178," ",G178,"",H178,"",I178,"",J178,"",K178," ",L178," ",M178," ",N178," ",O178," ",P178," ",Q178," ",R178) -> Add: (–6.5) + (–8.5) | U178: – | V178: =H178+J178 -> 15 | AC178: =IF(ISERROR(T178),NA(),"") ->  | AD178: =IF(OR(ISNA(U178),ISNA(V178),ISNA(W178),ISNA(X178),ISNA(Y178),ISNA(Z178),ISNA(AA178),ISNA(AB178),ISNA(AC178)),NA(),CONCATENATE(U178,V178,W178,X178,Y178,Z178,AA178,AB178)) -> –15 | AE178: =IF(ISNA(AD178),FALSE,IF(C178=$B$1,Worksheet!$B$3,IF(C178=$C$1,Worksheet!$B$4,IF(C178=$D$1,Worksheet!$B$5,IF(C178=$C$2,Worksheet!$D$3,IF(C178=$D$2,Worksheet!$D$4,IF(C178=$E$2,Worksheet!$D$5,IF(C178=$C$3,Worksheet!$D$6,IF(C178=$B$3,Worksheet!$B$6,IF(C178=$D$3,Worksheet!$B$9,IF(C178=$E$3,Worksheet!$D$9,FALSE))))))))))) -> TRUE | AF178: =IF(AE178,D178,"") -> Medium | AG178: =IF(AE178,COUNTIF($AF$5:AF178,AF178),"X") -> 76 | AH178: =CONCATENATE(AE178,AF178) -> TRUEMedium
A179: =CONCATENATE(AE179,D179,AG179) -> TRUEEasy66 | B179: =RAND() -> 0.1681341912 | C179: % | D179: Easy | E179: 262 | F179: =CONCATENATE(CHOOSE(RANDBETWEEN(1,10),"Jemma","Cameron","Stephen","Matthew","Charlie","Liam","Megan","Elliot","John","Chelsea")," gets a mark of ") -> Megan gets a mark of | G179: =RANDBETWEEN(1,I179-1) -> 36 | H179: / | I179: =CHOOSE(RANDBETWEEN(1,3),20,25,50) -> 50 | J179: on a | K179: =CHOOSE(RANDBETWEEN(1,4),"spelling","geography","french","science") -> science | L179: test. What percentage is this? | T179: =CONCATENATE(F179,"",G179,"",H179,"",I179," ",J179," ",K179," ",L179," ",M179," ",N179," ",O179," ",P179," ",Q179," ",R179) -> Megan gets a mark of 36/50 on a science test. What percentage is this? | U179: =G179/I179*100 -> 72 | V179: % | Y179: =IF(U179=50,NA(),"") ->  | AC179: =IF(ISERROR(T179),NA(),"") ->  | AD179: =IF(OR(ISNA(U179),ISNA(V179),ISNA(W179),ISNA(X179),ISNA(Y179),ISNA(Z179),ISNA(AA179),ISNA(AB179),ISNA(AC179)),NA(),CONCATENATE(U179,V179,W179,X179,Y179,Z179,AA179,AB179)) -> 72% | AE179: =IF(ISNA(AD179),FALSE,IF(C179=$B$1,Worksheet!$B$3,IF(C179=$C$1,Worksheet!$B$4,IF(C179=$D$1,Worksheet!$B$5,IF(C179=$C$2,Worksheet!$D$3,IF(C179=$D$2,Worksheet!$D$4,IF(C179=$E$2,Worksheet!$D$5,IF(C179=$C$3,Worksheet!$D$6,IF(C179=$B$3,Worksheet!$B$6,IF(C179=$D$3,Worksheet!$B$9,IF(C179=$E$3,Worksheet!$D$9,FALSE))))))))))) -> TRUE | AF179: =IF(AE179,D179,"") -> Easy | AG179: =IF(AE179,COUNTIF($AF$5:AF179,AF179),"X") -> 66 | AH179: =CONCATENATE(AE179,AF179) -> TRUEEasy
A180: =CONCATENATE(AE180,D180,AG180) -> TRUEEasy67 | B180: =RAND() -> 0.9428751418 | C180: Surds | D180: Easy | E180: 29 | F180: Work out the value of: | G180: =RANDBETWEEN(4,10) -> 7 | H180: × | I180: =RANDBETWEEN(2,10) -> 7 | J180: ² | T180: =CONCATENATE(F180," ",G180," ",H180," ",I180,"",J180," ",K180," ",L180," ",M180," ",N180," ",O180," ",P180," ",Q180," ",R180) -> Work out the value of: 7 × 7² | U180: =G180*I180^2 -> 343 | AC180: =IF(ISERROR(T180),NA(),"") ->  | AD180: =IF(OR(ISNA(U180),ISNA(V180),ISNA(W180),ISNA(X180),ISNA(Y180),ISNA(Z180),ISNA(AA180),ISNA(AB180),ISNA(AC180)),NA(),CONCATENATE(U180,V180,W180,X180,Y180,Z180,AA180,AB180)) -> 343 | AE180: =IF(ISNA(AD180),FALSE,IF(C180=$B$1,Worksheet!$B$3,IF(C180=$C$1,Worksheet!$B$4,IF(C180=$D$1,Worksheet!$B$5,IF(C180=$C$2,Worksheet!$D$3,IF(C180=$D$2,Worksheet!$D$4,IF(C180=$E$2,Worksheet!$D$5,IF(C180=$C$3,Worksheet!$D$6,IF(C180=$B$3,Worksheet!$B$6,IF(C180=$D$3,Worksheet!$B$9,IF(C180=$E$3,Worksheet!$D$9,FALSE))))))))))) -> TRUE | AF180: =IF(AE180,D180,"") -> Easy | AG180: =IF(AE180,COUNTIF($AF$5:AF180,AF180),"X") -> 67 | AH180: =CONCATENATE(AE180,AF180) -> TRUEEasy
A181: =CONCATENATE(AE181,D181,AG181) -> TRUEMedium77 | B181: =RAND() -> 0.1287721698 | C181: % | D181: Medium | E181: 265 | F181: What sum could you type into a calculator to work out | G181: =RANDBETWEEN(1,99) -> 30 | H181: % | I181: of | J181: £ | K181: =RANDBETWEEN(1001,99999) -> 45492 | L181: ? Circle the correct answer: | M181: =CONCATENATE(K181," ÷ ",G181/100) -> 45492 ÷ 0.3 | N181: =CONCATENATE(K181," × ",G181/100) -> 45492 × 0.3 | O181: =CONCATENATE(G181/100," ÷ ",K181) -> 0.3 ÷ 45492 | P181: =CONCATENATE(G181/10," × ",K181) -> 3 × 45492 | T181: =CONCATENATE(F181," ",G181,"",H181," ",I181," ",J181,"",K181,"",L181," ",M181," ",N181," ",O181," ",P181," ",Q181," ",R181) -> What sum could you type into a calculator to work out 30% of £45492? Circle the correct answer: 45492 ÷ 0.3 45492 × 0.3 0.3 ÷ 45492 3 × 45492 | U181: =N181 -> 45492 × 0.3 | AC181: =IF(ISERROR(T181),NA(),"") ->  | AD181: =IF(OR(ISNA(U181),ISNA(V181),ISNA(W181),ISNA(X181),ISNA(Y181),ISNA(Z181),ISNA(AA181),ISNA(AB181),ISNA(AC181)),NA(),CONCATENATE(U181,V181,W181,X181,Y181,Z181,AA181,AB181)) -> 45492 × 0.3 | AE181: =IF(ISNA(AD181),FALSE,IF(C181=$B$1,Worksheet!$B$3,IF(C181=$C$1,Worksheet!$B$4,IF(C181=$D$1,Worksheet!$B$5,IF(C181=$C$2,Worksheet!$D$3,IF(C181=$D$2,Worksheet!$D$4,IF(C181=$E$2,Worksheet!$D$5,IF(C181=$C$3,Worksheet!$D$6,IF(C181=$B$3,Worksheet!$B$6,IF(C181=$D$3,Worksheet!$B$9,IF(C181=$E$3,Worksheet!$D$9,FALSE))))))))))) -> TRUE | AF181: =IF(AE181,D181,"") -> Medium | AG181: =IF(AE181,COUNTIF($AF$5:AF181,AF181),"X") -> 77 | AH181: =CONCATENATE(AE181,AF181) -> TRUEMedium
A182: =CONCATENATE(AE182,D182,AG182) -> TRUEMedium78 | B182: =RAND() -> 0.6934047358 | C182: Dec | D182: Medium | E182: 138 | F182: What number is exactly half way between | G182: =RANDBETWEEN(1,9)+RANDBETWEEN(0,9)*0.1+RANDBETWEEN(1,9)*0.01+0.009 -> 6.639 | H182: and | I182: =G182+0.001 -> 6.64 | J182: ? | T182: =CONCATENATE(F182," ",G182," ",H182," ",I182,"",J182,"",K182," ",L182," ",M182," ",N182," ",O182," ",P182," ",Q182," ",R182) -> What number is exactly half way between 6.639 and 6.64? | U182: =G182+0.0005 -> 6.6395 | AC182: =IF(ISERROR(T182),NA(),"") ->  | AD182: =IF(OR(ISNA(U182),ISNA(V182),ISNA(W182),ISNA(X182),ISNA(Y182),ISNA(Z182),ISNA(AA182),ISNA(AB182),ISNA(AC182)),NA(),CONCATENATE(U182,V182,W182,X182,Y182,Z182,AA182,AB182)) -> 6.6395 | AE182: =IF(ISNA(AD182),FALSE,IF(C182=$B$1,Worksheet!$B$3,IF(C182=$C$1,Worksheet!$B$4,IF(C182=$D$1,Worksheet!$B$5,IF(C182=$C$2,Worksheet!$D$3,IF(C182=$D$2,Worksheet!$D$4,IF(C182=$E$2,Worksheet!$D$5,IF(C182=$C$3,Worksheet!$D$6,IF(C182=$B$3,Worksheet!$B$6,IF(C182=$D$3,Worksheet!$B$9,IF(C182=$E$3,Worksheet!$D$9,FALSE))))))))))) -> TRUE | AF182: =IF(AE182,D182,"") -> Medium | AG182: =IF(AE182,COUNTIF($AF$5:AF182,AF182),"X") -> 78 | AH182: =CONCATENATE(AE182,AF182) -> TRUEMedium
A183: =CONCATENATE(AE183,D183,AG183) -> TRUEEasy68 | B183: =RAND() -> 0.1286842839 | C183: Alg | D183: Easy | E183: 302 | F183: Algebra. If a = | G183: =RANDBETWEEN(-10,-2) -> -5 | H183: and b = | I183: =RANDBETWEEN(-10,-2) -> -10 | J183: , what is the value of: | K183: =RANDBETWEEN(2,9) -> 7 | L183: a + | M183: =RANDBETWEEN(2,9) -> 3 | N183: b ? | T183: =CONCATENATE(F183," ",G183," ",H183," ",I183," ",J183," ",K183,"",L183," ",M183,"",N183," ",O183," ",P183," ",Q183," ",R183) -> Algebra. If a = -5 and b = -10 , what is the value of: 7a + 3b ? | U183: =K183*G183+I183*M183 -> -65 | AC183: =IF(ISERROR(T183),NA(),"") ->  | AD183: =IF(OR(ISNA(U183),ISNA(V183),ISNA(W183),ISNA(X183),ISNA(Y183),ISNA(Z183),ISNA(AA183),ISNA(AB183),ISNA(AC183)),NA(),CONCATENATE(U183,V183,W183,X183,Y183,Z183,AA183,AB183)) -> -65 | AE183: =IF(ISNA(AD183),FALSE,IF(C183=$B$1,Worksheet!$B$3,IF(C183=$C$1,Worksheet!$B$4,IF(C183=$D$1,Worksheet!$B$5,IF(C183=$C$2,Worksheet!$D$3,IF(C183=$D$2,Worksheet!$D$4,IF(C183=$E$2,Worksheet!$D$5,IF(C183=$C$3,Worksheet!$D$6,IF(C183=$B$3,Worksheet!$B$6,IF(C183=$D$3,Worksheet!$B$9,IF(C183=$E$3,Worksheet!$D$9,FALSE))))))))))) -> TRUE | AF183: =IF(AE183,D183,"") -> Easy | AG183: =IF(AE183,COUNTIF($AF$5:AF183,AF183),"X") -> 68 | AH183: =CONCATENATE(AE183,AF183) -> TRUEEasy
A184: =CONCATENATE(AE184,D184,AG184) -> TRUEMedium79 | B184: =RAND() -> 0.06926837644 | C184: Neg | D184: Medium | E184: 224 | F184: Work out the value of: | G184: (– | H184: =RANDBETWEEN(1,10) -> 10 | I184: ) × | J184: =RANDBETWEEN(1,10) -> 1 | K184: – | L184: =RANDBETWEEN(1,10) -> 7 | N184: (remember BODMAS) | T184: =CONCATENATE(F184," ",G184," ",H184,"",I184," ",J184," ",K184," ",L184," ",M184," ",N184," ",O184," ",P184," ",Q184," ",R184) -> Work out the value of: (– 10) × 1 – 7 (remember BODMAS) | U184: =H184*J184-L184 -> 3 | AC184: =IF(ISERROR(T184),NA(),"") ->  | AD184: =IF(OR(ISNA(U184),ISNA(V184),ISNA(W184),ISNA(X184),ISNA(Y184),ISNA(Z184),ISNA(AA184),ISNA(AB184),ISNA(AC184)),NA(),CONCATENATE(U184,V184,W184,X184,Y184,Z184,AA184,AB184)) -> 3 | AE184: =IF(ISNA(AD184),FALSE,IF(C184=$B$1,Worksheet!$B$3,IF(C184=$C$1,Worksheet!$B$4,IF(C184=$D$1,Worksheet!$B$5,IF(C184=$C$2,Worksheet!$D$3,IF(C184=$D$2,Worksheet!$D$4,IF(C184=$E$2,Worksheet!$D$5,IF(C184=$C$3,Worksheet!$D$6,IF(C184=$B$3,Worksheet!$B$6,IF(C184=$D$3,Worksheet!$B$9,IF(C184=$E$3,Worksheet!$D$9,FALSE))))))))))) -> TRUE | AF184: =IF(AE184,D184,"") -> Medium | AG184: =IF(AE184,COUNTIF($AF$5:AF184,AF184),"X") -> 79 | AH184: =CONCATENATE(AE184,AF184) -> TRUEMedium
A185: =CONCATENATE(AE185,D185,AG185) -> TRUEMedium80 | B185: =RAND() -> 0.5751942178 | C185: Neg | D185: Medium | E185: 236 | F185: Add: | G185: =RANDBETWEEN(1,5)+RANDBETWEEN(1,9)/10 -> 3.8 | H185: + (– | I185: =RANDBETWEEN(1,10)+RANDBETWEEN(1,9)/10 -> 8.2 | J185: ) | T185: =CONCATENATE(F185," ",G185," ",H185,"",I185,"",J185,"",K185," ",L185," ",M185," ",N185," ",O185," ",P185," ",Q185," ",R185) -> Add: 3.8 + (–8.2) | U185: =G185-I185 -> -4.4 | AC185: =IF(ISERROR(T185),NA(),"") ->  | AD185: =IF(OR(ISNA(U185),ISNA(V185),ISNA(W185),ISNA(X185),ISNA(Y185),ISNA(Z185),ISNA(AA185),ISNA(AB185),ISNA(AC185)),NA(),CONCATENATE(U185,V185,W185,X185,Y185,Z185,AA185,AB185)) -> -4.4 | AE185: =IF(ISNA(AD185),FALSE,IF(C185=$B$1,Worksheet!$B$3,IF(C185=$C$1,Worksheet!$B$4,IF(C185=$D$1,Worksheet!$B$5,IF(C185=$C$2,Worksheet!$D$3,IF(C185=$D$2,Worksheet!$D$4,IF(C185=$E$2,Worksheet!$D$5,IF(C185=$C$3,Worksheet!$D$6,IF(C185=$B$3,Worksheet!$B$6,IF(C185=$D$3,Worksheet!$B$9,IF(C185=$E$3,Worksheet!$D$9,FALSE))))))))))) -> TRUE | AF185: =IF(AE185,D185,"") -> Medium | AG185: =IF(AE185,COUNTIF($AF$5:AF185,AF185),"X") -> 80 | AH185: =CONCATENATE(AE185,AF185) -> TRUEMedium
A186: =CONCATENATE(AE186,D186,AG186) -> TRUEEasy69 | B186: =RAND() -> 0.2776243587 | C186: Dec | D186: Easy | E186: 244 | F186: Multiply: | G186: =RANDBETWEEN(1,9)+RANDBETWEEN(1,99)/100 -> 6.64 | H186: × | I186: =RANDBETWEEN(2,9)*10^RANDBETWEEN(1,1) -> 80 | T186: =CONCATENATE(F186," ",G186," ",H186," ",I186," ",J186," ",K186," ",L186," ",M186," ",N186," ",O186," ",P186," ",Q186," ",R186) -> Multiply: 6.64 × 80 | U186: =G186*I186 -> 531.2 | AC186: =IF(ISERROR(T186),NA(),"") ->  | AD186: =IF(OR(ISNA(U186),ISNA(V186),ISNA(W186),ISNA(X186),ISNA(Y186),ISNA(Z186),ISNA(AA186),ISNA(AB186),ISNA(AC186)),NA(),CONCATENATE(U186,V186,W186,X186,Y186,Z186,AA186,AB186)) -> 531.2 | AE186: =IF(ISNA(AD186),FALSE,IF(C186=$B$1,Worksheet!$B$3,IF(C186=$C$1,Worksheet!$B$4,IF(C186=$D$1,Worksheet!$B$5,IF(C186=$C$2,Worksheet!$D$3,IF(C186=$D$2,Worksheet!$D$4,IF(C186=$E$2,Worksheet!$D$5,IF(C186=$C$3,Worksheet!$D$6,IF(C186=$B$3,Worksheet!$B$6,IF(C186=$D$3,Worksheet!$B$9,IF(C186=$E$3,Worksheet!$D$9,FALSE))))))))))) -> TRUE | AF186: =IF(AE186,D186,"") -> Easy | AG186: =IF(AE186,COUNTIF($AF$5:AF186,AF186),"X") -> 69 | AH186: =CONCATENATE(AE186,AF186) -> TRUEEasy
A187: =CONCATENATE(AE187,D187,AG187) -> TRUEMedium81 | B187: =RAND() -> 0.1538187339 | C187: Dec | D187: Medium | E187: 199 | F187: Write the number | G187: =RANDBETWEEN(2,9)*10000 -> 40000 | H187: in standard form | T187: =CONCATENATE(F187," ",G187," ",H187," ",I187," ",J187," ",K187," ",L187," ",M187," ",N187," ",O187," ",P187," ",Q187," ",R187) -> Write the number 40000 in standard form | U187: =G187/10000 -> 4 | V187: × 10^4 (10 to the power of 4) | AC187: =IF(ISERROR(T187),NA(),"") ->  | AD187: =IF(OR(ISNA(U187),ISNA(V187),ISNA(W187),ISNA(X187),ISNA(Y187),ISNA(Z187),ISNA(AA187),ISNA(AB187),ISNA(AC187)),NA(),CONCATENATE(U187,V187,W187,X187,Y187,Z187,AA187,AB187)) -> 4× 10^4 (10 to the power of 4) | AE187: =IF(ISNA(AD187),FALSE,IF(C187=$B$1,Worksheet!$B$3,IF(C187=$C$1,Worksheet!$B$4,IF(C187=$D$1,Worksheet!$B$5,IF(C187=$C$2,Worksheet!$D$3,IF(C187=$D$2,Worksheet!$D$4,IF(C187=$E$2,Worksheet!$D$5,IF(C187=$C$3,Worksheet!$D$6,IF(C187=$B$3,Worksheet!$B$6,IF(C187=$D$3,Worksheet!$B$9,IF(C187=$E$3,Worksheet!$D$9,FALSE))))))))))) -> TRUE | AF187: =IF(AE187,D187,"") -> Medium | AG187: =IF(AE187,COUNTIF($AF$5:AF187,AF187),"X") -> 81 | AH187: =CONCATENATE(AE187,AF187) -> TRUEMedium
A188: =CONCATENATE(AE188,D188,AG188) -> TRUEEasy70 | B188: =RAND() -> 0.3391801714 | C188: Num | D188: Easy | E188: 2 | F188: Write the number | G188: =RANDBETWEEN(1,9) -> 5 | H188: =CHOOSE(RANDBETWEEN(1,3),"¼","¾","½") -> ¼ | I188: =CHOOSE(RANDBETWEEN(1,2),"million","billion") -> million | J188: in figures in full | T188: =CONCATENATE(F188," ",G188,"",H188," ",I188," ",J188," ",K188," ",L188," ",M188," ",N188," ",O188," ",P188," ",Q188," ",R188) -> Write the number 5¼ million in figures in full | U188: =G188 -> 5 | V188: , | W188: =IF(H188="¼",25,IF(H188="¾",75,IF(H188="½",50,NA()))) -> 25 | X188: 0,000 | Y188: =IF(I188="billion",",000","") ->  | AC188: =IF(ISERROR(T188),NA(),"") ->  | AD188: =IF(OR(ISNA(U188),ISNA(V188),ISNA(W188),ISNA(X188),ISNA(Y188),ISNA(Z188),ISNA(AA188),ISNA(AB188),ISNA(AC188)),NA(),CONCATENATE(U188,V188,W188,X188,Y188,Z188,AA188,AB188)) -> 5,250,000 | AE188: =IF(ISNA(AD188),FALSE,IF(C188=$B$1,Worksheet!$B$3,IF(C188=$C$1,Worksheet!$B$4,IF(C188=$D$1,Worksheet!$B$5,IF(C188=$C$2,Worksheet!$D$3,IF(C188=$D$2,Worksheet!$D$4,IF(C188=$E$2,Worksheet!$D$5,IF(C188=$C$3,Worksheet!$D$6,IF(C188=$B$3,Worksheet!$B$6,IF(C188=$D$3,Worksheet!$B$9,IF(C188=$E$3,Worksheet!$D$9,FALSE))))))))))) -> TRUE | AF188: =IF(AE188,D188,"") -> Easy | AG188: =IF(AE188,COUNTIF($AF$5:AF188,AF188),"X") -> 70 | AH188: =CONCATENATE(AE188,AF188) -> TRUEEasy
A189: =CONCATENATE(AE189,D189,AG189) -> TRUEEasy71 | B189: =RAND() -> 0.9089264515 | C189: +-×÷ | D189: Easy | E189: 19 | F189: Use a method of your choice to multiply | G189: =RANDBETWEEN(2,9)*10+RANDBETWEEN(1,9) -> 64 | H189: × | I189: =RANDBETWEEN(2,9)*10+RANDBETWEEN(1,9) -> 36 | J189: without a calculator | T189: =CONCATENATE(F189," ",G189," ",H189," ",I189," ",J189," ",K189," ",L189," ",M189," ",N189," ",O189," ",P189," ",Q189," ",R189) -> Use a method of your choice to multiply 64 × 36 without a calculator | U189: =G189*I189 -> 2304 | AC189: =IF(ISERROR(T189),NA(),"") ->  | AD189: =IF(OR(ISNA(U189),ISNA(V189),ISNA(W189),ISNA(X189),ISNA(Y189),ISNA(Z189),ISNA(AA189),ISNA(AB189),ISNA(AC189)),NA(),CONCATENATE(U189,V189,W189,X189,Y189,Z189,AA189,AB189)) -> 2304 | AE189: =IF(ISNA(AD189),FALSE,IF(C189=$B$1,Worksheet!$B$3,IF(C189=$C$1,Worksheet!$B$4,IF(C189=$D$1,Worksheet!$B$5,IF(C189=$C$2,Worksheet!$D$3,IF(C189=$D$2,Worksheet!$D$4,IF(C189=$E$2,Worksheet!$D$5,IF(C189=$C$3,Worksheet!$D$6,IF(C189=$B$3,Worksheet!$B$6,IF(C189=$D$3,Worksheet!$B$9,IF(C189=$E$3,Worksheet!$D$9,FALSE))))))))))) -> TRUE | AF189: =IF(AE189,D189,"") -> Easy | AG189: =IF(AE189,COUNTIF($AF$5:AF189,AF189),"X") -> 71 | AH189: =CONCATENATE(AE189,AF189) -> TRUEEasy
A190: =CONCATENATE(AE190,D190,AG190) -> TRUEMedium82 | B190: =RAND() -> 0.3192874898 | C190: Dec | D190: Medium | E190: 133 | F190: Write the fraction | G190: =RANDBETWEEN(1,9) -> 3 | H190: / | I190: =CHOOSE(RANDBETWEEN(1,2),1000,10000) -> 1000 | J190: as a decimal | T190: =CONCATENATE(F190," ",G190,"",H190,"",I190," ",J190," ",K190," ",L190," ",M190," ",N190," ",O190," ",P190," ",Q190," ",R190) -> Write the fraction 3/1000 as a decimal | U190: =G190/I190 -> 0.003 | AC190: =IF(ISERROR(T190),NA(),"") ->  | AD190: =IF(OR(ISNA(U190),ISNA(V190),ISNA(W190),ISNA(X190),ISNA(Y190),ISNA(Z190),ISNA(AA190),ISNA(AB190),ISNA(AC190)),NA(),CONCATENATE(U190,V190,W190,X190,Y190,Z190,AA190,AB190)) -> 0.003 | AE190: =IF(ISNA(AD190),FALSE,IF(C190=$B$1,Worksheet!$B$3,IF(C190=$C$1,Worksheet!$B$4,IF(C190=$D$1,Worksheet!$B$5,IF(C190=$C$2,Worksheet!$D$3,IF(C190=$D$2,Worksheet!$D$4,IF(C190=$E$2,Worksheet!$D$5,IF(C190=$C$3,Worksheet!$D$6,IF(C190=$B$3,Worksheet!$B$6,IF(C190=$D$3,Worksheet!$B$9,IF(C190=$E$3,Worksheet!$D$9,FALSE))))))))))) -> TRUE | AF190: =IF(AE190,D190,"") -> Medium | AG190: =IF(AE190,COUNTIF($AF$5:AF190,AF190),"X") -> 82 | AH190: =CONCATENATE(AE190,AF190) -> TRUEMedium
A191: =CONCATENATE(AE191,D191,AG191) -> TRUEHard33 | B191: =RAND() -> 0.2929921618 | C191: Dec | D191: Hard | E191: 206 | F191: Write the number | G191: =RANDBETWEEN(2,9)/10+RANDBETWEEN(1,99)/1000 -> 0.522 | H191: in standard form | T191: =CONCATENATE(F191," ",G191," ",H191," ",I191," ",J191," ",K191," ",L191," ",M191," ",N191," ",O191," ",P191," ",Q191," ",R191) -> Write the number 0.522 in standard form | U191: =G191*10 -> 5.22 | V191: × 10^(-1) (10 to the power of -1) | AC191: =IF(ISERROR(T191),NA(),"") ->  | AD191: =IF(OR(ISNA(U191),ISNA(V191),ISNA(W191),ISNA(X191),ISNA(Y191),ISNA(Z191),ISNA(AA191),ISNA(AB191),ISNA(AC191)),NA(),CONCATENATE(U191,V191,W191,X191,Y191,Z191,AA191,AB191)) -> 5.22× 10^(-1) (10 to the power of -1) | AE191: =IF(ISNA(AD191),FALSE,IF(C191=$B$1,Worksheet!$B$3,IF(C191=$C$1,Worksheet!$B$4,IF(C191=$D$1,Worksheet!$B$5,IF(C191=$C$2,Worksheet!$D$3,IF(C191=$D$2,Worksheet!$D$4,IF(C191=$E$2,Worksheet!$D$5,IF(C191=$C$3,Worksheet!$D$6,IF(C191=$B$3,Worksheet!$B$6,IF(C191=$D$3,Worksheet!$B$9,IF(C191=$E$3,Worksheet!$D$9,FALSE))))))))))) -> TRUE | AF191: =IF(AE191,D191,"") -> Hard | AG191: =IF(AE191,COUNTIF($AF$5:AF191,AF191),"X") -> 33 | AH191: =CONCATENATE(AE191,AF191) -> TRUEHard
A192: =CONCATENATE(AE192,D192,AG192) -> TRUEMedium83 | B192: =RAND() -> 0.584954365 | C192: Dec | D192: Medium | E192: 160 | F192: What is three eighths (3/8) as a decimal? | T192: =CONCATENATE(F192," ",G192," ",H192," ",I192," ",J192," ",K192," ",L192," ",M192," ",N192," ",O192," ",P192," ",Q192," ",R192) -> What is three eighths (3/8) as a decimal? | U192: 0.375 | AC192: =IF(ISERROR(T192),NA(),"") ->  | AD192: =IF(OR(ISNA(U192),ISNA(V192),ISNA(W192),ISNA(X192),ISNA(Y192),ISNA(Z192),ISNA(AA192),ISNA(AB192),ISNA(AC192)),NA(),CONCATENATE(U192,V192,W192,X192,Y192,Z192,AA192,AB192)) -> 0.375 | AE192: =IF(ISNA(AD192),FALSE,IF(C192=$B$1,Worksheet!$B$3,IF(C192=$C$1,Worksheet!$B$4,IF(C192=$D$1,Worksheet!$B$5,IF(C192=$C$2,Worksheet!$D$3,IF(C192=$D$2,Worksheet!$D$4,IF(C192=$E$2,Worksheet!$D$5,IF(C192=$C$3,Worksheet!$D$6,IF(C192=$B$3,Worksheet!$B$6,IF(C192=$D$3,Worksheet!$B$9,IF(C192=$E$3,Worksheet!$D$9,FALSE))))))))))) -> TRUE | AF192: =IF(AE192,D192,"") -> Medium | AG192: =IF(AE192,COUNTIF($AF$5:AF192,AF192),"X") -> 83 | AH192: =CONCATENATE(AE192,AF192) -> TRUEMedium
A193: =CONCATENATE(AE193,D193,AG193) -> TRUEMedium84 | B193: =RAND() -> 0.9868186412 | C193: Neg | D193: Medium | E193: 237 | F193: Take away: | G193: =RANDBETWEEN(1,5)+RANDBETWEEN(1,9)/10 -> 4.1 | H193: – (– | I193: =RANDBETWEEN(1,5)+RANDBETWEEN(1,9)/10 -> 4.2 | J193: ) | T193: =CONCATENATE(F193," ",G193," ",H193,"",I193,"",J193,"",K193," ",L193," ",M193," ",N193," ",O193," ",P193," ",Q193," ",R193) -> Take away: 4.1 – (–4.2) | U193: =G193+I193 -> 8.3 | AC193: =IF(ISERROR(T193),NA(),"") ->  | AD193: =IF(OR(ISNA(U193),ISNA(V193),ISNA(W193),ISNA(X193),ISNA(Y193),ISNA(Z193),ISNA(AA193),ISNA(AB193),ISNA(AC193)),NA(),CONCATENATE(U193,V193,W193,X193,Y193,Z193,AA193,AB193)) -> 8.3 | AE193: =IF(ISNA(AD193),FALSE,IF(C193=$B$1,Worksheet!$B$3,IF(C193=$C$1,Worksheet!$B$4,IF(C193=$D$1,Worksheet!$B$5,IF(C193=$C$2,Worksheet!$D$3,IF(C193=$D$2,Worksheet!$D$4,IF(C193=$E$2,Worksheet!$D$5,IF(C193=$C$3,Worksheet!$D$6,IF(C193=$B$3,Worksheet!$B$6,IF(C193=$D$3,Worksheet!$B$9,IF(C193=$E$3,Worksheet!$D$9,FALSE))))))))))) -> TRUE | AF193: =IF(AE193,D193,"") -> Medium | AG193: =IF(AE193,COUNTIF($AF$5:AF193,AF193),"X") -> 84 | AH193: =CONCATENATE(AE193,AF193) -> TRUEMedium
A194: =CONCATENATE(AE194,D194,AG194) -> TRUEHard34 | B194: =RAND() -> 0.03965914822 | C194: Frac | D194: Hard | E194: 96 | F194: Change the fraction | G194: =RANDBETWEEN(1,10) -> 5 | H194: /11 | I194: into a decimal correct to 3 decimal places | T194: =CONCATENATE(F194," ",G194,"",H194," ",I194," ",J194," ",K194," ",L194," ",M194," ",N194," ",O194," ",P194," ",Q194," ",R194) -> Change the fraction 5/11 into a decimal correct to 3 decimal places | U194: =TEXT(G194/11,"0.000") -> 0.455 | AC194: =IF(ISERROR(T194),NA(),"") ->  | AD194: =IF(OR(ISNA(U194),ISNA(V194),ISNA(W194),ISNA(X194),ISNA(Y194),ISNA(Z194),ISNA(AA194),ISNA(AB194),ISNA(AC194)),NA(),CONCATENATE(U194,V194,W194,X194,Y194,Z194,AA194,AB194)) -> 0.455 | AE194: =IF(ISNA(AD194),FALSE,IF(C194=$B$1,Worksheet!$B$3,IF(C194=$C$1,Worksheet!$B$4,IF(C194=$D$1,Worksheet!$B$5,IF(C194=$C$2,Worksheet!$D$3,IF(C194=$D$2,Worksheet!$D$4,IF(C194=$E$2,Worksheet!$D$5,IF(C194=$C$3,Worksheet!$D$6,IF(C194=$B$3,Worksheet!$B$6,IF(C194=$D$3,Worksheet!$B$9,IF(C194=$E$3,Worksheet!$D$9,FALSE))))))))))) -> TRUE | AF194: =IF(AE194,D194,"") -> Hard | AG194: =IF(AE194,COUNTIF($AF$5:AF194,AF194),"X") -> 34 | AH194: =CONCATENATE(AE194,AF194) -> TRUEHard
A195: =CONCATENATE(AE195,D195,AG195) -> TRUEMedium85 | B195: =RAND() -> 0.2248804906 | C195: +-×÷ | D195: Medium | E195: 13 | F195: Take away | G195: =RANDBETWEEN(2,999)*10000+RANDBETWEEN(1,99)*100+RANDBETWEEN(1,99) -> 2867718 | H195: – | I195: =RANDBETWEEN(500,G195-100) -> 1265466 | J195: without a calculator | T195: =CONCATENATE(F195," ",G195," ",H195," ",I195," ",J195," ",K195," ",L195," ",M195," ",N195," ",O195," ",P195," ",Q195," ",R195) -> Take away 2867718 – 1265466 without a calculator | U195: =G195-I195 -> 1602252 | AC195: =IF(ISERROR(T195),NA(),"") ->  | AD195: =IF(OR(ISNA(U195),ISNA(V195),ISNA(W195),ISNA(X195),ISNA(Y195),ISNA(Z195),ISNA(AA195),ISNA(AB195),ISNA(AC195)),NA(),CONCATENATE(U195,V195,W195,X195,Y195,Z195,AA195,AB195)) -> 1602252 | AE195: =IF(ISNA(AD195),FALSE,IF(C195=$B$1,Worksheet!$B$3,IF(C195=$C$1,Worksheet!$B$4,IF(C195=$D$1,Worksheet!$B$5,IF(C195=$C$2,Worksheet!$D$3,IF(C195=$D$2,Worksheet!$D$4,IF(C195=$E$2,Worksheet!$D$5,IF(C195=$C$3,Worksheet!$D$6,IF(C195=$B$3,Worksheet!$B$6,IF(C195=$D$3,Worksheet!$B$9,IF(C195=$E$3,Worksheet!$D$9,FALSE))))))))))) -> TRUE | AF195: =IF(AE195,D195,"") -> Medium | AG195: =IF(AE195,COUNTIF($AF$5:AF195,AF195),"X") -> 85 | AH195: =CONCATENATE(AE195,AF195) -> TRUEMedium
A196: =CONCATENATE(AE196,D196,AG196) -> TRUEEasy72 | B196: =RAND() -> 0.9857704786 | C196: % | D196: Easy | E196: 268 | F196: What is | G196: 33⅓% | H196: of | I196: =3*RANDBETWEEN(11,99)*10^RANDBETWEEN(0,3) -> 222000 | J196: ? | T196: =CONCATENATE(F196," ",G196," ",H196," ",I196,"",J196," ",K196," ",L196," ",M196," ",N196," ",O196," ",P196," ",Q196," ",R196) -> What is 33⅓% of 222000? | U196: =I196/3 -> 74000 | AC196: =IF(ISERROR(T196),NA(),"") ->  | AD196: =IF(OR(ISNA(U196),ISNA(V196),ISNA(W196),ISNA(X196),ISNA(Y196),ISNA(Z196),ISNA(AA196),ISNA(AB196),ISNA(AC196)),NA(),CONCATENATE(U196,V196,W196,X196,Y196,Z196,AA196,AB196)) -> 74000 | AE196: =IF(ISNA(AD196),FALSE,IF(C196=$B$1,Worksheet!$B$3,IF(C196=$C$1,Worksheet!$B$4,IF(C196=$D$1,Worksheet!$B$5,IF(C196=$C$2,Worksheet!$D$3,IF(C196=$D$2,Worksheet!$D$4,IF(C196=$E$2,Worksheet!$D$5,IF(C196=$C$3,Worksheet!$D$6,IF(C196=$B$3,Worksheet!$B$6,IF(C196=$D$3,Worksheet!$B$9,IF(C196=$E$3,Worksheet!$D$9,FALSE))))))))))) -> TRUE | AF196: =IF(AE196,D196,"") -> Easy | AG196: =IF(AE196,COUNTIF($AF$5:AF196,AF196),"X") -> 72 | AH196: =CONCATENATE(AE196,AF196) -> TRUEEasy
A197: =CONCATENATE(AE197,D197,AG197) -> TRUEEasy73 | B197: =RAND() -> 0.6517041753 | C197: Frac | D197: Easy | E197: 75 | F197: Fractions. Without a calculator, work out: | G197: =TEXT(R197/S197,"##/##") -> 5/12 | H197: of | I197: =S197*RANDBETWEEN(3,6) -> 72 | R197: =RANDBETWEEN(2,S197-1) -> 5 | S197: =RANDBETWEEN(11,19) -> 12 | T197: =CONCATENATE(F197," ",G197," ",H197," ",I197," ",J197," ",K197," ",L197," ",M197," ",N197," ",O197," ",P197," ",Q197) -> Fractions. Without a calculator, work out: 5/12 of 72 | U197: =I197/S197*VALUE(LEFT(G197,SEARCH("/",G197,1)-1)) -> 30 | AC197: =IF(ISERROR(T197),NA(),"") ->  | AD197: =IF(OR(ISNA(U197),ISNA(V197),ISNA(W197),ISNA(X197),ISNA(Y197),ISNA(Z197),ISNA(AA197),ISNA(AB197),ISNA(AC197)),NA(),CONCATENATE(U197,V197,W197,X197,Y197,Z197,AA197,AB197)) -> 30 | AE197: =IF(ISNA(AD197),FALSE,IF(C197=$B$1,Worksheet!$B$3,IF(C197=$C$1,Worksheet!$B$4,IF(C197=$D$1,Worksheet!$B$5,IF(C197=$C$2,Worksheet!$D$3,IF(C197=$D$2,Worksheet!$D$4,IF(C197=$E$2,Worksheet!$D$5,IF(C197=$C$3,Worksheet!$D$6,IF(C197=$B$3,Worksheet!$B$6,IF(C197=$D$3,Worksheet!$B$9,IF(C197=$E$3,Worksheet!$D$9,FALSE))))))))))) -> TRUE | AF197: =IF(AE197,D197,"") -> Easy | AG197: =IF(AE197,COUNTIF($AF$5:AF197,AF197),"X") -> 73 | AH197: =CONCATENATE(AE197,AF197) -> TRUEEasy
A198: =CONCATENATE(AE198,D198,AG198) -> TRUEEasy74 | B198: =RAND() -> 0.1105777484 | C198: Eqn | D198: Easy | E198: 318 | F198: Solve the equation | G198: =RANDBETWEEN(2,10) -> 7 | H198: =CHOOSE(RANDBETWEEN(1,22),"a","b","c","d","f","g","h","j","k","m","n","p","q","r","s","t","u","v","w","x","y","z") -> p | I198: + | J198: =RANDBETWEEN(1,10) -> 7 | K198: = | L198: =G198*W198+J198 -> 98 | M198: . Show your working in full. | T198: =CONCATENATE(F198," ",G198,"",H198," ",I198," ",J198," ",K198," ",L198," ",M198," ",N198," ",O198," ",P198," ",Q198," ",R198) -> Solve the equation 7p + 7 = 98 . Show your working in full. | U198: =H198 -> p | V198: = | W198: =RANDBETWEEN(8,20) -> 13 | AC198: =IF(ISERROR(T198),NA(),"") ->  | AD198: =IF(OR(ISNA(U198),ISNA(V198),ISNA(W198),ISNA(X198),ISNA(Y198),ISNA(Z198),ISNA(AA198),ISNA(AB198),ISNA(AC198)),NA(),CONCATENATE(U198,V198,W198,X198,Y198,Z198,AA198,AB198)) -> p = 13 | AE198: =IF(ISNA(AD198),FALSE,IF(C198=$B$1,Worksheet!$B$3,IF(C198=$C$1,Worksheet!$B$4,IF(C198=$D$1,Worksheet!$B$5,IF(C198=$C$2,Worksheet!$D$3,IF(C198=$D$2,Worksheet!$D$4,IF(C198=$E$2,Worksheet!$D$5,IF(C198=$C$3,Worksheet!$D$6,IF(C198=$B$3,Worksheet!$B$6,IF(C198=$D$3,Worksheet!$B$9,IF(C198=$E$3,Worksheet!$D$9,FALSE))))))))))) -> TRUE | AF198: =IF(AE198,D198,"") -> Easy | AG198: =IF(AE198,COUNTIF($AF$5:AF198,AF198),"X") -> 74 | AH198: =CONCATENATE(AE198,AF198) -> TRUEEasy
A199: =CONCATENATE(AE199,D199,AG199) -> TRUEEasy75 | B199: =RAND() -> 0.6319983723 | C199: Dec | D199: Easy | E199: 163 | F199: What is one third (1/3) as a decimal? | T199: =CONCATENATE(F199," ",G199," ",H199," ",I199," ",J199," ",K199," ",L199," ",M199," ",N199," ",O199," ",P199," ",Q199," ",R199) -> What is one third (1/3) as a decimal? | U199: 0.3333… (0.33 recurring) | AC199: =IF(ISERROR(T199),NA(),"") ->  | AD199: =IF(OR(ISNA(U199),ISNA(V199),ISNA(W199),ISNA(X199),ISNA(Y199),ISNA(Z199),ISNA(AA199),ISNA(AB199),ISNA(AC199)),NA(),CONCATENATE(U199,V199,W199,X199,Y199,Z199,AA199,AB199)) -> 0.3333… (0.33 recurring) | AE199: =IF(ISNA(AD199),FALSE,IF(C199=$B$1,Worksheet!$B$3,IF(C199=$C$1,Worksheet!$B$4,IF(C199=$D$1,Worksheet!$B$5,IF(C199=$C$2,Worksheet!$D$3,IF(C199=$D$2,Worksheet!$D$4,IF(C199=$E$2,Worksheet!$D$5,IF(C199=$C$3,Worksheet!$D$6,IF(C199=$B$3,Worksheet!$B$6,IF(C199=$D$3,Worksheet!$B$9,IF(C199=$E$3,Worksheet!$D$9,FALSE))))))))))) -> TRUE | AF199: =IF(AE199,D199,"") -> Easy | AG199: =IF(AE199,COUNTIF($AF$5:AF199,AF199),"X") -> 75 | AH199: =CONCATENATE(AE199,AF199) -> TRUEEasy
A200: =CONCATENATE(AE200,D200,AG200) -> TRUEEasy76 | B200: =RAND() -> 0.9249653188 | C200: Dec | D200: Easy | E200: 158 | F200: Divide: | G200: =RANDBETWEEN(101,999) -> 483 | H200: ÷ | I200: 10000 | T200: =CONCATENATE(F200," ",G200," ",H200," ",I200," ",J200," ",K200," ",L200," ",M200," ",N200," ",O200," ",P200," ",Q200," ",R200) -> Divide: 483 ÷ 10000 | U200: =G200/I200 -> 0.0483 | AC200: =IF(ISERROR(T200),NA(),"") ->  | AD200: =IF(OR(ISNA(U200),ISNA(V200),ISNA(W200),ISNA(X200),ISNA(Y200),ISNA(Z200),ISNA(AA200),ISNA(AB200),ISNA(AC200)),NA(),CONCATENATE(U200,V200,W200,X200,Y200,Z200,AA200,AB200)) -> 0.0483 | AE200: =IF(ISNA(AD200),FALSE,IF(C200=$B$1,Worksheet!$B$3,IF(C200=$C$1,Worksheet!$B$4,IF(C200=$D$1,Worksheet!$B$5,IF(C200=$C$2,Worksheet!$D$3,IF(C200=$D$2,Worksheet!$D$4,IF(C200=$E$2,Worksheet!$D$5,IF(C200=$C$3,Worksheet!$D$6,IF(C200=$B$3,Worksheet!$B$6,IF(C200=$D$3,Worksheet!$B$9,IF(C200=$E$3,Worksheet!$D$9,FALSE))))))))))) -> TRUE | AF200: =IF(AE200,D200,"") -> Easy | AG200: =IF(AE200,COUNTIF($AF$5:AF200,AF200),"X") -> 76 | AH200: =CONCATENATE(AE200,AF200) -> TRUEEasy
... 155 more rows
